Workbook

Sheet NOMBRE (hidden)
A1: DATOS DEL ESTABLECIMIENTO | C1: CÓDIGOS
A2: NOMBRE DE COMUNA | I2: =IF(OR(NOMBRE!C2="",NOMBRE!D2="",NOMBRE!E2="",NOMBRE!F2="",NOMBRE!G2=""),"Falta Cód. Com.","") -> Falta Cód. Com. | AG2: =IF(I2>"",1,0) -> 1
A3: NOMBRE ESTABLECIMIENTO/ESTRATEGIA | I3: =IF(OR(NOMBRE!C3="",NOMBRE!D3="",NOMBRE!E3="",NOMBRE!F3="",NOMBRE!G3="",NOMBRE!H3=""),"Falta Cód. Est.","") -> Falta Cód. Est. | AG3: =IF(I3>"",1,0) -> 1
A4: TIPO DE ESTABLECIMIENTO/ESTRATEGIA | I4: =IF(OR(NOMBRE!B4=""),"Falta Tipo. Est.","") -> Falta Tipo. Est. | AG4: =IF(I4>"",1,0) -> 1
A5: DEPENDENCIA | I5: =IF(OR(NOMBRE!B5=""),"Falta Dependencia. Est.","") -> Falta Dependencia. Est. | AG5: =IF(I5>"",1,0) -> 1
A6: MES: | I6: =IF(OR(NOMBRE!C6="",NOMBRE!D6=""),"Falta Cód. Mes.","") -> Falta Cód. Mes. | AG6: =IF(I6>"",1,0) -> 1
A7: AÑO: | B7: 2023 | AG7: =SUM(AG2:AG6) -> 5
A9: Versión 1.4: Mayo 2023 | G9: Para habilitar el contenido de las celdas "Tipo de Establecimiento", "Dependencia" y "Mes", presione el boton "Verificar Habilitacion de Macros". Para poder tener un 100% de funcionalidad debe hablitar la opcion Macros en esta planilla.
A11: Director Servicio de Salud o Director Establecimiento | AA11: ENERO | AB11: Establecimiento de Mayor Complejidad (EMAYC) | AC11: SERVICIO DE SALUD
A12: Jefe de Estadísticas | AA12: FEBRERO | AB12: Establecimiento de Mediana Complejidad (EMEDC) | AC12: MUNICIPAL
AA13: MARZO | AB13: Establecimiento de Menor Complejidad (EMENC) | AC13: OTRA INSTITUCION (Delegado)
AA14: ABRIL | AB14: Centros de Diagnóstico Terapeutico (CDT)
A15: MINSAL - DEIS | AA15: MAYO | AB15: Centro de Referencia de Salud (CRS)
AA16: JUNIO | AB16: Consultorio General Urbano (CGU)
B17: SERIE A | G17: ESTADO MACROS: | AA17: JULIO | AB17: Consultorio General Urbano (CGU) - CESFAM
I18: HABILITADO | AA18: AGOSTO | AB18: Consultorio General Urbano(CGU) con SAPU/SUR/SAR
AA19: SEPTIEMBRE | AB19: Consultorio General Urbano (CGU) - CESFAM con SAPU/SAR
AA20: OCTUBRE | AB20: Consultorio General Rural (CGR)
AA21: NOVIEMBRE | AB21: Consultorio General Rural (CGR) - CESFAM
AA22: DICIEMBRE | AB22: Consultorio General Rural (CGR) con SAPU/SAR/SUR
AB23: Consultorio General Rural (CGR) - CESFAM con SAPU/SAR/SUR
AB24: Posta de Salud Rural (PSR)
AB25: Centro Comunitario de Salud Familiar (CECOF)
AB26: Consultorio de Salud Mental (COSAM)
AB27: Programa de Reparación y Atención Integral de Salud (PRAIS)
AB28: Centro de Atención Funcionarios (CAF)
AB29: Unidad de Salud de Funcionarios (USF)
AB30: ClÍnica Dental Móvil (CDM)
AB31: Dirección Servicio de Salud (DSS)
AB32: Servicio de Atención Primaria de Urgencia (SAPU)
AB33: Servicio de Atención Primaria de Urgencia de Alta Resolutividad (SAR)
AB34: Servicio de Urgencia Rural (SUR)
AB35: Laboratorio Clínico o Dental
AB36: Servicio de Atención Primaria de Urgencia Dental (SAPUDENT)
AB37: Centro de Rehabilitación (CR)
AB38: Hospital de Campaña
AB39: Centro Oncologico
AB40: SAMU

Sheet FILTRO
A1: Comuna | B1: (Todas)
A2: Establecimiento | B2: (Todas)
A3: Mes | B3: (Todas)
A5: Etiquetas de fila | B5: Suma de Col01 | C5: Suma de Col02 | D5: Suma de Col03 | E5: Suma de Col04 | F5: Suma de Col05 | G5: Suma de Col06 | H5: Suma de Col07 | I5: Suma de Col08 | J5: Suma de Col09 | K5: Suma de Col10 | L5: Suma de Col11 | M5: Suma de Col12 | N5: Suma de Col13 | O5: Suma de Col14 | P5: Suma de Col15 | Q5: Suma de Col16 | R5: Suma de Col17 | S5: Suma de Col18 | T5: Suma de Col19 | U5: Suma de Col20 | V5: Suma de Col21 | W5: Suma de Col22 | X5: Suma de Col23 | Y5: Suma de Col24 | Z5: Suma de Col25 | AA5: Suma de Col26 | AB5: Suma de Col27 | AC5: Suma de Col28 | AD5: Suma de Col29 | AE5: Suma de Col30 | AF5: Suma de Col31 | AG5: Suma de Col32 | AH5: Suma de Col33 | AI5: Suma de Col34 | AJ5: Suma de Col35 | AK5: Suma de Col36 | AL5: Suma de Col37 | AM5: Suma de Col38 | AN5: Suma de Col39 | AO5: Suma de Col40 | AP5: Suma de Col41 | AQ5: Suma de col42 | AR5: Suma de col43 | AS5: Suma de col44 | AT5: Suma de col45 | AU5: Suma de col46 | AV5: Suma de col47 | AW5: Suma de col48
A6: 01010101 | B6: 7 | E6: 0 | F6: 0 | G6: 0 | H6: 4 | I6: 2 | J6: 0 | K6: 1 | L6: 0 | M6: 0 | N6: 0 | T6: 0 | U6: 7 | X6: 0 | Y6: 0 | Z6: 0 | AA6: 0 | AB6: 0
A7: 01010103 | B7: 1403 | E7: 3 | F7: 61 | G7: 228 | H7: 389 | I7: 360 | J7: 249 | K7: 96 | L7: 16 | M7: 1 | N7: 0 | T7: 8 | U7: 1382 | X7: 11 | Y7: 0 | Z7: 0 | AA7: 11 | AB7: 57
A8: 01010201 | B8: 274 | E8: 0 | F8: 21 | G8: 59 | H8: 64 | I8: 70 | J8: 48 | K8: 4 | L8: 3 | M8: 3 | N8: 2 | U8: 273 | V8: 13 | Y8: 0 | Z8: 0 | AA8: 2 | AB8: 1
A9: 01010203 | B9: 34297 | E9: 100 | F9: 1953 | G9: 7666 | H9: 10150 | I9: 8806 | J9: 4356 | K9: 1215 | L9: 48 | M9: 2 | N9: 1 | U9: 33934 | V9: 9595 | Y9: 38 | Z9: 33 | AA9: 414 | AB9: 2459
A10: 01010401 | B10: 1 | E10: 1 | F10: 0 | G10: 0 | H10: 0 | I10: 0 | J10: 0 | K10: 0 | L10: 0 | M10: 0 | N10: 0 | O10: 0 | P10: 0 | Q10: 0 | R10: 0 | S10: 0 | T10: 0 | U10: 8 | X10: 8 | Y10: 8 | Z10: 8 | AA10: 4 | AB10: 8
A11: 01010403 | B11: 66858 | E11: 1538 | F11: 9863 | G11: 11371 | H11: 11827 | I11: 10744 | J11: 8398 | K11: 6553 | L11: 4726 | M11: 1608 | N11: 157 | O11: 46 | P11: 15 | Q11: 7 | R11: 2 | S11: 3 | T11: 432 | U11: 65662 | X11: 1472 | Y11: 59 | Z11: 39 | AA11: 477 | AB11: 1395
A12: 01010601 | B12: 1268 | E12: 35 | F12: 84 | G12: 72 | H12: 97 | I12: 162 | J12: 160 | K12: 173 | L12: 130 | M12: 109 | N12: 104 | O12: 43 | P12: 42 | Q12: 27 | R12: 21 | S12: 9 | U12: 1343 | X12: 0 | Y12: 0 | Z12: 0 | AA12: 0 | AB12: 68
A13: 01010603 | B13: 47231 | E13: 278 | F13: 629 | G13: 2085 | H13: 3928 | I13: 4836 | J13: 4950 | K13: 5559 | L13: 5726 | M13: 5891 | N13: 5303 | O13: 4394 | P13: 2203 | Q13: 916 | R13: 365 | S13: 168 | U13: 46599 | X13: 38 | Y13: 7 | Z13: 2 | AA13: 193 | AB13: 1473
A14: 01010901 | B14: 398 | L14: 129 | M14: 123 | N14: 99 | O14: 47 | U14: 398 | AA14: 4 | AB14: 12
A15: 01010903 | B15: 3541 | L15: 959 | M15: 1366 | N15: 783 | O15: 433 | U15: 3532 | AA15: 53 | AB15: 126
A16: 01030100 | B16: 2520 | C16: 9 | D16: 179 | E16: 1941 | F16: 391 | G16: 12 | H16: 12 | I16: 23 | J16: 173 | K16: 1521 | L16: 1730 | M16: 192 | N16: 4 | O16: 11 | P16: 842 | Q16: 747 | R16: 80 | S16: 2154 | T16: 35 | U16: 282 | V16: 1883 | W16: 1 | X16: 96 | Y16: 269 | Z16: 0 | AA16: 0
A17: 01030100A | B17: 100 | C17: 41 | D17: 59 | AE17: 9 | AF17: 13 | AG17: 12 | AH17: 12 | AI17: 8 | AJ17: 19 | AK17: 12 | AL17: 15 | AM17: 8 | AN17: 8
A18: 01030200B | B18: 1412 | C18: 540 | D18: 872 | AE18: 117 | AF18: 214 | AG18: 159 | AH18: 252 | AI18: 130 | AJ18: 202 | AK18: 134 | AL18: 204 | AM18: 9 | AN18: 9
A19: 01030300 | B19: 1021 | C19: 1 | D19: 14 | E19: 693 | F19: 294 | G19: 0 | H19: 1 | I19: 2 | J19: 20 | K19: 737 | L19: 980 | M19: 4 | N19: 0 | O19: 20 | P19: 5 | Q19: 16 | R19: 2 | S19: 63 | T19: 24 | U19: 869 | V19: 674 | W19: 0 | X19: 29 | Y19: 82 | Z19: 0 | AA19: 0
A20: 01030300C | B20: 99 | C20: 48 | D20: 51 | AE20: 11 | AF20: 15 | AG20: 13 | AH20: 11 | AI20: 11 | AJ20: 11 | AK20: 13 | AL20: 14 | AM20: 9 | AN20: 8
A21: 01030400 | B21: 578 | C21: 578 | K21: 9 | L21: 358 | M21: 23 | N21: 325 | O21: 421
A22: 01030400D | B22: 639 | C22: 237 | D22: 402 | AE22: 29 | AF22: 40 | AG22: 43 | AH22: 89 | AI22: 46 | AJ22: 83 | AK22: 119 | AL22: 190 | AM22: 14 | AN22: 8
A23: 01030500 | B23: 932 | C23: 357 | D23: 575 | E23: 31 | F23: 25 | G23: 1044 | H23: 333 | I23: 711 | J23: 49 | K23: 43 | L23: 11 | M23: 43
A24: 01030600 | B24: 3281 | C24: 1451 | D24: 1830 | E24: 208 | F24: 150 | G24: 1380 | H24: 516 | I24: 864 | J24: 104 | K24: 81 | L24: 52 | M24: 64
A25: 01030700 | B25: 3661 | C25: 1740 | D25: 1921 | E25: 149 | F25: 123 | G25: 1020 | H25: 477 | I25: 543 | J25: 61 | K25: 31 | L25: 3 | M25: 6
A26: 01030800 | B26: 251 | C26: 112 | D26: 139 | E26: 8 | F26: 4 | G26: 73 | H26: 43 | I26: 31 | J26: 6 | K26: 0 | L26: 40 | M26: 99
A27: 01031000 | B27: 441 | C27: 197 | D27: 244 | E27: 2 | F27: 2 | G27: 0 | H27: 0
A28: 01031100 | B28: 702 | C28: 350 | D28: 352 | E28: 5 | F28: 5 | G28: 1 | H28: 0
A29: 01031200 | B29: 849 | C29: 399 | D29: 450 | E29: 0 | F29: 6 | G29: 1 | H29: 0
A30: 01031300 | B30: 962 | C30: 467 | D30: 495 | E30: 7 | F30: 2 | G30: 0 | H30: 0
A31: 01031400 | B31: 885 | C31: 425 | D31: 460 | E31: 5 | F31: 0 | G31: 1 | H31: 0
A32: 01031900 | C32: 0 | G32: 1
A33: 01060100 | B33: 5211 | C33: 4 | D33: 17 | E33: 26 | F33: 98 | G33: 247 | H33: 890 | I33: 3509 | J33: 420 | K33: 93
A34: 01080003 | B34: 22 | C34: 2 | D34: 1 | E34: 8 | F34: 11 | G34: 0 | H34: 0 | I34: 0 | J34: 0 | K34: 0 | L34: 0 | M34: 0
A35: 01080004 | B35: 394 | C35: 13 | D35: 98 | E35: 62 | F35: 199 | G35: 0 | H35: 4 | I35: 4 | J35: 14 | K35: 0 | L35: 8 | M35: 22
A36: 01080008 | B36: 5586 | C36: 14 | D36: 334 | E36: 1247 | F36: 1663 | G36: 1385 | H36: 737 | I36: 201 | J36: 6 | K36: 0 | L36: 0 | M36: 115 | N36: 315 | O36: 697 | P36: 265 | Q36: 575
A37: 01080009 | B37: 4768 | C37: 11 | D37: 275 | E37: 1065 | F37: 1423 | G37: 1200 | H37: 622 | I37: 166 | J37: 6 | K37: 0 | L37: 0 | M37: 76 | N37: 259 | O37: 487 | P37: 181 | Q37: 463
A38: 01080010 | B38: 1948 | C38: 13 | D38: 293 | E38: 698 | F38: 560 | G38: 272 | H38: 100 | I38: 12 | J38: 0 | K38: 0 | L38: 0 | M38: 33 | N38: 114 | O38: 236 | P38: 95 | Q38: 185
A39: 01080011 | B39: 946 | C39: 22 | D39: 109 | E39: 159 | F39: 218 | G39: 199 | H39: 120 | I39: 76 | J39: 30 | K39: 13 | L39: 0 | P39: 12 | Q39: 284 | R39: 5 | S39: 39 | T39: 1
A40: 01080013 | B40: 694 | C40: 29 | D40: 170 | E40: 97 | F40: 125 | G40: 100 | H40: 68 | I40: 49 | J40: 31 | K40: 21 | L40: 4 | P40: 48 | Q40: 140 | R40: 5 | S40: 29 | T40: 1
A41: 01080014 | B41: 463 | C41: 79 | D41: 305 | E41: 19 | F41: 13 | G41: 17 | H41: 13 | I41: 8 | J41: 2 | K41: 5 | L41: 2 | P41: 217 | Q41: 8 | R41: 4 | S41: 14 | T41: 0
A42: 01080016 | B42: 349
A43: 01080017 | B43: 66 | C43: 1 | D43: 1 | E43: 9
A44: 01080018 | B44: 89 | C44: 0 | D44: 1 | E44: 2
A45: 01080019 | B45: 929 | C45: 5 | D45: 33 | E45: 90
A46: 01080020 | B46: 6182
A47: 01080021 | B47: 3992 | C47: 332 | D47: 1154 | E47: 800 | F47: 631 | G47: 511 | H47: 349 | I47: 149 | J47: 57 | K47: 9 | L47: 0 | P47: 246 | Q47: 693 | R47: 36 | S47: 151 | T47: 4
A48: 01080022 | B48: 1529 | C48: 9 | D48: 100 | E48: 215 | F48: 272 | G48: 286 | H48: 211 | I48: 208 | J48: 181 | K48: 46 | L48: 1 | P48: 11 | Q48: 373 | R48: 8 | S48: 44 | T48: 2
A49: 01080023 | B49: 1820 | C49: 86 | D49: 537 | E49: 431 | F49: 323 | G49: 229 | H49: 130 | I49: 67 | J49: 17 | K49: 0 | L49: 0 | P49: 113 | Q49: 463 | R49: 17 | S49: 85 | T49: 5
A50: 01080030 | B50: 5 | E50: 0 | F50: 0 | G50: 1 | H50: 2 | I50: 2 | J50: 0 | K50: 0 | L50: 0 | M50: 0 | N50: 0 | U50: 10 | V50: 1 | W50: 8 | Y50: 0 | Z50: 0 | AA50: 0 | AB50: 3
A51: 01080040 | B51: 1492 | E51: 1 | F51: 90 | G51: 293 | H51: 434 | I51: 387 | J51: 216 | K51: 69 | L51: 1 | M51: 0 | N51: 1 | U51: 1450 | V51: 212 | W51: 510 | Y51: 3 | Z51: 0 | AA51: 14 | AB51: 69
A52: 01080090 | B52: 1433
A53: 01090040 | B53: 17 | C53: 1 | D53: 0 | E53: 4
A54: 01090050 | B54: 2997 | C54: 12 | D54: 258 | E54: 772 | F54: 836 | G54: 641 | H54: 357 | I54: 119 | J54: 2 | K54: 0 | L54: 0 | M54: 68 | N54: 158 | O54: 358 | P54: 117 | Q54: 219
A55: 01090060 | B55: 4535 | C55: 159 | D55: 779 | E55: 934 | F55: 908 | G55: 734 | H55: 469 | I55: 323 | J55: 185 | K55: 42 | L55: 2 | P55: 180 | Q55: 780 | R55: 44 | S55: 243 | T55: 4
A56: 01110106 | B56: 38 | F56: 2 | G56: 8 | H56: 10 | I56: 7 | J56: 6 | K56: 5 | U56: 35 | V56: 1 | W56: 19 | Y56: 0 | Z56: 0 | AA56: 1 | AB56: 4
A57: 01110107 | B57: 2926 | E57: 6 | F57: 150 | G57: 596 | H57: 876 | I57: 788 | J57: 401 | K57: 114 | L57: 5 | M57: 0 | N57: 1 | U57: 2901 | V57: 525 | W57: 1349 | Y57: 2 | Z57: 1 | AA57: 26 | AB57: 184
A58: 01200010 | B58: 50 | C58: 15 | D58: 35 | E58: 0 | F58: 0 | G58: 0 | H58: 0 | I58: 0 | J58: 0 | K58: 1 | L58: 1 | M58: 1 | N58: 1 | O58: 1 | P58: 0 | Q58: 1 | R58: 1 | S58: 1 | T58: 0 | U58: 0 | V58: 0 | W58: 0 | X58: 1 | Y58: 0 | Z58: 2 | AA58: 1 | AB58: 4 | AC58: 0 | AD58: 9 | AE58: 2 | AF58: 5 | AG58: 4 | AH58: 5 | AI58: 2 | AJ58: 2 | AK58: 1 | AL58: 4 | AM58: 0 | AN58: 0
A59: 01200020 | B59: 238 | C59: 72 | D59: 166 | E59: 0 | F59: 0 | G59: 2 | H59: 1 | I59: 0 | J59: 4 | K59: 0 | L59: 1 | M59: 1 | N59: 2 | O59: 0 | P59: 10 | Q59: 2 | R59: 4 | S59: 4 | T59: 12 | U59: 0 | V59: 19 | W59: 1 | X59: 7 | Y59: 2 | Z59: 13 | AA59: 8 | AB59: 16 | AC59: 16 | AD59: 12 | AE59: 11 | AF59: 20 | AG59: 10 | AH59: 17 | AI59: 8 | AJ59: 14 | AK59: 7 | AL59: 14 | AM59: 6 | AN59: 6
A60: 01200030 | B60: 228 | C60: 46 | D60: 182 | E60: 0 | F60: 1 | G60: 0 | H60: 0 | I60: 0 | J60: 0 | K60: 2 | L60: 4 | M60: 10 | N60: 52 | O60: 7 | P60: 32 | Q60: 7 | R60: 25 | S60: 9 | T60: 17 | U60: 6 | V60: 17 | W60: 3 | X60: 6 | Y60: 1 | Z60: 12 | AA60: 0 | AB60: 6 | AC60: 0 | AD60: 1 | AE60: 1 | AF60: 2 | AG60: 0 | AH60: 1 | AI60: 0 | AJ60: 5 | AK60: 0 | AL60: 1 | AM60: 1 | AN60: 17
A61: 01200031 | B61: 88 | C61: 52 | D61: 36 | E61: 32 | F61: 23 | G61: 12 | H61: 8 | I61: 6 | J61: 4 | K61: 2 | L61: 1 | AM61: 1 | AN61: 0
A62: 01200032 | B62: 766 | C62: 483 | D62: 283 | E62: 319 | F62: 196 | G62: 120 | H62: 61 | I62: 31 | J62: 17 | K62: 13 | L62: 11 | AM62: 2 | AN62: 0
A63: 01200033 | B63: 8 | C63: 3 | D63: 5 | E63: 1 | F63: 3 | G63: 1 | H63: 1 | I63: 1 | J63: 1 | K63: 0 | L63: 0 | AM63: 0 | AN63: 0
A64: 01200034 | B64: 201 | C64: 140 | D64: 61 | E64: 93 | F64: 40 | G64: 26 | H64: 16 | I64: 17 | J64: 4 | K64: 4 | L64: 1 | AM64: 0 | AN64: 1
A65: 01501010 | B65: 386 | C65: 127 | D65: 259 | E65: 2 | F65: 0 | G65: 2 | H65: 1 | I65: 4 | J65: 1 | K65: 5 | L65: 6 | M65: 1 | N65: 13 | O65: 5 | P65: 16 | Q65: 8 | R65: 23 | S65: 17 | T65: 28 | U65: 17 | V65: 39 | W65: 22 | X65: 34 | Y65: 14 | Z65: 36 | AA65: 8 | AB65: 15 | AC65: 9 | AD65: 21 | AE65: 13 | AF65: 26 | AG65: 0 | AH65: 0
A66: 01501020 | B66: 333 | C66: 108 | D66: 225 | E66: 1 | F66: 0 | G66: 0 | H66: 1 | I66: 3 | J66: 3 | K66: 0 | L66: 0 | M66: 3 | N66: 6 | O66: 2 | P66: 9 | Q66: 9 | R66: 13 | S66: 7 | T66: 10 | U66: 13 | V66: 49 | W66: 17 | X66: 28 | Y66: 18 | Z66: 23 | AA66: 20 | AB66: 28 | AC66: 7 | AD66: 18 | AE66: 8 | AF66: 37 | AG66: 0 | AH66: 0
A67: 01501030 | B67: 1409 | C67: 456 | D67: 953 | E67: 0 | F67: 0 | G67: 0 | H67: 3 | I67: 0 | J67: 1 | K67: 0 | L67: 4 | M67: 8 | N67: 11 | O67: 2 | P67: 15 | Q67: 13 | R67: 29 | S67: 20 | T67: 55 | U67: 29 | V67: 113 | W67: 59 | X67: 130 | Y67: 113 | Z67: 192 | AA67: 77 | AB67: 146 | AC67: 61 | AD67: 121 | AE67: 74 | AF67: 133 | AG67: 3 | AH67: 0
A68: 01501040 | B68: 1650 | C68: 492 | D68: 1158 | E68: 0 | F68: 0 | G68: 0 | H68: 4 | I68: 0 | J68: 0 | K68: 2 | L68: 3 | M68: 1 | N68: 11 | O68: 0 | P68: 20 | Q68: 4 | R68: 17 | S68: 12 | T68: 93 | U68: 26 | V68: 136 | W68: 73 | X68: 190 | Y68: 145 | Z68: 288 | AA68: 102 | AB68: 187 | AC68: 62 | AD68: 98 | AE68: 65 | AF68: 111 | AG68: 2 | AH68: 2
A69: 01501050 | B69: 4 | E69: 0 | F69: 0 | G69: 3 | H69: 0 | I69: 0 | J69: 1 | K69: 0 | L69: 0 | M69: 0 | N69: 0 | U69: 4 | Y69: 0 | Z69: 0 | AA69: 0 | AB69: 0
A70: 01501060 | B70: 373 | E70: 0 | F70: 12 | G70: 83 | H70: 98 | I70: 98 | J70: 61 | K70: 19 | L70: 1 | M70: 0 | N70: 1 | U70: 373 | Y70: 1 | Z70: 0 | AA70: 2 | AB70: 21
A71: 01501070 | B71: 5 | E71: 0 | F71: 0 | G71: 1 | H71: 2 | I71: 0 | J71: 2 | K71: 0 | L71: 0 | M71: 0 | N71: 0 | U71: 5 | Y71: 0 | Z71: 0 | AA71: 0 | AB71: 0
A72: 01501080 | B72: 172 | E72: 0 | F72: 10 | G72: 32 | H72: 31 | I72: 46 | J72: 39 | K72: 12 | L72: 2 | M72: 0 | N72: 0 | U72: 166 | Y72: 0 | Z72: 0 | AA72: 4 | AB72: 12
A73: 01502000 | B73: 1085 | C73: 1085 | T73: 482 | U73: 581 | V73: 249 | W73: 523 | X73: 0 | Y73: 1 | Z73: 0 | AA73: 2 | AB73: 15
A74: 01502010 | B74: 1 | C74: 1 | U74: 1 | V74: 0 | W74: 0 | X74: 0 | Y74: 0 | Z74: 0 | AA74: 0 | AB74: 0
A75: 01502020 | B75: 462 | C75: 462 | T75: 204 | U75: 251 | V75: 77 | W75: 139 | X75: 1 | Y75: 3 | Z75: 1 | AA75: 1 | AB75: 9
A76: 01502040 | B76: 5 | C76: 0 | D76: 5 | E76: 0 | F76: 0 | G76: 0 | H76: 0 | I76: 0 | J76: 1 | K76: 0 | L76: 0 | M76: 0 | N76: 0 | O76: 0 | P76: 0 | Q76: 0 | R76: 1 | S76: 0 | T76: 0 | U76: 0 | V76: 0 | W76: 0 | X76: 0 | Y76: 0 | Z76: 0 | AA76: 0 | AB76: 0 | AC76: 0 | AD76: 3 | AE76: 0 | AF76: 0 | AG76: 0 | AH76: 0
A77: 02010101 | B77: 15541 | C77: 7222 | D77: 8307 | E77: 169 | F77: 4127 | G77: 338 | H77: 4039 | I77: 342 | J77: 65 | K77: 43 | L77: 80 | M77: 143 | N77: 56 | O77: 136 | P77: 147 | Q77: 200 | R77: 1179 | S77: 376 | T77: 201 | U77: 45 | V77: 64 | W77: 86 | X77: 108 | Y77: 143 | Z77: 199 | AA77: 250 | AB77: 423 | AC77: 451 | AD77: 638 | AE77: 489 | AF77: 395 | AG77: 609 | AH77: 1909 | AI77: 11 | AJ77: 45 | AK77: 55 | AL77: 88 | AM77: 567
A78: 02010103 | B78: 18511 | C78: 3712 | D78: 14720 | E78: 3486 | S78: 2851 | T78: 2630 | U78: 1194 | V78: 1558 | W78: 1468 | X78: 1298 | Y78: 1093 | Z78: 988 | AA78: 752 | AB78: 558 | AC78: 382 | AD78: 179 | AE78: 47 | AF78: 19 | AG78: 8 | AH78: 1508 | AJ78: 14 | AK78: 26 | AL78: 128 | AM78: 306
A79: 02010105 | B79: 22 | C79: 11 | D79: 10 | M79: 1 | N79: 1 | O79: 4 | P79: 0 | Q79: 2 | R79: 14 | AI79: 4 | AJ79: 2 | AK79: 0 | AL79: 1 | AM79: 42
A80: 02010201 | B80: 86508 | C80: 40546 | D80: 45094 | E80: 95 | F80: 78 | G80: 4595 | H80: 249 | I80: 4483 | J80: 334 | K80: 4429 | L80: 5368 | M80: 5581 | N80: 4727 | O80: 10570 | P80: 4891 | Q80: 4553 | R80: 11234 | S80: 5042 | T80: 1491 | U80: 484 | V80: 632 | W80: 695 | X80: 704 | Y80: 725 | Z80: 843 | AA80: 927 | AB80: 1094 | AC80: 1215 | AD80: 2966 | AE80: 2892 | AF80: 2472 | AG80: 3206 | AH80: 4255 | AI80: 3570 | AJ80: 380 | AK80: 257 | AL80: 1005 | AM80: 1372
A81: 02010320 | B81: 11596 | C81: 5604 | D81: 5992 | E81: 61 | F81: 63 | G81: 2098 | H81: 2133 | I81: 418 | J81: 431 | K81: 1718 | L81: 1828 | M81: 1239 | N81: 1451 | O81: 99 | P81: 105 | Q81: 42 | R81: 66
A82: 02010321 | B82: 1141 | C82: 700 | D82: 441 | E82: 11 | F82: 7 | G82: 102 | H82: 87 | I82: 51 | J82: 17 | K82: 271 | L82: 182 | M82: 259 | N82: 144 | O82: 7 | P82: 4 | Q82: 1 | R82: 9
A83: 02010322 | B83: 375 | C83: 259 | D83: 116 | E83: 1 | F83: 1 | G83: 18 | H83: 15 | I83: 11 | J83: 3 | K83: 125 | L83: 59 | M83: 96 | N83: 33 | O83: 8 | P83: 5 | Q83: 0 | R83: 2
A84: 02010420 | B84: 450 | C84: 265 | D84: 185 | E84: 2 | F84: 1 | G84: 27 | H84: 21 | I84: 22 | J84: 12 | K84: 129 | L84: 82 | M84: 71 | N84: 60 | O84: 14 | P84: 10 | Q84: 0 | R84: 1
A85: 02010421 | B85: 103 | C85: 71 | D85: 32 | E85: 0 | F85: 0 | G85: 7 | H85: 1 | I85: 13 | J85: 4 | K85: 30 | L85: 15 | M85: 19 | N85: 11 | O85: 4 | P85: 1 | Q85: 0 | R85: 0
A86: 02010422 | B86: 36 | C86: 29 | D86: 7 | E86: 0 | F86: 0 | G86: 1 | H86: 0 | I86: 0 | J86: 0 | K86: 11 | L86: 4 | M86: 12 | N86: 3 | O86: 5 | P86: 0 | Q86: 0 | R86: 0
A87: 02021730 | B87: 12315 | C87: 6118 | D87: 6197 | E87: 3 | F87: 14 | G87: 73 | H87: 66 | I87: 4 | J87: 10 | K87: 84 | L87: 108 | M87: 2060 | N87: 2125 | O87: 82 | P87: 89 | Q87: 14 | R87: 19 | S87: 69 | T87: 64 | U87: 2062 | V87: 1967 | W87: 1667 | X87: 1745
A88: 02021740 | B88: 15359 | C88: 7926 | D88: 7433 | E88: 83 | F88: 76 | G88: 2393 | H88: 2383 | I88: 601 | J88: 534 | K88: 2598 | L88: 2349 | M88: 2112 | N88: 1993 | O88: 187 | P88: 144 | Q88: 60 | R88: 84
A89: 02021760 | B89: 4072 | C89: 2038 | D89: 2034 | E89: 1701 | F89: 1673 | G89: 337 | H89: 361
A90: 02021790 | B90: 1035 | C90: 586 | D90: 449 | E90: 20 | F90: 19 | G90: 85 | H90: 89 | I90: 70 | J90: 36 | K90: 157 | L90: 109 | M90: 242 | N90: 192 | O90: 13 | P90: 4
A91: 02021810 | B91: 1084 | C91: 681 | D91: 403 | E91: 9 | F91: 7 | G91: 90 | H91: 78 | I91: 61 | J91: 27 | K91: 253 | L91: 150 | M91: 254 | N91: 136 | O91: 14 | P91: 5
A92: 02021820 | B92: 350 | C92: 255 | D92: 95 | E92: 1 | F92: 1 | G92: 13 | H92: 10 | I92: 15 | J92: 4 | K92: 110 | L92: 49 | M92: 100 | N92: 28 | O92: 16 | P92: 3
A93: 02021830 | B93: 5211 | C93: 1432 | D93: 1168 | E93: 112
A94: 02200010 | B94: 13982 | C94: 5282 | D94: 8700 | E94: 20 | F94: 38 | G94: 496 | H94: 868 | I94: 623 | J94: 1005 | K94: 600 | L94: 1195 | M94: 575 | N94: 1136 | O94: 600 | P94: 1050 | Q94: 498 | R94: 931 | S94: 489 | T94: 763 | U94: 426 | V94: 500 | W94: 266 | X94: 360 | Y94: 254 | Z94: 374 | AA94: 210 | AB94: 244 | AC94: 134 | AD94: 131 | AE94: 91 | AF94: 106 | AG94: 42 | AH94: 80
A95: 02200020 | B95: 13233 | C95: 5717 | D95: 7516 | E95: 23 | F95: 27 | G95: 165 | H95: 162 | I95: 205 | J95: 185 | K95: 229 | L95: 275 | M95: 257 | N95: 356 | O95: 310 | P95: 421 | Q95: 373 | R95: 495 | S95: 436 | T95: 551 | U95: 455 | V95: 416 | W95: 369 | X95: 391 | Y95: 760 | Z95: 1055 | AA95: 759 | AB95: 1023 | AC95: 667 | AD95: 913 | AE95: 709 | AF95: 1246 | AG95: 44 | AH95: 90
A96: 02200030 | B96: 10930 | C96: 3754 | D96: 7176 | E96: 11 | F96: 15 | G96: 185 | H96: 481 | I96: 212 | J96: 550 | K96: 268 | L96: 671 | M96: 296 | N96: 723 | O96: 297 | P96: 633 | Q96: 298 | R96: 643 | S96: 336 | T96: 581 | U96: 324 | V96: 501 | W96: 252 | X96: 391 | Y96: 373 | Z96: 612 | AA96: 340 | AB96: 494 | AC96: 262 | AD96: 415 | AE96: 300 | AF96: 466 | AG96: 50 | AH96: 168
A97: 02200040 | B97: 4282 | C97: 1395 | D97: 2887 | E97: 3 | F97: 4 | G97: 22 | H97: 51 | I97: 44 | J97: 93 | K97: 64 | L97: 132 | M97: 62 | N97: 146 | O97: 107 | P97: 198 | Q97: 118 | R97: 249 | S97: 101 | T97: 242 | U97: 119 | V97: 216 | W97: 90 | X97: 178 | Y97: 194 | Z97: 440 | AA97: 186 | AB97: 365 | AC97: 156 | AD97: 263 | AE97: 129 | AF97: 310 | AG97: 21 | AH97: 22
A98: 03010501 | B98: 118803 | C98: 41132 | D98: 78014 | K98: 74 | L98: 122 | M98: 126 | N98: 282 | O98: 197 | P98: 515 | Q98: 331 | R98: 970 | S98: 580 | T98: 1646 | U98: 982 | V98: 2762 | W98: 1579 | X98: 4338 | Y98: 2566 | Z98: 6577 | AA98: 4084 | AB98: 9509 | AC98: 5801 | AD98: 11156 | AE98: 6910 | AF98: 11646 | AG98: 6468 | AH98: 10156 | AI98: 5473 | AJ98: 8468 | AK98: 6148 | AL98: 9867 | AM98: 799 | AN98: 713
A99: 03010502 | B99: 52836 | C99: 19154 | D99: 33682 | K99: 35 | L99: 32 | M99: 51 | N99: 97 | O99: 80 | P99: 206 | Q99: 145 | R99: 384 | S99: 243 | T99: 692 | U99: 456 | V99: 1162 | W99: 743 | X99: 1820 | Y99: 1142 | Z99: 2760 | AA99: 1920 | AB99: 4015 | AC99: 2483 | AD99: 4709 | AE99: 3269 | AF99: 5140 | AG99: 3081 | AH99: 4439 | AI99: 2502 | AJ99: 3571 | AK99: 3004 | AL99: 4661 | AM99: 387 | AN99: 331
A100: 03010504 | B100: 49549 | C100: 16318 | D100: 33231 | K100: 34 | L100: 43 | M100: 56 | N100: 141 | O100: 87 | P100: 238 | Q100: 177 | R100: 474 | S100: 248 | T100: 805 | U100: 414 | V100: 1305 | W100: 690 | X100: 2032 | Y100: 1056 | Z100: 2956 | AA100: 1579 | AB100: 4279 | AC100: 2239 | AD100: 4828 | AE100: 2679 | AF100: 4870 | AG100: 2589 | AH100: 4142 | AI100: 2048 | AJ100: 3403 | AK100: 2422 | AL100: 3715 | AM100: 755 | AN100: 346
A101: 03010505 | B101: 576 | C101: 246 | D101: 330 | K101: 1 | L101: 0 | M101: 0 | N101: 1 | O101: 2 | P101: 1 | Q101: 3 | R101: 10 | S101: 4 | T101: 5 | U101: 9 | V101: 13 | W101: 23 | X101: 21 | Y101: 10 | Z101: 44 | AA101: 31 | AB101: 37 | AC101: 32 | AD101: 36 | AE101: 31 | AF101: 48 | AG101: 30 | AH101: 39 | AI101: 30 | AJ101: 35 | AK101: 40 | AL101: 40 | AM101: 44 | AN101: 8
A102: 03020101 | B102: 10043 | C102: 4184 | D102: 5859 | E102: 265 | F102: 235 | G102: 917 | H102: 853 | I102: 982 | J102: 1030 | K102: 546 | L102: 476 | M102: 202 | N102: 253 | O102: 67 | P102: 151 | Q102: 79 | R102: 224 | S102: 88 | T102: 221 | U102: 79 | V102: 258 | W102: 74 | X102: 224 | Y102: 57 | Z102: 238 | AA102: 76 | AB102: 254 | AC102: 105 | AD102: 286 | AE102: 143 | AF102: 312 | AG102: 134 | AH102: 270 | AI102: 107 | AJ102: 224 | AK102: 106 | AL102: 136 | AM102: 157 | AN102: 214 | AO102: 217 | AP102: 74 | AQ102: 18 | AR102: 45 | AS102: 83
A103: 03020201 | B103: 754 | C103: 379 | D103: 375 | E103: 92 | F103: 81 | G103: 177 | H103: 166 | I103: 110 | J103: 128 | AO103: 28 | AP103: 6 | AQ103: 9 | AR103: 3 | AS103: 37
A104: 03020301 | B104: 1148 | C104: 421 | D104: 727 | E104: 8 | F104: 14 | G104: 57 | H104: 53 | I104: 67 | J104: 38 | K104: 21 | L104: 12 | M104: 8 | N104: 14 | O104: 4 | P104: 10 | Q104: 7 | R104: 13 | S104: 9 | T104: 14 | U104: 6 | V104: 21 | W104: 4 | X104: 24 | Y104: 5 | Z104: 22 | AA104: 14 | AB104: 39 | AC104: 17 | AD104: 67 | AE104: 26 | AF104: 72 | AG104: 38 | AH104: 74 | AI104: 30 | AJ104: 57 | AK104: 32 | AL104: 55 | AM104: 68 | AN104: 128 | AO104: 7 | AP104: 3 | AQ104: 0 | AR104: 0 | AS104: 23
A105: 03020401 | B105: 9681 | C105: 3790 | D105: 5891 | E105: 229 | F105: 255 | G105: 720 | H105: 674 | I105: 784 | J105: 758 | K105: 380 | L105: 375 | M105: 162 | N105: 215 | O105: 79 | P105: 171 | Q105: 86 | R105: 213 | S105: 111 | T105: 273 | U105: 114 | V105: 293 | W105: 69 | X105: 231 | Y105: 63 | Z105: 230 | AA105: 94 | AB105: 324 | AC105: 148 | AD105: 362 | AE105: 164 | AF105: 385 | AG105: 174 | AH105: 366 | AI105: 154 | AJ105: 282 | AK105: 109 | AL105: 234 | AM105: 150 | AN105: 250 | AO105: 628 | AP105: 74 | AQ105: 22 | AR105: 17 | AS105: 55
A106: 03020402 | B106: 1054 | C106: 388 | D106: 666 | I106: 112 | J106: 75 | K106: 70 | L106: 51 | M106: 38 | N106: 36 | O106: 13 | P106: 25 | Q106: 9 | R106: 26 | S106: 9 | T106: 38 | U106: 4 | V106: 42 | W106: 8 | X106: 22 | Y106: 8 | Z106: 36 | AA106: 10 | AB106: 45 | AC106: 18 | AD106: 63 | AE106: 14 | AF106: 56 | AG106: 23 | AH106: 36 | AI106: 21 | AJ106: 48 | AK106: 16 | AL106: 33 | AM106: 15 | AN106: 34 | AO106: 23 | AP106: 4 | AQ106: 1 | AR106: 4 | AS106: 13
A107: 03020403 | B107: 657 | C107: 296 | D107: 361 | U107: 2 | V107: 2 | W107: 5 | X107: 9 | Y107: 4 | Z107: 12 | AA107: 7 | AB107: 13 | AC107: 7 | AD107: 33 | AE107: 29 | AF107: 33 | AG107: 36 | AH107: 54 | AI107: 55 | AJ107: 40 | AK107: 51 | AL107: 50 | AM107: 100 | AN107: 115 | AO107: 1 | AP107: 2 | AQ107: 0 | AR107: 0 | AS107: 10
A108: 03020501 | B108: 314051 | C108: 118063 | D108: 195988 | E108: 2616 | F108: 2445 | G108: 7376 | H108: 6355 | I108: 9350 | J108: 8526 | K108: 7691 | L108: 7634 | M108: 6079 | N108: 7667 | O108: 3713 | P108: 7562 | Q108: 3844 | R108: 8210 | S108: 4267 | T108: 9765 | U108: 4151 | V108: 10277 | W108: 4393 | X108: 11411 | Y108: 5161 | Z108: 12883 | AA108: 6539 | AB108: 15414 | AC108: 8152 | AD108: 17060 | AE108: 9596 | AF108: 17531 | AG108: 10182 | AH108: 16444 | AI108: 9166 | AJ108: 13252 | AK108: 7236 | AL108: 10506 | AM108: 8551 | AN108: 13046 | AO108: 9242 | AP108: 5755 | AQ108: 746 | AR108: 213 | AS108: 43
A109: 03020604 | B109: 19986 | C109: 7225 | D109: 12761 | E109: 2508 | F109: 2730 | G109: 1944 | H109: 1832 | I109: 663 | J109: 758 | K109: 444 | L109: 669 | M109: 326 | N109: 831 | O109: 73 | P109: 1004 | Q109: 60 | R109: 1109 | S109: 65 | T109: 997 | U109: 55 | V109: 627 | W109: 76 | X109: 365 | Y109: 82 | Z109: 296 | AA109: 79 | AB109: 234 | AC109: 86 | AD109: 262 | AE109: 119 | AF109: 221 | AG109: 159 | AH109: 271 | AI109: 178 | AJ109: 179 | AK109: 133 | AL109: 139 | AM109: 175 | AN109: 237 | AO109: 343 | AP109: 350 | AQ109: 594 | AR109: 73 | AS109: 107
A110: 03020702 | B110: 43519 | C110: 19791 | D110: 23728 | E110: 627 | F110: 708 | G110: 1218 | H110: 1058 | I110: 552 | J110: 547 | K110: 420 | L110: 475 | M110: 325 | N110: 368 | O110: 179 | P110: 415 | Q110: 280 | R110: 519 | S110: 306 | T110: 714 | U110: 394 | V110: 629 | W110: 411 | X110: 966 | Y110: 682 | Z110: 1235 | AA110: 1142 | AB110: 1647 | AC110: 1614 | AD110: 2025 | AE110: 1954 | AF110: 2005 | AG110: 2952 | AH110: 3365 | AI110: 2589 | AJ110: 2354 | AK110: 1909 | AL110: 1713 | AM110: 2237 | AN110: 2985 | AO110: 940 | AP110: 494 | AQ110: 65 | AR110: 81 | AS110: 11
A111: 03020806 | B111: 60162 | C111: 20800 | D111: 39362 | E111: 1042 | F111: 1121 | G111: 1478 | H111: 1069 | I111: 1587 | J111: 1296 | K111: 1308 | L111: 1381 | M111: 1015 | N111: 1848 | O111: 866 | P111: 3053 | Q111: 1030 | R111: 3839 | S111: 1132 | T111: 3963 | U111: 1102 | V111: 3124 | W111: 968 | X111: 2573 | Y111: 1044 | Z111: 2424 | AA111: 1227 | AB111: 2532 | AC111: 1482 | AD111: 2839 | AE111: 1483 | AF111: 2351 | AG111: 1207 | AH111: 1657 | AI111: 926 | AJ111: 1209 | AK111: 769 | AL111: 1105 | AM111: 1175 | AN111: 2095 | AO111: 1037 | AP111: 6624 | AQ111: 625 | AR111: 268 | AS111: 527
A112: 03020908 | B112: 12638 | C112: 4117 | D112: 8521 | E112: 55 | F112: 23 | G112: 297 | H112: 168 | I112: 627 | J112: 479 | K112: 854 | L112: 1303 | M112: 610 | N112: 1082 | O112: 165 | P112: 513 | Q112: 161 | R112: 603 | S112: 186 | T112: 677 | U112: 165 | V112: 556 | W112: 120 | X112: 460 | Y112: 144 | Z112: 473 | AA112: 95 | AB112: 410 | AC112: 131 | AD112: 414 | AE112: 91 | AF112: 340 | AG112: 111 | AH112: 298 | AI112: 122 | AJ112: 262 | AK112: 79 | AL112: 209 | AM112: 105 | AN112: 251 | AO112: 154 | AP112: 129 | AQ112: 1005 | AR112: 56 | AS112: 310
A113: 03021106 | B113: 5507 | C113: 2340 | D113: 3167 | E113: 11 | F113: 4 | G113: 10 | H113: 20 | I113: 22 | J113: 32 | K113: 40 | L113: 70 | M113: 66 | N113: 154 | O113: 103 | P113: 200 | Q113: 126 | R113: 297 | S113: 186 | T113: 318 | U113: 286 | V113: 410 | W113: 338 | X113: 423 | Y113: 438 | Z113: 401 | AA113: 298 | AB113: 334 | AC113: 212 | AD113: 238 | AE113: 204 | AF113: 266 | AG113: 54 | AH113: 91
A114: 03021107 | B114: 2762 | C114: 1225 | D114: 1537 | E114: 2 | F114: 5 | G114: 11 | H114: 9 | I114: 11 | J114: 23 | K114: 20 | L114: 52 | M114: 42 | N114: 61 | O114: 81 | P114: 100 | Q114: 78 | R114: 116 | S114: 110 | T114: 186 | U114: 161 | V114: 224 | W114: 212 | X114: 213 | Y114: 182 | Z114: 200 | AA114: 137 | AB114: 155 | AC114: 98 | AD114: 97 | AE114: 80 | AF114: 96 | AG114: 34 | AH114: 24
A115: 03021108 | B115: 3769 | C115: 1427 | D115: 2342 | E115: 7 | F115: 8 | G115: 14 | H115: 24 | I115: 24 | J115: 43 | K115: 33 | L115: 65 | M115: 53 | N115: 98 | O115: 94 | P115: 156 | Q115: 102 | R115: 207 | S115: 131 | T115: 292 | U115: 182 | V115: 338 | W115: 224 | X115: 377 | Y115: 226 | Z115: 279 | AA115: 163 | AB115: 207 | AC115: 100 | AD115: 145 | AE115: 74 | AF115: 103 | AG115: 45 | AH115: 33
A116: 03030101 | B116: 698 | C116: 269 | D116: 429 | E116: 0 | F116: 1
A117: 03030102 | B117: 50764 | C117: 19055 | D117: 31714 | E117: 145 | F117: 453
A118: 03030103 | B118: 2827 | C118: 186 | D118: 2672 | E118: 8 | F118: 41
A119: 03030104 | B119: 5463 | C119: 1859 | D119: 3614 | E119: 8 | F119: 109
A120: 03030110 | B120: 14732 | C120: 4841 | D120: 9891 | E120: 89 | F120: 290
A121: 03030120 | B121: 29243 | C121: 10992 | D121: 18251 | E121: 57 | F121: 128 | G121: 609 | H121: 1204 | I121: 773 | J121: 1487 | K121: 908 | L121: 1721 | M121: 863 | N121: 1683 | O121: 854 | P121: 1532 | Q121: 774 | R121: 1512 | S121: 800 | T121: 1330 | U121: 757 | V121: 1027 | W121: 644 | X121: 747 | Y121: 1116 | Z121: 1658 | AA121: 1085 | AB121: 1523 | AC121: 871 | AD121: 1286 | AE121: 895 | AF121: 1432 | AG121: 79 | AH121: 335
A122: 03030130 | B122: 24823 | C122: 7062 | D122: 17761 | E122: 49 | F122: 130 | G122: 375 | H122: 1151 | I122: 528 | J122: 1546 | K122: 621 | L122: 1837 | M122: 590 | N122: 1710 | O122: 614 | P122: 1542 | Q122: 594 | R122: 1367 | S122: 566 | T122: 1249 | U122: 512 | V122: 916 | W122: 364 | X122: 689 | Y122: 747 | Z122: 1862 | AA122: 628 | AB122: 1544 | AC122: 453 | AD122: 1081 | AE122: 425 | AF122: 1163 | AG122: 87 | AH122: 277
A123: 03030140 | B123: 24535 | C123: 7266 | D123: 17269 | E123: 69 | F123: 59 | G123: 110 | H123: 68 | I123: 100 | J123: 91 | K123: 120 | L123: 191 | M123: 103 | N123: 286 | O123: 106 | P123: 329 | Q123: 123 | R123: 538 | S123: 167 | T123: 643 | U123: 192 | V123: 763 | W123: 193 | X123: 1081 | Y123: 379 | Z123: 1344 | AA123: 564 | AB123: 1876 | AC123: 830 | AD123: 2210 | AE123: 924 | AF123: 2143 | AG123: 1047 | AH123: 1930 | AI123: 864 | AJ123: 1620 | AK123: 1375 | AL123: 2097 | AM123: 90 | AN123: 123
A124: 03030150 | B124: 2084 | C124: 577 | D124: 1507 | E124: 14 | F124: 8 | G124: 4 | H124: 4 | I124: 8 | J124: 12 | K124: 6 | L124: 10 | M124: 6 | N124: 24 | O124: 6 | P124: 23 | Q124: 3 | R124: 55 | S124: 16 | T124: 64 | U124: 14 | V124: 98 | W124: 23 | X124: 94 | Y124: 28 | Z124: 139 | AA124: 55 | AB124: 157 | AC124: 67 | AD124: 179 | AE124: 91 | AF124: 177 | AG124: 80 | AH124: 162 | AI124: 61 | AJ124: 136 | AK124: 95 | AL124: 165 | AM124: 13 | AN124: 6
A125: 03030160 | B125: 3046 | C125: 841 | D125: 2205 | E125: 195 | F125: 166 | G125: 82 | H125: 80 | I125: 52 | J125: 66 | K125: 28 | L125: 84 | M125: 37 | N125: 150 | O125: 31 | P125: 148 | Q125: 20 | R125: 163 | S125: 30 | T125: 156 | U125: 36 | V125: 159 | W125: 32 | X125: 164 | Y125: 40 | Z125: 185 | AA125: 42 | AB125: 176 | AC125: 33 | AD125: 162 | AE125: 46 | AF125: 111 | AG125: 46 | AH125: 99 | AI125: 43 | AJ125: 66 | AK125: 48 | AL125: 70 | AM125: 39 | AN125: 67
A126: 03030170 | B126: 178 | C126: 13 | D126: 165 | E126: 3 | F126: 3 | G126: 0 | H126: 1 | I126: 0 | J126: 3 | K126: 0 | L126: 13 | M126: 0 | N126: 24 | O126: 2 | P126: 21 | Q126: 0 | R126: 26 | S126: 0 | T126: 19 | U126: 0 | V126: 8 | W126: 0 | X126: 3 | Y126: 0 | Z126: 8 | AA126: 0 | AB126: 10 | AC126: 1 | AD126: 6 | AE126: 0 | AF126: 2 | AG126: 0 | AH126: 4 | AI126: 2 | AJ126: 3 | AK126: 5 | AL126: 11 | AM126: 0 | AN126: 9
A127: 03030180 | B127: 285 | C127: 128 | D127: 157 | E127: 7 | F127: 3 | G127: 7 | H127: 3 | I127: 3 | J127: 4 | K127: 5 | L127: 2 | M127: 7 | N127: 18 | O127: 3 | P127: 10 | Q127: 6 | R127: 22 | S127: 6 | T127: 15 | U127: 16 | V127: 13 | W127: 13 | X127: 3 | Y127: 5 | Z127: 12 | AA127: 11 | AB127: 14 | AC127: 10 | AD127: 6 | AE127: 10 | AF127: 7 | AG127: 9 | AH127: 5 | AI127: 4 | AJ127: 7 | AK127: 6 | AL127: 13 | AM127: 8 | AN127: 0
A128: 03030250 | B128: 14472 | C128: 9016 | D128: 5456 | E128: 188 | F128: 175 | G128: 6248 | H128: 2932 | I128: 1373 | J128: 598 | K128: 217 | L128: 166 | M128: 79 | N128: 68 | O128: 35 | P128: 76 | Q128: 20 | R128: 69 | S128: 28 | T128: 68 | U128: 54 | V128: 72 | W128: 57 | X128: 66 | Y128: 24 | Z128: 72 | AA128: 33 | AB128: 122 | AC128: 72 | AD128: 108 | AE128: 76 | AF128: 144 | AG128: 91 | AH128: 141 | AI128: 127 | AJ128: 191 | AK128: 131 | AL128: 165 | AM128: 199 | AN128: 243 | AO128: 121 | AP128: 38 | AQ128: 8 | AR128: 53 | AS128: 37
A129: 03030270 | B129: 3022 | C129: 1528 | D129: 1494 | E129: 81 | F129: 58 | G129: 173 | H129: 51 | I129: 164 | J129: 55 | K129: 105 | L129: 23 | M129: 26 | N129: 38 | O129: 7 | P129: 9 | Q129: 20 | R129: 27 | S129: 5 | T129: 33 | U129: 15 | V129: 38 | W129: 31 | X129: 57 | Y129: 54 | Z129: 53 | AA129: 36 | AB129: 102 | AC129: 78 | AD129: 129 | AE129: 171 | AF129: 156 | AG129: 191 | AH129: 210 | AI129: 152 | AJ129: 106 | AK129: 95 | AL129: 139 | AM129: 124 | AN129: 210 | AO129: 31 | AP129: 27 | AQ129: 0 | AR129: 36 | AS129: 52
A130: 03030280 | B130: 302 | C130: 112 | D130: 190 | E130: 2 | F130: 4 | G130: 37 | H130: 18 | I130: 5 | J130: 6 | K130: 14 | L130: 5 | M130: 13 | N130: 21 | O130: 3 | P130: 13 | Q130: 1 | R130: 9 | S130: 0 | T130: 17 | U130: 5 | V130: 9 | W130: 1 | X130: 19 | Y130: 2 | Z130: 9 | AA130: 4 | AB130: 10 | AC130: 7 | AD130: 13 | AE130: 4 | AF130: 13 | AG130: 2 | AH130: 6 | AI130: 6 | AJ130: 3 | AK130: 0 | AL130: 7 | AM130: 6 | AN130: 8 | AO130: 12 | AP130: 314 | AQ130: 0 | AR130: 5 | AS130: 0
A131: 03030290 | B131: 107530
A132: 03030330 | B132: 25361 | C132: 9801 | D132: 15560 | E132: 132 | F132: 224 | G132: 826 | H132: 1419 | I132: 647 | J132: 1247 | K132: 545 | L132: 1254 | M132: 413 | N132: 1010 | O132: 370 | P132: 859 | Q132: 344 | R132: 762 | S132: 325 | T132: 583 | U132: 311 | V132: 562 | W132: 290 | X132: 459 | Y132: 1247 | Z132: 1707 | AA132: 1324 | AB132: 1605 | AC132: 1252 | AD132: 1489 | AE132: 1808 | AF132: 2429 | AG132: 73 | AH132: 260
A133: 03030340 | B133: 3861 | C133: 1509 | D133: 2352 | E133: 35 | F133: 12 | G133: 46 | H133: 103 | I133: 29 | J133: 49 | K133: 20 | L133: 41 | M133: 9 | N133: 29 | O133: 10 | P133: 26 | Q133: 13 | R133: 26 | S133: 7 | T133: 21 | U133: 15 | V133: 18 | W133: 16 | X133: 26 | Y133: 187 | Z133: 296 | AA133: 285 | AB133: 344 | AC133: 267 | AD133: 392 | AE133: 573 | AF133: 969 | AG133: 16 | AH133: 55
A134: 03030350 | B134: 9274 | C134: 3431 | D134: 5843 | E134: 18 | F134: 130
A135: 03030360 | B135: 9510 | C135: 3885 | D135: 5625 | E135: 19 | F135: 15 | G135: 32 | H135: 50 | I135: 47 | J135: 83 | K135: 85 | L135: 164 | M135: 129 | N135: 284 | O135: 210 | P135: 393 | Q135: 253 | R135: 506 | S135: 349 | T135: 657 | U135: 481 | V135: 786 | W135: 563 | X135: 785 | Y135: 656 | Z135: 659 | AA135: 455 | AB135: 510 | AC135: 320 | AD135: 382 | AE135: 289 | AF135: 356 | AG135: 118 | AH135: 113
A136: 03040210 | B136: 156 | D136: 156 | L136: 1 | N136: 11 | P136: 36 | R136: 48 | T136: 28 | V136: 17 | X136: 7 | Z136: 5 | AB136: 0 | AD136: 1 | AF136: 2 | AO136: 1 | AP136: 10 | AQ136: 0 | AR136: 0 | AS136: 0
A137: 03040220 | B137: 541 | D137: 541 | F137: 0 | H137: 5 | J137: 6 | L137: 8 | N137: 44 | P137: 41 | R137: 40 | T137: 38 | V137: 61 | X137: 50 | Z137: 59 | AB137: 40 | AD137: 41 | AF137: 33 | AH137: 27 | AJ137: 21 | AL137: 13 | AN137: 14 | AO137: 43 | AP137: 6 | AQ137: 4 | AR137: 0 | AS137: 0
A138: 03050400 | B138: 4777 | C138: 2032 | D138: 2769 | E138: 1380 | F138: 1844 | G138: 652 | H138: 925
A139: 03050500 | B139: 687 | C139: 371 | D139: 316 | E139: 237 | F139: 205 | G139: 134 | H139: 111
A140: 03050600 | B140: 2776 | C140: 1067 | D140: 1709 | E140: 793 | F140: 1107 | G140: 274 | H140: 602
A141: 03050700 | B141: 2198 | C141: 982 | D141: 1216 | E141: 756 | F141: 789 | G141: 226 | H141: 427
A142: 03050710 | B142: 412 | C142: 209 | D142: 203 | E142: 153 | F142: 121 | G142: 56 | H142: 82
A143: 03051000A | B143: 9 | C143: 7 | D143: 2 | E143: 0 | F143: 0 | G143: 0 | H143: 0 | I143: 1 | J143: 0 | K143: 0 | L143: 0 | M143: 0 | N143: 0 | O143: 0 | P143: 0 | Q143: 0 | R143: 0 | S143: 4 | T143: 1 | U143: 1 | V143: 0 | W143: 1 | X143: 1 | Y143: 0 | Z143: 0
A144: 03051100 | B144: 276 | C144: 147 | D144: 129 | E144: 2 | F144: 1 | G144: 0 | H144: 0 | I144: 2 | J144: 1 | K144: 6 | L144: 1 | M144: 5 | N144: 2 | O144: 1 | P144: 2 | Q144: 1 | R144: 5 | S144: 89 | T144: 94 | U144: 19 | V144: 13 | W144: 16 | X144: 8 | Y144: 6 | Z144: 2
A145: 03051200 | B145: 326 | C145: 141 | D145: 185 | E145: 0 | F145: 1 | G145: 0 | H145: 2 | I145: 0 | J145: 2 | K145: 3 | L145: 1 | M145: 1 | N145: 0 | O145: 2 | P145: 2 | Q145: 6 | R145: 3 | S145: 94 | T145: 112 | U145: 15 | V145: 31 | W145: 13 | X145: 21 | Y145: 7 | Z145: 10
A146: 03051300 | B146: 245 | C146: 116 | D146: 129 | E146: 0 | F146: 0 | G146: 2 | H146: 1 | I146: 4 | J146: 1 | K146: 10 | L146: 4 | M146: 6 | N146: 1 | O146: 1 | P146: 0 | Q146: 1 | R146: 3 | S146: 49 | T146: 65 | U146: 7 | V146: 9 | W146: 24 | X146: 19 | Y146: 12 | Z146: 26
A147: 03051400 | B147: 18 | C147: 8 | D147: 10 | E147: 0 | F147: 0 | G147: 0 | H147: 0 | I147: 1 | J147: 1 | K147: 0 | L147: 0 | M147: 0 | N147: 0 | O147: 0 | P147: 0 | Q147: 0 | R147: 0 | S147: 1 | T147: 1 | U147: 0 | V147: 1 | W147: 1 | X147: 3 | Y147: 5 | Z147: 4
A148: 03051500 | B148: 1 | C148: 0 | D148: 1 | E148: 0 | F148: 0 | G148: 0 | H148: 0 | I148: 0 | J148: 0 | K148: 0 | L148: 0 | M148: 0 | N148: 0 | O148: 0 | P148: 0 | Q148: 0 | R148: 0 | S148: 0 | T148: 1 | U148: 0 | V148: 0 | W148: 0 | X148: 0 | Y148: 0 | Z148: 0
A149: 03051600 | B149: 37 | C149: 25 | D149: 12 | E149: 0 | F149: 0 | G149: 0 | H149: 0 | I149: 0 | J149: 0 | K149: 1 | L149: 0 | M149: 0 | N149: 0 | O149: 2 | P149: 1 | Q149: 0 | R149: 0 | S149: 17 | T149: 10 | U149: 5 | V149: 1 | W149: 0 | X149: 0 | Y149: 0 | Z149: 0
A150: 03051700 | B150: 54 | C150: 27 | D150: 27 | E150: 0 | F150: 0 | G150: 1 | H150: 0 | I150: 0 | J150: 0 | K150: 1 | L150: 0 | M150: 1 | N150: 0 | O150: 1 | P150: 1 | Q150: 0 | R150: 2 | S150: 16 | T150: 18 | U150: 6 | V150: 3 | W150: 1 | X150: 3 | Y150: 0 | Z150: 0
A151: 03051800 | B151: 42 | C151: 21 | D151: 21 | E151: 0 | F151: 0 | G151: 0 | H151: 0 | I151: 0 | J151: 1 | K151: 1 | L151: 0 | M151: 3 | N151: 1 | O151: 1 | P151: 0 | Q151: 1 | R151: 0 | S151: 9 | T151: 10 | U151: 4 | V151: 2 | W151: 1 | X151: 4 | Y151: 1 | Z151: 3
A152: 03051900 | B152: 5 | C152: 2 | D152: 3 | E152: 0 | F152: 0 | G152: 0 | H152: 0 | I152: 0 | J152: 0 | K152: 0 | L152: 0 | M152: 0 | N152: 0 | O152: 0 | P152: 0 | Q152: 0 | R152: 0 | S152: 0 | T152: 1 | U152: 0 | V152: 0 | W152: 1 | X152: 1 | Y152: 1 | Z152: 1
A153: 03052100 | B153: 25 | C153: 13 | D153: 12 | E153: 0 | F153: 0 | G153: 0 | H153: 0 | I153: 0 | J153: 2 | K153: 0 | L153: 0 | M153: 0 | N153: 0 | O153: 1 | P153: 0 | Q153: 0 | R153: 0 | S153: 11 | T153: 9 | U153: 1 | V153: 1 | W153: 0 | X153: 0 | Y153: 0 | Z153: 0
A154: 03052200 | B154: 14 | C154: 9 | D154: 5 | E154: 0 | F154: 0 | G154: 0 | H154: 0 | I154: 0 | J154: 0 | K154: 0 | L154: 0 | M154: 0 | N154: 0 | O154: 0 | P154: 0 | Q154: 0 | R154: 0 | S154: 3 | T154: 2 | U154: 0 | V154: 2 | W154: 2 | X154: 0 | Y154: 4 | Z154: 1
A155: 03052300 | B155: 19 | C155: 10 | D155: 9 | E155: 0 | F155: 0 | G155: 0 | H155: 0 | I155: 2 | J155: 0 | K155: 2 | L155: 0 | M155: 0 | N155: 0 | O155: 1 | P155: 0 | Q155: 0 | R155: 0 | S155: 2 | T155: 7 | U155: 1 | V155: 1 | W155: 2 | X155: 1 | Y155: 0 | Z155: 0
A156: 03052400 | B156: 2 | C156: 1 | D156: 1 | E156: 0 | F156: 0 | G156: 0 | H156: 0 | I156: 0 | J156: 0 | K156: 0 | L156: 0 | M156: 0 | N156: 0 | O156: 0 | P156: 0 | Q156: 0 | R156: 0 | S156: 0 | T156: 0 | U156: 1 | V156: 1 | W156: 0 | X156: 0 | Y156: 0 | Z156: 0
A157: 03052500 | B157: 1 | C157: 0 | D157: 1 | T157: 1
A158: 03052600 | B158: 105 | C158: 69 | D158: 36 | E158: 0 | F158: 0 | G158: 0 | H158: 0 | I158: 17 | J158: 2 | K158: 14 | L158: 5 | M158: 12 | N158: 8 | O158: 8 | P158: 3 | Q158: 3 | R158: 2 | S158: 12 | T158: 15 | U158: 2 | V158: 0 | W158: 1 | X158: 0 | Y158: 0 | Z158: 1
A159: 03052700 | B159: 193 | C159: 126 | D159: 67 | E159: 2 | F159: 0 | G159: 2 | H159: 1 | I159: 21 | J159: 8 | K159: 52 | L159: 17 | M159: 24 | N159: 8 | O159: 6 | P159: 9 | Q159: 1 | R159: 4 | S159: 10 | T159: 14 | U159: 1 | V159: 1 | W159: 5 | X159: 3 | Y159: 2 | Z159: 2
A160: 03052800 | B160: 337 | C160: 190 | D160: 147 | E160: 1 | F160: 0 | G160: 2 | H160: 5 | I160: 59 | J160: 15 | K160: 57 | L160: 23 | M160: 24 | N160: 8 | O160: 13 | P160: 7 | Q160: 3 | R160: 2 | S160: 13 | T160: 25 | U160: 3 | V160: 3 | W160: 2 | X160: 11 | Y160: 13 | Z160: 48
A161: 03052900 | B161: 20 | C161: 3 | D161: 17 | E161: 0 | F161: 0 | G161: 0 | H161: 0 | I161: 0 | J161: 1 | K161: 1 | L161: 0 | M161: 0 | N161: 0 | O161: 0 | P161: 0 | Q161: 0 | R161: 0 | S161: 0 | T161: 4 | U161: 0 | V161: 0 | W161: 0 | X161: 3 | Y161: 2 | Z161: 9
A162: 03053100 | B162: 30 | C162: 17 | D162: 13 | E162: 0 | F162: 0 | G162: 2 | H162: 0 | I162: 1 | J162: 0 | K162: 3 | L162: 4 | M162: 4 | N162: 4 | O162: 2 | P162: 3 | Q162: 2 | R162: 1 | S162: 3 | T162: 1 | U162: 0 | V162: 0 | W162: 0 | X162: 0 | Y162: 0 | Z162: 0
A163: 03053200 | B163: 37 | C163: 22 | D163: 15 | E163: 1 | F163: 0 | G163: 0 | H163: 0 | I163: 1 | J163: 3 | K163: 7 | L163: 1 | M163: 5 | N163: 2 | O163: 1 | P163: 3 | Q163: 3 | R163: 2 | S163: 3 | T163: 3 | U163: 1 | V163: 0 | W163: 0 | X163: 0 | Y163: 0 | Z163: 1
A164: 03053300 | B164: 53 | C164: 37 | D164: 16 | E164: 0 | F164: 0 | G164: 0 | H164: 1 | I164: 5 | J164: 0 | K164: 10 | L164: 4 | M164: 5 | N164: 1 | O164: 4 | P164: 3 | Q164: 2 | R164: 0 | S164: 6 | T164: 2 | U164: 3 | V164: 1 | W164: 1 | X164: 2 | Y164: 1 | Z164: 2
A165: 03053400 | B165: 11 | C165: 6 | D165: 5 | E165: 0 | F165: 0 | G165: 0 | H165: 0 | I165: 2 | J165: 1 | K165: 1 | L165: 1 | M165: 0 | N165: 0 | O165: 0 | P165: 0 | Q165: 0 | R165: 0 | S165: 1 | T165: 1 | U165: 1 | V165: 0 | W165: 0 | X165: 1 | Y165: 1 | Z165: 1
A166: 03053500 | B166: 1 | C166: 1 | D166: 0 | S166: 1
A167: 03053600 | B167: 14 | C167: 11 | D167: 3 | E167: 0 | F167: 0 | G167: 0 | H167: 0 | I167: 4 | J167: 0 | K167: 0 | L167: 1 | M167: 1 | N167: 0 | O167: 1 | P167: 0 | Q167: 0 | R167: 0 | S167: 3 | T167: 2 | U167: 1 | V167: 0 | W167: 1 | X167: 0 | Y167: 0 | Z167: 0
A168: 03053700 | B168: 44 | C168: 19 | D168: 25 | E168: 0 | F168: 0 | G168: 1 | H168: 0 | I168: 1 | J168: 1 | K168: 3 | L168: 3 | M168: 1 | N168: 1 | O168: 2 | P168: 0 | Q168: 0 | R168: 0 | S168: 8 | T168: 19 | U168: 2 | V168: 0 | W168: 0 | X168: 1 | Y168: 1 | Z168: 0
A169: 03053800 | B169: 208 | C169: 102 | D169: 106 | E169: 1 | F169: 0 | G169: 0 | H169: 1 | I169: 7 | J169: 2 | K169: 13 | L169: 11 | M169: 6 | N169: 9 | O169: 19 | P169: 9 | Q169: 4 | R169: 4 | S169: 29 | T169: 42 | U169: 15 | V169: 2 | W169: 4 | X169: 10 | Y169: 4 | Z169: 16
A170: 03053900 | B170: 45 | C170: 19 | D170: 26 | E170: 0 | F170: 0 | G170: 0 | H170: 1 | I170: 3 | J170: 1 | K170: 4 | L170: 0 | M170: 0 | N170: 1 | O170: 1 | P170: 1 | Q170: 0 | R170: 0 | S170: 4 | T170: 6 | U170: 1 | V170: 1 | W170: 3 | X170: 2 | Y170: 3 | Z170: 13
A171: 03500020 | B171: 10956 | C171: 5305 | D171: 5651 | E171: 3 | F171: 13 | G171: 73 | H171: 66 | I171: 4 | J171: 10 | K171: 82 | L171: 107 | M171: 1965 | N171: 2049 | O171: 76 | P171: 85 | Q171: 13 | R171: 15 | S171: 62 | T171: 58 | U171: 1806 | V171: 1798 | W171: 1221 | X171: 1450
A172: 03500030 | B172: 1356 | C172: 809 | D172: 547 | E172: 0 | F172: 1 | G172: 0 | H172: 0 | I172: 0 | J172: 0 | K172: 2 | L172: 1 | M172: 93 | N172: 75 | O172: 6 | P172: 4 | Q172: 1 | R172: 3 | S172: 7 | T172: 6 | U172: 257 | V172: 166 | W172: 443 | X172: 292
A173: 03500040 | B173: 3411 | C173: 1693 | D173: 1718 | E173: 1435 | F173: 1437 | G173: 258 | H173: 281
A174: 03500050 | B174: 618 | C174: 322 | D174: 296 | E174: 248 | F174: 223 | G174: 74 | H174: 73
A175: 03500060 | B175: 55 | C175: 31 | D175: 24 | E175: 26 | F175: 17 | G175: 5 | H175: 7
A176: 03500120 | B176: 281
A177: 03500130 | B177: 288
A178: 03500140 | B178: 163
A179: 03500150 | B179: 14
A180: 03500160 | B180: 5162 | D180: 499 | E180: 476
A181: 03500170 | B181: 71 | D181: 25 | E181: 12
A182: 03500200 | B182: 3839 | C182: 580 | E182: 444
A183: 03500210 | B183: 3632 | C183: 556 | E183: 403
A184: 03500290 | B184: 3199 | C184: 1347 | D184: 1852 | E184: 28 | F184: 37 | G184: 144 | H184: 148 | I184: 135 | J184: 230 | K184: 470 | L184: 751 | M184: 341 | N184: 455 | O184: 111 | P184: 98 | Q184: 99 | R184: 111 | S184: 19 | T184: 22
A185: 03500300 | B185: 642 | C185: 368 | D185: 274 | E185: 23 | F185: 25 | G185: 83 | H185: 64 | I185: 21 | J185: 17 | K185: 91 | L185: 68 | M185: 99 | N185: 61 | O185: 22 | P185: 31 | Q185: 27 | R185: 5 | S185: 2 | T185: 3
A186: 03500331 | B186: 130 | C186: 88 | D186: 42 | E186: 0 | F186: 0 | G186: 11 | H186: 8 | I186: 11 | J186: 6 | K186: 31 | L186: 15 | M186: 35 | N186: 12 | O186: 3 | P186: 2 | Q186: 0 | R186: 0
A187: 03500332 | B187: 129 | C187: 101 | D187: 28 | E187: 0 | F187: 2 | G187: 2 | H187: 2 | I187: 9 | J187: 1 | K187: 51 | L187: 16 | M187: 31 | N187: 6 | O187: 8 | P187: 2 | Q187: 0 | R187: 1
A188: 03500333 | B188: 3 | C188: 1 | D188: 2 | E188: 0 | F188: 0 | G188: 0 | H188: 1 | I188: 0 | J188: 0 | K188: 1 | L188: 1 | M188: 0 | N188: 0 | O188: 0 | P188: 0 | Q188: 0 | R188: 0
A189: 03500334 | B189: 13 | C189: 10 | D189: 3 | E189: 0 | F189: 0 | G189: 0 | H189: 0 | I189: 3 | J189: 0 | K189: 6 | L189: 1 | M189: 1 | N189: 1 | O189: 0 | P189: 1 | Q189: 0 | R189: 0
A190: 03500335 | B190: 1 | C190: 1 | D190: 0 | G190: 1 | Q190: 0 | R190: 0
A191: 03500336 | B191: 199 | C191: 100 | D191: 99 | E191: 0 | F191: 0 | G191: 0 | H191: 0 | I191: 9 | J191: 2 | K191: 22 | L191: 8 | M191: 11 | N191: 5 | O191: 7 | P191: 3 | Q191: 3 | R191: 2 | S191: 28 | T191: 40 | U191: 9 | V191: 9 | W191: 9 | X191: 14 | Y191: 2 | Z191: 16
A192: 03500337 | B192: 151 | C192: 86 | D192: 65 | E192: 0 | F192: 0 | G192: 0 | H192: 0 | I192: 5 | J192: 2 | K192: 4 | L192: 2 | M192: 4 | N192: 2 | O192: 1 | P192: 1 | Q192: 2 | R192: 5 | S192: 50 | T192: 45 | U192: 11 | V192: 4 | W192: 6 | X192: 3 | Y192: 3 | Z192: 1
A193: 03500338 | B193: 191 | C193: 96 | D193: 95 | E193: 1 | F193: 1 | G193: 1 | H193: 1 | I193: 11 | J193: 6 | K193: 23 | L193: 7 | M193: 8 | N193: 5 | O193: 3 | P193: 5 | Q193: 2 | R193: 3 | S193: 34 | T193: 40 | U193: 6 | V193: 15 | W193: 5 | X193: 5 | Y193: 2 | Z193: 7
A194: 03500339 | B194: 280 | C194: 153 | D194: 127 | E194: 0 | F194: 0 | G194: 1 | H194: 3 | I194: 29 | J194: 6 | K194: 31 | L194: 20 | M194: 14 | N194: 8 | O194: 14 | P194: 6 | Q194: 5 | R194: 2 | S194: 31 | T194: 54 | U194: 7 | V194: 7 | W194: 11 | X194: 6 | Y194: 10 | Z194: 15
A195: 03500340 | B195: 30 | C195: 13 | D195: 17 | E195: 0 | F195: 0 | G195: 0 | H195: 1 | I195: 2 | J195: 1 | K195: 0 | L195: 1 | M195: 0 | N195: 0 | O195: 1 | P195: 0 | Q195: 0 | R195: 0 | S195: 5 | T195: 3 | U195: 0 | V195: 0 | W195: 1 | X195: 2 | Y195: 4 | Z195: 9
A196: 03500341 | B196: 18 | C196: 8 | D196: 10 | E196: 0 | F196: 0 | G196: 0 | H196: 0 | I196: 1 | J196: 2 | K196: 0 | L196: 0 | M196: 0 | N196: 0 | O196: 1 | P196: 1 | Q196: 0 | R196: 0 | S196: 2 | T196: 3 | U196: 3 | V196: 1 | W196: 1 | X196: 2 | Y196: 0 | Z196: 1
A197: 03500342 | B197: 58 | C197: 33 | D197: 25 | E197: 0 | F197: 0 | G197: 0 | H197: 0 | I197: 2 | J197: 2 | K197: 3 | L197: 0 | M197: 1 | N197: 1 | O197: 3 | P197: 1 | Q197: 1 | R197: 0 | S197: 11 | T197: 12 | U197: 8 | V197: 5 | W197: 4 | X197: 3 | Y197: 0 | Z197: 1
A198: 03500343 | B198: 71 | C198: 30 | D198: 41 | E198: 0 | F198: 0 | G198: 0 | H198: 0 | I198: 1 | J198: 1 | K198: 9 | L198: 3 | M198: 1 | N198: 2 | O198: 1 | P198: 1 | Q198: 1 | R198: 1 | S198: 11 | T198: 23 | U198: 2 | V198: 6 | W198: 3 | X198: 4 | Y198: 1 | Z198: 0
A199: 03500344 | B199: 98 | C199: 46 | D199: 52 | E199: 0 | F199: 0 | G199: 0 | H199: 0 | I199: 4 | J199: 1 | K199: 14 | L199: 6 | M199: 6 | N199: 3 | O199: 3 | P199: 2 | Q199: 1 | R199: 1 | S199: 9 | T199: 13 | U199: 3 | V199: 3 | W199: 4 | X199: 10 | Y199: 2 | Z199: 13
A200: 03500345 | B200: 11 | C200: 4 | D200: 7 | E200: 0 | F200: 0 | G200: 0 | H200: 0 | I200: 0 | J200: 1 | K200: 1 | L200: 0 | M200: 3 | N200: 0 | O200: 0 | P200: 0 | Q200: 0 | R200: 0 | S200: 0 | T200: 1 | U200: 0 | V200: 0 | W200: 0 | X200: 1 | Y200: 0 | Z200: 4
A201: 03500346 | B201: 32659 | C201: 10979 | D201: 21680 | G201: 161 | H201: 286 | I201: 650 | J201: 1679 | K201: 3108 | L201: 7511 | M201: 2667 | N201: 5127 | O201: 1219 | P201: 2082 | Q201: 2052 | R201: 3132 | S201: 1122 | T201: 1863
... 2401 more rows

Sheet A01,
B1: SERVICIO DE SALUD
B2: =CONCATENATE("COMUNA: ",NOMBRE!B2," - ","( ",NOMBRE!C2,NOMBRE!D2,NOMBRE!E2,NOMBRE!F2,NOMBRE!G2," )") -> COMUNA: - ( )
B3: =CONCATENATE("ESTABLECIMIENTO/ESTRATEGIA: ",NOMBRE!B3," - ","( ",NOMBRE!C3,NOMBRE!D3,NOMBRE!E3,NOMBRE!F3,NOMBRE!G3,NOMBRE!H3," )") -> ESTABLECIMIENTO/ESTRATEGIA: - ( )
B4: =CONCATENATE("MES: ",NOMBRE!B6," - ","( ",NOMBRE!C6,NOMBRE!D6," )") -> MES: - ( )
B5: =CONCATENATE("AÑO: ",NOMBRE!B7) -> AÑO: 2023
B6: REM-A01. CONTROLES DE SALUD
B9: SECCIÓN A: CONTROLES DE SALUD SEXUAL Y REPRODUCTIVA
B10: TIPO DE CONTROL | C10: PROFESIONAL | D10: TOTAL | E10: POR EDAD | V10: SEXO | X10: Control con pareja familiar u otro | Y10: Control de diada con presencia del padre | Z10: Espacios Amigables/ Adolescentes | AA10: Niños, Niñas, Adolescentes y Jóvenes SENAME | AB10: Niños, Niñas, Adolescentes y Jóvenes Mejor Niñez | AC10: Pueblos Originarios | AD10: Migrantes
E11: Menor de 4 años | F11: 5 - 9 años | G11: 10 - 14 años | H11: 15 a 19 años | I11: 20 - 24 años | J11: 25 - 29 años | K11: 30 - 34 años | L11: 35 - 39 años | M11: 40 - 44 años | N11: 45 - 49 años | O11: 50 - 54 años | P11: 55 - 59 años | Q11: 60 - 64 años | R11: 65 - 69 años | S11: 70 - 74 años | T11: 75 - 79 años | U11: 80 y más años | V11: HOMBRES | W11: MUJERES
A12: 01010101 | B12: PRE- CONCEPCIONAL | C12: MÉDICO/A | D12: =SUM(G12:P12) -> 7 | E12: =IFERROR(VLOOKUP($A12,FILTRO!$A$5:$AW$2602,3,FALSE),0) -> 0 | F12: =IFERROR(VLOOKUP($A12,FILTRO!$A$5:$AW$2602,4,FALSE),0) -> 0 | G12: =IFERROR(VLOOKUP($A12,FILTRO!$A$5:$AW$2602,5,FALSE),0) -> 0 | H12: =IFERROR(VLOOKUP($A12,FILTRO!$A$5:$AW$2602,6,FALSE),0) -> 0 | I12: =IFERROR(VLOOKUP($A12,FILTRO!$A$5:$AW$2602,7,FALSE),0) -> 0 | J12: =IFERROR(VLOOKUP($A12,FILTRO!$A$5:$AW$2602,8,FALSE),0) -> 4 | K12: =IFERROR(VLOOKUP($A12,FILTRO!$A$5:$AW$2602,9,FALSE),0) -> 2 | L12: =IFERROR(VLOOKUP($A12,FILTRO!$A$5:$AW$2602,10,FALSE),0) -> 0 | M12: =IFERROR(VLOOKUP($A12,FILTRO!$A$5:$AW$2602,11,FALSE),0) -> 1 | N12: =IFERROR(VLOOKUP($A12,FILTRO!$A$5:$AW$2602,12,FALSE),0) -> 0 | O12: =IFERROR(VLOOKUP($A12,FILTRO!$A$5:$AW$2602,13,FALSE),0) -> 0 | P12: =IFERROR(VLOOKUP($A12,FILTRO!$A$5:$AW$2602,14,FALSE),0) -> 0 | Q12: =IFERROR(VLOOKUP($A12,FILTRO!$A$5:$AW$2602,15,FALSE),0) -> 0 | R12: =IFERROR(VLOOKUP($A12,FILTRO!$A$5:$AW$2602,16,FALSE),0) -> 0 | S12: =IFERROR(VLOOKUP($A12,FILTRO!$A$5:$AW$2602,17,FALSE),0) -> 0 | T12: =IFERROR(VLOOKUP($A12,FILTRO!$A$5:$AW$2602,18,FALSE),0) -> 0 | U12: =IFERROR(VLOOKUP($A12,FILTRO!$A$5:$AW$2602,19,FALSE),0) -> 0 | V12: =IFERROR(VLOOKUP($A12,FILTRO!$A$5:$AW$2602,20,FALSE),0) -> 0 | W12: =IFERROR(VLOOKUP($A12,FILTRO!$A$5:$AW$2602,21,FALSE),0) -> 7 | X12: =IFERROR(VLOOKUP($A12,FILTRO!$A$5:$AW$2602,22,FALSE),0) -> 0 | Y12: =IFERROR(VLOOKUP($A12,FILTRO!$A$5:$AW$2602,23,FALSE),0) -> 0 | Z12: =IFERROR(VLOOKUP($A12,FILTRO!$A$5:$AW$2602,24,FALSE),0) -> 0 | AA12: =IFERROR(VLOOKUP($A12,FILTRO!$A$5:$AW$2602,25,FALSE),0) -> 0 | AB12: =IFERROR(VLOOKUP($A12,FILTRO!$A$5:$AW$2602,26,FALSE),0) -> 0 | AC12: =IFERROR(VLOOKUP($A12,FILTRO!$A$5:$AW$2602,27,FALSE),0) -> 0 | AD12: =IFERROR(VLOOKUP($A12,FILTRO!$A$5:$AW$2602,28,FALSE),0) -> 0 | CA12: * El número de Sexo Hombres y mujeres debe ser igual al total. | DA12: 1 | DB12: 0 | DE12: 0 | DF12: 0 | DG12: 0 | DH12: 0 | DI12: 0 | DJ12: 0 | DK12: 0 | DL12: 0 | DM12: 0 | DN12: 0 | DO12: 0 | DP12: 0 | DQ12: 0
A13: 01010103 | C13: MATRONA/ÓN | D13: =SUM(G13:P13) -> 1403 | E13: =IFERROR(VLOOKUP($A13,FILTRO!$A$5:$AW$2602,3,FALSE),0) -> 0 | F13: =IFERROR(VLOOKUP($A13,FILTRO!$A$5:$AW$2602,4,FALSE),0) -> 0 | G13: =IFERROR(VLOOKUP($A13,FILTRO!$A$5:$AW$2602,5,FALSE),0) -> 3 | H13: =IFERROR(VLOOKUP($A13,FILTRO!$A$5:$AW$2602,6,FALSE),0) -> 61 | I13: =IFERROR(VLOOKUP($A13,FILTRO!$A$5:$AW$2602,7,FALSE),0) -> 228 | J13: =IFERROR(VLOOKUP($A13,FILTRO!$A$5:$AW$2602,8,FALSE),0) -> 389 | K13: =IFERROR(VLOOKUP($A13,FILTRO!$A$5:$AW$2602,9,FALSE),0) -> 360 | L13: =IFERROR(VLOOKUP($A13,FILTRO!$A$5:$AW$2602,10,FALSE),0) -> 249 | M13: =IFERROR(VLOOKUP($A13,FILTRO!$A$5:$AW$2602,11,FALSE),0) -> 96 | N13: =IFERROR(VLOOKUP($A13,FILTRO!$A$5:$AW$2602,12,FALSE),0) -> 16 | O13: =IFERROR(VLOOKUP($A13,FILTRO!$A$5:$AW$2602,13,FALSE),0) -> 1 | P13: =IFERROR(VLOOKUP($A13,FILTRO!$A$5:$AW$2602,14,FALSE),0) -> 0 | Q13: =IFERROR(VLOOKUP($A13,FILTRO!$A$5:$AW$2602,15,FALSE),0) -> 0 | R13: =IFERROR(VLOOKUP($A13,FILTRO!$A$5:$AW$2602,16,FALSE),0) -> 0 | S13: =IFERROR(VLOOKUP($A13,FILTRO!$A$5:$AW$2602,17,FALSE),0) -> 0 | T13: =IFERROR(VLOOKUP($A13,FILTRO!$A$5:$AW$2602,18,FALSE),0) -> 0 | U13: =IFERROR(VLOOKUP($A13,FILTRO!$A$5:$AW$2602,19,FALSE),0) -> 0 | V13: =IFERROR(VLOOKUP($A13,FILTRO!$A$5:$AW$2602,20,FALSE),0) -> 8 | W13: =IFERROR(VLOOKUP($A13,FILTRO!$A$5:$AW$2602,21,FALSE),0) -> 1382 | X13: =IFERROR(VLOOKUP($A13,FILTRO!$A$5:$AW$2602,22,FALSE),0) -> 0 | Y13: =IFERROR(VLOOKUP($A13,FILTRO!$A$5:$AW$2602,23,FALSE),0) -> 0 | Z13: =IFERROR(VLOOKUP($A13,FILTRO!$A$5:$AW$2602,24,FALSE),0) -> 11 | AA13: =IFERROR(VLOOKUP($A13,FILTRO!$A$5:$AW$2602,25,FALSE),0) -> 0 | AB13: =IFERROR(VLOOKUP($A13,FILTRO!$A$5:$AW$2602,26,FALSE),0) -> 0 | AC13: =IFERROR(VLOOKUP($A13,FILTRO!$A$5:$AW$2602,27,FALSE),0) -> 11 | AD13: =IFERROR(VLOOKUP($A13,FILTRO!$A$5:$AW$2602,28,FALSE),0) -> 57 | CA13: * El número de Sexo Hombres y mujeres debe ser igual al total. | DA13: 1 | DB13: 0 | DE13: 0 | DF13: 0 | DG13: 0 | DH13: 0 | DI13: 0 | DJ13: 0 | DK13: 0 | DL13: 0 | DM13: 0 | DN13: 0 | DO13: 0 | DP13: 0 | DQ13: 0
A14: 01010201 | B14: PRENATAL | C14: MÉDICO/A | D14: =SUM(G14:P14) -> 274 | E14: =IFERROR(VLOOKUP($A14,FILTRO!$A$5:$AW$2602,3,FALSE),0) -> 0 | F14: =IFERROR(VLOOKUP($A14,FILTRO!$A$5:$AW$2602,4,FALSE),0) -> 0 | G14: =IFERROR(VLOOKUP($A14,FILTRO!$A$5:$AW$2602,5,FALSE),0) -> 0 | H14: =IFERROR(VLOOKUP($A14,FILTRO!$A$5:$AW$2602,6,FALSE),0) -> 21 | I14: =IFERROR(VLOOKUP($A14,FILTRO!$A$5:$AW$2602,7,FALSE),0) -> 59 | J14: =IFERROR(VLOOKUP($A14,FILTRO!$A$5:$AW$2602,8,FALSE),0) -> 64 | K14: =IFERROR(VLOOKUP($A14,FILTRO!$A$5:$AW$2602,9,FALSE),0) -> 70 | L14: =IFERROR(VLOOKUP($A14,FILTRO!$A$5:$AW$2602,10,FALSE),0) -> 48 | M14: =IFERROR(VLOOKUP($A14,FILTRO!$A$5:$AW$2602,11,FALSE),0) -> 4 | N14: =IFERROR(VLOOKUP($A14,FILTRO!$A$5:$AW$2602,12,FALSE),0) -> 3 | O14: =IFERROR(VLOOKUP($A14,FILTRO!$A$5:$AW$2602,13,FALSE),0) -> 3 | P14: =IFERROR(VLOOKUP($A14,FILTRO!$A$5:$AW$2602,14,FALSE),0) -> 2 | Q14: =IFERROR(VLOOKUP($A14,FILTRO!$A$5:$AW$2602,15,FALSE),0) -> 0 | R14: =IFERROR(VLOOKUP($A14,FILTRO!$A$5:$AW$2602,16,FALSE),0) -> 0 | S14: =IFERROR(VLOOKUP($A14,FILTRO!$A$5:$AW$2602,17,FALSE),0) -> 0 | T14: =IFERROR(VLOOKUP($A14,FILTRO!$A$5:$AW$2602,18,FALSE),0) -> 0 | U14: =IFERROR(VLOOKUP($A14,FILTRO!$A$5:$AW$2602,19,FALSE),0) -> 0 | V14: =IFERROR(VLOOKUP($A14,FILTRO!$A$5:$AW$2602,20,FALSE),0) -> 0 | W14: =IFERROR(VLOOKUP($A14,FILTRO!$A$5:$AW$2602,21,FALSE),0) -> 273 | X14: =IFERROR(VLOOKUP($A14,FILTRO!$A$5:$AW$2602,22,FALSE),0) -> 13 | Y14: =IFERROR(VLOOKUP($A14,FILTRO!$A$5:$AW$2602,23,FALSE),0) -> 0 | Z14: =IFERROR(VLOOKUP($A14,FILTRO!$A$5:$AW$2602,24,FALSE),0) -> 0 | AA14: =IFERROR(VLOOKUP($A14,FILTRO!$A$5:$AW$2602,25,FALSE),0) -> 0 | AB14: =IFERROR(VLOOKUP($A14,FILTRO!$A$5:$AW$2602,26,FALSE),0) -> 0 | AC14: =IFERROR(VLOOKUP($A14,FILTRO!$A$5:$AW$2602,27,FALSE),0) -> 2 | AD14: =IFERROR(VLOOKUP($A14,FILTRO!$A$5:$AW$2602,28,FALSE),0) -> 1 | CA14: * El número de Sexo Hombres y mujeres debe ser igual al total. | DA14: 1 | DB14: 0 | DC14: 0 | DE14: 0 | DF14: 0 | DG14: 0 | DH14: 0 | DI14: 0 | DJ14: 0 | DK14: 0 | DL14: 0 | DM14: 0 | DN14: 0 | DO14: 0 | DP14: 0 | DQ14: 0
A15: 01010203 | C15: MATRONA/ÓN | D15: 34297 | E15: =IFERROR(VLOOKUP($A15,FILTRO!$A$5:$AW$2602,3,FALSE),0) -> 0 | F15: =IFERROR(VLOOKUP($A15,FILTRO!$A$5:$AW$2602,4,FALSE),0) -> 0 | G15: =IFERROR(VLOOKUP($A15,FILTRO!$A$5:$AW$2602,5,FALSE),0) -> 100 | H15: =IFERROR(VLOOKUP($A15,FILTRO!$A$5:$AW$2602,6,FALSE),0) -> 1953 | I15: =IFERROR(VLOOKUP($A15,FILTRO!$A$5:$AW$2602,7,FALSE),0) -> 7666 | J15: =IFERROR(VLOOKUP($A15,FILTRO!$A$5:$AW$2602,8,FALSE),0) -> 10150 | K15: =IFERROR(VLOOKUP($A15,FILTRO!$A$5:$AW$2602,9,FALSE),0) -> 8806 | L15: =IFERROR(VLOOKUP($A15,FILTRO!$A$5:$AW$2602,10,FALSE),0) -> 4356 | M15: =IFERROR(VLOOKUP($A15,FILTRO!$A$5:$AW$2602,11,FALSE),0) -> 1215 | N15: =IFERROR(VLOOKUP($A15,FILTRO!$A$5:$AW$2602,12,FALSE),0) -> 48 | O15: =IFERROR(VLOOKUP($A15,FILTRO!$A$5:$AW$2602,13,FALSE),0) -> 2 | P15: =IFERROR(VLOOKUP($A15,FILTRO!$A$5:$AW$2602,14,FALSE),0) -> 1 | Q15: =IFERROR(VLOOKUP($A15,FILTRO!$A$5:$AW$2602,15,FALSE),0) -> 0 | R15: =IFERROR(VLOOKUP($A15,FILTRO!$A$5:$AW$2602,16,FALSE),0) -> 0 | S15: =IFERROR(VLOOKUP($A15,FILTRO!$A$5:$AW$2602,17,FALSE),0) -> 0 | T15: =IFERROR(VLOOKUP($A15,FILTRO!$A$5:$AW$2602,18,FALSE),0) -> 0 | U15: =IFERROR(VLOOKUP($A15,FILTRO!$A$5:$AW$2602,19,FALSE),0) -> 0 | V15: =IFERROR(VLOOKUP($A15,FILTRO!$A$5:$AW$2602,20,FALSE),0) -> 0 | W15: =IFERROR(VLOOKUP($A15,FILTRO!$A$5:$AW$2602,21,FALSE),0) -> 33934 | X15: =IFERROR(VLOOKUP($A15,FILTRO!$A$5:$AW$2602,22,FALSE),0) -> 9595 | Y15: =IFERROR(VLOOKUP($A15,FILTRO!$A$5:$AW$2602,23,FALSE),0) -> 0 | Z15: =IFERROR(VLOOKUP($A15,FILTRO!$A$5:$AW$2602,24,FALSE),0) -> 0 | AA15: =IFERROR(VLOOKUP($A15,FILTRO!$A$5:$AW$2602,25,FALSE),0) -> 38 | AB15: =IFERROR(VLOOKUP($A15,FILTRO!$A$5:$AW$2602,26,FALSE),0) -> 33 | AC15: =IFERROR(VLOOKUP($A15,FILTRO!$A$5:$AW$2602,27,FALSE),0) -> 414 | AD15: =IFERROR(VLOOKUP($A15,FILTRO!$A$5:$AW$2602,28,FALSE),0) -> 2459 | CA15: * El número de Sexo Hombres y mujeres debe ser igual al total. | DA15: 1 | DB15: 0 | DC15: 0 | DE15: 0 | DF15: 0 | DG15: 0 | DH15: 0 | DI15: 0 | DJ15: 0 | DK15: 0 | DL15: 0 | DM15: 0 | DN15: 0 | DO15: 0 | DP15: 0 | DQ15: 0
A16: 01501050 | B16: POST PARTO | C16: MÉDICO/A | D16: 4 | E16: =IFERROR(VLOOKUP($A16,FILTRO!$A$5:$AW$2602,3,FALSE),0) -> 0 | F16: =IFERROR(VLOOKUP($A16,FILTRO!$A$5:$AW$2602,4,FALSE),0) -> 0 | G16: =IFERROR(VLOOKUP($A16,FILTRO!$A$5:$AW$2602,5,FALSE),0) -> 0 | H16: =IFERROR(VLOOKUP($A16,FILTRO!$A$5:$AW$2602,6,FALSE),0) -> 0 | I16: =IFERROR(VLOOKUP($A16,FILTRO!$A$5:$AW$2602,7,FALSE),0) -> 3 | J16: =IFERROR(VLOOKUP($A16,FILTRO!$A$5:$AW$2602,8,FALSE),0) -> 0 | K16: =IFERROR(VLOOKUP($A16,FILTRO!$A$5:$AW$2602,9,FALSE),0) -> 0 | L16: =IFERROR(VLOOKUP($A16,FILTRO!$A$5:$AW$2602,10,FALSE),0) -> 1 | M16: =IFERROR(VLOOKUP($A16,FILTRO!$A$5:$AW$2602,11,FALSE),0) -> 0 | N16: =IFERROR(VLOOKUP($A16,FILTRO!$A$5:$AW$2602,12,FALSE),0) -> 0 | O16: =IFERROR(VLOOKUP($A16,FILTRO!$A$5:$AW$2602,13,FALSE),0) -> 0 | P16: =IFERROR(VLOOKUP($A16,FILTRO!$A$5:$AW$2602,14,FALSE),0) -> 0 | Q16: =IFERROR(VLOOKUP($A16,FILTRO!$A$5:$AW$2602,15,FALSE),0) -> 0 | R16: =IFERROR(VLOOKUP($A16,FILTRO!$A$5:$AW$2602,16,FALSE),0) -> 0 | S16: =IFERROR(VLOOKUP($A16,FILTRO!$A$5:$AW$2602,17,FALSE),0) -> 0 | T16: =IFERROR(VLOOKUP($A16,FILTRO!$A$5:$AW$2602,18,FALSE),0) -> 0 | U16: =IFERROR(VLOOKUP($A16,FILTRO!$A$5:$AW$2602,19,FALSE),0) -> 0 | V16: =IFERROR(VLOOKUP($A16,FILTRO!$A$5:$AW$2602,20,FALSE),0) -> 0 | W16: =IFERROR(VLOOKUP($A16,FILTRO!$A$5:$AW$2602,21,FALSE),0) -> 4 | X16: =IFERROR(VLOOKUP($A16,FILTRO!$A$5:$AW$2602,22,FALSE),0) -> 0 | Y16: =IFERROR(VLOOKUP($A16,FILTRO!$A$5:$AW$2602,23,FALSE),0) -> 0 | Z16: =IFERROR(VLOOKUP($A16,FILTRO!$A$5:$AW$2602,24,FALSE),0) -> 0 | AA16: =IFERROR(VLOOKUP($A16,FILTRO!$A$5:$AW$2602,25,FALSE),0) -> 0 | AB16: =IFERROR(VLOOKUP($A16,FILTRO!$A$5:$AW$2602,26,FALSE),0) -> 0 | AC16: =IFERROR(VLOOKUP($A16,FILTRO!$A$5:$AW$2602,27,FALSE),0) -> 0 | AD16: =IFERROR(VLOOKUP($A16,FILTRO!$A$5:$AW$2602,28,FALSE),0) -> 0 | CA16: * El número de Sexo Hombres y mujeres debe ser igual al total. | DA16: 1 | DB16: 0 | DE16: 0 | DF16: 0 | DG16: 0 | DH16: 0 | DI16: 0 | DJ16: 0 | DK16: 0 | DL16: 0 | DM16: 0 | DN16: 0 | DO16: 0 | DP16: 0 | DQ16: 0
A17: 01501060 | C17: MATRONA/ÓN | D17: 373 | E17: =IFERROR(VLOOKUP($A17,FILTRO!$A$5:$AW$2602,3,FALSE),0) -> 0 | F17: =IFERROR(VLOOKUP($A17,FILTRO!$A$5:$AW$2602,4,FALSE),0) -> 0 | G17: =IFERROR(VLOOKUP($A17,FILTRO!$A$5:$AW$2602,5,FALSE),0) -> 0 | H17: =IFERROR(VLOOKUP($A17,FILTRO!$A$5:$AW$2602,6,FALSE),0) -> 12 | I17: =IFERROR(VLOOKUP($A17,FILTRO!$A$5:$AW$2602,7,FALSE),0) -> 83 | J17: =IFERROR(VLOOKUP($A17,FILTRO!$A$5:$AW$2602,8,FALSE),0) -> 98 | K17: =IFERROR(VLOOKUP($A17,FILTRO!$A$5:$AW$2602,9,FALSE),0) -> 98 | L17: =IFERROR(VLOOKUP($A17,FILTRO!$A$5:$AW$2602,10,FALSE),0) -> 61 | M17: =IFERROR(VLOOKUP($A17,FILTRO!$A$5:$AW$2602,11,FALSE),0) -> 19 | N17: =IFERROR(VLOOKUP($A17,FILTRO!$A$5:$AW$2602,12,FALSE),0) -> 1 | O17: =IFERROR(VLOOKUP($A17,FILTRO!$A$5:$AW$2602,13,FALSE),0) -> 0 | P17: =IFERROR(VLOOKUP($A17,FILTRO!$A$5:$AW$2602,14,FALSE),0) -> 1 | Q17: =IFERROR(VLOOKUP($A17,FILTRO!$A$5:$AW$2602,15,FALSE),0) -> 0 | R17: =IFERROR(VLOOKUP($A17,FILTRO!$A$5:$AW$2602,16,FALSE),0) -> 0 | S17: =IFERROR(VLOOKUP($A17,FILTRO!$A$5:$AW$2602,17,FALSE),0) -> 0 | T17: =IFERROR(VLOOKUP($A17,FILTRO!$A$5:$AW$2602,18,FALSE),0) -> 0 | U17: =IFERROR(VLOOKUP($A17,FILTRO!$A$5:$AW$2602,19,FALSE),0) -> 0 | V17: =IFERROR(VLOOKUP($A17,FILTRO!$A$5:$AW$2602,20,FALSE),0) -> 0 | W17: =IFERROR(VLOOKUP($A17,FILTRO!$A$5:$AW$2602,21,FALSE),0) -> 373 | X17: =IFERROR(VLOOKUP($A17,FILTRO!$A$5:$AW$2602,22,FALSE),0) -> 0 | Y17: =IFERROR(VLOOKUP($A17,FILTRO!$A$5:$AW$2602,23,FALSE),0) -> 0 | Z17: =IFERROR(VLOOKUP($A17,FILTRO!$A$5:$AW$2602,24,FALSE),0) -> 0 | AA17: =IFERROR(VLOOKUP($A17,FILTRO!$A$5:$AW$2602,25,FALSE),0) -> 1 | AB17: =IFERROR(VLOOKUP($A17,FILTRO!$A$5:$AW$2602,26,FALSE),0) -> 0 | AC17: =IFERROR(VLOOKUP($A17,FILTRO!$A$5:$AW$2602,27,FALSE),0) -> 2 | AD17: =IFERROR(VLOOKUP($A17,FILTRO!$A$5:$AW$2602,28,FALSE),0) -> 21 | CA17: * El número de Sexo Hombres y mujeres debe ser igual al total. | DA17: 1 | DB17: 0 | DE17: 0 | DF17: 0 | DG17: 0 | DH17: 0 | DI17: 0 | DJ17: 0 | DK17: 0 | DL17: 0 | DM17: 0 | DN17: 0 | DO17: 0 | DP17: 0 | DQ17: 0
A18: 01501070 | B18: POST ABORTO | C18: MÉDICO/A | D18: 5 | E18: =IFERROR(VLOOKUP($A18,FILTRO!$A$5:$AW$2602,3,FALSE),0) -> 0 | F18: =IFERROR(VLOOKUP($A18,FILTRO!$A$5:$AW$2602,4,FALSE),0) -> 0 | G18: =IFERROR(VLOOKUP($A18,FILTRO!$A$5:$AW$2602,5,FALSE),0) -> 0 | H18: =IFERROR(VLOOKUP($A18,FILTRO!$A$5:$AW$2602,6,FALSE),0) -> 0 | I18: =IFERROR(VLOOKUP($A18,FILTRO!$A$5:$AW$2602,7,FALSE),0) -> 1 | J18: =IFERROR(VLOOKUP($A18,FILTRO!$A$5:$AW$2602,8,FALSE),0) -> 2 | K18: =IFERROR(VLOOKUP($A18,FILTRO!$A$5:$AW$2602,9,FALSE),0) -> 0 | L18: =IFERROR(VLOOKUP($A18,FILTRO!$A$5:$AW$2602,10,FALSE),0) -> 2 | M18: =IFERROR(VLOOKUP($A18,FILTRO!$A$5:$AW$2602,11,FALSE),0) -> 0 | N18: =IFERROR(VLOOKUP($A18,FILTRO!$A$5:$AW$2602,12,FALSE),0) -> 0 | O18: =IFERROR(VLOOKUP($A18,FILTRO!$A$5:$AW$2602,13,FALSE),0) -> 0 | P18: =IFERROR(VLOOKUP($A18,FILTRO!$A$5:$AW$2602,14,FALSE),0) -> 0 | Q18: =IFERROR(VLOOKUP($A18,FILTRO!$A$5:$AW$2602,15,FALSE),0) -> 0 | R18: =IFERROR(VLOOKUP($A18,FILTRO!$A$5:$AW$2602,16,FALSE),0) -> 0 | S18: =IFERROR(VLOOKUP($A18,FILTRO!$A$5:$AW$2602,17,FALSE),0) -> 0 | T18: =IFERROR(VLOOKUP($A18,FILTRO!$A$5:$AW$2602,18,FALSE),0) -> 0 | U18: =IFERROR(VLOOKUP($A18,FILTRO!$A$5:$AW$2602,19,FALSE),0) -> 0 | V18: =IFERROR(VLOOKUP($A18,FILTRO!$A$5:$AW$2602,20,FALSE),0) -> 0 | W18: =IFERROR(VLOOKUP($A18,FILTRO!$A$5:$AW$2602,21,FALSE),0) -> 5 | X18: =IFERROR(VLOOKUP($A18,FILTRO!$A$5:$AW$2602,22,FALSE),0) -> 0 | Y18: =IFERROR(VLOOKUP($A18,FILTRO!$A$5:$AW$2602,23,FALSE),0) -> 0 | Z18: =IFERROR(VLOOKUP($A18,FILTRO!$A$5:$AW$2602,24,FALSE),0) -> 0 | AA18: =IFERROR(VLOOKUP($A18,FILTRO!$A$5:$AW$2602,25,FALSE),0) -> 0 | AB18: =IFERROR(VLOOKUP($A18,FILTRO!$A$5:$AW$2602,26,FALSE),0) -> 0 | AC18: =IFERROR(VLOOKUP($A18,FILTRO!$A$5:$AW$2602,27,FALSE),0) -> 0 | AD18: =IFERROR(VLOOKUP($A18,FILTRO!$A$5:$AW$2602,28,FALSE),0) -> 0 | CA18: * El número de Sexo Hombres y mujeres debe ser igual al total. | DA18: 1 | DB18: 0 | DE18: 0 | DF18: 0 | DG18: 0 | DH18: 0 | DI18: 0 | DJ18: 0 | DK18: 0 | DL18: 0 | DM18: 0 | DN18: 0 | DO18: 0 | DP18: 0 | DQ18: 0
A19: 01501080 | C19: MATRONA/ÓN | D19: 172 | E19: =IFERROR(VLOOKUP($A19,FILTRO!$A$5:$AW$2602,3,FALSE),0) -> 0 | F19: =IFERROR(VLOOKUP($A19,FILTRO!$A$5:$AW$2602,4,FALSE),0) -> 0 | G19: =IFERROR(VLOOKUP($A19,FILTRO!$A$5:$AW$2602,5,FALSE),0) -> 0 | H19: =IFERROR(VLOOKUP($A19,FILTRO!$A$5:$AW$2602,6,FALSE),0) -> 10 | I19: =IFERROR(VLOOKUP($A19,FILTRO!$A$5:$AW$2602,7,FALSE),0) -> 32 | J19: =IFERROR(VLOOKUP($A19,FILTRO!$A$5:$AW$2602,8,FALSE),0) -> 31 | K19: =IFERROR(VLOOKUP($A19,FILTRO!$A$5:$AW$2602,9,FALSE),0) -> 46 | L19: =IFERROR(VLOOKUP($A19,FILTRO!$A$5:$AW$2602,10,FALSE),0) -> 39 | M19: =IFERROR(VLOOKUP($A19,FILTRO!$A$5:$AW$2602,11,FALSE),0) -> 12 | N19: =IFERROR(VLOOKUP($A19,FILTRO!$A$5:$AW$2602,12,FALSE),0) -> 2 | O19: =IFERROR(VLOOKUP($A19,FILTRO!$A$5:$AW$2602,13,FALSE),0) -> 0 | P19: =IFERROR(VLOOKUP($A19,FILTRO!$A$5:$AW$2602,14,FALSE),0) -> 0 | Q19: =IFERROR(VLOOKUP($A19,FILTRO!$A$5:$AW$2602,15,FALSE),0) -> 0 | R19: =IFERROR(VLOOKUP($A19,FILTRO!$A$5:$AW$2602,16,FALSE),0) -> 0 | S19: =IFERROR(VLOOKUP($A19,FILTRO!$A$5:$AW$2602,17,FALSE),0) -> 0 | T19: =IFERROR(VLOOKUP($A19,FILTRO!$A$5:$AW$2602,18,FALSE),0) -> 0 | U19: =IFERROR(VLOOKUP($A19,FILTRO!$A$5:$AW$2602,19,FALSE),0) -> 0 | V19: =IFERROR(VLOOKUP($A19,FILTRO!$A$5:$AW$2602,20,FALSE),0) -> 0 | W19: =IFERROR(VLOOKUP($A19,FILTRO!$A$5:$AW$2602,21,FALSE),0) -> 166 | X19: =IFERROR(VLOOKUP($A19,FILTRO!$A$5:$AW$2602,22,FALSE),0) -> 0 | Y19: =IFERROR(VLOOKUP($A19,FILTRO!$A$5:$AW$2602,23,FALSE),0) -> 0 | Z19: =IFERROR(VLOOKUP($A19,FILTRO!$A$5:$AW$2602,24,FALSE),0) -> 0 | AA19: =IFERROR(VLOOKUP($A19,FILTRO!$A$5:$AW$2602,25,FALSE),0) -> 0 | AB19: =IFERROR(VLOOKUP($A19,FILTRO!$A$5:$AW$2602,26,FALSE),0) -> 0 | AC19: =IFERROR(VLOOKUP($A19,FILTRO!$A$5:$AW$2602,27,FALSE),0) -> 4 | AD19: =IFERROR(VLOOKUP($A19,FILTRO!$A$5:$AW$2602,28,FALSE),0) -> 12 | CA19: * El número de Sexo Hombres y mujeres debe ser igual al total. | DA19: 1 | DB19: 0 | DE19: 0 | DF19: 0 | DG19: 0 | DH19: 0 | DI19: 0 | DJ19: 0 | DK19: 0 | DL19: 0 | DM19: 0 | DN19: 0 | DO19: 0 | DP19: 0 | DQ19: 0
A20: 01110106 | B20: PUÉRPERA CON RECIÉN NACIDO HASTA 10 DÍAS DE VIDA | C20: MÉDICO/A | D20: 38 | E20: =IFERROR(VLOOKUP($A20,FILTRO!$A$5:$AW$2602,3,FALSE),0) -> 0 | F20: =IFERROR(VLOOKUP($A20,FILTRO!$A$5:$AW$2602,4,FALSE),0) -> 0 | G20: =IFERROR(VLOOKUP($A20,FILTRO!$A$5:$AW$2602,5,FALSE),0) -> 0 | H20: =IFERROR(VLOOKUP($A20,FILTRO!$A$5:$AW$2602,6,FALSE),0) -> 2 | I20: =IFERROR(VLOOKUP($A20,FILTRO!$A$5:$AW$2602,7,FALSE),0) -> 8 | J20: =IFERROR(VLOOKUP($A20,FILTRO!$A$5:$AW$2602,8,FALSE),0) -> 10 | K20: =IFERROR(VLOOKUP($A20,FILTRO!$A$5:$AW$2602,9,FALSE),0) -> 7 | L20: =IFERROR(VLOOKUP($A20,FILTRO!$A$5:$AW$2602,10,FALSE),0) -> 6 | M20: =IFERROR(VLOOKUP($A20,FILTRO!$A$5:$AW$2602,11,FALSE),0) -> 5 | N20: =IFERROR(VLOOKUP($A20,FILTRO!$A$5:$AW$2602,12,FALSE),0) -> 0 | O20: =IFERROR(VLOOKUP($A20,FILTRO!$A$5:$AW$2602,13,FALSE),0) -> 0 | P20: =IFERROR(VLOOKUP($A20,FILTRO!$A$5:$AW$2602,14,FALSE),0) -> 0 | Q20: =IFERROR(VLOOKUP($A20,FILTRO!$A$5:$AW$2602,15,FALSE),0) -> 0 | R20: =IFERROR(VLOOKUP($A20,FILTRO!$A$5:$AW$2602,16,FALSE),0) -> 0 | S20: =IFERROR(VLOOKUP($A20,FILTRO!$A$5:$AW$2602,17,FALSE),0) -> 0 | T20: =IFERROR(VLOOKUP($A20,FILTRO!$A$5:$AW$2602,18,FALSE),0) -> 0 | U20: =IFERROR(VLOOKUP($A20,FILTRO!$A$5:$AW$2602,19,FALSE),0) -> 0 | V20: =IFERROR(VLOOKUP($A20,FILTRO!$A$5:$AW$2602,20,FALSE),0) -> 0 | W20: =IFERROR(VLOOKUP($A20,FILTRO!$A$5:$AW$2602,21,FALSE),0) -> 35 | X20: =IFERROR(VLOOKUP($A20,FILTRO!$A$5:$AW$2602,22,FALSE),0) -> 1 | Y20: =IFERROR(VLOOKUP($A20,FILTRO!$A$5:$AW$2602,23,FALSE),0) -> 19 | Z20: =IFERROR(VLOOKUP($A20,FILTRO!$A$5:$AW$2602,24,FALSE),0) -> 0 | AA20: =IFERROR(VLOOKUP($A20,FILTRO!$A$5:$AW$2602,25,FALSE),0) -> 0 | AB20: =IFERROR(VLOOKUP($A20,FILTRO!$A$5:$AW$2602,26,FALSE),0) -> 0 | AC20: =IFERROR(VLOOKUP($A20,FILTRO!$A$5:$AW$2602,27,FALSE),0) -> 1 | AD20: =IFERROR(VLOOKUP($A20,FILTRO!$A$5:$AW$2602,28,FALSE),0) -> 4 | CA20: * El número de Sexo Hombres y mujeres debe ser igual al total. | CD20: =IF(AND(C20<>0,'A05'!C81=""),"* No olvide registrar ingresos a control de salud de los respectivos RN, en REM A05-sección E. ","") ->  | DA20: 1 | DB20: 0 | DC20: 0 | DD20: 0 | DE20: 0 | DF20: 0 | DG20: 0 | DH20: 0 | DI20: 0 | DJ20: 0 | DK20: 0 | DL20: 0 | DM20: 0 | DN20: 0 | DO20: 0 | DP20: 0 | DQ20: 0
A21: 01110107 | C21: MATRONA/ÓN | D21: 2937 | E21: =IFERROR(VLOOKUP($A21,FILTRO!$A$5:$AW$2602,3,FALSE),0) -> 0 | F21: =IFERROR(VLOOKUP($A21,FILTRO!$A$5:$AW$2602,4,FALSE),0) -> 0 | G21: =IFERROR(VLOOKUP($A21,FILTRO!$A$5:$AW$2602,5,FALSE),0) -> 6 | H21: =IFERROR(VLOOKUP($A21,FILTRO!$A$5:$AW$2602,6,FALSE),0) -> 150 | I21: =IFERROR(VLOOKUP($A21,FILTRO!$A$5:$AW$2602,7,FALSE),0) -> 596 | J21: =IFERROR(VLOOKUP($A21,FILTRO!$A$5:$AW$2602,8,FALSE),0) -> 876 | K21: =IFERROR(VLOOKUP($A21,FILTRO!$A$5:$AW$2602,9,FALSE),0) -> 788 | L21: =IFERROR(VLOOKUP($A21,FILTRO!$A$5:$AW$2602,10,FALSE),0) -> 401 | M21: =IFERROR(VLOOKUP($A21,FILTRO!$A$5:$AW$2602,11,FALSE),0) -> 114 | N21: =IFERROR(VLOOKUP($A21,FILTRO!$A$5:$AW$2602,12,FALSE),0) -> 5 | O21: =IFERROR(VLOOKUP($A21,FILTRO!$A$5:$AW$2602,13,FALSE),0) -> 0 | P21: =IFERROR(VLOOKUP($A21,FILTRO!$A$5:$AW$2602,14,FALSE),0) -> 1 | Q21: =IFERROR(VLOOKUP($A21,FILTRO!$A$5:$AW$2602,15,FALSE),0) -> 0 | R21: =IFERROR(VLOOKUP($A21,FILTRO!$A$5:$AW$2602,16,FALSE),0) -> 0 | S21: =IFERROR(VLOOKUP($A21,FILTRO!$A$5:$AW$2602,17,FALSE),0) -> 0 | T21: =IFERROR(VLOOKUP($A21,FILTRO!$A$5:$AW$2602,18,FALSE),0) -> 0 | U21: =IFERROR(VLOOKUP($A21,FILTRO!$A$5:$AW$2602,19,FALSE),0) -> 0 | V21: =IFERROR(VLOOKUP($A21,FILTRO!$A$5:$AW$2602,20,FALSE),0) -> 0 | W21: =IFERROR(VLOOKUP($A21,FILTRO!$A$5:$AW$2602,21,FALSE),0) -> 2901 | X21: =IFERROR(VLOOKUP($A21,FILTRO!$A$5:$AW$2602,22,FALSE),0) -> 525 | Y21: =IFERROR(VLOOKUP($A21,FILTRO!$A$5:$AW$2602,23,FALSE),0) -> 1349 | Z21: =IFERROR(VLOOKUP($A21,FILTRO!$A$5:$AW$2602,24,FALSE),0) -> 0 | AA21: =IFERROR(VLOOKUP($A21,FILTRO!$A$5:$AW$2602,25,FALSE),0) -> 2 | AB21: =IFERROR(VLOOKUP($A21,FILTRO!$A$5:$AW$2602,26,FALSE),0) -> 1 | AC21: =IFERROR(VLOOKUP($A21,FILTRO!$A$5:$AW$2602,27,FALSE),0) -> 26 | AD21: =IFERROR(VLOOKUP($A21,FILTRO!$A$5:$AW$2602,28,FALSE),0) -> 184 | CA21: * El número de Sexo Hombres y mujeres debe ser igual al total. | CD21: =IF(AND(C21<>0,'A05'!C81=""),"* No olvide registrar ingresos a control de salud de los respectivos RN, en REM A05-sección E. ","") ->  | DA21: 1 | DB21: 0 | DC21: 0 | DD21: 0 | DE21: 0 | DF21: 0 | DG21: 0 | DH21: 0 | DI21: 0 | DJ21: 0 | DK21: 0 | DL21: 0 | DM21: 0 | DN21: 0 | DO21: 0 | DP21: 0 | DQ21: 0
A22: 01080030 | B22: PUÉRPERA CON RECIÉN NACIDO ENTRE 11 y 28 DÍAS | C22: MÉDICO/A | D22: 5 | E22: =IFERROR(VLOOKUP($A22,FILTRO!$A$5:$AW$2602,3,FALSE),0) -> 0 | F22: =IFERROR(VLOOKUP($A22,FILTRO!$A$5:$AW$2602,4,FALSE),0) -> 0 | G22: =IFERROR(VLOOKUP($A22,FILTRO!$A$5:$AW$2602,5,FALSE),0) -> 0 | H22: =IFERROR(VLOOKUP($A22,FILTRO!$A$5:$AW$2602,6,FALSE),0) -> 0 | I22: =IFERROR(VLOOKUP($A22,FILTRO!$A$5:$AW$2602,7,FALSE),0) -> 1 | J22: =IFERROR(VLOOKUP($A22,FILTRO!$A$5:$AW$2602,8,FALSE),0) -> 2 | K22: =IFERROR(VLOOKUP($A22,FILTRO!$A$5:$AW$2602,9,FALSE),0) -> 2 | L22: =IFERROR(VLOOKUP($A22,FILTRO!$A$5:$AW$2602,10,FALSE),0) -> 0 | M22: =IFERROR(VLOOKUP($A22,FILTRO!$A$5:$AW$2602,11,FALSE),0) -> 0 | N22: =IFERROR(VLOOKUP($A22,FILTRO!$A$5:$AW$2602,12,FALSE),0) -> 0 | O22: =IFERROR(VLOOKUP($A22,FILTRO!$A$5:$AW$2602,13,FALSE),0) -> 0 | P22: =IFERROR(VLOOKUP($A22,FILTRO!$A$5:$AW$2602,14,FALSE),0) -> 0 | Q22: =IFERROR(VLOOKUP($A22,FILTRO!$A$5:$AW$2602,15,FALSE),0) -> 0 | R22: =IFERROR(VLOOKUP($A22,FILTRO!$A$5:$AW$2602,16,FALSE),0) -> 0 | S22: =IFERROR(VLOOKUP($A22,FILTRO!$A$5:$AW$2602,17,FALSE),0) -> 0 | T22: =IFERROR(VLOOKUP($A22,FILTRO!$A$5:$AW$2602,18,FALSE),0) -> 0 | U22: =IFERROR(VLOOKUP($A22,FILTRO!$A$5:$AW$2602,19,FALSE),0) -> 0 | V22: =IFERROR(VLOOKUP($A22,FILTRO!$A$5:$AW$2602,20,FALSE),0) -> 0 | W22: =IFERROR(VLOOKUP($A22,FILTRO!$A$5:$AW$2602,21,FALSE),0) -> 10 | X22: =IFERROR(VLOOKUP($A22,FILTRO!$A$5:$AW$2602,22,FALSE),0) -> 1 | Y22: =IFERROR(VLOOKUP($A22,FILTRO!$A$5:$AW$2602,23,FALSE),0) -> 8 | Z22: =IFERROR(VLOOKUP($A22,FILTRO!$A$5:$AW$2602,24,FALSE),0) -> 0 | AA22: =IFERROR(VLOOKUP($A22,FILTRO!$A$5:$AW$2602,25,FALSE),0) -> 0 | AB22: =IFERROR(VLOOKUP($A22,FILTRO!$A$5:$AW$2602,26,FALSE),0) -> 0 | AC22: =IFERROR(VLOOKUP($A22,FILTRO!$A$5:$AW$2602,27,FALSE),0) -> 0 | AD22: =IFERROR(VLOOKUP($A22,FILTRO!$A$5:$AW$2602,28,FALSE),0) -> 3 | CA22: * El número de Sexo Hombres y mujeres debe ser igual al total. | CD22: =IF(AND(C22<>0,'A05'!C81=""),"* No olvide registrar ingresos a control de salud de los respectivos RN, en REM A05-sección E. ","") ->  | DA22: 1 | DB22: 0 | DC22: 0 | DD22: 0 | DE22: 0 | DF22: 0 | DG22: 0 | DH22: 0 | DI22: 0 | DJ22: 0 | DK22: 0 | DL22: 0 | DM22: 0 | DN22: 0 | DO22: 0 | DP22: 0 | DQ22: 0
A23: 01080040 | C23: MATRONA/ÓN | D23: 1492 | E23: =IFERROR(VLOOKUP($A23,FILTRO!$A$5:$AW$2602,3,FALSE),0) -> 0 | F23: =IFERROR(VLOOKUP($A23,FILTRO!$A$5:$AW$2602,4,FALSE),0) -> 0 | G23: =IFERROR(VLOOKUP($A23,FILTRO!$A$5:$AW$2602,5,FALSE),0) -> 1 | H23: =IFERROR(VLOOKUP($A23,FILTRO!$A$5:$AW$2602,6,FALSE),0) -> 90 | I23: =IFERROR(VLOOKUP($A23,FILTRO!$A$5:$AW$2602,7,FALSE),0) -> 293 | J23: =IFERROR(VLOOKUP($A23,FILTRO!$A$5:$AW$2602,8,FALSE),0) -> 434 | K23: =IFERROR(VLOOKUP($A23,FILTRO!$A$5:$AW$2602,9,FALSE),0) -> 387 | L23: =IFERROR(VLOOKUP($A23,FILTRO!$A$5:$AW$2602,10,FALSE),0) -> 216 | M23: =IFERROR(VLOOKUP($A23,FILTRO!$A$5:$AW$2602,11,FALSE),0) -> 69 | N23: =IFERROR(VLOOKUP($A23,FILTRO!$A$5:$AW$2602,12,FALSE),0) -> 1 | O23: =IFERROR(VLOOKUP($A23,FILTRO!$A$5:$AW$2602,13,FALSE),0) -> 0 | P23: =IFERROR(VLOOKUP($A23,FILTRO!$A$5:$AW$2602,14,FALSE),0) -> 1 | Q23: =IFERROR(VLOOKUP($A23,FILTRO!$A$5:$AW$2602,15,FALSE),0) -> 0 | R23: =IFERROR(VLOOKUP($A23,FILTRO!$A$5:$AW$2602,16,FALSE),0) -> 0 | S23: =IFERROR(VLOOKUP($A23,FILTRO!$A$5:$AW$2602,17,FALSE),0) -> 0 | T23: =IFERROR(VLOOKUP($A23,FILTRO!$A$5:$AW$2602,18,FALSE),0) -> 0 | U23: =IFERROR(VLOOKUP($A23,FILTRO!$A$5:$AW$2602,19,FALSE),0) -> 0 | V23: =IFERROR(VLOOKUP($A23,FILTRO!$A$5:$AW$2602,20,FALSE),0) -> 0 | W23: =IFERROR(VLOOKUP($A23,FILTRO!$A$5:$AW$2602,21,FALSE),0) -> 1450 | X23: =IFERROR(VLOOKUP($A23,FILTRO!$A$5:$AW$2602,22,FALSE),0) -> 212 | Y23: =IFERROR(VLOOKUP($A23,FILTRO!$A$5:$AW$2602,23,FALSE),0) -> 510 | Z23: =IFERROR(VLOOKUP($A23,FILTRO!$A$5:$AW$2602,24,FALSE),0) -> 0 | AA23: =IFERROR(VLOOKUP($A23,FILTRO!$A$5:$AW$2602,25,FALSE),0) -> 3 | AB23: =IFERROR(VLOOKUP($A23,FILTRO!$A$5:$AW$2602,26,FALSE),0) -> 0 | AC23: =IFERROR(VLOOKUP($A23,FILTRO!$A$5:$AW$2602,27,FALSE),0) -> 14 | AD23: =IFERROR(VLOOKUP($A23,FILTRO!$A$5:$AW$2602,28,FALSE),0) -> 69 | CA23: * El número de Sexo Hombres y mujeres debe ser igual al total. | CD23: =IF(AND(C23<>0,'A05'!C81=""),"* No olvide registrar ingresos a control de salud de los respectivos RN, en REM A05-sección E. ","") ->  | DA23: 1 | DB23: 0 | DC23: 0 | DD23: 0 | DE23: 0 | DF23: 0 | DG23: 0 | DH23: 0 | DI23: 0 | DJ23: 0 | DK23: 0 | DL23: 0 | DM23: 0 | DN23: 0 | DO23: 0 | DP23: 0 | DQ23: 0
A24: 01501090 | B24: RECIÉN NACIDO HASTA 10 DÍAS DE VIDA | C24: MÉDICO | D24: =SUM(E24) -> 0 | E24: =IFERROR(VLOOKUP($A24,FILTRO!$A$5:$AW$2602,3,FALSE),0) -> 0 | F24: =IFERROR(VLOOKUP($A24,FILTRO!$A$5:$AW$2602,4,FALSE),0) -> 0 | G24: =IFERROR(VLOOKUP($A24,FILTRO!$A$5:$AW$2602,5,FALSE),0) -> 0 | H24: =IFERROR(VLOOKUP($A24,FILTRO!$A$5:$AW$2602,6,FALSE),0) -> 0 | I24: =IFERROR(VLOOKUP($A24,FILTRO!$A$5:$AW$2602,7,FALSE),0) -> 0 | J24: =IFERROR(VLOOKUP($A24,FILTRO!$A$5:$AW$2602,8,FALSE),0) -> 0 | K24: =IFERROR(VLOOKUP($A24,FILTRO!$A$5:$AW$2602,9,FALSE),0) -> 0 | L24: =IFERROR(VLOOKUP($A24,FILTRO!$A$5:$AW$2602,10,FALSE),0) -> 0 | M24: =IFERROR(VLOOKUP($A24,FILTRO!$A$5:$AW$2602,11,FALSE),0) -> 0 | N24: =IFERROR(VLOOKUP($A24,FILTRO!$A$5:$AW$2602,12,FALSE),0) -> 0 | O24: =IFERROR(VLOOKUP($A24,FILTRO!$A$5:$AW$2602,13,FALSE),0) -> 0 | P24: =IFERROR(VLOOKUP($A24,FILTRO!$A$5:$AW$2602,14,FALSE),0) -> 0 | Q24: =IFERROR(VLOOKUP($A24,FILTRO!$A$5:$AW$2602,15,FALSE),0) -> 0 | R24: =IFERROR(VLOOKUP($A24,FILTRO!$A$5:$AW$2602,16,FALSE),0) -> 0 | S24: =IFERROR(VLOOKUP($A24,FILTRO!$A$5:$AW$2602,17,FALSE),0) -> 0 | T24: =IFERROR(VLOOKUP($A24,FILTRO!$A$5:$AW$2602,18,FALSE),0) -> 0 | U24: =IFERROR(VLOOKUP($A24,FILTRO!$A$5:$AW$2602,19,FALSE),0) -> 0 | V24: =IFERROR(VLOOKUP($A24,FILTRO!$A$5:$AW$2602,20,FALSE),0) -> 0 | W24: =IFERROR(VLOOKUP($A24,FILTRO!$A$5:$AW$2602,21,FALSE),0) -> 0 | X24: =IFERROR(VLOOKUP($A24,FILTRO!$A$5:$AW$2602,22,FALSE),0) -> 0 | Y24: =IFERROR(VLOOKUP($A24,FILTRO!$A$5:$AW$2602,23,FALSE),0) -> 0 | Z24: =IFERROR(VLOOKUP($A24,FILTRO!$A$5:$AW$2602,24,FALSE),0) -> 0 | AA24: =IFERROR(VLOOKUP($A24,FILTRO!$A$5:$AW$2602,25,FALSE),0) -> 0 | AB24: =IFERROR(VLOOKUP($A24,FILTRO!$A$5:$AW$2602,26,FALSE),0) -> 0 | AC24: =IFERROR(VLOOKUP($A24,FILTRO!$A$5:$AW$2602,27,FALSE),0) -> 0 | AD24: =IFERROR(VLOOKUP($A24,FILTRO!$A$5:$AW$2602,28,FALSE),0) -> 0 | CA24: * El número de Sexo Hombres y mujeres debe ser igual al total. | DA24: 1 | DB24: 0 | DE24: 0 | DF24: 0 | DG24: 0 | DH24: 0 | DI24: 0 | DJ24: 0 | DK24: 0 | DL24: 0 | DM24: 0 | DN24: 0 | DO24: 0 | DP24: 0 | DQ24: 0
A25: 01502000 | C25: MATRONA /ÓN | D25: =SUM(E25) -> 1085 | E25: =IFERROR(VLOOKUP($A25,FILTRO!$A$5:$AW$2602,3,FALSE),0) -> 1085 | F25: =IFERROR(VLOOKUP($A25,FILTRO!$A$5:$AW$2602,4,FALSE),0) -> 0 | G25: =IFERROR(VLOOKUP($A25,FILTRO!$A$5:$AW$2602,5,FALSE),0) -> 0 | H25: =IFERROR(VLOOKUP($A25,FILTRO!$A$5:$AW$2602,6,FALSE),0) -> 0 | I25: =IFERROR(VLOOKUP($A25,FILTRO!$A$5:$AW$2602,7,FALSE),0) -> 0 | J25: =IFERROR(VLOOKUP($A25,FILTRO!$A$5:$AW$2602,8,FALSE),0) -> 0 | K25: =IFERROR(VLOOKUP($A25,FILTRO!$A$5:$AW$2602,9,FALSE),0) -> 0 | L25: =IFERROR(VLOOKUP($A25,FILTRO!$A$5:$AW$2602,10,FALSE),0) -> 0 | M25: =IFERROR(VLOOKUP($A25,FILTRO!$A$5:$AW$2602,11,FALSE),0) -> 0 | N25: =IFERROR(VLOOKUP($A25,FILTRO!$A$5:$AW$2602,12,FALSE),0) -> 0 | O25: =IFERROR(VLOOKUP($A25,FILTRO!$A$5:$AW$2602,13,FALSE),0) -> 0 | P25: =IFERROR(VLOOKUP($A25,FILTRO!$A$5:$AW$2602,14,FALSE),0) -> 0 | Q25: =IFERROR(VLOOKUP($A25,FILTRO!$A$5:$AW$2602,15,FALSE),0) -> 0 | R25: =IFERROR(VLOOKUP($A25,FILTRO!$A$5:$AW$2602,16,FALSE),0) -> 0 | S25: =IFERROR(VLOOKUP($A25,FILTRO!$A$5:$AW$2602,17,FALSE),0) -> 0 | T25: =IFERROR(VLOOKUP($A25,FILTRO!$A$5:$AW$2602,18,FALSE),0) -> 0 | U25: =IFERROR(VLOOKUP($A25,FILTRO!$A$5:$AW$2602,19,FALSE),0) -> 0 | V25: =IFERROR(VLOOKUP($A25,FILTRO!$A$5:$AW$2602,20,FALSE),0) -> 482 | W25: =IFERROR(VLOOKUP($A25,FILTRO!$A$5:$AW$2602,21,FALSE),0) -> 581 | X25: =IFERROR(VLOOKUP($A25,FILTRO!$A$5:$AW$2602,22,FALSE),0) -> 249 | Y25: =IFERROR(VLOOKUP($A25,FILTRO!$A$5:$AW$2602,23,FALSE),0) -> 523 | Z25: =IFERROR(VLOOKUP($A25,FILTRO!$A$5:$AW$2602,24,FALSE),0) -> 0 | AA25: =IFERROR(VLOOKUP($A25,FILTRO!$A$5:$AW$2602,25,FALSE),0) -> 1 | AB25: =IFERROR(VLOOKUP($A25,FILTRO!$A$5:$AW$2602,26,FALSE),0) -> 0 | AC25: =IFERROR(VLOOKUP($A25,FILTRO!$A$5:$AW$2602,27,FALSE),0) -> 2 | AD25: =IFERROR(VLOOKUP($A25,FILTRO!$A$5:$AW$2602,28,FALSE),0) -> 15 | CA25: * El número de Sexo Hombres y mujeres debe ser igual al total. | DA25: 1 | DB25: 0 | DE25: 0 | DF25: 0 | DG25: 0 | DH25: 0 | DI25: 0 | DJ25: 0 | DK25: 0 | DL25: 0 | DM25: 0 | DN25: 0 | DO25: 0 | DP25: 0 | DQ25: 0
A26: 01502010 | B26: RECIÉN NACIDO ENTRE 11 y 28 DÍAS | C26: MÉDICO | D26: =SUM(E26) -> 1 | E26: =IFERROR(VLOOKUP($A26,FILTRO!$A$5:$AW$2602,3,FALSE),0) -> 1 | F26: =IFERROR(VLOOKUP($A26,FILTRO!$A$5:$AW$2602,4,FALSE),0) -> 0 | G26: =IFERROR(VLOOKUP($A26,FILTRO!$A$5:$AW$2602,5,FALSE),0) -> 0 | H26: =IFERROR(VLOOKUP($A26,FILTRO!$A$5:$AW$2602,6,FALSE),0) -> 0 | I26: =IFERROR(VLOOKUP($A26,FILTRO!$A$5:$AW$2602,7,FALSE),0) -> 0 | J26: =IFERROR(VLOOKUP($A26,FILTRO!$A$5:$AW$2602,8,FALSE),0) -> 0 | K26: =IFERROR(VLOOKUP($A26,FILTRO!$A$5:$AW$2602,9,FALSE),0) -> 0 | L26: =IFERROR(VLOOKUP($A26,FILTRO!$A$5:$AW$2602,10,FALSE),0) -> 0 | M26: =IFERROR(VLOOKUP($A26,FILTRO!$A$5:$AW$2602,11,FALSE),0) -> 0 | N26: =IFERROR(VLOOKUP($A26,FILTRO!$A$5:$AW$2602,12,FALSE),0) -> 0 | O26: =IFERROR(VLOOKUP($A26,FILTRO!$A$5:$AW$2602,13,FALSE),0) -> 0 | P26: =IFERROR(VLOOKUP($A26,FILTRO!$A$5:$AW$2602,14,FALSE),0) -> 0 | Q26: =IFERROR(VLOOKUP($A26,FILTRO!$A$5:$AW$2602,15,FALSE),0) -> 0 | R26: =IFERROR(VLOOKUP($A26,FILTRO!$A$5:$AW$2602,16,FALSE),0) -> 0 | S26: =IFERROR(VLOOKUP($A26,FILTRO!$A$5:$AW$2602,17,FALSE),0) -> 0 | T26: =IFERROR(VLOOKUP($A26,FILTRO!$A$5:$AW$2602,18,FALSE),0) -> 0 | U26: =IFERROR(VLOOKUP($A26,FILTRO!$A$5:$AW$2602,19,FALSE),0) -> 0 | V26: =IFERROR(VLOOKUP($A26,FILTRO!$A$5:$AW$2602,20,FALSE),0) -> 0 | W26: =IFERROR(VLOOKUP($A26,FILTRO!$A$5:$AW$2602,21,FALSE),0) -> 1 | X26: =IFERROR(VLOOKUP($A26,FILTRO!$A$5:$AW$2602,22,FALSE),0) -> 0 | Y26: =IFERROR(VLOOKUP($A26,FILTRO!$A$5:$AW$2602,23,FALSE),0) -> 0 | Z26: =IFERROR(VLOOKUP($A26,FILTRO!$A$5:$AW$2602,24,FALSE),0) -> 0 | AA26: =IFERROR(VLOOKUP($A26,FILTRO!$A$5:$AW$2602,25,FALSE),0) -> 0 | AB26: =IFERROR(VLOOKUP($A26,FILTRO!$A$5:$AW$2602,26,FALSE),0) -> 0 | AC26: =IFERROR(VLOOKUP($A26,FILTRO!$A$5:$AW$2602,27,FALSE),0) -> 0 | AD26: =IFERROR(VLOOKUP($A26,FILTRO!$A$5:$AW$2602,28,FALSE),0) -> 0 | CA26: * El número de Sexo Hombres y mujeres debe ser igual al total. | DA26: 1 | DB26: 0 | DE26: 0 | DF26: 0 | DG26: 0 | DH26: 0 | DI26: 0 | DJ26: 0 | DK26: 0 | DL26: 0 | DM26: 0 | DN26: 0 | DO26: 0 | DP26: 0 | DQ26: 0
A27: 01502020 | C27: MATRONA /ÓN | D27: =SUM(E27) -> 462 | E27: =IFERROR(VLOOKUP($A27,FILTRO!$A$5:$AW$2602,3,FALSE),0) -> 462 | F27: =IFERROR(VLOOKUP($A27,FILTRO!$A$5:$AW$2602,4,FALSE),0) -> 0 | G27: =IFERROR(VLOOKUP($A27,FILTRO!$A$5:$AW$2602,5,FALSE),0) -> 0 | H27: =IFERROR(VLOOKUP($A27,FILTRO!$A$5:$AW$2602,6,FALSE),0) -> 0 | I27: =IFERROR(VLOOKUP($A27,FILTRO!$A$5:$AW$2602,7,FALSE),0) -> 0 | J27: =IFERROR(VLOOKUP($A27,FILTRO!$A$5:$AW$2602,8,FALSE),0) -> 0 | K27: =IFERROR(VLOOKUP($A27,FILTRO!$A$5:$AW$2602,9,FALSE),0) -> 0 | L27: =IFERROR(VLOOKUP($A27,FILTRO!$A$5:$AW$2602,10,FALSE),0) -> 0 | M27: =IFERROR(VLOOKUP($A27,FILTRO!$A$5:$AW$2602,11,FALSE),0) -> 0 | N27: =IFERROR(VLOOKUP($A27,FILTRO!$A$5:$AW$2602,12,FALSE),0) -> 0 | O27: =IFERROR(VLOOKUP($A27,FILTRO!$A$5:$AW$2602,13,FALSE),0) -> 0 | P27: =IFERROR(VLOOKUP($A27,FILTRO!$A$5:$AW$2602,14,FALSE),0) -> 0 | Q27: =IFERROR(VLOOKUP($A27,FILTRO!$A$5:$AW$2602,15,FALSE),0) -> 0 | R27: =IFERROR(VLOOKUP($A27,FILTRO!$A$5:$AW$2602,16,FALSE),0) -> 0 | S27: =IFERROR(VLOOKUP($A27,FILTRO!$A$5:$AW$2602,17,FALSE),0) -> 0 | T27: =IFERROR(VLOOKUP($A27,FILTRO!$A$5:$AW$2602,18,FALSE),0) -> 0 | U27: =IFERROR(VLOOKUP($A27,FILTRO!$A$5:$AW$2602,19,FALSE),0) -> 0 | V27: =IFERROR(VLOOKUP($A27,FILTRO!$A$5:$AW$2602,20,FALSE),0) -> 204 | W27: =IFERROR(VLOOKUP($A27,FILTRO!$A$5:$AW$2602,21,FALSE),0) -> 251 | X27: =IFERROR(VLOOKUP($A27,FILTRO!$A$5:$AW$2602,22,FALSE),0) -> 77 | Y27: =IFERROR(VLOOKUP($A27,FILTRO!$A$5:$AW$2602,23,FALSE),0) -> 139 | Z27: =IFERROR(VLOOKUP($A27,FILTRO!$A$5:$AW$2602,24,FALSE),0) -> 1 | AA27: =IFERROR(VLOOKUP($A27,FILTRO!$A$5:$AW$2602,25,FALSE),0) -> 3 | AB27: =IFERROR(VLOOKUP($A27,FILTRO!$A$5:$AW$2602,26,FALSE),0) -> 1 | AC27: =IFERROR(VLOOKUP($A27,FILTRO!$A$5:$AW$2602,27,FALSE),0) -> 1 | AD27: =IFERROR(VLOOKUP($A27,FILTRO!$A$5:$AW$2602,28,FALSE),0) -> 9 | CA27: * El número de Sexo Hombres y mujeres debe ser igual al total. | DA27: 1 | DB27: 0 | DE27: 0 | DF27: 0 | DG27: 0 | DH27: 0 | DI27: 0 | DJ27: 0 | DK27: 0 | DL27: 0 | DM27: 0 | DN27: 0 | DO27: 0 | DP27: 0 | DQ27: 0
A28: 01010601 | B28: GINECOLÓGICO | C28: MÉDICO/A | D28: =SUM(G28:U28) -> 1268 | E28: =IFERROR(VLOOKUP($A28,FILTRO!$A$5:$AW$2602,3,FALSE),0) -> 0 | F28: =IFERROR(VLOOKUP($A28,FILTRO!$A$5:$AW$2602,4,FALSE),0) -> 0 | G28: =IFERROR(VLOOKUP($A28,FILTRO!$A$5:$AW$2602,5,FALSE),0) -> 35 | H28: =IFERROR(VLOOKUP($A28,FILTRO!$A$5:$AW$2602,6,FALSE),0) -> 84 | I28: =IFERROR(VLOOKUP($A28,FILTRO!$A$5:$AW$2602,7,FALSE),0) -> 72 | J28: =IFERROR(VLOOKUP($A28,FILTRO!$A$5:$AW$2602,8,FALSE),0) -> 97 | K28: =IFERROR(VLOOKUP($A28,FILTRO!$A$5:$AW$2602,9,FALSE),0) -> 162 | L28: =IFERROR(VLOOKUP($A28,FILTRO!$A$5:$AW$2602,10,FALSE),0) -> 160 | M28: =IFERROR(VLOOKUP($A28,FILTRO!$A$5:$AW$2602,11,FALSE),0) -> 173 | N28: =IFERROR(VLOOKUP($A28,FILTRO!$A$5:$AW$2602,12,FALSE),0) -> 130 | O28: =IFERROR(VLOOKUP($A28,FILTRO!$A$5:$AW$2602,13,FALSE),0) -> 109 | P28: =IFERROR(VLOOKUP($A28,FILTRO!$A$5:$AW$2602,14,FALSE),0) -> 104 | Q28: =IFERROR(VLOOKUP($A28,FILTRO!$A$5:$AW$2602,15,FALSE),0) -> 43 | R28: =IFERROR(VLOOKUP($A28,FILTRO!$A$5:$AW$2602,16,FALSE),0) -> 42 | S28: =IFERROR(VLOOKUP($A28,FILTRO!$A$5:$AW$2602,17,FALSE),0) -> 27 | T28: =IFERROR(VLOOKUP($A28,FILTRO!$A$5:$AW$2602,18,FALSE),0) -> 21 | U28: =IFERROR(VLOOKUP($A28,FILTRO!$A$5:$AW$2602,19,FALSE),0) -> 9 | V28: =IFERROR(VLOOKUP($A28,FILTRO!$A$5:$AW$2602,20,FALSE),0) -> 0 | W28: =IFERROR(VLOOKUP($A28,FILTRO!$A$5:$AW$2602,21,FALSE),0) -> 1343 | X28: =IFERROR(VLOOKUP($A28,FILTRO!$A$5:$AW$2602,22,FALSE),0) -> 0 | Y28: =IFERROR(VLOOKUP($A28,FILTRO!$A$5:$AW$2602,23,FALSE),0) -> 0 | Z28: =IFERROR(VLOOKUP($A28,FILTRO!$A$5:$AW$2602,24,FALSE),0) -> 0 | AA28: =IFERROR(VLOOKUP($A28,FILTRO!$A$5:$AW$2602,25,FALSE),0) -> 0 | AB28: =IFERROR(VLOOKUP($A28,FILTRO!$A$5:$AW$2602,26,FALSE),0) -> 0 | AC28: =IFERROR(VLOOKUP($A28,FILTRO!$A$5:$AW$2602,27,FALSE),0) -> 0 | AD28: =IFERROR(VLOOKUP($A28,FILTRO!$A$5:$AW$2602,28,FALSE),0) -> 68 | CA28: * El número de Sexo Hombres y mujeres debe ser igual al total. | DA28: 1 | DB28: 0 | DE28: 0 | DF28: 0 | DG28: 0 | DH28: 0 | DI28: 0 | DJ28: 0 | DK28: 0 | DL28: 0 | DM28: 0 | DN28: 0 | DO28: 0 | DP28: 0 | DQ28: 0
A29: 01010603 | C29: MATRONA/ÓN | D29: =SUM(G29:U29) -> 47231 | E29: =IFERROR(VLOOKUP($A29,FILTRO!$A$5:$AW$2602,3,FALSE),0) -> 0 | F29: =IFERROR(VLOOKUP($A29,FILTRO!$A$5:$AW$2602,4,FALSE),0) -> 0 | G29: =IFERROR(VLOOKUP($A29,FILTRO!$A$5:$AW$2602,5,FALSE),0) -> 278 | H29: =IFERROR(VLOOKUP($A29,FILTRO!$A$5:$AW$2602,6,FALSE),0) -> 629 | I29: =IFERROR(VLOOKUP($A29,FILTRO!$A$5:$AW$2602,7,FALSE),0) -> 2085 | J29: =IFERROR(VLOOKUP($A29,FILTRO!$A$5:$AW$2602,8,FALSE),0) -> 3928 | K29: =IFERROR(VLOOKUP($A29,FILTRO!$A$5:$AW$2602,9,FALSE),0) -> 4836 | L29: =IFERROR(VLOOKUP($A29,FILTRO!$A$5:$AW$2602,10,FALSE),0) -> 4950 | M29: =IFERROR(VLOOKUP($A29,FILTRO!$A$5:$AW$2602,11,FALSE),0) -> 5559 | N29: =IFERROR(VLOOKUP($A29,FILTRO!$A$5:$AW$2602,12,FALSE),0) -> 5726 | O29: =IFERROR(VLOOKUP($A29,FILTRO!$A$5:$AW$2602,13,FALSE),0) -> 5891 | P29: =IFERROR(VLOOKUP($A29,FILTRO!$A$5:$AW$2602,14,FALSE),0) -> 5303 | Q29: =IFERROR(VLOOKUP($A29,FILTRO!$A$5:$AW$2602,15,FALSE),0) -> 4394 | R29: =IFERROR(VLOOKUP($A29,FILTRO!$A$5:$AW$2602,16,FALSE),0) -> 2203 | S29: =IFERROR(VLOOKUP($A29,FILTRO!$A$5:$AW$2602,17,FALSE),0) -> 916 | T29: =IFERROR(VLOOKUP($A29,FILTRO!$A$5:$AW$2602,18,FALSE),0) -> 365 | U29: =IFERROR(VLOOKUP($A29,FILTRO!$A$5:$AW$2602,19,FALSE),0) -> 168 | V29: =IFERROR(VLOOKUP($A29,FILTRO!$A$5:$AW$2602,20,FALSE),0) -> 0 | W29: =IFERROR(VLOOKUP($A29,FILTRO!$A$5:$AW$2602,21,FALSE),0) -> 46599 | X29: =IFERROR(VLOOKUP($A29,FILTRO!$A$5:$AW$2602,22,FALSE),0) -> 0 | Y29: =IFERROR(VLOOKUP($A29,FILTRO!$A$5:$AW$2602,23,FALSE),0) -> 0 | Z29: =IFERROR(VLOOKUP($A29,FILTRO!$A$5:$AW$2602,24,FALSE),0) -> 38 | AA29: =IFERROR(VLOOKUP($A29,FILTRO!$A$5:$AW$2602,25,FALSE),0) -> 7 | AB29: =IFERROR(VLOOKUP($A29,FILTRO!$A$5:$AW$2602,26,FALSE),0) -> 2 | AC29: =IFERROR(VLOOKUP($A29,FILTRO!$A$5:$AW$2602,27,FALSE),0) -> 193 | AD29: =IFERROR(VLOOKUP($A29,FILTRO!$A$5:$AW$2602,28,FALSE),0) -> 1473 | CA29: * El número de Sexo Hombres y mujeres debe ser igual al total. | DA29: 1 | DB29: 0 | DE29: 0 | DF29: 0 | DG29: 0 | DH29: 0 | DI29: 0 | DJ29: 0 | DK29: 0 | DL29: 0 | DM29: 0 | DN29: 0 | DO29: 0 | DP29: 0 | DQ29: 0
A30: 01010901 | B30: CLIMATERIO | C30: MÉDICO/A | D30: =SUM(N30:Q30) -> 398 | E30: =IFERROR(VLOOKUP($A30,FILTRO!$A$5:$AW$2602,3,FALSE),0) -> 0 | F30: =IFERROR(VLOOKUP($A30,FILTRO!$A$5:$AW$2602,4,FALSE),0) -> 0 | G30: =IFERROR(VLOOKUP($A30,FILTRO!$A$5:$AW$2602,5,FALSE),0) -> 0 | H30: =IFERROR(VLOOKUP($A30,FILTRO!$A$5:$AW$2602,6,FALSE),0) -> 0 | I30: =IFERROR(VLOOKUP($A30,FILTRO!$A$5:$AW$2602,7,FALSE),0) -> 0 | J30: =IFERROR(VLOOKUP($A30,FILTRO!$A$5:$AW$2602,8,FALSE),0) -> 0 | K30: =IFERROR(VLOOKUP($A30,FILTRO!$A$5:$AW$2602,9,FALSE),0) -> 0 | L30: =IFERROR(VLOOKUP($A30,FILTRO!$A$5:$AW$2602,10,FALSE),0) -> 0 | M30: =IFERROR(VLOOKUP($A30,FILTRO!$A$5:$AW$2602,11,FALSE),0) -> 0 | N30: =IFERROR(VLOOKUP($A30,FILTRO!$A$5:$AW$2602,12,FALSE),0) -> 129 | O30: =IFERROR(VLOOKUP($A30,FILTRO!$A$5:$AW$2602,13,FALSE),0) -> 123 | P30: =IFERROR(VLOOKUP($A30,FILTRO!$A$5:$AW$2602,14,FALSE),0) -> 99 | Q30: =IFERROR(VLOOKUP($A30,FILTRO!$A$5:$AW$2602,15,FALSE),0) -> 47 | R30: =IFERROR(VLOOKUP($A30,FILTRO!$A$5:$AW$2602,16,FALSE),0) -> 0 | S30: =IFERROR(VLOOKUP($A30,FILTRO!$A$5:$AW$2602,17,FALSE),0) -> 0 | T30: =IFERROR(VLOOKUP($A30,FILTRO!$A$5:$AW$2602,18,FALSE),0) -> 0 | U30: =IFERROR(VLOOKUP($A30,FILTRO!$A$5:$AW$2602,19,FALSE),0) -> 0 | V30: =IFERROR(VLOOKUP($A30,FILTRO!$A$5:$AW$2602,20,FALSE),0) -> 0 | W30: =IFERROR(VLOOKUP($A30,FILTRO!$A$5:$AW$2602,21,FALSE),0) -> 398 | X30: =IFERROR(VLOOKUP($A30,FILTRO!$A$5:$AW$2602,22,FALSE),0) -> 0 | Y30: =IFERROR(VLOOKUP($A30,FILTRO!$A$5:$AW$2602,23,FALSE),0) -> 0 | Z30: =IFERROR(VLOOKUP($A30,FILTRO!$A$5:$AW$2602,24,FALSE),0) -> 0 | AA30: =IFERROR(VLOOKUP($A30,FILTRO!$A$5:$AW$2602,25,FALSE),0) -> 0 | AB30: =IFERROR(VLOOKUP($A30,FILTRO!$A$5:$AW$2602,26,FALSE),0) -> 0 | AC30: =IFERROR(VLOOKUP($A30,FILTRO!$A$5:$AW$2602,27,FALSE),0) -> 4 | AD30: =IFERROR(VLOOKUP($A30,FILTRO!$A$5:$AW$2602,28,FALSE),0) -> 12 | CA30: * El número de Sexo Hombres y mujeres debe ser igual al total. | DA30: 1 | DB30: 0 | DE30: 0 | DF30: 0 | DG30: 0 | DH30: 0 | DI30: 0 | DJ30: 0 | DK30: 0 | DL30: 0 | DM30: 0 | DN30: 0 | DO30: 0 | DP30: 0 | DQ30: 0
A31: 01010903 | C31: MATRONA/ÓN | D31: =SUM(N31:Q31) -> 3541 | E31: =IFERROR(VLOOKUP($A31,FILTRO!$A$5:$AW$2602,3,FALSE),0) -> 0 | F31: =IFERROR(VLOOKUP($A31,FILTRO!$A$5:$AW$2602,4,FALSE),0) -> 0 | G31: =IFERROR(VLOOKUP($A31,FILTRO!$A$5:$AW$2602,5,FALSE),0) -> 0 | H31: =IFERROR(VLOOKUP($A31,FILTRO!$A$5:$AW$2602,6,FALSE),0) -> 0 | I31: =IFERROR(VLOOKUP($A31,FILTRO!$A$5:$AW$2602,7,FALSE),0) -> 0 | J31: =IFERROR(VLOOKUP($A31,FILTRO!$A$5:$AW$2602,8,FALSE),0) -> 0 | K31: =IFERROR(VLOOKUP($A31,FILTRO!$A$5:$AW$2602,9,FALSE),0) -> 0 | L31: =IFERROR(VLOOKUP($A31,FILTRO!$A$5:$AW$2602,10,FALSE),0) -> 0 | M31: =IFERROR(VLOOKUP($A31,FILTRO!$A$5:$AW$2602,11,FALSE),0) -> 0 | N31: =IFERROR(VLOOKUP($A31,FILTRO!$A$5:$AW$2602,12,FALSE),0) -> 959 | O31: =IFERROR(VLOOKUP($A31,FILTRO!$A$5:$AW$2602,13,FALSE),0) -> 1366 | P31: =IFERROR(VLOOKUP($A31,FILTRO!$A$5:$AW$2602,14,FALSE),0) -> 783 | Q31: =IFERROR(VLOOKUP($A31,FILTRO!$A$5:$AW$2602,15,FALSE),0) -> 433 | R31: =IFERROR(VLOOKUP($A31,FILTRO!$A$5:$AW$2602,16,FALSE),0) -> 0 | S31: =IFERROR(VLOOKUP($A31,FILTRO!$A$5:$AW$2602,17,FALSE),0) -> 0 | T31: =IFERROR(VLOOKUP($A31,FILTRO!$A$5:$AW$2602,18,FALSE),0) -> 0 | U31: =IFERROR(VLOOKUP($A31,FILTRO!$A$5:$AW$2602,19,FALSE),0) -> 0 | V31: =IFERROR(VLOOKUP($A31,FILTRO!$A$5:$AW$2602,20,FALSE),0) -> 0 | W31: =IFERROR(VLOOKUP($A31,FILTRO!$A$5:$AW$2602,21,FALSE),0) -> 3532 | X31: =IFERROR(VLOOKUP($A31,FILTRO!$A$5:$AW$2602,22,FALSE),0) -> 0 | Y31: =IFERROR(VLOOKUP($A31,FILTRO!$A$5:$AW$2602,23,FALSE),0) -> 0 | Z31: =IFERROR(VLOOKUP($A31,FILTRO!$A$5:$AW$2602,24,FALSE),0) -> 0 | AA31: =IFERROR(VLOOKUP($A31,FILTRO!$A$5:$AW$2602,25,FALSE),0) -> 0 | AB31: =IFERROR(VLOOKUP($A31,FILTRO!$A$5:$AW$2602,26,FALSE),0) -> 0 | AC31: =IFERROR(VLOOKUP($A31,FILTRO!$A$5:$AW$2602,27,FALSE),0) -> 53 | AD31: =IFERROR(VLOOKUP($A31,FILTRO!$A$5:$AW$2602,28,FALSE),0) -> 126 | CA31: * El número de Sexo Hombres y mujeres debe ser igual al total. | DA31: 1 | DB31: 0 | DE31: 0 | DF31: 0 | DG31: 0 | DH31: 0 | DI31: 0 | DJ31: 0 | DK31: 0 | DL31: 0 | DM31: 0 | DN31: 0 | DO31: 0 | DP31: 0 | DQ31: 0
A32: 01010401 | B32: REGULACIÓN DE FECUNDIDAD | C32: MÉDICO/A | D32: =SUM(G32:U32) -> 1 | E32: =IFERROR(VLOOKUP($A32,FILTRO!$A$5:$AW$2602,3,FALSE),0) -> 0 | F32: =IFERROR(VLOOKUP($A32,FILTRO!$A$5:$AW$2602,4,FALSE),0) -> 0 | G32: =IFERROR(VLOOKUP($A32,FILTRO!$A$5:$AW$2602,5,FALSE),0) -> 1 | H32: =IFERROR(VLOOKUP($A32,FILTRO!$A$5:$AW$2602,6,FALSE),0) -> 0 | I32: =IFERROR(VLOOKUP($A32,FILTRO!$A$5:$AW$2602,7,FALSE),0) -> 0 | J32: =IFERROR(VLOOKUP($A32,FILTRO!$A$5:$AW$2602,8,FALSE),0) -> 0 | K32: =IFERROR(VLOOKUP($A32,FILTRO!$A$5:$AW$2602,9,FALSE),0) -> 0 | L32: =IFERROR(VLOOKUP($A32,FILTRO!$A$5:$AW$2602,10,FALSE),0) -> 0 | M32: =IFERROR(VLOOKUP($A32,FILTRO!$A$5:$AW$2602,11,FALSE),0) -> 0 | N32: =IFERROR(VLOOKUP($A32,FILTRO!$A$5:$AW$2602,12,FALSE),0) -> 0 | O32: =IFERROR(VLOOKUP($A32,FILTRO!$A$5:$AW$2602,13,FALSE),0) -> 0 | P32: =IFERROR(VLOOKUP($A32,FILTRO!$A$5:$AW$2602,14,FALSE),0) -> 0 | Q32: =IFERROR(VLOOKUP($A32,FILTRO!$A$5:$AW$2602,15,FALSE),0) -> 0 | R32: =IFERROR(VLOOKUP($A32,FILTRO!$A$5:$AW$2602,16,FALSE),0) -> 0 | S32: =IFERROR(VLOOKUP($A32,FILTRO!$A$5:$AW$2602,17,FALSE),0) -> 0 | T32: =IFERROR(VLOOKUP($A32,FILTRO!$A$5:$AW$2602,18,FALSE),0) -> 0 | U32: =IFERROR(VLOOKUP($A32,FILTRO!$A$5:$AW$2602,19,FALSE),0) -> 0 | V32: =IFERROR(VLOOKUP($A32,FILTRO!$A$5:$AW$2602,20,FALSE),0) -> 0 | W32: =IFERROR(VLOOKUP($A32,FILTRO!$A$5:$AW$2602,21,FALSE),0) -> 8 | X32: =IFERROR(VLOOKUP($A32,FILTRO!$A$5:$AW$2602,22,FALSE),0) -> 0 | Y32: =IFERROR(VLOOKUP($A32,FILTRO!$A$5:$AW$2602,23,FALSE),0) -> 0 | Z32: =IFERROR(VLOOKUP($A32,FILTRO!$A$5:$AW$2602,24,FALSE),0) -> 8 | AA32: =IFERROR(VLOOKUP($A32,FILTRO!$A$5:$AW$2602,25,FALSE),0) -> 8 | AB32: =IFERROR(VLOOKUP($A32,FILTRO!$A$5:$AW$2602,26,FALSE),0) -> 8 | AC32: =IFERROR(VLOOKUP($A32,FILTRO!$A$5:$AW$2602,27,FALSE),0) -> 4 | AD32: =IFERROR(VLOOKUP($A32,FILTRO!$A$5:$AW$2602,28,FALSE),0) -> 8 | CA32: * El número de Sexo Hombres y mujeres debe ser igual al total. | DA32: 1 | DB32: 0 | DE32: 0 | DF32: 0 | DG32: 0 | DH32: 0 | DI32: 0 | DJ32: 0 | DK32: 0 | DL32: 0 | DM32: 0 | DN32: 0 | DO32: 0 | DP32: 0 | DQ32: 0
A33: 01010403 | C33: MATRONA/ÓN | D33: =SUM(G33:U33) -> 66858 | E33: =IFERROR(VLOOKUP($A33,FILTRO!$A$5:$AW$2602,3,FALSE),0) -> 0 | F33: =IFERROR(VLOOKUP($A33,FILTRO!$A$5:$AW$2602,4,FALSE),0) -> 0 | G33: =IFERROR(VLOOKUP($A33,FILTRO!$A$5:$AW$2602,5,FALSE),0) -> 1538 | H33: =IFERROR(VLOOKUP($A33,FILTRO!$A$5:$AW$2602,6,FALSE),0) -> 9863 | I33: =IFERROR(VLOOKUP($A33,FILTRO!$A$5:$AW$2602,7,FALSE),0) -> 11371 | J33: =IFERROR(VLOOKUP($A33,FILTRO!$A$5:$AW$2602,8,FALSE),0) -> 11827 | K33: =IFERROR(VLOOKUP($A33,FILTRO!$A$5:$AW$2602,9,FALSE),0) -> 10744 | L33: =IFERROR(VLOOKUP($A33,FILTRO!$A$5:$AW$2602,10,FALSE),0) -> 8398 | M33: =IFERROR(VLOOKUP($A33,FILTRO!$A$5:$AW$2602,11,FALSE),0) -> 6553 | N33: =IFERROR(VLOOKUP($A33,FILTRO!$A$5:$AW$2602,12,FALSE),0) -> 4726 | O33: =IFERROR(VLOOKUP($A33,FILTRO!$A$5:$AW$2602,13,FALSE),0) -> 1608 | P33: =IFERROR(VLOOKUP($A33,FILTRO!$A$5:$AW$2602,14,FALSE),0) -> 157 | Q33: =IFERROR(VLOOKUP($A33,FILTRO!$A$5:$AW$2602,15,FALSE),0) -> 46 | R33: =IFERROR(VLOOKUP($A33,FILTRO!$A$5:$AW$2602,16,FALSE),0) -> 15 | S33: =IFERROR(VLOOKUP($A33,FILTRO!$A$5:$AW$2602,17,FALSE),0) -> 7 | T33: =IFERROR(VLOOKUP($A33,FILTRO!$A$5:$AW$2602,18,FALSE),0) -> 2 | U33: =IFERROR(VLOOKUP($A33,FILTRO!$A$5:$AW$2602,19,FALSE),0) -> 3 | V33: =IFERROR(VLOOKUP($A33,FILTRO!$A$5:$AW$2602,20,FALSE),0) -> 432 | W33: =IFERROR(VLOOKUP($A33,FILTRO!$A$5:$AW$2602,21,FALSE),0) -> 65662 | X33: =IFERROR(VLOOKUP($A33,FILTRO!$A$5:$AW$2602,22,FALSE),0) -> 0 | Y33: =IFERROR(VLOOKUP($A33,FILTRO!$A$5:$AW$2602,23,FALSE),0) -> 0 | Z33: =IFERROR(VLOOKUP($A33,FILTRO!$A$5:$AW$2602,24,FALSE),0) -> 1472 | AA33: =IFERROR(VLOOKUP($A33,FILTRO!$A$5:$AW$2602,25,FALSE),0) -> 59 | AB33: =IFERROR(VLOOKUP($A33,FILTRO!$A$5:$AW$2602,26,FALSE),0) -> 39 | AC33: =IFERROR(VLOOKUP($A33,FILTRO!$A$5:$AW$2602,27,FALSE),0) -> 477 | AD33: =IFERROR(VLOOKUP($A33,FILTRO!$A$5:$AW$2602,28,FALSE),0) -> 1395 | CA33: * El número de Sexo Hombres y mujeres debe ser igual al total. | DA33: 1 | DB33: 0 | DE33: 0 | DF33: 0 | DG33: 0 | DH33: 0 | DI33: 0 | DJ33: 0 | DK33: 0 | DL33: 0 | DM33: 0 | DN33: 0 | DO33: 0 | DP33: 0 | DQ33: 0
B34: SECCIÓN B: CONTROLES DE SALUD SEGÚN CICLO VITAL
B35: TIPO DE CONTROL | C35: PROFESIONAL | D35: TOTAL | G35: POR EDAD | AJ35: Control con Presencia del Padre | AL35: Niños, Niñas, Adolescentes y Jóvenes SENAME | AM35: Niños, Niñas, Adolescentes y Jóvenes Mejor Niñez | AN35: Pueblos Originarios | AO35: Migrantes
D36: Ambos Sexos | E36: Hombres | F36: Mujeres | G36: Menor de 1 mes | H36: 1 mes | I36: 2 meses | J36: 3 meses | K36: 4 meses | L36: 5 meses | M36: 6 meses | N36: 7 - 11 meses | O36: 12 a 17 meses | P36: 18 - 23 meses | Q36: 24 - 47 meses | R36: 48 - 59 meses | S36: 60 - 71 meses | T36: 6 - 9 | U36: 10 - 14 | V36: 15 - 19 | W36: 20 - 24 | X36: 25 - 29 | Y36: 30 - 34 | Z36: 35 - 39 | AA36: 40 - 44 | AB36: 45 - 49 | AC36: 50 - 54 | AD36: 55 - 59 | AE36: 60 - 64 | AF36: 65 - 69 | AG36: 70 - 74 | AH36: 75 - 79 | AI36: 80 y mas | AJ36: menor 1 año | AK36: 1 año a 3 años 11 meses 29 días
A37: 02010101 | B37: DE SALUD | C37: MÉDICO/A | D37: =SUM(G37:AI37) -> 15541 | E37: =IFERROR(VLOOKUP($A37,FILTRO!$A$5:$AW$2602,3,FALSE),0) -> 7222 | F37: =IFERROR(VLOOKUP($A37,FILTRO!$A$5:$AW$2602,4,FALSE),0) -> 8307 | G37: =IFERROR(VLOOKUP($A37,FILTRO!$A$5:$AW$2602,5,FALSE),0) -> 169 | H37: =IFERROR(VLOOKUP($A37,FILTRO!$A$5:$AW$2602,6,FALSE),0) -> 4127 | I37: =IFERROR(VLOOKUP($A37,FILTRO!$A$5:$AW$2602,7,FALSE),0) -> 338 | J37: =IFERROR(VLOOKUP($A37,FILTRO!$A$5:$AW$2602,8,FALSE),0) -> 4039 | K37: =IFERROR(VLOOKUP($A37,FILTRO!$A$5:$AW$2602,9,FALSE),0) -> 342 | L37: =IFERROR(VLOOKUP($A37,FILTRO!$A$5:$AW$2602,10,FALSE),0) -> 65 | M37: =IFERROR(VLOOKUP($A37,FILTRO!$A$5:$AW$2602,11,FALSE),0) -> 43 | N37: =IFERROR(VLOOKUP($A37,FILTRO!$A$5:$AW$2602,12,FALSE),0) -> 80 | O37: =IFERROR(VLOOKUP($A37,FILTRO!$A$5:$AW$2602,13,FALSE),0) -> 143 | P37: =IFERROR(VLOOKUP($A37,FILTRO!$A$5:$AW$2602,14,FALSE),0) -> 56 | Q37: =IFERROR(VLOOKUP($A37,FILTRO!$A$5:$AW$2602,15,FALSE),0) -> 136 | R37: =IFERROR(VLOOKUP($A37,FILTRO!$A$5:$AW$2602,16,FALSE),0) -> 147 | S37: =IFERROR(VLOOKUP($A37,FILTRO!$A$5:$AW$2602,17,FALSE),0) -> 200 | T37: =IFERROR(VLOOKUP($A37,FILTRO!$A$5:$AW$2602,18,FALSE),0) -> 1179 | U37: =IFERROR(VLOOKUP($A37,FILTRO!$A$5:$AW$2602,19,FALSE),0) -> 376 | V37: =IFERROR(VLOOKUP($A37,FILTRO!$A$5:$AW$2602,20,FALSE),0) -> 201 | W37: =IFERROR(VLOOKUP($A37,FILTRO!$A$5:$AW$2602,21,FALSE),0) -> 45 | X37: =IFERROR(VLOOKUP($A37,FILTRO!$A$5:$AW$2602,22,FALSE),0) -> 64 | Y37: =IFERROR(VLOOKUP($A37,FILTRO!$A$5:$AW$2602,23,FALSE),0) -> 86 | Z37: =IFERROR(VLOOKUP($A37,FILTRO!$A$5:$AW$2602,24,FALSE),0) -> 108 | AA37: =IFERROR(VLOOKUP($A37,FILTRO!$A$5:$AW$2602,25,FALSE),0) -> 143 | AB37: =IFERROR(VLOOKUP($A37,FILTRO!$A$5:$AW$2602,26,FALSE),0) -> 199 | AC37: =IFERROR(VLOOKUP($A37,FILTRO!$A$5:$AW$2602,27,FALSE),0) -> 250 | AD37: =IFERROR(VLOOKUP($A37,FILTRO!$A$5:$AW$2602,28,FALSE),0) -> 423 | AE37: =IFERROR(VLOOKUP($A37,FILTRO!$A$5:$AW$2602,29,FALSE),0) -> 451 | AF37: =IFERROR(VLOOKUP($A37,FILTRO!$A$5:$AW$2602,30,FALSE),0) -> 638 | AG37: =IFERROR(VLOOKUP($A37,FILTRO!$A$5:$AW$2602,31,FALSE),0) -> 489 | AH37: =IFERROR(VLOOKUP($A37,FILTRO!$A$5:$AW$2602,32,FALSE),0) -> 395 | AI37: =IFERROR(VLOOKUP($A37,FILTRO!$A$5:$AW$2602,33,FALSE),0) -> 609 | AJ37: =IFERROR(VLOOKUP($A37,FILTRO!$A$5:$AW$2602,34,FALSE),0) -> 1909 | AK37: =IFERROR(VLOOKUP($A37,FILTRO!$A$5:$AW$2602,35,FALSE),0) -> 11 | AL37: =IFERROR(VLOOKUP($A37,FILTRO!$A$5:$AW$2602,36,FALSE),0) -> 45 | AM37: =IFERROR(VLOOKUP($A37,FILTRO!$A$5:$AW$2602,37,FALSE),0) -> 55 | AN37: =IFERROR(VLOOKUP($A37,FILTRO!$A$5:$AW$2602,38,FALSE),0) -> 88 | AO37: =IFERROR(VLOOKUP($A37,FILTRO!$A$5:$AW$2602,39,FALSE),0) -> 567 | CB37: * El número de controles con presencia de Padre para menor entre 1 año y 3 años NO DEBE ser Mayor a la suma de controles del rango correspondiente. | CC37: * El número de controles según sexo NO DEBE ser diferente al Total. | DA37: 0 | DB37: 1 | DC37: 1 | DD37: 0
A38: 02010201 | C38: ENFERMERA/O | D38: =SUM(G38:AI38) -> 86575 | E38: =IFERROR(VLOOKUP($A38,FILTRO!$A$5:$AW$2602,3,FALSE),0) -> 40546 | F38: =IFERROR(VLOOKUP($A38,FILTRO!$A$5:$AW$2602,4,FALSE),0) -> 45094 | G38: =IFERROR(VLOOKUP($A38,FILTRO!$A$5:$AW$2602,5,FALSE),0) -> 95 | H38: =IFERROR(VLOOKUP($A38,FILTRO!$A$5:$AW$2602,6,FALSE),0) -> 78 | I38: =IFERROR(VLOOKUP($A38,FILTRO!$A$5:$AW$2602,7,FALSE),0) -> 4595 | J38: =IFERROR(VLOOKUP($A38,FILTRO!$A$5:$AW$2602,8,FALSE),0) -> 249 | K38: =IFERROR(VLOOKUP($A38,FILTRO!$A$5:$AW$2602,9,FALSE),0) -> 4483 | L38: =IFERROR(VLOOKUP($A38,FILTRO!$A$5:$AW$2602,10,FALSE),0) -> 334 | M38: =IFERROR(VLOOKUP($A38,FILTRO!$A$5:$AW$2602,11,FALSE),0) -> 4429 | N38: =IFERROR(VLOOKUP($A38,FILTRO!$A$5:$AW$2602,12,FALSE),0) -> 5368 | O38: =IFERROR(VLOOKUP($A38,FILTRO!$A$5:$AW$2602,13,FALSE),0) -> 5581 | P38: =IFERROR(VLOOKUP($A38,FILTRO!$A$5:$AW$2602,14,FALSE),0) -> 4727 | Q38: =IFERROR(VLOOKUP($A38,FILTRO!$A$5:$AW$2602,15,FALSE),0) -> 10570 | R38: =IFERROR(VLOOKUP($A38,FILTRO!$A$5:$AW$2602,16,FALSE),0) -> 4891 | S38: =IFERROR(VLOOKUP($A38,FILTRO!$A$5:$AW$2602,17,FALSE),0) -> 4553 | T38: =IFERROR(VLOOKUP($A38,FILTRO!$A$5:$AW$2602,18,FALSE),0) -> 11234 | U38: =IFERROR(VLOOKUP($A38,FILTRO!$A$5:$AW$2602,19,FALSE),0) -> 5042 | V38: =IFERROR(VLOOKUP($A38,FILTRO!$A$5:$AW$2602,20,FALSE),0) -> 1491 | W38: =IFERROR(VLOOKUP($A38,FILTRO!$A$5:$AW$2602,21,FALSE),0) -> 484 | X38: =IFERROR(VLOOKUP($A38,FILTRO!$A$5:$AW$2602,22,FALSE),0) -> 632 | Y38: =IFERROR(VLOOKUP($A38,FILTRO!$A$5:$AW$2602,23,FALSE),0) -> 695 | Z38: =IFERROR(VLOOKUP($A38,FILTRO!$A$5:$AW$2602,24,FALSE),0) -> 704 | AA38: =IFERROR(VLOOKUP($A38,FILTRO!$A$5:$AW$2602,25,FALSE),0) -> 725 | AB38: =IFERROR(VLOOKUP($A38,FILTRO!$A$5:$AW$2602,26,FALSE),0) -> 843 | AC38: =IFERROR(VLOOKUP($A38,FILTRO!$A$5:$AW$2602,27,FALSE),0) -> 927 | AD38: =IFERROR(VLOOKUP($A38,FILTRO!$A$5:$AW$2602,28,FALSE),0) -> 1094 | AE38: =IFERROR(VLOOKUP($A38,FILTRO!$A$5:$AW$2602,29,FALSE),0) -> 1215 | AF38: =IFERROR(VLOOKUP($A38,FILTRO!$A$5:$AW$2602,30,FALSE),0) -> 2966 | AG38: =IFERROR(VLOOKUP($A38,FILTRO!$A$5:$AW$2602,31,FALSE),0) -> 2892 | AH38: =IFERROR(VLOOKUP($A38,FILTRO!$A$5:$AW$2602,32,FALSE),0) -> 2472 | AI38: =IFERROR(VLOOKUP($A38,FILTRO!$A$5:$AW$2602,33,FALSE),0) -> 3206 | AJ38: =IFERROR(VLOOKUP($A38,FILTRO!$A$5:$AW$2602,34,FALSE),0) -> 4255 | AK38: =IFERROR(VLOOKUP($A38,FILTRO!$A$5:$AW$2602,35,FALSE),0) -> 3570 | AL38: =IFERROR(VLOOKUP($A38,FILTRO!$A$5:$AW$2602,36,FALSE),0) -> 380 | AM38: =IFERROR(VLOOKUP($A38,FILTRO!$A$5:$AW$2602,37,FALSE),0) -> 257 | AN38: =IFERROR(VLOOKUP($A38,FILTRO!$A$5:$AW$2602,38,FALSE),0) -> 1005 | AO38: =IFERROR(VLOOKUP($A38,FILTRO!$A$5:$AW$2602,39,FALSE),0) -> 1372 | CC38: * El número de controles según sexo NO DEBE ser diferente al Total. | DA38: 0 | DB38: 0 | DC38: 1 | DD38: 0
A39: 02010103 | C39: MATRONA/ÓN | D39: =SUM(G39+U39+V39+W39+X39+Y39+Z39+AA39+AB39+AC39+AD39+AE39+AF39+AG39+AH39+AI39) -> 18511 | E39: =IFERROR(VLOOKUP($A39,FILTRO!$A$5:$AW$2602,3,FALSE),0) -> 3712 | F39: =IFERROR(VLOOKUP($A39,FILTRO!$A$5:$AW$2602,4,FALSE),0) -> 14720 | G39: =IFERROR(VLOOKUP($A39,FILTRO!$A$5:$AW$2602,5,FALSE),0) -> 3486 | H39: =IFERROR(VLOOKUP($A39,FILTRO!$A$5:$AW$2602,6,FALSE),0) -> 0 | I39: =IFERROR(VLOOKUP($A39,FILTRO!$A$5:$AW$2602,7,FALSE),0) -> 0 | J39: =IFERROR(VLOOKUP($A39,FILTRO!$A$5:$AW$2602,8,FALSE),0) -> 0 | K39: =IFERROR(VLOOKUP($A39,FILTRO!$A$5:$AW$2602,9,FALSE),0) -> 0 | L39: =IFERROR(VLOOKUP($A39,FILTRO!$A$5:$AW$2602,10,FALSE),0) -> 0 | M39: =IFERROR(VLOOKUP($A39,FILTRO!$A$5:$AW$2602,11,FALSE),0) -> 0 | N39: =IFERROR(VLOOKUP($A39,FILTRO!$A$5:$AW$2602,12,FALSE),0) -> 0 | O39: =IFERROR(VLOOKUP($A39,FILTRO!$A$5:$AW$2602,13,FALSE),0) -> 0 | P39: =IFERROR(VLOOKUP($A39,FILTRO!$A$5:$AW$2602,14,FALSE),0) -> 0 | Q39: =IFERROR(VLOOKUP($A39,FILTRO!$A$5:$AW$2602,15,FALSE),0) -> 0 | R39: =IFERROR(VLOOKUP($A39,FILTRO!$A$5:$AW$2602,16,FALSE),0) -> 0 | S39: =IFERROR(VLOOKUP($A39,FILTRO!$A$5:$AW$2602,17,FALSE),0) -> 0 | T39: =IFERROR(VLOOKUP($A39,FILTRO!$A$5:$AW$2602,18,FALSE),0) -> 0 | U39: =IFERROR(VLOOKUP($A39,FILTRO!$A$5:$AW$2602,19,FALSE),0) -> 2851 | V39: =IFERROR(VLOOKUP($A39,FILTRO!$A$5:$AW$2602,20,FALSE),0) -> 2630 | W39: =IFERROR(VLOOKUP($A39,FILTRO!$A$5:$AW$2602,21,FALSE),0) -> 1194 | X39: =IFERROR(VLOOKUP($A39,FILTRO!$A$5:$AW$2602,22,FALSE),0) -> 1558 | Y39: =IFERROR(VLOOKUP($A39,FILTRO!$A$5:$AW$2602,23,FALSE),0) -> 1468 | Z39: =IFERROR(VLOOKUP($A39,FILTRO!$A$5:$AW$2602,24,FALSE),0) -> 1298 | AA39: =IFERROR(VLOOKUP($A39,FILTRO!$A$5:$AW$2602,25,FALSE),0) -> 1093 | AB39: =IFERROR(VLOOKUP($A39,FILTRO!$A$5:$AW$2602,26,FALSE),0) -> 988 | AC39: =IFERROR(VLOOKUP($A39,FILTRO!$A$5:$AW$2602,27,FALSE),0) -> 752 | AD39: =IFERROR(VLOOKUP($A39,FILTRO!$A$5:$AW$2602,28,FALSE),0) -> 558 | AE39: =IFERROR(VLOOKUP($A39,FILTRO!$A$5:$AW$2602,29,FALSE),0) -> 382 | AF39: =IFERROR(VLOOKUP($A39,FILTRO!$A$5:$AW$2602,30,FALSE),0) -> 179 | AG39: =IFERROR(VLOOKUP($A39,FILTRO!$A$5:$AW$2602,31,FALSE),0) -> 47 | AH39: =IFERROR(VLOOKUP($A39,FILTRO!$A$5:$AW$2602,32,FALSE),0) -> 19 | AI39: =IFERROR(VLOOKUP($A39,FILTRO!$A$5:$AW$2602,33,FALSE),0) -> 8 | AJ39: =IFERROR(VLOOKUP($A39,FILTRO!$A$5:$AW$2602,34,FALSE),0) -> 1508 | AK39: =IFERROR(VLOOKUP($A39,FILTRO!$A$5:$AW$2602,35,FALSE),0) -> 0 | AL39: =IFERROR(VLOOKUP($A39,FILTRO!$A$5:$AW$2602,36,FALSE),0) -> 14 | AM39: =IFERROR(VLOOKUP($A39,FILTRO!$A$5:$AW$2602,37,FALSE),0) -> 26 | AN39: =IFERROR(VLOOKUP($A39,FILTRO!$A$5:$AW$2602,38,FALSE),0) -> 128 | AO39: =IFERROR(VLOOKUP($A39,FILTRO!$A$5:$AW$2602,39,FALSE),0) -> 306 | CB39: * El número de controles con presencia de Padre para menor entre 1 año y 3 años NO DEBE ser Mayor a la suma de controles del rango correspondiente. | CC39: * El número de controles según sexo NO DEBE ser diferente al Total. | DA39: 0 | DB39: 1 | DC39: 1 | DD39: 0
A40: 02010105 | C40: TÉCNICO EN ENFERMERÍA | D40: =SUM(O40:T40) -> 22 | E40: =IFERROR(VLOOKUP($A40,FILTRO!$A$5:$AW$2602,3,FALSE),0) -> 11 | F40: =IFERROR(VLOOKUP($A40,FILTRO!$A$5:$AW$2602,4,FALSE),0) -> 10 | G40: =IFERROR(VLOOKUP($A40,FILTRO!$A$5:$AW$2602,5,FALSE),0) -> 0 | H40: =IFERROR(VLOOKUP($A40,FILTRO!$A$5:$AW$2602,6,FALSE),0) -> 0 | I40: =IFERROR(VLOOKUP($A40,FILTRO!$A$5:$AW$2602,7,FALSE),0) -> 0 | J40: =IFERROR(VLOOKUP($A40,FILTRO!$A$5:$AW$2602,8,FALSE),0) -> 0 | K40: =IFERROR(VLOOKUP($A40,FILTRO!$A$5:$AW$2602,9,FALSE),0) -> 0 | L40: =IFERROR(VLOOKUP($A40,FILTRO!$A$5:$AW$2602,10,FALSE),0) -> 0 | M40: =IFERROR(VLOOKUP($A40,FILTRO!$A$5:$AW$2602,11,FALSE),0) -> 0 | N40: =IFERROR(VLOOKUP($A40,FILTRO!$A$5:$AW$2602,12,FALSE),0) -> 0 | O40: =IFERROR(VLOOKUP($A40,FILTRO!$A$5:$AW$2602,13,FALSE),0) -> 1 | P40: =IFERROR(VLOOKUP($A40,FILTRO!$A$5:$AW$2602,14,FALSE),0) -> 1 | Q40: =IFERROR(VLOOKUP($A40,FILTRO!$A$5:$AW$2602,15,FALSE),0) -> 4 | R40: =IFERROR(VLOOKUP($A40,FILTRO!$A$5:$AW$2602,16,FALSE),0) -> 0 | S40: =IFERROR(VLOOKUP($A40,FILTRO!$A$5:$AW$2602,17,FALSE),0) -> 2 | T40: =IFERROR(VLOOKUP($A40,FILTRO!$A$5:$AW$2602,18,FALSE),0) -> 14 | U40: =IFERROR(VLOOKUP($A40,FILTRO!$A$5:$AW$2602,19,FALSE),0) -> 0 | V40: =IFERROR(VLOOKUP($A40,FILTRO!$A$5:$AW$2602,20,FALSE),0) -> 0 | W40: =IFERROR(VLOOKUP($A40,FILTRO!$A$5:$AW$2602,21,FALSE),0) -> 0 | X40: =IFERROR(VLOOKUP($A40,FILTRO!$A$5:$AW$2602,22,FALSE),0) -> 0 | Y40: =IFERROR(VLOOKUP($A40,FILTRO!$A$5:$AW$2602,23,FALSE),0) -> 0 | Z40: =IFERROR(VLOOKUP($A40,FILTRO!$A$5:$AW$2602,24,FALSE),0) -> 0 | AA40: =IFERROR(VLOOKUP($A40,FILTRO!$A$5:$AW$2602,25,FALSE),0) -> 0 | AB40: =IFERROR(VLOOKUP($A40,FILTRO!$A$5:$AW$2602,26,FALSE),0) -> 0 | AC40: =IFERROR(VLOOKUP($A40,FILTRO!$A$5:$AW$2602,27,FALSE),0) -> 0 | AD40: =IFERROR(VLOOKUP($A40,FILTRO!$A$5:$AW$2602,28,FALSE),0) -> 0 | AE40: =IFERROR(VLOOKUP($A40,FILTRO!$A$5:$AW$2602,29,FALSE),0) -> 0 | AF40: =IFERROR(VLOOKUP($A40,FILTRO!$A$5:$AW$2602,30,FALSE),0) -> 0 | AG40: =IFERROR(VLOOKUP($A40,FILTRO!$A$5:$AW$2602,31,FALSE),0) -> 0 | AH40: =IFERROR(VLOOKUP($A40,FILTRO!$A$5:$AW$2602,32,FALSE),0) -> 0 | AI40: =IFERROR(VLOOKUP($A40,FILTRO!$A$5:$AW$2602,33,FALSE),0) -> 0 | AJ40: =IFERROR(VLOOKUP($A40,FILTRO!$A$5:$AW$2602,34,FALSE),0) -> 0 | AK40: =IFERROR(VLOOKUP($A40,FILTRO!$A$5:$AW$2602,35,FALSE),0) -> 4 | AL40: =IFERROR(VLOOKUP($A40,FILTRO!$A$5:$AW$2602,36,FALSE),0) -> 2 | AM40: =IFERROR(VLOOKUP($A40,FILTRO!$A$5:$AW$2602,37,FALSE),0) -> 0 | AN40: =IFERROR(VLOOKUP($A40,FILTRO!$A$5:$AW$2602,38,FALSE),0) -> 1 | AO40: =IFERROR(VLOOKUP($A40,FILTRO!$A$5:$AW$2602,39,FALSE),0) -> 42 | CC40: * El número de controles según sexo NO DEBE ser diferente al Total. | DC40: 1 | DD40: 0
B41: SECCIÓN C: CONTROLES SEGÚN PROBLEMA DE SALUD
B42: TIPO DE CONTROL | C42: PROFESIONAL | D42: TOTAL | G42: POR EDAD | AO42: Pueblos Originarios | AP42: Migrantes
G43: 0 - 4 años | I43: 5 - 9 años | K43: 10 - 14 años | M43: 15 a 19 años | O43: 20 - 24 años | Q43: 25 - 29 años | S43: 30 - 34 años | U43: 35 - 39 años | W43: 40 - 44 años | Y43: 45 - 49 años | AA43: 50 - 54 años | AC43: 55 - 59 años | AE43: 60 - 64 años | AG43: 65 - 69 años | AI43: 70 - 74 años | AK43: 75 - 79 años | AM43: 80 y más años
D44: Ambos Sexos | E44: Hombres | F44: Mujeres | G44: Hombres | H44: Mujeres | I44: Hombres | J44: Mujeres | K44: Hombres | L44: Mujeres | M44: Hombres | N44: Mujeres | O44: Hombres | P44: Mujeres | Q44: Hombres | R44: Mujeres | S44: Hombres | T44: Mujeres | U44: Hombres | V44: Mujeres | W44: Hombres | X44: Mujeres | Y44: Hombres | Z44: Mujeres | AA44: Hombres | AB44: Mujeres | AC44: Hombres | AD44: Mujeres | AE44: Hombres | AF44: Mujeres | AG44: Hombres | AH44: Mujeres | AI44: Hombres | AJ44: Mujeres | AK44: Hombres | AL44: Mujeres | AM44: Hombres | AN44: Mujeres
A45: 03010501 | B45: DE SALUD CARDIOVASCULAR | C45: MÉDICO/A | D45: =SUM(E45:F45) -> 119333 | E45: =SUM(K45+M45+O45+Q45+S45+U45+W45+Y45+AA45+AC45+AE45+AG45+AI45+AK45+AM45) -> 41319 | F45: 78014 | G45: =IFERROR(VLOOKUP($A45,FILTRO!$A$5:$AW$2602,5,FALSE),0) -> 0 | H45: =IFERROR(VLOOKUP($A45,FILTRO!$A$5:$AW$2602,6,FALSE),0) -> 0 | I45: =IFERROR(VLOOKUP($A45,FILTRO!$A$5:$AW$2602,7,FALSE),0) -> 0 | J45: =IFERROR(VLOOKUP($A45,FILTRO!$A$5:$AW$2602,8,FALSE),0) -> 0 | K45: =IFERROR(VLOOKUP($A45,FILTRO!$A$5:$AW$2602,9,FALSE),0) -> 0 | L45: =IFERROR(VLOOKUP($A45,FILTRO!$A$5:$AW$2602,10,FALSE),0) -> 0 | M45: =IFERROR(VLOOKUP($A45,FILTRO!$A$5:$AW$2602,11,FALSE),0) -> 74 | N45: =IFERROR(VLOOKUP($A45,FILTRO!$A$5:$AW$2602,12,FALSE),0) -> 122 | O45: =IFERROR(VLOOKUP($A45,FILTRO!$A$5:$AW$2602,13,FALSE),0) -> 126 | P45: =IFERROR(VLOOKUP($A45,FILTRO!$A$5:$AW$2602,14,FALSE),0) -> 282 | Q45: =IFERROR(VLOOKUP($A45,FILTRO!$A$5:$AW$2602,15,FALSE),0) -> 197 | R45: =IFERROR(VLOOKUP($A45,FILTRO!$A$5:$AW$2602,16,FALSE),0) -> 515 | S45: =IFERROR(VLOOKUP($A45,FILTRO!$A$5:$AW$2602,17,FALSE),0) -> 331 | T45: =IFERROR(VLOOKUP($A45,FILTRO!$A$5:$AW$2602,18,FALSE),0) -> 970 | U45: =IFERROR(VLOOKUP($A45,FILTRO!$A$5:$AW$2602,19,FALSE),0) -> 580 | V45: =IFERROR(VLOOKUP($A45,FILTRO!$A$5:$AW$2602,20,FALSE),0) -> 1646 | W45: =IFERROR(VLOOKUP($A45,FILTRO!$A$5:$AW$2602,21,FALSE),0) -> 982 | X45: =IFERROR(VLOOKUP($A45,FILTRO!$A$5:$AW$2602,22,FALSE),0) -> 2762 | Y45: =IFERROR(VLOOKUP($A45,FILTRO!$A$5:$AW$2602,23,FALSE),0) -> 1579 | Z45: =IFERROR(VLOOKUP($A45,FILTRO!$A$5:$AW$2602,24,FALSE),0) -> 4338 | AA45: =IFERROR(VLOOKUP($A45,FILTRO!$A$5:$AW$2602,25,FALSE),0) -> 2566 | AB45: =IFERROR(VLOOKUP($A45,FILTRO!$A$5:$AW$2602,26,FALSE),0) -> 6577 | AC45: =IFERROR(VLOOKUP($A45,FILTRO!$A$5:$AW$2602,27,FALSE),0) -> 4084 | AD45: =IFERROR(VLOOKUP($A45,FILTRO!$A$5:$AW$2602,28,FALSE),0) -> 9509 | AE45: =IFERROR(VLOOKUP($A45,FILTRO!$A$5:$AW$2602,29,FALSE),0) -> 5801 | AF45: =IFERROR(VLOOKUP($A45,FILTRO!$A$5:$AW$2602,30,FALSE),0) -> 11156 | AG45: =IFERROR(VLOOKUP($A45,FILTRO!$A$5:$AW$2602,31,FALSE),0) -> 6910 | AH45: =IFERROR(VLOOKUP($A45,FILTRO!$A$5:$AW$2602,32,FALSE),0) -> 11646 | AI45: =IFERROR(VLOOKUP($A45,FILTRO!$A$5:$AW$2602,33,FALSE),0) -> 6468 | AJ45: =IFERROR(VLOOKUP($A45,FILTRO!$A$5:$AW$2602,34,FALSE),0) -> 10156 | AK45: =IFERROR(VLOOKUP($A45,FILTRO!$A$5:$AW$2602,35,FALSE),0) -> 5473 | AL45: =IFERROR(VLOOKUP($A45,FILTRO!$A$5:$AW$2602,36,FALSE),0) -> 8468 | AM45: =IFERROR(VLOOKUP($A45,FILTRO!$A$5:$AW$2602,37,FALSE),0) -> 6148 | AN45: =IFERROR(VLOOKUP($A45,FILTRO!$A$5:$AW$2602,38,FALSE),0) -> 9867 | AO45: =IFERROR(VLOOKUP($A45,FILTRO!$A$5:$AW$2602,39,FALSE),0) -> 799 | AP45: =IFERROR(VLOOKUP($A45,FILTRO!$A$5:$AW$2602,40,FALSE),0) -> 713 | DB45: 0 | DC45: 0 | DD45: 0 | DE45: 0
A46: 03010502 | C46: ENFERMERA/O | D46: =SUM(E46:F46) -> 52842 | E46: 19154 | F46: 33688 | G46: =IFERROR(VLOOKUP($A46,FILTRO!$A$5:$AW$2602,5,FALSE),0) -> 0 | H46: =IFERROR(VLOOKUP($A46,FILTRO!$A$5:$AW$2602,6,FALSE),0) -> 0 | I46: =IFERROR(VLOOKUP($A46,FILTRO!$A$5:$AW$2602,7,FALSE),0) -> 0 | J46: =IFERROR(VLOOKUP($A46,FILTRO!$A$5:$AW$2602,8,FALSE),0) -> 0 | K46: =IFERROR(VLOOKUP($A46,FILTRO!$A$5:$AW$2602,9,FALSE),0) -> 0 | L46: =IFERROR(VLOOKUP($A46,FILTRO!$A$5:$AW$2602,10,FALSE),0) -> 0 | M46: =IFERROR(VLOOKUP($A46,FILTRO!$A$5:$AW$2602,11,FALSE),0) -> 35 | N46: =IFERROR(VLOOKUP($A46,FILTRO!$A$5:$AW$2602,12,FALSE),0) -> 32 | O46: =IFERROR(VLOOKUP($A46,FILTRO!$A$5:$AW$2602,13,FALSE),0) -> 51 | P46: =IFERROR(VLOOKUP($A46,FILTRO!$A$5:$AW$2602,14,FALSE),0) -> 97 | Q46: =IFERROR(VLOOKUP($A46,FILTRO!$A$5:$AW$2602,15,FALSE),0) -> 80 | R46: =IFERROR(VLOOKUP($A46,FILTRO!$A$5:$AW$2602,16,FALSE),0) -> 206 | S46: =IFERROR(VLOOKUP($A46,FILTRO!$A$5:$AW$2602,17,FALSE),0) -> 145 | T46: =IFERROR(VLOOKUP($A46,FILTRO!$A$5:$AW$2602,18,FALSE),0) -> 384 | U46: =IFERROR(VLOOKUP($A46,FILTRO!$A$5:$AW$2602,19,FALSE),0) -> 243 | V46: =IFERROR(VLOOKUP($A46,FILTRO!$A$5:$AW$2602,20,FALSE),0) -> 692 | W46: =IFERROR(VLOOKUP($A46,FILTRO!$A$5:$AW$2602,21,FALSE),0) -> 456 | X46: =IFERROR(VLOOKUP($A46,FILTRO!$A$5:$AW$2602,22,FALSE),0) -> 1162 | Y46: =IFERROR(VLOOKUP($A46,FILTRO!$A$5:$AW$2602,23,FALSE),0) -> 743 | Z46: =IFERROR(VLOOKUP($A46,FILTRO!$A$5:$AW$2602,24,FALSE),0) -> 1820 | AA46: =IFERROR(VLOOKUP($A46,FILTRO!$A$5:$AW$2602,25,FALSE),0) -> 1142 | AB46: =IFERROR(VLOOKUP($A46,FILTRO!$A$5:$AW$2602,26,FALSE),0) -> 2760 | AC46: =IFERROR(VLOOKUP($A46,FILTRO!$A$5:$AW$2602,27,FALSE),0) -> 1920 | AD46: =IFERROR(VLOOKUP($A46,FILTRO!$A$5:$AW$2602,28,FALSE),0) -> 4015 | AE46: =IFERROR(VLOOKUP($A46,FILTRO!$A$5:$AW$2602,29,FALSE),0) -> 2483 | AF46: =IFERROR(VLOOKUP($A46,FILTRO!$A$5:$AW$2602,30,FALSE),0) -> 4709 | AG46: =IFERROR(VLOOKUP($A46,FILTRO!$A$5:$AW$2602,31,FALSE),0) -> 3269 | AH46: =IFERROR(VLOOKUP($A46,FILTRO!$A$5:$AW$2602,32,FALSE),0) -> 5140 | AI46: =IFERROR(VLOOKUP($A46,FILTRO!$A$5:$AW$2602,33,FALSE),0) -> 3081 | AJ46: =IFERROR(VLOOKUP($A46,FILTRO!$A$5:$AW$2602,34,FALSE),0) -> 4439 | AK46: =IFERROR(VLOOKUP($A46,FILTRO!$A$5:$AW$2602,35,FALSE),0) -> 2502 | AL46: =IFERROR(VLOOKUP($A46,FILTRO!$A$5:$AW$2602,36,FALSE),0) -> 3571 | AM46: =IFERROR(VLOOKUP($A46,FILTRO!$A$5:$AW$2602,37,FALSE),0) -> 3004 | AN46: =IFERROR(VLOOKUP($A46,FILTRO!$A$5:$AW$2602,38,FALSE),0) -> 4661 | AO46: =IFERROR(VLOOKUP($A46,FILTRO!$A$5:$AW$2602,39,FALSE),0) -> 387 | AP46: =IFERROR(VLOOKUP($A46,FILTRO!$A$5:$AW$2602,40,FALSE),0) -> 331 | DB46: 0 | DC46: 0 | DD46: 0 | DE46: 0
A47: 03010504 | C47: NUTRICIONISTA | D47: 49549 | E47: 16318 | F47: 33231 | G47: =IFERROR(VLOOKUP($A47,FILTRO!$A$5:$AW$2602,5,FALSE),0) -> 0 | H47: =IFERROR(VLOOKUP($A47,FILTRO!$A$5:$AW$2602,6,FALSE),0) -> 0 | I47: =IFERROR(VLOOKUP($A47,FILTRO!$A$5:$AW$2602,7,FALSE),0) -> 0 | J47: =IFERROR(VLOOKUP($A47,FILTRO!$A$5:$AW$2602,8,FALSE),0) -> 0 | K47: =IFERROR(VLOOKUP($A47,FILTRO!$A$5:$AW$2602,9,FALSE),0) -> 0 | L47: =IFERROR(VLOOKUP($A47,FILTRO!$A$5:$AW$2602,10,FALSE),0) -> 0 | M47: =IFERROR(VLOOKUP($A47,FILTRO!$A$5:$AW$2602,11,FALSE),0) -> 34 | N47: =IFERROR(VLOOKUP($A47,FILTRO!$A$5:$AW$2602,12,FALSE),0) -> 43 | O47: =IFERROR(VLOOKUP($A47,FILTRO!$A$5:$AW$2602,13,FALSE),0) -> 56 | P47: =IFERROR(VLOOKUP($A47,FILTRO!$A$5:$AW$2602,14,FALSE),0) -> 141 | Q47: =IFERROR(VLOOKUP($A47,FILTRO!$A$5:$AW$2602,15,FALSE),0) -> 87 | R47: =IFERROR(VLOOKUP($A47,FILTRO!$A$5:$AW$2602,16,FALSE),0) -> 238 | S47: =IFERROR(VLOOKUP($A47,FILTRO!$A$5:$AW$2602,17,FALSE),0) -> 177 | T47: =IFERROR(VLOOKUP($A47,FILTRO!$A$5:$AW$2602,18,FALSE),0) -> 474 | U47: =IFERROR(VLOOKUP($A47,FILTRO!$A$5:$AW$2602,19,FALSE),0) -> 248 | V47: =IFERROR(VLOOKUP($A47,FILTRO!$A$5:$AW$2602,20,FALSE),0) -> 805 | W47: =IFERROR(VLOOKUP($A47,FILTRO!$A$5:$AW$2602,21,FALSE),0) -> 414 | X47: =IFERROR(VLOOKUP($A47,FILTRO!$A$5:$AW$2602,22,FALSE),0) -> 1305 | Y47: =IFERROR(VLOOKUP($A47,FILTRO!$A$5:$AW$2602,23,FALSE),0) -> 690 | Z47: =IFERROR(VLOOKUP($A47,FILTRO!$A$5:$AW$2602,24,FALSE),0) -> 2032 | AA47: =IFERROR(VLOOKUP($A47,FILTRO!$A$5:$AW$2602,25,FALSE),0) -> 1056 | AB47: =IFERROR(VLOOKUP($A47,FILTRO!$A$5:$AW$2602,26,FALSE),0) -> 2956 | AC47: =IFERROR(VLOOKUP($A47,FILTRO!$A$5:$AW$2602,27,FALSE),0) -> 1579 | AD47: =IFERROR(VLOOKUP($A47,FILTRO!$A$5:$AW$2602,28,FALSE),0) -> 4279 | AE47: =IFERROR(VLOOKUP($A47,FILTRO!$A$5:$AW$2602,29,FALSE),0) -> 2239 | AF47: =IFERROR(VLOOKUP($A47,FILTRO!$A$5:$AW$2602,30,FALSE),0) -> 4828 | AG47: =IFERROR(VLOOKUP($A47,FILTRO!$A$5:$AW$2602,31,FALSE),0) -> 2679 | AH47: =IFERROR(VLOOKUP($A47,FILTRO!$A$5:$AW$2602,32,FALSE),0) -> 4870 | AI47: =IFERROR(VLOOKUP($A47,FILTRO!$A$5:$AW$2602,33,FALSE),0) -> 2589 | AJ47: =IFERROR(VLOOKUP($A47,FILTRO!$A$5:$AW$2602,34,FALSE),0) -> 4142 | AK47: =IFERROR(VLOOKUP($A47,FILTRO!$A$5:$AW$2602,35,FALSE),0) -> 2048 | AL47: =IFERROR(VLOOKUP($A47,FILTRO!$A$5:$AW$2602,36,FALSE),0) -> 3403 | AM47: =IFERROR(VLOOKUP($A47,FILTRO!$A$5:$AW$2602,37,FALSE),0) -> 2422 | AN47: =IFERROR(VLOOKUP($A47,FILTRO!$A$5:$AW$2602,38,FALSE),0) -> 3715 | AO47: =IFERROR(VLOOKUP($A47,FILTRO!$A$5:$AW$2602,39,FALSE),0) -> 755 | AP47: =IFERROR(VLOOKUP($A47,FILTRO!$A$5:$AW$2602,40,FALSE),0) -> 346 | DB47: 0 | DC47: 0 | DD47: 0 | DE47: 0
A48: 03010505 | C48: TÉCNICO EN ENFERMERÍA | D48: 576 | E48: 246 | F48: 330 | G48: =IFERROR(VLOOKUP($A48,FILTRO!$A$5:$AW$2602,5,FALSE),0) -> 0 | H48: =IFERROR(VLOOKUP($A48,FILTRO!$A$5:$AW$2602,6,FALSE),0) -> 0 | I48: =IFERROR(VLOOKUP($A48,FILTRO!$A$5:$AW$2602,7,FALSE),0) -> 0 | J48: =IFERROR(VLOOKUP($A48,FILTRO!$A$5:$AW$2602,8,FALSE),0) -> 0 | K48: =IFERROR(VLOOKUP($A48,FILTRO!$A$5:$AW$2602,9,FALSE),0) -> 0 | L48: =IFERROR(VLOOKUP($A48,FILTRO!$A$5:$AW$2602,10,FALSE),0) -> 0 | M48: =IFERROR(VLOOKUP($A48,FILTRO!$A$5:$AW$2602,11,FALSE),0) -> 1 | N48: =IFERROR(VLOOKUP($A48,FILTRO!$A$5:$AW$2602,12,FALSE),0) -> 0 | O48: =IFERROR(VLOOKUP($A48,FILTRO!$A$5:$AW$2602,13,FALSE),0) -> 0 | P48: =IFERROR(VLOOKUP($A48,FILTRO!$A$5:$AW$2602,14,FALSE),0) -> 1 | Q48: =IFERROR(VLOOKUP($A48,FILTRO!$A$5:$AW$2602,15,FALSE),0) -> 2 | R48: =IFERROR(VLOOKUP($A48,FILTRO!$A$5:$AW$2602,16,FALSE),0) -> 1 | S48: =IFERROR(VLOOKUP($A48,FILTRO!$A$5:$AW$2602,17,FALSE),0) -> 3 | T48: =IFERROR(VLOOKUP($A48,FILTRO!$A$5:$AW$2602,18,FALSE),0) -> 10 | U48: =IFERROR(VLOOKUP($A48,FILTRO!$A$5:$AW$2602,19,FALSE),0) -> 4 | V48: =IFERROR(VLOOKUP($A48,FILTRO!$A$5:$AW$2602,20,FALSE),0) -> 5 | W48: =IFERROR(VLOOKUP($A48,FILTRO!$A$5:$AW$2602,21,FALSE),0) -> 9 | X48: =IFERROR(VLOOKUP($A48,FILTRO!$A$5:$AW$2602,22,FALSE),0) -> 13 | Y48: =IFERROR(VLOOKUP($A48,FILTRO!$A$5:$AW$2602,23,FALSE),0) -> 23 | Z48: =IFERROR(VLOOKUP($A48,FILTRO!$A$5:$AW$2602,24,FALSE),0) -> 21 | AA48: =IFERROR(VLOOKUP($A48,FILTRO!$A$5:$AW$2602,25,FALSE),0) -> 10 | AB48: =IFERROR(VLOOKUP($A48,FILTRO!$A$5:$AW$2602,26,FALSE),0) -> 44 | AC48: =IFERROR(VLOOKUP($A48,FILTRO!$A$5:$AW$2602,27,FALSE),0) -> 31 | AD48: =IFERROR(VLOOKUP($A48,FILTRO!$A$5:$AW$2602,28,FALSE),0) -> 37 | AE48: =IFERROR(VLOOKUP($A48,FILTRO!$A$5:$AW$2602,29,FALSE),0) -> 32 | AF48: =IFERROR(VLOOKUP($A48,FILTRO!$A$5:$AW$2602,30,FALSE),0) -> 36 | AG48: =IFERROR(VLOOKUP($A48,FILTRO!$A$5:$AW$2602,31,FALSE),0) -> 31 | AH48: =IFERROR(VLOOKUP($A48,FILTRO!$A$5:$AW$2602,32,FALSE),0) -> 48 | AI48: =IFERROR(VLOOKUP($A48,FILTRO!$A$5:$AW$2602,33,FALSE),0) -> 30 | AJ48: =IFERROR(VLOOKUP($A48,FILTRO!$A$5:$AW$2602,34,FALSE),0) -> 39 | AK48: =IFERROR(VLOOKUP($A48,FILTRO!$A$5:$AW$2602,35,FALSE),0) -> 30 | AL48: =IFERROR(VLOOKUP($A48,FILTRO!$A$5:$AW$2602,36,FALSE),0) -> 35 | AM48: =IFERROR(VLOOKUP($A48,FILTRO!$A$5:$AW$2602,37,FALSE),0) -> 40 | AN48: =IFERROR(VLOOKUP($A48,FILTRO!$A$5:$AW$2602,38,FALSE),0) -> 40 | AO48: =IFERROR(VLOOKUP($A48,FILTRO!$A$5:$AW$2602,39,FALSE),0) -> 44 | AP48: =IFERROR(VLOOKUP($A48,FILTRO!$A$5:$AW$2602,40,FALSE),0) -> 8 | DB48: 0 | DC48: 0 | DD48: 0 | DE48: 0
A49: 01030100A | B49: SEGUIMIENTO AUTOVALENTE CON RIESGO | C49: MÉDICO/A | D49: 100 | E49: =SUM(AG49+AI49+AK49+AM49) -> 41 | F49: =SUM(AH49+AJ49+AL49+AN49) -> 59 | G49: =IFERROR(VLOOKUP($A49,FILTRO!$A$5:$AW$2602,5,FALSE),0) -> 0 | H49: =IFERROR(VLOOKUP($A49,FILTRO!$A$5:$AW$2602,6,FALSE),0) -> 0 | I49: =IFERROR(VLOOKUP($A49,FILTRO!$A$5:$AW$2602,7,FALSE),0) -> 0 | J49: =IFERROR(VLOOKUP($A49,FILTRO!$A$5:$AW$2602,8,FALSE),0) -> 0 | K49: =IFERROR(VLOOKUP($A49,FILTRO!$A$5:$AW$2602,9,FALSE),0) -> 0 | L49: =IFERROR(VLOOKUP($A49,FILTRO!$A$5:$AW$2602,10,FALSE),0) -> 0 | M49: =IFERROR(VLOOKUP($A49,FILTRO!$A$5:$AW$2602,11,FALSE),0) -> 0 | N49: =IFERROR(VLOOKUP($A49,FILTRO!$A$5:$AW$2602,12,FALSE),0) -> 0 | O49: =IFERROR(VLOOKUP($A49,FILTRO!$A$5:$AW$2602,13,FALSE),0) -> 0 | P49: =IFERROR(VLOOKUP($A49,FILTRO!$A$5:$AW$2602,14,FALSE),0) -> 0 | Q49: =IFERROR(VLOOKUP($A49,FILTRO!$A$5:$AW$2602,15,FALSE),0) -> 0 | R49: =IFERROR(VLOOKUP($A49,FILTRO!$A$5:$AW$2602,16,FALSE),0) -> 0 | S49: =IFERROR(VLOOKUP($A49,FILTRO!$A$5:$AW$2602,17,FALSE),0) -> 0 | T49: =IFERROR(VLOOKUP($A49,FILTRO!$A$5:$AW$2602,18,FALSE),0) -> 0 | U49: =IFERROR(VLOOKUP($A49,FILTRO!$A$5:$AW$2602,19,FALSE),0) -> 0 | V49: =IFERROR(VLOOKUP($A49,FILTRO!$A$5:$AW$2602,20,FALSE),0) -> 0 | W49: =IFERROR(VLOOKUP($A49,FILTRO!$A$5:$AW$2602,21,FALSE),0) -> 0 | X49: =IFERROR(VLOOKUP($A49,FILTRO!$A$5:$AW$2602,22,FALSE),0) -> 0 | Y49: =IFERROR(VLOOKUP($A49,FILTRO!$A$5:$AW$2602,23,FALSE),0) -> 0 | Z49: =IFERROR(VLOOKUP($A49,FILTRO!$A$5:$AW$2602,24,FALSE),0) -> 0 | AA49: =IFERROR(VLOOKUP($A49,FILTRO!$A$5:$AW$2602,25,FALSE),0) -> 0 | AB49: =IFERROR(VLOOKUP($A49,FILTRO!$A$5:$AW$2602,26,FALSE),0) -> 0 | AC49: =IFERROR(VLOOKUP($A49,FILTRO!$A$5:$AW$2602,27,FALSE),0) -> 0 | AD49: =IFERROR(VLOOKUP($A49,FILTRO!$A$5:$AW$2602,28,FALSE),0) -> 0 | AE49: =IFERROR(VLOOKUP($A49,FILTRO!$A$5:$AW$2602,29,FALSE),0) -> 0 | AF49: =IFERROR(VLOOKUP($A49,FILTRO!$A$5:$AW$2602,30,FALSE),0) -> 0 | AG49: =IFERROR(VLOOKUP($A49,FILTRO!$A$5:$AW$2602,31,FALSE),0) -> 9 | AH49: =IFERROR(VLOOKUP($A49,FILTRO!$A$5:$AW$2602,32,FALSE),0) -> 13 | AI49: =IFERROR(VLOOKUP($A49,FILTRO!$A$5:$AW$2602,33,FALSE),0) -> 12 | AJ49: =IFERROR(VLOOKUP($A49,FILTRO!$A$5:$AW$2602,34,FALSE),0) -> 12 | AK49: =IFERROR(VLOOKUP($A49,FILTRO!$A$5:$AW$2602,35,FALSE),0) -> 8 | AL49: =IFERROR(VLOOKUP($A49,FILTRO!$A$5:$AW$2602,36,FALSE),0) -> 19 | AM49: =IFERROR(VLOOKUP($A49,FILTRO!$A$5:$AW$2602,37,FALSE),0) -> 12 | AN49: =IFERROR(VLOOKUP($A49,FILTRO!$A$5:$AW$2602,38,FALSE),0) -> 15 | AO49: =IFERROR(VLOOKUP($A49,FILTRO!$A$5:$AW$2602,39,FALSE),0) -> 8 | AP49: =IFERROR(VLOOKUP($A49,FILTRO!$A$5:$AW$2602,40,FALSE),0) -> 8 | DB49: 0 | DC49: 0 | DD49: 0 | DE49: 0
A50: 01030200B | C50: ENFERMERA/O | D50: 1412 | E50: =SUM(AG50+AI50+AK50+AM50) -> 540 | F50: =SUM(AH50+AJ50+AL50+AN50) -> 872 | G50: =IFERROR(VLOOKUP($A50,FILTRO!$A$5:$AW$2602,5,FALSE),0) -> 0 | H50: =IFERROR(VLOOKUP($A50,FILTRO!$A$5:$AW$2602,6,FALSE),0) -> 0 | I50: =IFERROR(VLOOKUP($A50,FILTRO!$A$5:$AW$2602,7,FALSE),0) -> 0 | J50: =IFERROR(VLOOKUP($A50,FILTRO!$A$5:$AW$2602,8,FALSE),0) -> 0 | K50: =IFERROR(VLOOKUP($A50,FILTRO!$A$5:$AW$2602,9,FALSE),0) -> 0 | L50: =IFERROR(VLOOKUP($A50,FILTRO!$A$5:$AW$2602,10,FALSE),0) -> 0 | M50: =IFERROR(VLOOKUP($A50,FILTRO!$A$5:$AW$2602,11,FALSE),0) -> 0 | N50: =IFERROR(VLOOKUP($A50,FILTRO!$A$5:$AW$2602,12,FALSE),0) -> 0 | O50: =IFERROR(VLOOKUP($A50,FILTRO!$A$5:$AW$2602,13,FALSE),0) -> 0 | P50: =IFERROR(VLOOKUP($A50,FILTRO!$A$5:$AW$2602,14,FALSE),0) -> 0 | Q50: =IFERROR(VLOOKUP($A50,FILTRO!$A$5:$AW$2602,15,FALSE),0) -> 0 | R50: =IFERROR(VLOOKUP($A50,FILTRO!$A$5:$AW$2602,16,FALSE),0) -> 0 | S50: =IFERROR(VLOOKUP($A50,FILTRO!$A$5:$AW$2602,17,FALSE),0) -> 0 | T50: =IFERROR(VLOOKUP($A50,FILTRO!$A$5:$AW$2602,18,FALSE),0) -> 0 | U50: =IFERROR(VLOOKUP($A50,FILTRO!$A$5:$AW$2602,19,FALSE),0) -> 0 | V50: =IFERROR(VLOOKUP($A50,FILTRO!$A$5:$AW$2602,20,FALSE),0) -> 0 | W50: =IFERROR(VLOOKUP($A50,FILTRO!$A$5:$AW$2602,21,FALSE),0) -> 0 | X50: =IFERROR(VLOOKUP($A50,FILTRO!$A$5:$AW$2602,22,FALSE),0) -> 0 | Y50: =IFERROR(VLOOKUP($A50,FILTRO!$A$5:$AW$2602,23,FALSE),0) -> 0 | Z50: =IFERROR(VLOOKUP($A50,FILTRO!$A$5:$AW$2602,24,FALSE),0) -> 0 | AA50: =IFERROR(VLOOKUP($A50,FILTRO!$A$5:$AW$2602,25,FALSE),0) -> 0 | AB50: =IFERROR(VLOOKUP($A50,FILTRO!$A$5:$AW$2602,26,FALSE),0) -> 0 | AC50: =IFERROR(VLOOKUP($A50,FILTRO!$A$5:$AW$2602,27,FALSE),0) -> 0 | AD50: =IFERROR(VLOOKUP($A50,FILTRO!$A$5:$AW$2602,28,FALSE),0) -> 0 | AE50: =IFERROR(VLOOKUP($A50,FILTRO!$A$5:$AW$2602,29,FALSE),0) -> 0 | AF50: =IFERROR(VLOOKUP($A50,FILTRO!$A$5:$AW$2602,30,FALSE),0) -> 0 | AG50: =IFERROR(VLOOKUP($A50,FILTRO!$A$5:$AW$2602,31,FALSE),0) -> 117 | AH50: =IFERROR(VLOOKUP($A50,FILTRO!$A$5:$AW$2602,32,FALSE),0) -> 214 | AI50: =IFERROR(VLOOKUP($A50,FILTRO!$A$5:$AW$2602,33,FALSE),0) -> 159 | AJ50: =IFERROR(VLOOKUP($A50,FILTRO!$A$5:$AW$2602,34,FALSE),0) -> 252 | AK50: =IFERROR(VLOOKUP($A50,FILTRO!$A$5:$AW$2602,35,FALSE),0) -> 130 | AL50: =IFERROR(VLOOKUP($A50,FILTRO!$A$5:$AW$2602,36,FALSE),0) -> 202 | AM50: =IFERROR(VLOOKUP($A50,FILTRO!$A$5:$AW$2602,37,FALSE),0) -> 134 | AN50: =IFERROR(VLOOKUP($A50,FILTRO!$A$5:$AW$2602,38,FALSE),0) -> 204 | AO50: =IFERROR(VLOOKUP($A50,FILTRO!$A$5:$AW$2602,39,FALSE),0) -> 9 | AP50: =IFERROR(VLOOKUP($A50,FILTRO!$A$5:$AW$2602,40,FALSE),0) -> 9 | DB50: 0 | DC50: 0 | DD50: 0 | DE50: 0
A51: 09600204 | C51: OTROS PROFESIONALES DEBIDAMENTE CAPACITADOS | D51: 153 | E51: 63 | F51: 90 | G51: =IFERROR(VLOOKUP($A51,FILTRO!$A$5:$AW$2602,5,FALSE),0) -> 0 | H51: =IFERROR(VLOOKUP($A51,FILTRO!$A$5:$AW$2602,6,FALSE),0) -> 0 | I51: =IFERROR(VLOOKUP($A51,FILTRO!$A$5:$AW$2602,7,FALSE),0) -> 0 | J51: =IFERROR(VLOOKUP($A51,FILTRO!$A$5:$AW$2602,8,FALSE),0) -> 0 | K51: =IFERROR(VLOOKUP($A51,FILTRO!$A$5:$AW$2602,9,FALSE),0) -> 0 | L51: =IFERROR(VLOOKUP($A51,FILTRO!$A$5:$AW$2602,10,FALSE),0) -> 0 | M51: =IFERROR(VLOOKUP($A51,FILTRO!$A$5:$AW$2602,11,FALSE),0) -> 0 | N51: =IFERROR(VLOOKUP($A51,FILTRO!$A$5:$AW$2602,12,FALSE),0) -> 0 | O51: =IFERROR(VLOOKUP($A51,FILTRO!$A$5:$AW$2602,13,FALSE),0) -> 0 | P51: =IFERROR(VLOOKUP($A51,FILTRO!$A$5:$AW$2602,14,FALSE),0) -> 0 | Q51: =IFERROR(VLOOKUP($A51,FILTRO!$A$5:$AW$2602,15,FALSE),0) -> 0 | R51: =IFERROR(VLOOKUP($A51,FILTRO!$A$5:$AW$2602,16,FALSE),0) -> 0 | S51: =IFERROR(VLOOKUP($A51,FILTRO!$A$5:$AW$2602,17,FALSE),0) -> 0 | T51: =IFERROR(VLOOKUP($A51,FILTRO!$A$5:$AW$2602,18,FALSE),0) -> 0 | U51: =IFERROR(VLOOKUP($A51,FILTRO!$A$5:$AW$2602,19,FALSE),0) -> 0 | V51: =IFERROR(VLOOKUP($A51,FILTRO!$A$5:$AW$2602,20,FALSE),0) -> 0 | W51: =IFERROR(VLOOKUP($A51,FILTRO!$A$5:$AW$2602,21,FALSE),0) -> 0 | X51: =IFERROR(VLOOKUP($A51,FILTRO!$A$5:$AW$2602,22,FALSE),0) -> 0 | Y51: =IFERROR(VLOOKUP($A51,FILTRO!$A$5:$AW$2602,23,FALSE),0) -> 0 | Z51: =IFERROR(VLOOKUP($A51,FILTRO!$A$5:$AW$2602,24,FALSE),0) -> 0 | AA51: =IFERROR(VLOOKUP($A51,FILTRO!$A$5:$AW$2602,25,FALSE),0) -> 0 | AB51: =IFERROR(VLOOKUP($A51,FILTRO!$A$5:$AW$2602,26,FALSE),0) -> 0 | AC51: =IFERROR(VLOOKUP($A51,FILTRO!$A$5:$AW$2602,27,FALSE),0) -> 0 | AD51: =IFERROR(VLOOKUP($A51,FILTRO!$A$5:$AW$2602,28,FALSE),0) -> 0 | AE51: =IFERROR(VLOOKUP($A51,FILTRO!$A$5:$AW$2602,29,FALSE),0) -> 0 | AF51: =IFERROR(VLOOKUP($A51,FILTRO!$A$5:$AW$2602,30,FALSE),0) -> 0 | AG51: =IFERROR(VLOOKUP($A51,FILTRO!$A$5:$AW$2602,31,FALSE),0) -> 13 | AH51: =IFERROR(VLOOKUP($A51,FILTRO!$A$5:$AW$2602,32,FALSE),0) -> 24 | AI51: =IFERROR(VLOOKUP($A51,FILTRO!$A$5:$AW$2602,33,FALSE),0) -> 18 | AJ51: =IFERROR(VLOOKUP($A51,FILTRO!$A$5:$AW$2602,34,FALSE),0) -> 31 | AK51: =IFERROR(VLOOKUP($A51,FILTRO!$A$5:$AW$2602,35,FALSE),0) -> 16 | AL51: =IFERROR(VLOOKUP($A51,FILTRO!$A$5:$AW$2602,36,FALSE),0) -> 17 | AM51: =IFERROR(VLOOKUP($A51,FILTRO!$A$5:$AW$2602,37,FALSE),0) -> 16 | AN51: =IFERROR(VLOOKUP($A51,FILTRO!$A$5:$AW$2602,38,FALSE),0) -> 18 | AO51: =IFERROR(VLOOKUP($A51,FILTRO!$A$5:$AW$2602,39,FALSE),0) -> 8 | AP51: =IFERROR(VLOOKUP($A51,FILTRO!$A$5:$AW$2602,40,FALSE),0) -> 8 | DB51: 0 | DC51: 0 | DD51: 0 | DE51: 0
A52: 01030300C | B52: SEGUIMIENTO RIESGO DEPENDENCIA | C52: MÉDICO/A | D52: 99 | E52: 48 | F52: 51 | G52: =IFERROR(VLOOKUP($A52,FILTRO!$A$5:$AW$2602,5,FALSE),0) -> 0 | H52: =IFERROR(VLOOKUP($A52,FILTRO!$A$5:$AW$2602,6,FALSE),0) -> 0 | I52: =IFERROR(VLOOKUP($A52,FILTRO!$A$5:$AW$2602,7,FALSE),0) -> 0 | J52: =IFERROR(VLOOKUP($A52,FILTRO!$A$5:$AW$2602,8,FALSE),0) -> 0 | K52: =IFERROR(VLOOKUP($A52,FILTRO!$A$5:$AW$2602,9,FALSE),0) -> 0 | L52: =IFERROR(VLOOKUP($A52,FILTRO!$A$5:$AW$2602,10,FALSE),0) -> 0 | M52: =IFERROR(VLOOKUP($A52,FILTRO!$A$5:$AW$2602,11,FALSE),0) -> 0 | N52: =IFERROR(VLOOKUP($A52,FILTRO!$A$5:$AW$2602,12,FALSE),0) -> 0 | O52: =IFERROR(VLOOKUP($A52,FILTRO!$A$5:$AW$2602,13,FALSE),0) -> 0 | P52: =IFERROR(VLOOKUP($A52,FILTRO!$A$5:$AW$2602,14,FALSE),0) -> 0 | Q52: =IFERROR(VLOOKUP($A52,FILTRO!$A$5:$AW$2602,15,FALSE),0) -> 0 | R52: =IFERROR(VLOOKUP($A52,FILTRO!$A$5:$AW$2602,16,FALSE),0) -> 0 | S52: =IFERROR(VLOOKUP($A52,FILTRO!$A$5:$AW$2602,17,FALSE),0) -> 0 | T52: =IFERROR(VLOOKUP($A52,FILTRO!$A$5:$AW$2602,18,FALSE),0) -> 0 | U52: =IFERROR(VLOOKUP($A52,FILTRO!$A$5:$AW$2602,19,FALSE),0) -> 0 | V52: =IFERROR(VLOOKUP($A52,FILTRO!$A$5:$AW$2602,20,FALSE),0) -> 0 | W52: =IFERROR(VLOOKUP($A52,FILTRO!$A$5:$AW$2602,21,FALSE),0) -> 0 | X52: =IFERROR(VLOOKUP($A52,FILTRO!$A$5:$AW$2602,22,FALSE),0) -> 0 | Y52: =IFERROR(VLOOKUP($A52,FILTRO!$A$5:$AW$2602,23,FALSE),0) -> 0 | Z52: =IFERROR(VLOOKUP($A52,FILTRO!$A$5:$AW$2602,24,FALSE),0) -> 0 | AA52: =IFERROR(VLOOKUP($A52,FILTRO!$A$5:$AW$2602,25,FALSE),0) -> 0 | AB52: =IFERROR(VLOOKUP($A52,FILTRO!$A$5:$AW$2602,26,FALSE),0) -> 0 | AC52: =IFERROR(VLOOKUP($A52,FILTRO!$A$5:$AW$2602,27,FALSE),0) -> 0 | AD52: =IFERROR(VLOOKUP($A52,FILTRO!$A$5:$AW$2602,28,FALSE),0) -> 0 | AE52: =IFERROR(VLOOKUP($A52,FILTRO!$A$5:$AW$2602,29,FALSE),0) -> 0 | AF52: =IFERROR(VLOOKUP($A52,FILTRO!$A$5:$AW$2602,30,FALSE),0) -> 0 | AG52: =IFERROR(VLOOKUP($A52,FILTRO!$A$5:$AW$2602,31,FALSE),0) -> 11 | AH52: =IFERROR(VLOOKUP($A52,FILTRO!$A$5:$AW$2602,32,FALSE),0) -> 15 | AI52: =IFERROR(VLOOKUP($A52,FILTRO!$A$5:$AW$2602,33,FALSE),0) -> 13 | AJ52: =IFERROR(VLOOKUP($A52,FILTRO!$A$5:$AW$2602,34,FALSE),0) -> 11 | AK52: =IFERROR(VLOOKUP($A52,FILTRO!$A$5:$AW$2602,35,FALSE),0) -> 11 | AL52: =IFERROR(VLOOKUP($A52,FILTRO!$A$5:$AW$2602,36,FALSE),0) -> 11 | AM52: =IFERROR(VLOOKUP($A52,FILTRO!$A$5:$AW$2602,37,FALSE),0) -> 13 | AN52: =IFERROR(VLOOKUP($A52,FILTRO!$A$5:$AW$2602,38,FALSE),0) -> 14 | AO52: =IFERROR(VLOOKUP($A52,FILTRO!$A$5:$AW$2602,39,FALSE),0) -> 9 | AP52: =IFERROR(VLOOKUP($A52,FILTRO!$A$5:$AW$2602,40,FALSE),0) -> 8 | DB52: 0 | DC52: 0 | DD52: 0 | DE52: 0
A53: 01030400D | C53: ENFERMERA/O | D53: 639 | E53: =SUM(AG53+AI53+AK53+AM53) -> 237 | F53: =SUM(AH53+AJ53+AL53+AN53) -> 402 | G53: =IFERROR(VLOOKUP($A53,FILTRO!$A$5:$AW$2602,5,FALSE),0) -> 0 | H53: =IFERROR(VLOOKUP($A53,FILTRO!$A$5:$AW$2602,6,FALSE),0) -> 0 | I53: =IFERROR(VLOOKUP($A53,FILTRO!$A$5:$AW$2602,7,FALSE),0) -> 0 | J53: =IFERROR(VLOOKUP($A53,FILTRO!$A$5:$AW$2602,8,FALSE),0) -> 0 | K53: =IFERROR(VLOOKUP($A53,FILTRO!$A$5:$AW$2602,9,FALSE),0) -> 0 | L53: =IFERROR(VLOOKUP($A53,FILTRO!$A$5:$AW$2602,10,FALSE),0) -> 0 | M53: =IFERROR(VLOOKUP($A53,FILTRO!$A$5:$AW$2602,11,FALSE),0) -> 0 | N53: =IFERROR(VLOOKUP($A53,FILTRO!$A$5:$AW$2602,12,FALSE),0) -> 0 | O53: =IFERROR(VLOOKUP($A53,FILTRO!$A$5:$AW$2602,13,FALSE),0) -> 0 | P53: =IFERROR(VLOOKUP($A53,FILTRO!$A$5:$AW$2602,14,FALSE),0) -> 0 | Q53: =IFERROR(VLOOKUP($A53,FILTRO!$A$5:$AW$2602,15,FALSE),0) -> 0 | R53: =IFERROR(VLOOKUP($A53,FILTRO!$A$5:$AW$2602,16,FALSE),0) -> 0 | S53: =IFERROR(VLOOKUP($A53,FILTRO!$A$5:$AW$2602,17,FALSE),0) -> 0 | T53: =IFERROR(VLOOKUP($A53,FILTRO!$A$5:$AW$2602,18,FALSE),0) -> 0 | U53: =IFERROR(VLOOKUP($A53,FILTRO!$A$5:$AW$2602,19,FALSE),0) -> 0 | V53: =IFERROR(VLOOKUP($A53,FILTRO!$A$5:$AW$2602,20,FALSE),0) -> 0 | W53: =IFERROR(VLOOKUP($A53,FILTRO!$A$5:$AW$2602,21,FALSE),0) -> 0 | X53: =IFERROR(VLOOKUP($A53,FILTRO!$A$5:$AW$2602,22,FALSE),0) -> 0 | Y53: =IFERROR(VLOOKUP($A53,FILTRO!$A$5:$AW$2602,23,FALSE),0) -> 0 | Z53: =IFERROR(VLOOKUP($A53,FILTRO!$A$5:$AW$2602,24,FALSE),0) -> 0 | AA53: =IFERROR(VLOOKUP($A53,FILTRO!$A$5:$AW$2602,25,FALSE),0) -> 0 | AB53: =IFERROR(VLOOKUP($A53,FILTRO!$A$5:$AW$2602,26,FALSE),0) -> 0 | AC53: =IFERROR(VLOOKUP($A53,FILTRO!$A$5:$AW$2602,27,FALSE),0) -> 0 | AD53: =IFERROR(VLOOKUP($A53,FILTRO!$A$5:$AW$2602,28,FALSE),0) -> 0 | AE53: =IFERROR(VLOOKUP($A53,FILTRO!$A$5:$AW$2602,29,FALSE),0) -> 0 | AF53: =IFERROR(VLOOKUP($A53,FILTRO!$A$5:$AW$2602,30,FALSE),0) -> 0 | AG53: =IFERROR(VLOOKUP($A53,FILTRO!$A$5:$AW$2602,31,FALSE),0) -> 29 | AH53: =IFERROR(VLOOKUP($A53,FILTRO!$A$5:$AW$2602,32,FALSE),0) -> 40 | AI53: =IFERROR(VLOOKUP($A53,FILTRO!$A$5:$AW$2602,33,FALSE),0) -> 43 | AJ53: =IFERROR(VLOOKUP($A53,FILTRO!$A$5:$AW$2602,34,FALSE),0) -> 89 | AK53: =IFERROR(VLOOKUP($A53,FILTRO!$A$5:$AW$2602,35,FALSE),0) -> 46 | AL53: =IFERROR(VLOOKUP($A53,FILTRO!$A$5:$AW$2602,36,FALSE),0) -> 83 | AM53: =IFERROR(VLOOKUP($A53,FILTRO!$A$5:$AW$2602,37,FALSE),0) -> 119 | AN53: =IFERROR(VLOOKUP($A53,FILTRO!$A$5:$AW$2602,38,FALSE),0) -> 190 | AO53: =IFERROR(VLOOKUP($A53,FILTRO!$A$5:$AW$2602,39,FALSE),0) -> 14 | AP53: =IFERROR(VLOOKUP($A53,FILTRO!$A$5:$AW$2602,40,FALSE),0) -> 8 | DB53: 0 | DC53: 0 | DD53: 0 | DE53: 0
A54: 09600205 | C54: OTROS PROFESIONALES DEBIDAMENTE CAPACITADOS | D54: 102 | E54: 47 | F54: 55 | G54: =IFERROR(VLOOKUP($A54,FILTRO!$A$5:$AW$2602,5,FALSE),0) -> 0 | H54: =IFERROR(VLOOKUP($A54,FILTRO!$A$5:$AW$2602,6,FALSE),0) -> 0 | I54: =IFERROR(VLOOKUP($A54,FILTRO!$A$5:$AW$2602,7,FALSE),0) -> 0 | J54: =IFERROR(VLOOKUP($A54,FILTRO!$A$5:$AW$2602,8,FALSE),0) -> 0 | K54: =IFERROR(VLOOKUP($A54,FILTRO!$A$5:$AW$2602,9,FALSE),0) -> 0 | L54: =IFERROR(VLOOKUP($A54,FILTRO!$A$5:$AW$2602,10,FALSE),0) -> 0 | M54: =IFERROR(VLOOKUP($A54,FILTRO!$A$5:$AW$2602,11,FALSE),0) -> 0 | N54: =IFERROR(VLOOKUP($A54,FILTRO!$A$5:$AW$2602,12,FALSE),0) -> 0 | O54: =IFERROR(VLOOKUP($A54,FILTRO!$A$5:$AW$2602,13,FALSE),0) -> 0 | P54: =IFERROR(VLOOKUP($A54,FILTRO!$A$5:$AW$2602,14,FALSE),0) -> 0 | Q54: =IFERROR(VLOOKUP($A54,FILTRO!$A$5:$AW$2602,15,FALSE),0) -> 0 | R54: =IFERROR(VLOOKUP($A54,FILTRO!$A$5:$AW$2602,16,FALSE),0) -> 0 | S54: =IFERROR(VLOOKUP($A54,FILTRO!$A$5:$AW$2602,17,FALSE),0) -> 0 | T54: =IFERROR(VLOOKUP($A54,FILTRO!$A$5:$AW$2602,18,FALSE),0) -> 0 | U54: =IFERROR(VLOOKUP($A54,FILTRO!$A$5:$AW$2602,19,FALSE),0) -> 0 | V54: =IFERROR(VLOOKUP($A54,FILTRO!$A$5:$AW$2602,20,FALSE),0) -> 0 | W54: =IFERROR(VLOOKUP($A54,FILTRO!$A$5:$AW$2602,21,FALSE),0) -> 0 | X54: =IFERROR(VLOOKUP($A54,FILTRO!$A$5:$AW$2602,22,FALSE),0) -> 0 | Y54: =IFERROR(VLOOKUP($A54,FILTRO!$A$5:$AW$2602,23,FALSE),0) -> 0 | Z54: =IFERROR(VLOOKUP($A54,FILTRO!$A$5:$AW$2602,24,FALSE),0) -> 0 | AA54: =IFERROR(VLOOKUP($A54,FILTRO!$A$5:$AW$2602,25,FALSE),0) -> 0 | AB54: =IFERROR(VLOOKUP($A54,FILTRO!$A$5:$AW$2602,26,FALSE),0) -> 0 | AC54: =IFERROR(VLOOKUP($A54,FILTRO!$A$5:$AW$2602,27,FALSE),0) -> 0 | AD54: =IFERROR(VLOOKUP($A54,FILTRO!$A$5:$AW$2602,28,FALSE),0) -> 0 | AE54: =IFERROR(VLOOKUP($A54,FILTRO!$A$5:$AW$2602,29,FALSE),0) -> 0 | AF54: =IFERROR(VLOOKUP($A54,FILTRO!$A$5:$AW$2602,30,FALSE),0) -> 0 | AG54: =IFERROR(VLOOKUP($A54,FILTRO!$A$5:$AW$2602,31,FALSE),0) -> 9 | AH54: =IFERROR(VLOOKUP($A54,FILTRO!$A$5:$AW$2602,32,FALSE),0) -> 11 | AI54: =IFERROR(VLOOKUP($A54,FILTRO!$A$5:$AW$2602,33,FALSE),0) -> 11 | AJ54: =IFERROR(VLOOKUP($A54,FILTRO!$A$5:$AW$2602,34,FALSE),0) -> 15 | AK54: =IFERROR(VLOOKUP($A54,FILTRO!$A$5:$AW$2602,35,FALSE),0) -> 14 | AL54: =IFERROR(VLOOKUP($A54,FILTRO!$A$5:$AW$2602,36,FALSE),0) -> 13 | AM54: =IFERROR(VLOOKUP($A54,FILTRO!$A$5:$AW$2602,37,FALSE),0) -> 13 | AN54: =IFERROR(VLOOKUP($A54,FILTRO!$A$5:$AW$2602,38,FALSE),0) -> 16 | AO54: =IFERROR(VLOOKUP($A54,FILTRO!$A$5:$AW$2602,39,FALSE),0) -> 8 | AP54: =IFERROR(VLOOKUP($A54,FILTRO!$A$5:$AW$2602,40,FALSE),0) -> 8 | DB54: 0 | DC54: 0 | DD54: 0 | DE54: 0
A55: 01200010 | B55: DE INFECCIÓN TRANSMISIÓN SEXUAL | C55: MÉDICO/A | D55: 50 | E55: =SUM(G55+I55+K55+M55+O55+Q55+S55+U55+W55+Y55+AA55+AC55+AE55+AG55+AI55+AK55+AM55) -> 15 | F55: =SUM(H55+J55+L55+N55+P55+R55+T55+V55+X55+Z55+AB55+AD55+AF55+AH55+AJ55+AL55+AN55) -> 35 | G55: =IFERROR(VLOOKUP($A55,FILTRO!$A$5:$AW$2602,5,FALSE),0) -> 0 | H55: =IFERROR(VLOOKUP($A55,FILTRO!$A$5:$AW$2602,6,FALSE),0) -> 0 | I55: =IFERROR(VLOOKUP($A55,FILTRO!$A$5:$AW$2602,7,FALSE),0) -> 0 | J55: =IFERROR(VLOOKUP($A55,FILTRO!$A$5:$AW$2602,8,FALSE),0) -> 0 | K55: =IFERROR(VLOOKUP($A55,FILTRO!$A$5:$AW$2602,9,FALSE),0) -> 0 | L55: =IFERROR(VLOOKUP($A55,FILTRO!$A$5:$AW$2602,10,FALSE),0) -> 0 | M55: =IFERROR(VLOOKUP($A55,FILTRO!$A$5:$AW$2602,11,FALSE),0) -> 1 | N55: =IFERROR(VLOOKUP($A55,FILTRO!$A$5:$AW$2602,12,FALSE),0) -> 1 | O55: =IFERROR(VLOOKUP($A55,FILTRO!$A$5:$AW$2602,13,FALSE),0) -> 1 | P55: =IFERROR(VLOOKUP($A55,FILTRO!$A$5:$AW$2602,14,FALSE),0) -> 1 | Q55: =IFERROR(VLOOKUP($A55,FILTRO!$A$5:$AW$2602,15,FALSE),0) -> 1 | R55: =IFERROR(VLOOKUP($A55,FILTRO!$A$5:$AW$2602,16,FALSE),0) -> 0 | S55: =IFERROR(VLOOKUP($A55,FILTRO!$A$5:$AW$2602,17,FALSE),0) -> 1 | T55: =IFERROR(VLOOKUP($A55,FILTRO!$A$5:$AW$2602,18,FALSE),0) -> 1 | U55: =IFERROR(VLOOKUP($A55,FILTRO!$A$5:$AW$2602,19,FALSE),0) -> 1 | V55: =IFERROR(VLOOKUP($A55,FILTRO!$A$5:$AW$2602,20,FALSE),0) -> 0 | W55: =IFERROR(VLOOKUP($A55,FILTRO!$A$5:$AW$2602,21,FALSE),0) -> 0 | X55: =IFERROR(VLOOKUP($A55,FILTRO!$A$5:$AW$2602,22,FALSE),0) -> 0 | Y55: =IFERROR(VLOOKUP($A55,FILTRO!$A$5:$AW$2602,23,FALSE),0) -> 0 | Z55: =IFERROR(VLOOKUP($A55,FILTRO!$A$5:$AW$2602,24,FALSE),0) -> 1 | AA55: =IFERROR(VLOOKUP($A55,FILTRO!$A$5:$AW$2602,25,FALSE),0) -> 0 | AB55: =IFERROR(VLOOKUP($A55,FILTRO!$A$5:$AW$2602,26,FALSE),0) -> 2 | AC55: =IFERROR(VLOOKUP($A55,FILTRO!$A$5:$AW$2602,27,FALSE),0) -> 1 | AD55: =IFERROR(VLOOKUP($A55,FILTRO!$A$5:$AW$2602,28,FALSE),0) -> 4 | AE55: =IFERROR(VLOOKUP($A55,FILTRO!$A$5:$AW$2602,29,FALSE),0) -> 0 | AF55: =IFERROR(VLOOKUP($A55,FILTRO!$A$5:$AW$2602,30,FALSE),0) -> 9 | AG55: =IFERROR(VLOOKUP($A55,FILTRO!$A$5:$AW$2602,31,FALSE),0) -> 2 | AH55: =IFERROR(VLOOKUP($A55,FILTRO!$A$5:$AW$2602,32,FALSE),0) -> 5 | AI55: =IFERROR(VLOOKUP($A55,FILTRO!$A$5:$AW$2602,33,FALSE),0) -> 4 | AJ55: =IFERROR(VLOOKUP($A55,FILTRO!$A$5:$AW$2602,34,FALSE),0) -> 5 | AK55: =IFERROR(VLOOKUP($A55,FILTRO!$A$5:$AW$2602,35,FALSE),0) -> 2 | AL55: =IFERROR(VLOOKUP($A55,FILTRO!$A$5:$AW$2602,36,FALSE),0) -> 2 | AM55: =IFERROR(VLOOKUP($A55,FILTRO!$A$5:$AW$2602,37,FALSE),0) -> 1 | AN55: =IFERROR(VLOOKUP($A55,FILTRO!$A$5:$AW$2602,38,FALSE),0) -> 4 | AO55: =IFERROR(VLOOKUP($A55,FILTRO!$A$5:$AW$2602,39,FALSE),0) -> 0 | AP55: =IFERROR(VLOOKUP($A55,FILTRO!$A$5:$AW$2602,40,FALSE),0) -> 0 | DB55: 0 | DC55: 0 | DD55: 0 | DE55: 0
A56: 01200020 | C56: ENFERMERA/O | D56: 238 | E56: =SUM(G56+I56+K56+M56+O56+Q56+S56+U56+W56+Y56+AA56+AC56+AE56+AG56+AI56+AK56+AM56) -> 72 | F56: 166 | G56: =IFERROR(VLOOKUP($A56,FILTRO!$A$5:$AW$2602,5,FALSE),0) -> 0 | H56: =IFERROR(VLOOKUP($A56,FILTRO!$A$5:$AW$2602,6,FALSE),0) -> 0 | I56: =IFERROR(VLOOKUP($A56,FILTRO!$A$5:$AW$2602,7,FALSE),0) -> 2 | J56: =IFERROR(VLOOKUP($A56,FILTRO!$A$5:$AW$2602,8,FALSE),0) -> 1 | K56: =IFERROR(VLOOKUP($A56,FILTRO!$A$5:$AW$2602,9,FALSE),0) -> 0 | L56: =IFERROR(VLOOKUP($A56,FILTRO!$A$5:$AW$2602,10,FALSE),0) -> 4 | M56: =IFERROR(VLOOKUP($A56,FILTRO!$A$5:$AW$2602,11,FALSE),0) -> 0 | N56: =IFERROR(VLOOKUP($A56,FILTRO!$A$5:$AW$2602,12,FALSE),0) -> 1 | O56: =IFERROR(VLOOKUP($A56,FILTRO!$A$5:$AW$2602,13,FALSE),0) -> 1 | P56: =IFERROR(VLOOKUP($A56,FILTRO!$A$5:$AW$2602,14,FALSE),0) -> 2 | Q56: =IFERROR(VLOOKUP($A56,FILTRO!$A$5:$AW$2602,15,FALSE),0) -> 0 | R56: =IFERROR(VLOOKUP($A56,FILTRO!$A$5:$AW$2602,16,FALSE),0) -> 10 | S56: =IFERROR(VLOOKUP($A56,FILTRO!$A$5:$AW$2602,17,FALSE),0) -> 2 | T56: =IFERROR(VLOOKUP($A56,FILTRO!$A$5:$AW$2602,18,FALSE),0) -> 4 | U56: =IFERROR(VLOOKUP($A56,FILTRO!$A$5:$AW$2602,19,FALSE),0) -> 4 | V56: =IFERROR(VLOOKUP($A56,FILTRO!$A$5:$AW$2602,20,FALSE),0) -> 12 | W56: =IFERROR(VLOOKUP($A56,FILTRO!$A$5:$AW$2602,21,FALSE),0) -> 0 | X56: =IFERROR(VLOOKUP($A56,FILTRO!$A$5:$AW$2602,22,FALSE),0) -> 19 | Y56: =IFERROR(VLOOKUP($A56,FILTRO!$A$5:$AW$2602,23,FALSE),0) -> 1 | Z56: =IFERROR(VLOOKUP($A56,FILTRO!$A$5:$AW$2602,24,FALSE),0) -> 7 | AA56: =IFERROR(VLOOKUP($A56,FILTRO!$A$5:$AW$2602,25,FALSE),0) -> 2 | AB56: =IFERROR(VLOOKUP($A56,FILTRO!$A$5:$AW$2602,26,FALSE),0) -> 13 | AC56: =IFERROR(VLOOKUP($A56,FILTRO!$A$5:$AW$2602,27,FALSE),0) -> 8 | AD56: =IFERROR(VLOOKUP($A56,FILTRO!$A$5:$AW$2602,28,FALSE),0) -> 16 | AE56: =IFERROR(VLOOKUP($A56,FILTRO!$A$5:$AW$2602,29,FALSE),0) -> 16 | AF56: =IFERROR(VLOOKUP($A56,FILTRO!$A$5:$AW$2602,30,FALSE),0) -> 12 | AG56: =IFERROR(VLOOKUP($A56,FILTRO!$A$5:$AW$2602,31,FALSE),0) -> 11 | AH56: =IFERROR(VLOOKUP($A56,FILTRO!$A$5:$AW$2602,32,FALSE),0) -> 20 | AI56: =IFERROR(VLOOKUP($A56,FILTRO!$A$5:$AW$2602,33,FALSE),0) -> 10 | AJ56: =IFERROR(VLOOKUP($A56,FILTRO!$A$5:$AW$2602,34,FALSE),0) -> 17 | AK56: =IFERROR(VLOOKUP($A56,FILTRO!$A$5:$AW$2602,35,FALSE),0) -> 8 | AL56: =IFERROR(VLOOKUP($A56,FILTRO!$A$5:$AW$2602,36,FALSE),0) -> 14 | AM56: =IFERROR(VLOOKUP($A56,FILTRO!$A$5:$AW$2602,37,FALSE),0) -> 7 | AN56: =IFERROR(VLOOKUP($A56,FILTRO!$A$5:$AW$2602,38,FALSE),0) -> 14 | AO56: =IFERROR(VLOOKUP($A56,FILTRO!$A$5:$AW$2602,39,FALSE),0) -> 6 | AP56: =IFERROR(VLOOKUP($A56,FILTRO!$A$5:$AW$2602,40,FALSE),0) -> 6 | DB56: 0 | DC56: 0 | DD56: 0 | DE56: 0
A57: 01200030 | C57: MATRONA/ÓN | D57: 228 | E57: =SUM(G57+I57+K57+M57+O57+Q57+S57+U57+W57+Y57+AA57+AC57+AE57+AG57+AI57+AK57+AM57) -> 46 | F57: 182 | G57: =IFERROR(VLOOKUP($A57,FILTRO!$A$5:$AW$2602,5,FALSE),0) -> 0 | H57: =IFERROR(VLOOKUP($A57,FILTRO!$A$5:$AW$2602,6,FALSE),0) -> 1 | I57: =IFERROR(VLOOKUP($A57,FILTRO!$A$5:$AW$2602,7,FALSE),0) -> 0 | J57: =IFERROR(VLOOKUP($A57,FILTRO!$A$5:$AW$2602,8,FALSE),0) -> 0 | K57: =IFERROR(VLOOKUP($A57,FILTRO!$A$5:$AW$2602,9,FALSE),0) -> 0 | L57: =IFERROR(VLOOKUP($A57,FILTRO!$A$5:$AW$2602,10,FALSE),0) -> 0 | M57: =IFERROR(VLOOKUP($A57,FILTRO!$A$5:$AW$2602,11,FALSE),0) -> 2 | N57: =IFERROR(VLOOKUP($A57,FILTRO!$A$5:$AW$2602,12,FALSE),0) -> 4 | O57: =IFERROR(VLOOKUP($A57,FILTRO!$A$5:$AW$2602,13,FALSE),0) -> 10 | P57: =IFERROR(VLOOKUP($A57,FILTRO!$A$5:$AW$2602,14,FALSE),0) -> 52 | Q57: =IFERROR(VLOOKUP($A57,FILTRO!$A$5:$AW$2602,15,FALSE),0) -> 7 | R57: =IFERROR(VLOOKUP($A57,FILTRO!$A$5:$AW$2602,16,FALSE),0) -> 32 | S57: =IFERROR(VLOOKUP($A57,FILTRO!$A$5:$AW$2602,17,FALSE),0) -> 7 | T57: =IFERROR(VLOOKUP($A57,FILTRO!$A$5:$AW$2602,18,FALSE),0) -> 25 | U57: =IFERROR(VLOOKUP($A57,FILTRO!$A$5:$AW$2602,19,FALSE),0) -> 9 | V57: =IFERROR(VLOOKUP($A57,FILTRO!$A$5:$AW$2602,20,FALSE),0) -> 17 | W57: =IFERROR(VLOOKUP($A57,FILTRO!$A$5:$AW$2602,21,FALSE),0) -> 6 | X57: =IFERROR(VLOOKUP($A57,FILTRO!$A$5:$AW$2602,22,FALSE),0) -> 17 | Y57: =IFERROR(VLOOKUP($A57,FILTRO!$A$5:$AW$2602,23,FALSE),0) -> 3 | Z57: =IFERROR(VLOOKUP($A57,FILTRO!$A$5:$AW$2602,24,FALSE),0) -> 6 | AA57: =IFERROR(VLOOKUP($A57,FILTRO!$A$5:$AW$2602,25,FALSE),0) -> 1 | AB57: =IFERROR(VLOOKUP($A57,FILTRO!$A$5:$AW$2602,26,FALSE),0) -> 12 | AC57: =IFERROR(VLOOKUP($A57,FILTRO!$A$5:$AW$2602,27,FALSE),0) -> 0 | AD57: =IFERROR(VLOOKUP($A57,FILTRO!$A$5:$AW$2602,28,FALSE),0) -> 6 | AE57: =IFERROR(VLOOKUP($A57,FILTRO!$A$5:$AW$2602,29,FALSE),0) -> 0 | AF57: =IFERROR(VLOOKUP($A57,FILTRO!$A$5:$AW$2602,30,FALSE),0) -> 1 | AG57: =IFERROR(VLOOKUP($A57,FILTRO!$A$5:$AW$2602,31,FALSE),0) -> 1 | AH57: =IFERROR(VLOOKUP($A57,FILTRO!$A$5:$AW$2602,32,FALSE),0) -> 2 | AI57: =IFERROR(VLOOKUP($A57,FILTRO!$A$5:$AW$2602,33,FALSE),0) -> 0 | AJ57: =IFERROR(VLOOKUP($A57,FILTRO!$A$5:$AW$2602,34,FALSE),0) -> 1 | AK57: =IFERROR(VLOOKUP($A57,FILTRO!$A$5:$AW$2602,35,FALSE),0) -> 0 | AL57: =IFERROR(VLOOKUP($A57,FILTRO!$A$5:$AW$2602,36,FALSE),0) -> 5 | AM57: =IFERROR(VLOOKUP($A57,FILTRO!$A$5:$AW$2602,37,FALSE),0) -> 0 | AN57: =IFERROR(VLOOKUP($A57,FILTRO!$A$5:$AW$2602,38,FALSE),0) -> 1 | AO57: =IFERROR(VLOOKUP($A57,FILTRO!$A$5:$AW$2602,39,FALSE),0) -> 1 | AP57: =IFERROR(VLOOKUP($A57,FILTRO!$A$5:$AW$2602,40,FALSE),0) -> 17 | DB57: 0 | DC57: 0 | DD57: 0 | DE57: 0
A58: 03030140 | B58: OTROS PROBLEMAS DE SALUD | C58: MÉDICO/A | D58: 24535 | E58: =SUM(G58+I58+K58+M58+O58+Q58+S58+U58+W58+Y58+AA58+AC58+AE58+AG58+AI58+AK58+AM58) -> 7266 | F58: 17269 | G58: =IFERROR(VLOOKUP($A58,FILTRO!$A$5:$AW$2602,5,FALSE),0) -> 69 | H58: =IFERROR(VLOOKUP($A58,FILTRO!$A$5:$AW$2602,6,FALSE),0) -> 59 | I58: =IFERROR(VLOOKUP($A58,FILTRO!$A$5:$AW$2602,7,FALSE),0) -> 110 | J58: =IFERROR(VLOOKUP($A58,FILTRO!$A$5:$AW$2602,8,FALSE),0) -> 68 | K58: =IFERROR(VLOOKUP($A58,FILTRO!$A$5:$AW$2602,9,FALSE),0) -> 100 | L58: =IFERROR(VLOOKUP($A58,FILTRO!$A$5:$AW$2602,10,FALSE),0) -> 91 | M58: =IFERROR(VLOOKUP($A58,FILTRO!$A$5:$AW$2602,11,FALSE),0) -> 120 | N58: =IFERROR(VLOOKUP($A58,FILTRO!$A$5:$AW$2602,12,FALSE),0) -> 191 | O58: =IFERROR(VLOOKUP($A58,FILTRO!$A$5:$AW$2602,13,FALSE),0) -> 103 | P58: =IFERROR(VLOOKUP($A58,FILTRO!$A$5:$AW$2602,14,FALSE),0) -> 286 | Q58: =IFERROR(VLOOKUP($A58,FILTRO!$A$5:$AW$2602,15,FALSE),0) -> 106 | R58: =IFERROR(VLOOKUP($A58,FILTRO!$A$5:$AW$2602,16,FALSE),0) -> 329 | S58: =IFERROR(VLOOKUP($A58,FILTRO!$A$5:$AW$2602,17,FALSE),0) -> 123 | T58: =IFERROR(VLOOKUP($A58,FILTRO!$A$5:$AW$2602,18,FALSE),0) -> 538 | U58: =IFERROR(VLOOKUP($A58,FILTRO!$A$5:$AW$2602,19,FALSE),0) -> 167 | V58: =IFERROR(VLOOKUP($A58,FILTRO!$A$5:$AW$2602,20,FALSE),0) -> 643 | W58: =IFERROR(VLOOKUP($A58,FILTRO!$A$5:$AW$2602,21,FALSE),0) -> 192 | X58: =IFERROR(VLOOKUP($A58,FILTRO!$A$5:$AW$2602,22,FALSE),0) -> 763 | Y58: =IFERROR(VLOOKUP($A58,FILTRO!$A$5:$AW$2602,23,FALSE),0) -> 193 | Z58: =IFERROR(VLOOKUP($A58,FILTRO!$A$5:$AW$2602,24,FALSE),0) -> 1081 | AA58: =IFERROR(VLOOKUP($A58,FILTRO!$A$5:$AW$2602,25,FALSE),0) -> 379 | AB58: =IFERROR(VLOOKUP($A58,FILTRO!$A$5:$AW$2602,26,FALSE),0) -> 1344 | AC58: =IFERROR(VLOOKUP($A58,FILTRO!$A$5:$AW$2602,27,FALSE),0) -> 564 | AD58: =IFERROR(VLOOKUP($A58,FILTRO!$A$5:$AW$2602,28,FALSE),0) -> 1876 | AE58: =IFERROR(VLOOKUP($A58,FILTRO!$A$5:$AW$2602,29,FALSE),0) -> 830 | AF58: =IFERROR(VLOOKUP($A58,FILTRO!$A$5:$AW$2602,30,FALSE),0) -> 2210 | AG58: =IFERROR(VLOOKUP($A58,FILTRO!$A$5:$AW$2602,31,FALSE),0) -> 924 | AH58: =IFERROR(VLOOKUP($A58,FILTRO!$A$5:$AW$2602,32,FALSE),0) -> 2143 | AI58: =IFERROR(VLOOKUP($A58,FILTRO!$A$5:$AW$2602,33,FALSE),0) -> 1047 | AJ58: =IFERROR(VLOOKUP($A58,FILTRO!$A$5:$AW$2602,34,FALSE),0) -> 1930 | AK58: =IFERROR(VLOOKUP($A58,FILTRO!$A$5:$AW$2602,35,FALSE),0) -> 864 | AL58: =IFERROR(VLOOKUP($A58,FILTRO!$A$5:$AW$2602,36,FALSE),0) -> 1620 | AM58: =IFERROR(VLOOKUP($A58,FILTRO!$A$5:$AW$2602,37,FALSE),0) -> 1375 | AN58: =IFERROR(VLOOKUP($A58,FILTRO!$A$5:$AW$2602,38,FALSE),0) -> 2097 | AO58: =IFERROR(VLOOKUP($A58,FILTRO!$A$5:$AW$2602,39,FALSE),0) -> 90 | AP58: =IFERROR(VLOOKUP($A58,FILTRO!$A$5:$AW$2602,40,FALSE),0) -> 123 | DB58: 0 | DC58: 0 | DD58: 0 | DE58: 0
A59: 03030150 | C59: ENFERMERA/O | D59: 2084 | E59: 577 | F59: 1507 | G59: =IFERROR(VLOOKUP($A59,FILTRO!$A$5:$AW$2602,5,FALSE),0) -> 14 | H59: =IFERROR(VLOOKUP($A59,FILTRO!$A$5:$AW$2602,6,FALSE),0) -> 8 | I59: =IFERROR(VLOOKUP($A59,FILTRO!$A$5:$AW$2602,7,FALSE),0) -> 4 | J59: =IFERROR(VLOOKUP($A59,FILTRO!$A$5:$AW$2602,8,FALSE),0) -> 4 | K59: =IFERROR(VLOOKUP($A59,FILTRO!$A$5:$AW$2602,9,FALSE),0) -> 8 | L59: =IFERROR(VLOOKUP($A59,FILTRO!$A$5:$AW$2602,10,FALSE),0) -> 12 | M59: =IFERROR(VLOOKUP($A59,FILTRO!$A$5:$AW$2602,11,FALSE),0) -> 6 | N59: =IFERROR(VLOOKUP($A59,FILTRO!$A$5:$AW$2602,12,FALSE),0) -> 10 | O59: =IFERROR(VLOOKUP($A59,FILTRO!$A$5:$AW$2602,13,FALSE),0) -> 6 | P59: =IFERROR(VLOOKUP($A59,FILTRO!$A$5:$AW$2602,14,FALSE),0) -> 24 | Q59: =IFERROR(VLOOKUP($A59,FILTRO!$A$5:$AW$2602,15,FALSE),0) -> 6 | R59: =IFERROR(VLOOKUP($A59,FILTRO!$A$5:$AW$2602,16,FALSE),0) -> 23 | S59: =IFERROR(VLOOKUP($A59,FILTRO!$A$5:$AW$2602,17,FALSE),0) -> 3 | T59: =IFERROR(VLOOKUP($A59,FILTRO!$A$5:$AW$2602,18,FALSE),0) -> 55 | U59: =IFERROR(VLOOKUP($A59,FILTRO!$A$5:$AW$2602,19,FALSE),0) -> 16 | V59: =IFERROR(VLOOKUP($A59,FILTRO!$A$5:$AW$2602,20,FALSE),0) -> 64 | W59: =IFERROR(VLOOKUP($A59,FILTRO!$A$5:$AW$2602,21,FALSE),0) -> 14 | X59: =IFERROR(VLOOKUP($A59,FILTRO!$A$5:$AW$2602,22,FALSE),0) -> 98 | Y59: =IFERROR(VLOOKUP($A59,FILTRO!$A$5:$AW$2602,23,FALSE),0) -> 23 | Z59: =IFERROR(VLOOKUP($A59,FILTRO!$A$5:$AW$2602,24,FALSE),0) -> 94 | AA59: =IFERROR(VLOOKUP($A59,FILTRO!$A$5:$AW$2602,25,FALSE),0) -> 28 | AB59: =IFERROR(VLOOKUP($A59,FILTRO!$A$5:$AW$2602,26,FALSE),0) -> 139 | AC59: =IFERROR(VLOOKUP($A59,FILTRO!$A$5:$AW$2602,27,FALSE),0) -> 55 | AD59: =IFERROR(VLOOKUP($A59,FILTRO!$A$5:$AW$2602,28,FALSE),0) -> 157 | AE59: =IFERROR(VLOOKUP($A59,FILTRO!$A$5:$AW$2602,29,FALSE),0) -> 67 | AF59: =IFERROR(VLOOKUP($A59,FILTRO!$A$5:$AW$2602,30,FALSE),0) -> 179 | AG59: =IFERROR(VLOOKUP($A59,FILTRO!$A$5:$AW$2602,31,FALSE),0) -> 91 | AH59: =IFERROR(VLOOKUP($A59,FILTRO!$A$5:$AW$2602,32,FALSE),0) -> 177 | AI59: =IFERROR(VLOOKUP($A59,FILTRO!$A$5:$AW$2602,33,FALSE),0) -> 80 | AJ59: =IFERROR(VLOOKUP($A59,FILTRO!$A$5:$AW$2602,34,FALSE),0) -> 162 | AK59: =IFERROR(VLOOKUP($A59,FILTRO!$A$5:$AW$2602,35,FALSE),0) -> 61 | AL59: =IFERROR(VLOOKUP($A59,FILTRO!$A$5:$AW$2602,36,FALSE),0) -> 136 | AM59: =IFERROR(VLOOKUP($A59,FILTRO!$A$5:$AW$2602,37,FALSE),0) -> 95 | AN59: =IFERROR(VLOOKUP($A59,FILTRO!$A$5:$AW$2602,38,FALSE),0) -> 165 | AO59: =IFERROR(VLOOKUP($A59,FILTRO!$A$5:$AW$2602,39,FALSE),0) -> 13 | AP59: =IFERROR(VLOOKUP($A59,FILTRO!$A$5:$AW$2602,40,FALSE),0) -> 6 | DB59: 0 | DD59: 0
A60: 03030170 | C60: MATRONA/ÓN | D60: 178 | E60: 13 | F60: 165 | G60: =IFERROR(VLOOKUP($A60,FILTRO!$A$5:$AW$2602,5,FALSE),0) -> 3 | H60: =IFERROR(VLOOKUP($A60,FILTRO!$A$5:$AW$2602,6,FALSE),0) -> 3 | I60: =IFERROR(VLOOKUP($A60,FILTRO!$A$5:$AW$2602,7,FALSE),0) -> 0 | J60: =IFERROR(VLOOKUP($A60,FILTRO!$A$5:$AW$2602,8,FALSE),0) -> 1 | K60: =IFERROR(VLOOKUP($A60,FILTRO!$A$5:$AW$2602,9,FALSE),0) -> 0 | L60: =IFERROR(VLOOKUP($A60,FILTRO!$A$5:$AW$2602,10,FALSE),0) -> 3 | M60: =IFERROR(VLOOKUP($A60,FILTRO!$A$5:$AW$2602,11,FALSE),0) -> 0 | N60: =IFERROR(VLOOKUP($A60,FILTRO!$A$5:$AW$2602,12,FALSE),0) -> 13 | O60: =IFERROR(VLOOKUP($A60,FILTRO!$A$5:$AW$2602,13,FALSE),0) -> 0 | P60: =IFERROR(VLOOKUP($A60,FILTRO!$A$5:$AW$2602,14,FALSE),0) -> 24 | Q60: =IFERROR(VLOOKUP($A60,FILTRO!$A$5:$AW$2602,15,FALSE),0) -> 2 | R60: =IFERROR(VLOOKUP($A60,FILTRO!$A$5:$AW$2602,16,FALSE),0) -> 21 | S60: =IFERROR(VLOOKUP($A60,FILTRO!$A$5:$AW$2602,17,FALSE),0) -> 0 | T60: =IFERROR(VLOOKUP($A60,FILTRO!$A$5:$AW$2602,18,FALSE),0) -> 26 | U60: =IFERROR(VLOOKUP($A60,FILTRO!$A$5:$AW$2602,19,FALSE),0) -> 0 | V60: =IFERROR(VLOOKUP($A60,FILTRO!$A$5:$AW$2602,20,FALSE),0) -> 19 | W60: =IFERROR(VLOOKUP($A60,FILTRO!$A$5:$AW$2602,21,FALSE),0) -> 0 | X60: =IFERROR(VLOOKUP($A60,FILTRO!$A$5:$AW$2602,22,FALSE),0) -> 8 | Y60: =IFERROR(VLOOKUP($A60,FILTRO!$A$5:$AW$2602,23,FALSE),0) -> 0 | Z60: =IFERROR(VLOOKUP($A60,FILTRO!$A$5:$AW$2602,24,FALSE),0) -> 3 | AA60: =IFERROR(VLOOKUP($A60,FILTRO!$A$5:$AW$2602,25,FALSE),0) -> 0 | AB60: =IFERROR(VLOOKUP($A60,FILTRO!$A$5:$AW$2602,26,FALSE),0) -> 8 | AC60: =IFERROR(VLOOKUP($A60,FILTRO!$A$5:$AW$2602,27,FALSE),0) -> 0 | AD60: =IFERROR(VLOOKUP($A60,FILTRO!$A$5:$AW$2602,28,FALSE),0) -> 10 | AE60: =IFERROR(VLOOKUP($A60,FILTRO!$A$5:$AW$2602,29,FALSE),0) -> 1 | AF60: =IFERROR(VLOOKUP($A60,FILTRO!$A$5:$AW$2602,30,FALSE),0) -> 6 | AG60: =IFERROR(VLOOKUP($A60,FILTRO!$A$5:$AW$2602,31,FALSE),0) -> 0 | AH60: =IFERROR(VLOOKUP($A60,FILTRO!$A$5:$AW$2602,32,FALSE),0) -> 2 | AI60: =IFERROR(VLOOKUP($A60,FILTRO!$A$5:$AW$2602,33,FALSE),0) -> 0 | AJ60: =IFERROR(VLOOKUP($A60,FILTRO!$A$5:$AW$2602,34,FALSE),0) -> 4 | AK60: =IFERROR(VLOOKUP($A60,FILTRO!$A$5:$AW$2602,35,FALSE),0) -> 2 | AL60: =IFERROR(VLOOKUP($A60,FILTRO!$A$5:$AW$2602,36,FALSE),0) -> 3 | AM60: =IFERROR(VLOOKUP($A60,FILTRO!$A$5:$AW$2602,37,FALSE),0) -> 5 | AN60: =IFERROR(VLOOKUP($A60,FILTRO!$A$5:$AW$2602,38,FALSE),0) -> 11 | AO60: =IFERROR(VLOOKUP($A60,FILTRO!$A$5:$AW$2602,39,FALSE),0) -> 0 | AP60: =IFERROR(VLOOKUP($A60,FILTRO!$A$5:$AW$2602,40,FALSE),0) -> 9 | DB60: 0 | DD60: 0
A61: 03030160 | C61: NUTRICIONISTA | D61: 3046 | E61: 841 | F61: 2205 | G61: =IFERROR(VLOOKUP($A61,FILTRO!$A$5:$AW$2602,5,FALSE),0) -> 195 | H61: =IFERROR(VLOOKUP($A61,FILTRO!$A$5:$AW$2602,6,FALSE),0) -> 166 | I61: =IFERROR(VLOOKUP($A61,FILTRO!$A$5:$AW$2602,7,FALSE),0) -> 82 | J61: =IFERROR(VLOOKUP($A61,FILTRO!$A$5:$AW$2602,8,FALSE),0) -> 80 | K61: =IFERROR(VLOOKUP($A61,FILTRO!$A$5:$AW$2602,9,FALSE),0) -> 52 | L61: =IFERROR(VLOOKUP($A61,FILTRO!$A$5:$AW$2602,10,FALSE),0) -> 66 | M61: =IFERROR(VLOOKUP($A61,FILTRO!$A$5:$AW$2602,11,FALSE),0) -> 28 | N61: =IFERROR(VLOOKUP($A61,FILTRO!$A$5:$AW$2602,12,FALSE),0) -> 84 | O61: =IFERROR(VLOOKUP($A61,FILTRO!$A$5:$AW$2602,13,FALSE),0) -> 37 | P61: =IFERROR(VLOOKUP($A61,FILTRO!$A$5:$AW$2602,14,FALSE),0) -> 150 | Q61: =IFERROR(VLOOKUP($A61,FILTRO!$A$5:$AW$2602,15,FALSE),0) -> 31 | R61: =IFERROR(VLOOKUP($A61,FILTRO!$A$5:$AW$2602,16,FALSE),0) -> 148 | S61: =IFERROR(VLOOKUP($A61,FILTRO!$A$5:$AW$2602,17,FALSE),0) -> 20 | T61: =IFERROR(VLOOKUP($A61,FILTRO!$A$5:$AW$2602,18,FALSE),0) -> 163 | U61: =IFERROR(VLOOKUP($A61,FILTRO!$A$5:$AW$2602,19,FALSE),0) -> 30 | V61: =IFERROR(VLOOKUP($A61,FILTRO!$A$5:$AW$2602,20,FALSE),0) -> 156 | W61: =IFERROR(VLOOKUP($A61,FILTRO!$A$5:$AW$2602,21,FALSE),0) -> 36 | X61: =IFERROR(VLOOKUP($A61,FILTRO!$A$5:$AW$2602,22,FALSE),0) -> 159 | Y61: =IFERROR(VLOOKUP($A61,FILTRO!$A$5:$AW$2602,23,FALSE),0) -> 32 | Z61: =IFERROR(VLOOKUP($A61,FILTRO!$A$5:$AW$2602,24,FALSE),0) -> 164 | AA61: =IFERROR(VLOOKUP($A61,FILTRO!$A$5:$AW$2602,25,FALSE),0) -> 40 | AB61: =IFERROR(VLOOKUP($A61,FILTRO!$A$5:$AW$2602,26,FALSE),0) -> 185 | AC61: =IFERROR(VLOOKUP($A61,FILTRO!$A$5:$AW$2602,27,FALSE),0) -> 42 | AD61: =IFERROR(VLOOKUP($A61,FILTRO!$A$5:$AW$2602,28,FALSE),0) -> 176 | AE61: =IFERROR(VLOOKUP($A61,FILTRO!$A$5:$AW$2602,29,FALSE),0) -> 33 | AF61: =IFERROR(VLOOKUP($A61,FILTRO!$A$5:$AW$2602,30,FALSE),0) -> 162 | AG61: =IFERROR(VLOOKUP($A61,FILTRO!$A$5:$AW$2602,31,FALSE),0) -> 46 | AH61: =IFERROR(VLOOKUP($A61,FILTRO!$A$5:$AW$2602,32,FALSE),0) -> 111 | AI61: =IFERROR(VLOOKUP($A61,FILTRO!$A$5:$AW$2602,33,FALSE),0) -> 46 | AJ61: =IFERROR(VLOOKUP($A61,FILTRO!$A$5:$AW$2602,34,FALSE),0) -> 99 | AK61: =IFERROR(VLOOKUP($A61,FILTRO!$A$5:$AW$2602,35,FALSE),0) -> 43 | AL61: =IFERROR(VLOOKUP($A61,FILTRO!$A$5:$AW$2602,36,FALSE),0) -> 66 | AM61: =IFERROR(VLOOKUP($A61,FILTRO!$A$5:$AW$2602,37,FALSE),0) -> 48 | AN61: =IFERROR(VLOOKUP($A61,FILTRO!$A$5:$AW$2602,38,FALSE),0) -> 70 | AO61: =IFERROR(VLOOKUP($A61,FILTRO!$A$5:$AW$2602,39,FALSE),0) -> 39 | AP61: =IFERROR(VLOOKUP($A61,FILTRO!$A$5:$AW$2602,40,FALSE),0) -> 67 | DB61: 0 | DD61: 0
A62: 03030180 | C62: TÉCNICO EN ENFERMERÍA | D62: 285 | E62: 128 | F62: 157 | G62: =IFERROR(VLOOKUP($A62,FILTRO!$A$5:$AW$2602,5,FALSE),0) -> 7 | H62: =IFERROR(VLOOKUP($A62,FILTRO!$A$5:$AW$2602,6,FALSE),0) -> 3 | I62: =IFERROR(VLOOKUP($A62,FILTRO!$A$5:$AW$2602,7,FALSE),0) -> 7 | J62: =IFERROR(VLOOKUP($A62,FILTRO!$A$5:$AW$2602,8,FALSE),0) -> 3 | K62: =IFERROR(VLOOKUP($A62,FILTRO!$A$5:$AW$2602,9,FALSE),0) -> 3 | L62: =IFERROR(VLOOKUP($A62,FILTRO!$A$5:$AW$2602,10,FALSE),0) -> 4 | M62: =IFERROR(VLOOKUP($A62,FILTRO!$A$5:$AW$2602,11,FALSE),0) -> 5 | N62: =IFERROR(VLOOKUP($A62,FILTRO!$A$5:$AW$2602,12,FALSE),0) -> 2 | O62: =IFERROR(VLOOKUP($A62,FILTRO!$A$5:$AW$2602,13,FALSE),0) -> 7 | P62: =IFERROR(VLOOKUP($A62,FILTRO!$A$5:$AW$2602,14,FALSE),0) -> 18 | Q62: =IFERROR(VLOOKUP($A62,FILTRO!$A$5:$AW$2602,15,FALSE),0) -> 3 | R62: =IFERROR(VLOOKUP($A62,FILTRO!$A$5:$AW$2602,16,FALSE),0) -> 10 | S62: =IFERROR(VLOOKUP($A62,FILTRO!$A$5:$AW$2602,17,FALSE),0) -> 6 | T62: =IFERROR(VLOOKUP($A62,FILTRO!$A$5:$AW$2602,18,FALSE),0) -> 22 | U62: =IFERROR(VLOOKUP($A62,FILTRO!$A$5:$AW$2602,19,FALSE),0) -> 6 | V62: =IFERROR(VLOOKUP($A62,FILTRO!$A$5:$AW$2602,20,FALSE),0) -> 15 | W62: =IFERROR(VLOOKUP($A62,FILTRO!$A$5:$AW$2602,21,FALSE),0) -> 16 | X62: =IFERROR(VLOOKUP($A62,FILTRO!$A$5:$AW$2602,22,FALSE),0) -> 13 | Y62: =IFERROR(VLOOKUP($A62,FILTRO!$A$5:$AW$2602,23,FALSE),0) -> 13 | Z62: =IFERROR(VLOOKUP($A62,FILTRO!$A$5:$AW$2602,24,FALSE),0) -> 3 | AA62: =IFERROR(VLOOKUP($A62,FILTRO!$A$5:$AW$2602,25,FALSE),0) -> 5 | AB62: =IFERROR(VLOOKUP($A62,FILTRO!$A$5:$AW$2602,26,FALSE),0) -> 12 | AC62: =IFERROR(VLOOKUP($A62,FILTRO!$A$5:$AW$2602,27,FALSE),0) -> 11 | AD62: =IFERROR(VLOOKUP($A62,FILTRO!$A$5:$AW$2602,28,FALSE),0) -> 14 | AE62: =IFERROR(VLOOKUP($A62,FILTRO!$A$5:$AW$2602,29,FALSE),0) -> 10 | AF62: =IFERROR(VLOOKUP($A62,FILTRO!$A$5:$AW$2602,30,FALSE),0) -> 6 | AG62: =IFERROR(VLOOKUP($A62,FILTRO!$A$5:$AW$2602,31,FALSE),0) -> 10 | AH62: =IFERROR(VLOOKUP($A62,FILTRO!$A$5:$AW$2602,32,FALSE),0) -> 7 | AI62: =IFERROR(VLOOKUP($A62,FILTRO!$A$5:$AW$2602,33,FALSE),0) -> 9 | AJ62: =IFERROR(VLOOKUP($A62,FILTRO!$A$5:$AW$2602,34,FALSE),0) -> 5 | AK62: =IFERROR(VLOOKUP($A62,FILTRO!$A$5:$AW$2602,35,FALSE),0) -> 4 | AL62: =IFERROR(VLOOKUP($A62,FILTRO!$A$5:$AW$2602,36,FALSE),0) -> 7 | AM62: =IFERROR(VLOOKUP($A62,FILTRO!$A$5:$AW$2602,37,FALSE),0) -> 6 | AN62: =IFERROR(VLOOKUP($A62,FILTRO!$A$5:$AW$2602,38,FALSE),0) -> 13 | AO62: =IFERROR(VLOOKUP($A62,FILTRO!$A$5:$AW$2602,39,FALSE),0) -> 8 | AP62: =IFERROR(VLOOKUP($A62,FILTRO!$A$5:$AW$2602,40,FALSE),0) -> 0 | DB62: 0 | DD62: 0
A63: 09600206 | C63: OTROS PROFESIONALES DEBIDAMENTE CAPACITADOS | D63: =SUM(E63:F63) -> 0 | E63: =SUM(G63+I63+K63+M63+O63+Q63+S63+U63+W63+Y63+AA63+AC63+AE63+AG63+AI63+AK63+AM63) -> 0 | F63: =SUM(H63+J63+L63+N63+P63+R63+T63+V63+X63+Z63+AB63+AD63+AF63+AH63+AJ63+AL63+AN63) -> 0 | G63: =IFERROR(VLOOKUP($A63,FILTRO!$A$5:$AW$2602,5,FALSE),0) -> 0 | H63: =IFERROR(VLOOKUP($A63,FILTRO!$A$5:$AW$2602,6,FALSE),0) -> 0 | I63: =IFERROR(VLOOKUP($A63,FILTRO!$A$5:$AW$2602,7,FALSE),0) -> 0 | J63: =IFERROR(VLOOKUP($A63,FILTRO!$A$5:$AW$2602,8,FALSE),0) -> 0 | K63: =IFERROR(VLOOKUP($A63,FILTRO!$A$5:$AW$2602,9,FALSE),0) -> 0 | L63: =IFERROR(VLOOKUP($A63,FILTRO!$A$5:$AW$2602,10,FALSE),0) -> 0 | M63: =IFERROR(VLOOKUP($A63,FILTRO!$A$5:$AW$2602,11,FALSE),0) -> 0 | N63: =IFERROR(VLOOKUP($A63,FILTRO!$A$5:$AW$2602,12,FALSE),0) -> 0 | O63: =IFERROR(VLOOKUP($A63,FILTRO!$A$5:$AW$2602,13,FALSE),0) -> 0 | P63: =IFERROR(VLOOKUP($A63,FILTRO!$A$5:$AW$2602,14,FALSE),0) -> 0 | Q63: =IFERROR(VLOOKUP($A63,FILTRO!$A$5:$AW$2602,15,FALSE),0) -> 0 | R63: =IFERROR(VLOOKUP($A63,FILTRO!$A$5:$AW$2602,16,FALSE),0) -> 0 | S63: =IFERROR(VLOOKUP($A63,FILTRO!$A$5:$AW$2602,17,FALSE),0) -> 0 | T63: =IFERROR(VLOOKUP($A63,FILTRO!$A$5:$AW$2602,18,FALSE),0) -> 0 | U63: =IFERROR(VLOOKUP($A63,FILTRO!$A$5:$AW$2602,19,FALSE),0) -> 0 | V63: =IFERROR(VLOOKUP($A63,FILTRO!$A$5:$AW$2602,20,FALSE),0) -> 0 | W63: =IFERROR(VLOOKUP($A63,FILTRO!$A$5:$AW$2602,21,FALSE),0) -> 0 | X63: =IFERROR(VLOOKUP($A63,FILTRO!$A$5:$AW$2602,22,FALSE),0) -> 0 | Y63: =IFERROR(VLOOKUP($A63,FILTRO!$A$5:$AW$2602,23,FALSE),0) -> 0 | Z63: =IFERROR(VLOOKUP($A63,FILTRO!$A$5:$AW$2602,24,FALSE),0) -> 0 | AA63: =IFERROR(VLOOKUP($A63,FILTRO!$A$5:$AW$2602,25,FALSE),0) -> 0 | AB63: =IFERROR(VLOOKUP($A63,FILTRO!$A$5:$AW$2602,26,FALSE),0) -> 0 | AC63: =IFERROR(VLOOKUP($A63,FILTRO!$A$5:$AW$2602,27,FALSE),0) -> 0 | AD63: =IFERROR(VLOOKUP($A63,FILTRO!$A$5:$AW$2602,28,FALSE),0) -> 0 | AE63: =IFERROR(VLOOKUP($A63,FILTRO!$A$5:$AW$2602,29,FALSE),0) -> 0 | AF63: =IFERROR(VLOOKUP($A63,FILTRO!$A$5:$AW$2602,30,FALSE),0) -> 0 | AG63: =IFERROR(VLOOKUP($A63,FILTRO!$A$5:$AW$2602,31,FALSE),0) -> 0 | AH63: =IFERROR(VLOOKUP($A63,FILTRO!$A$5:$AW$2602,32,FALSE),0) -> 0 | AI63: =IFERROR(VLOOKUP($A63,FILTRO!$A$5:$AW$2602,33,FALSE),0) -> 0 | AJ63: =IFERROR(VLOOKUP($A63,FILTRO!$A$5:$AW$2602,34,FALSE),0) -> 0 | AK63: =IFERROR(VLOOKUP($A63,FILTRO!$A$5:$AW$2602,35,FALSE),0) -> 0 | AL63: =IFERROR(VLOOKUP($A63,FILTRO!$A$5:$AW$2602,36,FALSE),0) -> 0 | AM63: =IFERROR(VLOOKUP($A63,FILTRO!$A$5:$AW$2602,37,FALSE),0) -> 0 | AN63: =IFERROR(VLOOKUP($A63,FILTRO!$A$5:$AW$2602,38,FALSE),0) -> 0 | AO63: =IFERROR(VLOOKUP($A63,FILTRO!$A$5:$AW$2602,39,FALSE),0) -> 0 | AP63: =IFERROR(VLOOKUP($A63,FILTRO!$A$5:$AW$2602,40,FALSE),0) -> 0 | DB63: 0 | DD63: 0
A64: 01200031 | B64: NIÑOS CON NECESIDADES ESPECIALES | C64: MÉDICO/A | D64: 88 | E64: =SUM(G64+I64+K64+M64) -> 52 | F64: =SUM(H64+J64+L64+N64) -> 36 | G64: =IFERROR(VLOOKUP($A64,FILTRO!$A$5:$AW$2602,5,FALSE),0) -> 32 | H64: =IFERROR(VLOOKUP($A64,FILTRO!$A$5:$AW$2602,6,FALSE),0) -> 23 | I64: =IFERROR(VLOOKUP($A64,FILTRO!$A$5:$AW$2602,7,FALSE),0) -> 12 | J64: =IFERROR(VLOOKUP($A64,FILTRO!$A$5:$AW$2602,8,FALSE),0) -> 8 | K64: =IFERROR(VLOOKUP($A64,FILTRO!$A$5:$AW$2602,9,FALSE),0) -> 6 | L64: =IFERROR(VLOOKUP($A64,FILTRO!$A$5:$AW$2602,10,FALSE),0) -> 4 | M64: =IFERROR(VLOOKUP($A64,FILTRO!$A$5:$AW$2602,11,FALSE),0) -> 2 | N64: =IFERROR(VLOOKUP($A64,FILTRO!$A$5:$AW$2602,12,FALSE),0) -> 1 | O64: =IFERROR(VLOOKUP($A64,FILTRO!$A$5:$AW$2602,13,FALSE),0) -> 0 | P64: =IFERROR(VLOOKUP($A64,FILTRO!$A$5:$AW$2602,14,FALSE),0) -> 0 | Q64: =IFERROR(VLOOKUP($A64,FILTRO!$A$5:$AW$2602,15,FALSE),0) -> 0 | R64: =IFERROR(VLOOKUP($A64,FILTRO!$A$5:$AW$2602,16,FALSE),0) -> 0 | S64: =IFERROR(VLOOKUP($A64,FILTRO!$A$5:$AW$2602,17,FALSE),0) -> 0 | T64: =IFERROR(VLOOKUP($A64,FILTRO!$A$5:$AW$2602,18,FALSE),0) -> 0 | U64: =IFERROR(VLOOKUP($A64,FILTRO!$A$5:$AW$2602,19,FALSE),0) -> 0 | V64: =IFERROR(VLOOKUP($A64,FILTRO!$A$5:$AW$2602,20,FALSE),0) -> 0 | W64: =IFERROR(VLOOKUP($A64,FILTRO!$A$5:$AW$2602,21,FALSE),0) -> 0 | X64: =IFERROR(VLOOKUP($A64,FILTRO!$A$5:$AW$2602,22,FALSE),0) -> 0 | Y64: =IFERROR(VLOOKUP($A64,FILTRO!$A$5:$AW$2602,23,FALSE),0) -> 0 | Z64: =IFERROR(VLOOKUP($A64,FILTRO!$A$5:$AW$2602,24,FALSE),0) -> 0 | AA64: =IFERROR(VLOOKUP($A64,FILTRO!$A$5:$AW$2602,25,FALSE),0) -> 0 | AB64: =IFERROR(VLOOKUP($A64,FILTRO!$A$5:$AW$2602,26,FALSE),0) -> 0 | AC64: =IFERROR(VLOOKUP($A64,FILTRO!$A$5:$AW$2602,27,FALSE),0) -> 0 | AD64: =IFERROR(VLOOKUP($A64,FILTRO!$A$5:$AW$2602,28,FALSE),0) -> 0 | AE64: =IFERROR(VLOOKUP($A64,FILTRO!$A$5:$AW$2602,29,FALSE),0) -> 0 | AF64: =IFERROR(VLOOKUP($A64,FILTRO!$A$5:$AW$2602,30,FALSE),0) -> 0 | AG64: =IFERROR(VLOOKUP($A64,FILTRO!$A$5:$AW$2602,31,FALSE),0) -> 0 | AH64: =IFERROR(VLOOKUP($A64,FILTRO!$A$5:$AW$2602,32,FALSE),0) -> 0 | AI64: =IFERROR(VLOOKUP($A64,FILTRO!$A$5:$AW$2602,33,FALSE),0) -> 0 | AJ64: =IFERROR(VLOOKUP($A64,FILTRO!$A$5:$AW$2602,34,FALSE),0) -> 0 | AK64: =IFERROR(VLOOKUP($A64,FILTRO!$A$5:$AW$2602,35,FALSE),0) -> 0 | AL64: =IFERROR(VLOOKUP($A64,FILTRO!$A$5:$AW$2602,36,FALSE),0) -> 0 | AM64: =IFERROR(VLOOKUP($A64,FILTRO!$A$5:$AW$2602,37,FALSE),0) -> 0 | AN64: =IFERROR(VLOOKUP($A64,FILTRO!$A$5:$AW$2602,38,FALSE),0) -> 0 | AO64: =IFERROR(VLOOKUP($A64,FILTRO!$A$5:$AW$2602,39,FALSE),0) -> 1 | AP64: =IFERROR(VLOOKUP($A64,FILTRO!$A$5:$AW$2602,40,FALSE),0) -> 0 | DB64: 0 | DC64: 0 | DD64: 0 | DE64: 0
A65: 01200032 | C65: ENFERMERA/O | D65: 768 | E65: 483 | F65: =SUM(H65+J65+L65+N65) -> 285 | G65: =IFERROR(VLOOKUP($A65,FILTRO!$A$5:$AW$2602,5,FALSE),0) -> 319 | H65: =IFERROR(VLOOKUP($A65,FILTRO!$A$5:$AW$2602,6,FALSE),0) -> 196 | I65: =IFERROR(VLOOKUP($A65,FILTRO!$A$5:$AW$2602,7,FALSE),0) -> 120 | J65: =IFERROR(VLOOKUP($A65,FILTRO!$A$5:$AW$2602,8,FALSE),0) -> 61 | K65: =IFERROR(VLOOKUP($A65,FILTRO!$A$5:$AW$2602,9,FALSE),0) -> 31 | L65: =IFERROR(VLOOKUP($A65,FILTRO!$A$5:$AW$2602,10,FALSE),0) -> 17 | M65: =IFERROR(VLOOKUP($A65,FILTRO!$A$5:$AW$2602,11,FALSE),0) -> 13 | N65: =IFERROR(VLOOKUP($A65,FILTRO!$A$5:$AW$2602,12,FALSE),0) -> 11 | O65: =IFERROR(VLOOKUP($A65,FILTRO!$A$5:$AW$2602,13,FALSE),0) -> 0 | P65: =IFERROR(VLOOKUP($A65,FILTRO!$A$5:$AW$2602,14,FALSE),0) -> 0 | Q65: =IFERROR(VLOOKUP($A65,FILTRO!$A$5:$AW$2602,15,FALSE),0) -> 0 | R65: =IFERROR(VLOOKUP($A65,FILTRO!$A$5:$AW$2602,16,FALSE),0) -> 0 | S65: =IFERROR(VLOOKUP($A65,FILTRO!$A$5:$AW$2602,17,FALSE),0) -> 0 | T65: =IFERROR(VLOOKUP($A65,FILTRO!$A$5:$AW$2602,18,FALSE),0) -> 0 | U65: =IFERROR(VLOOKUP($A65,FILTRO!$A$5:$AW$2602,19,FALSE),0) -> 0 | V65: =IFERROR(VLOOKUP($A65,FILTRO!$A$5:$AW$2602,20,FALSE),0) -> 0 | W65: =IFERROR(VLOOKUP($A65,FILTRO!$A$5:$AW$2602,21,FALSE),0) -> 0 | X65: =IFERROR(VLOOKUP($A65,FILTRO!$A$5:$AW$2602,22,FALSE),0) -> 0 | Y65: =IFERROR(VLOOKUP($A65,FILTRO!$A$5:$AW$2602,23,FALSE),0) -> 0 | Z65: =IFERROR(VLOOKUP($A65,FILTRO!$A$5:$AW$2602,24,FALSE),0) -> 0 | AA65: =IFERROR(VLOOKUP($A65,FILTRO!$A$5:$AW$2602,25,FALSE),0) -> 0 | AB65: =IFERROR(VLOOKUP($A65,FILTRO!$A$5:$AW$2602,26,FALSE),0) -> 0 | AC65: =IFERROR(VLOOKUP($A65,FILTRO!$A$5:$AW$2602,27,FALSE),0) -> 0 | AD65: =IFERROR(VLOOKUP($A65,FILTRO!$A$5:$AW$2602,28,FALSE),0) -> 0 | AE65: =IFERROR(VLOOKUP($A65,FILTRO!$A$5:$AW$2602,29,FALSE),0) -> 0 | AF65: =IFERROR(VLOOKUP($A65,FILTRO!$A$5:$AW$2602,30,FALSE),0) -> 0 | AG65: =IFERROR(VLOOKUP($A65,FILTRO!$A$5:$AW$2602,31,FALSE),0) -> 0 | AH65: =IFERROR(VLOOKUP($A65,FILTRO!$A$5:$AW$2602,32,FALSE),0) -> 0 | AI65: =IFERROR(VLOOKUP($A65,FILTRO!$A$5:$AW$2602,33,FALSE),0) -> 0 | AJ65: =IFERROR(VLOOKUP($A65,FILTRO!$A$5:$AW$2602,34,FALSE),0) -> 0 | AK65: =IFERROR(VLOOKUP($A65,FILTRO!$A$5:$AW$2602,35,FALSE),0) -> 0 | AL65: =IFERROR(VLOOKUP($A65,FILTRO!$A$5:$AW$2602,36,FALSE),0) -> 0 | AM65: =IFERROR(VLOOKUP($A65,FILTRO!$A$5:$AW$2602,37,FALSE),0) -> 0 | AN65: =IFERROR(VLOOKUP($A65,FILTRO!$A$5:$AW$2602,38,FALSE),0) -> 0 | AO65: =IFERROR(VLOOKUP($A65,FILTRO!$A$5:$AW$2602,39,FALSE),0) -> 2 | AP65: =IFERROR(VLOOKUP($A65,FILTRO!$A$5:$AW$2602,40,FALSE),0) -> 0 | DB65: 0 | DD65: 0
A66: 01200033 | C66: MATRONA/ÓN | D66: 8 | E66: 3 | F66: 5 | G66: =IFERROR(VLOOKUP($A66,FILTRO!$A$5:$AW$2602,5,FALSE),0) -> 1 | H66: =IFERROR(VLOOKUP($A66,FILTRO!$A$5:$AW$2602,6,FALSE),0) -> 3 | I66: =IFERROR(VLOOKUP($A66,FILTRO!$A$5:$AW$2602,7,FALSE),0) -> 1 | J66: =IFERROR(VLOOKUP($A66,FILTRO!$A$5:$AW$2602,8,FALSE),0) -> 1 | K66: =IFERROR(VLOOKUP($A66,FILTRO!$A$5:$AW$2602,9,FALSE),0) -> 1 | L66: =IFERROR(VLOOKUP($A66,FILTRO!$A$5:$AW$2602,10,FALSE),0) -> 1 | M66: =IFERROR(VLOOKUP($A66,FILTRO!$A$5:$AW$2602,11,FALSE),0) -> 0 | N66: =IFERROR(VLOOKUP($A66,FILTRO!$A$5:$AW$2602,12,FALSE),0) -> 0 | O66: =IFERROR(VLOOKUP($A66,FILTRO!$A$5:$AW$2602,13,FALSE),0) -> 0 | P66: =IFERROR(VLOOKUP($A66,FILTRO!$A$5:$AW$2602,14,FALSE),0) -> 0 | Q66: =IFERROR(VLOOKUP($A66,FILTRO!$A$5:$AW$2602,15,FALSE),0) -> 0 | R66: =IFERROR(VLOOKUP($A66,FILTRO!$A$5:$AW$2602,16,FALSE),0) -> 0 | S66: =IFERROR(VLOOKUP($A66,FILTRO!$A$5:$AW$2602,17,FALSE),0) -> 0 | T66: =IFERROR(VLOOKUP($A66,FILTRO!$A$5:$AW$2602,18,FALSE),0) -> 0 | U66: =IFERROR(VLOOKUP($A66,FILTRO!$A$5:$AW$2602,19,FALSE),0) -> 0 | V66: =IFERROR(VLOOKUP($A66,FILTRO!$A$5:$AW$2602,20,FALSE),0) -> 0 | W66: =IFERROR(VLOOKUP($A66,FILTRO!$A$5:$AW$2602,21,FALSE),0) -> 0 | X66: =IFERROR(VLOOKUP($A66,FILTRO!$A$5:$AW$2602,22,FALSE),0) -> 0 | Y66: =IFERROR(VLOOKUP($A66,FILTRO!$A$5:$AW$2602,23,FALSE),0) -> 0 | Z66: =IFERROR(VLOOKUP($A66,FILTRO!$A$5:$AW$2602,24,FALSE),0) -> 0 | AA66: =IFERROR(VLOOKUP($A66,FILTRO!$A$5:$AW$2602,25,FALSE),0) -> 0 | AB66: =IFERROR(VLOOKUP($A66,FILTRO!$A$5:$AW$2602,26,FALSE),0) -> 0 | AC66: =IFERROR(VLOOKUP($A66,FILTRO!$A$5:$AW$2602,27,FALSE),0) -> 0 | AD66: =IFERROR(VLOOKUP($A66,FILTRO!$A$5:$AW$2602,28,FALSE),0) -> 0 | AE66: =IFERROR(VLOOKUP($A66,FILTRO!$A$5:$AW$2602,29,FALSE),0) -> 0 | AF66: =IFERROR(VLOOKUP($A66,FILTRO!$A$5:$AW$2602,30,FALSE),0) -> 0 | AG66: =IFERROR(VLOOKUP($A66,FILTRO!$A$5:$AW$2602,31,FALSE),0) -> 0 | AH66: =IFERROR(VLOOKUP($A66,FILTRO!$A$5:$AW$2602,32,FALSE),0) -> 0 | AI66: =IFERROR(VLOOKUP($A66,FILTRO!$A$5:$AW$2602,33,FALSE),0) -> 0 | AJ66: =IFERROR(VLOOKUP($A66,FILTRO!$A$5:$AW$2602,34,FALSE),0) -> 0 | AK66: =IFERROR(VLOOKUP($A66,FILTRO!$A$5:$AW$2602,35,FALSE),0) -> 0 | AL66: =IFERROR(VLOOKUP($A66,FILTRO!$A$5:$AW$2602,36,FALSE),0) -> 0 | AM66: =IFERROR(VLOOKUP($A66,FILTRO!$A$5:$AW$2602,37,FALSE),0) -> 0 | AN66: =IFERROR(VLOOKUP($A66,FILTRO!$A$5:$AW$2602,38,FALSE),0) -> 0 | AO66: =IFERROR(VLOOKUP($A66,FILTRO!$A$5:$AW$2602,39,FALSE),0) -> 0 | AP66: =IFERROR(VLOOKUP($A66,FILTRO!$A$5:$AW$2602,40,FALSE),0) -> 0 | DB66: 0 | DD66: 0
A67: 01200034 | C67: NUTRICIONISTA | D67: 201 | E67: 140 | F67: 61 | G67: =IFERROR(VLOOKUP($A67,FILTRO!$A$5:$AW$2602,5,FALSE),0) -> 93 | H67: =IFERROR(VLOOKUP($A67,FILTRO!$A$5:$AW$2602,6,FALSE),0) -> 40 | I67: =IFERROR(VLOOKUP($A67,FILTRO!$A$5:$AW$2602,7,FALSE),0) -> 26 | J67: =IFERROR(VLOOKUP($A67,FILTRO!$A$5:$AW$2602,8,FALSE),0) -> 16 | K67: =IFERROR(VLOOKUP($A67,FILTRO!$A$5:$AW$2602,9,FALSE),0) -> 17 | L67: =IFERROR(VLOOKUP($A67,FILTRO!$A$5:$AW$2602,10,FALSE),0) -> 4 | M67: =IFERROR(VLOOKUP($A67,FILTRO!$A$5:$AW$2602,11,FALSE),0) -> 4 | N67: =IFERROR(VLOOKUP($A67,FILTRO!$A$5:$AW$2602,12,FALSE),0) -> 1 | O67: =IFERROR(VLOOKUP($A67,FILTRO!$A$5:$AW$2602,13,FALSE),0) -> 0 | P67: =IFERROR(VLOOKUP($A67,FILTRO!$A$5:$AW$2602,14,FALSE),0) -> 0 | Q67: =IFERROR(VLOOKUP($A67,FILTRO!$A$5:$AW$2602,15,FALSE),0) -> 0 | R67: =IFERROR(VLOOKUP($A67,FILTRO!$A$5:$AW$2602,16,FALSE),0) -> 0 | S67: =IFERROR(VLOOKUP($A67,FILTRO!$A$5:$AW$2602,17,FALSE),0) -> 0 | T67: =IFERROR(VLOOKUP($A67,FILTRO!$A$5:$AW$2602,18,FALSE),0) -> 0 | U67: =IFERROR(VLOOKUP($A67,FILTRO!$A$5:$AW$2602,19,FALSE),0) -> 0 | V67: =IFERROR(VLOOKUP($A67,FILTRO!$A$5:$AW$2602,20,FALSE),0) -> 0 | W67: =IFERROR(VLOOKUP($A67,FILTRO!$A$5:$AW$2602,21,FALSE),0) -> 0 | X67: =IFERROR(VLOOKUP($A67,FILTRO!$A$5:$AW$2602,22,FALSE),0) -> 0 | Y67: =IFERROR(VLOOKUP($A67,FILTRO!$A$5:$AW$2602,23,FALSE),0) -> 0 | Z67: =IFERROR(VLOOKUP($A67,FILTRO!$A$5:$AW$2602,24,FALSE),0) -> 0 | AA67: =IFERROR(VLOOKUP($A67,FILTRO!$A$5:$AW$2602,25,FALSE),0) -> 0 | AB67: =IFERROR(VLOOKUP($A67,FILTRO!$A$5:$AW$2602,26,FALSE),0) -> 0 | AC67: =IFERROR(VLOOKUP($A67,FILTRO!$A$5:$AW$2602,27,FALSE),0) -> 0 | AD67: =IFERROR(VLOOKUP($A67,FILTRO!$A$5:$AW$2602,28,FALSE),0) -> 0 | AE67: =IFERROR(VLOOKUP($A67,FILTRO!$A$5:$AW$2602,29,FALSE),0) -> 0 | AF67: =IFERROR(VLOOKUP($A67,FILTRO!$A$5:$AW$2602,30,FALSE),0) -> 0 | AG67: =IFERROR(VLOOKUP($A67,FILTRO!$A$5:$AW$2602,31,FALSE),0) -> 0 | AH67: =IFERROR(VLOOKUP($A67,FILTRO!$A$5:$AW$2602,32,FALSE),0) -> 0 | AI67: =IFERROR(VLOOKUP($A67,FILTRO!$A$5:$AW$2602,33,FALSE),0) -> 0 | AJ67: =IFERROR(VLOOKUP($A67,FILTRO!$A$5:$AW$2602,34,FALSE),0) -> 0 | AK67: =IFERROR(VLOOKUP($A67,FILTRO!$A$5:$AW$2602,35,FALSE),0) -> 0 | AL67: =IFERROR(VLOOKUP($A67,FILTRO!$A$5:$AW$2602,36,FALSE),0) -> 0 | AM67: =IFERROR(VLOOKUP($A67,FILTRO!$A$5:$AW$2602,37,FALSE),0) -> 0 | AN67: =IFERROR(VLOOKUP($A67,FILTRO!$A$5:$AW$2602,38,FALSE),0) -> 0 | AO67: =IFERROR(VLOOKUP($A67,FILTRO!$A$5:$AW$2602,39,FALSE),0) -> 0 | AP67: =IFERROR(VLOOKUP($A67,FILTRO!$A$5:$AW$2602,40,FALSE),0) -> 1 | DB67: 0 | DD67: 0
B68: SECCIÓN D: CONTROL DE SALUD INTEGRAL DE ADOLESCENTES (incluidos en sección B)
B69: LUGAR DEL CONTROL, SEGÚN EDAD | D69: 10 A 14 AÑOS | I69: 15 A 19 AÑOS | N69: Niños, Niñas, Adolescentes y Jóvenes SENAME | O69: Niños, Niñas, Adolescentes y Jóvenes Mejor Niñez
D70: Ambos Sexos | E70: Hombres | F70: Mujeres | G70: Pueblos Originarios | H70: Migrantes | I70: Ambos Sexos | J70: Hombres | K70: Mujeres | L70: Pueblos Originarios | M70: Migrantes
A71: 01030500 | B71: EN ESPACIO AMIGABLE | D71: =SUM(E71:F71) -> 932 | E71: =IFERROR(VLOOKUP($A71,FILTRO!$A$5:$AW$2602,3,FALSE),0) -> 357 | F71: =IFERROR(VLOOKUP($A71,FILTRO!$A$5:$AW$2602,4,FALSE),0) -> 575 | G71: =IFERROR(VLOOKUP($A71,FILTRO!$A$5:$AW$2602,5,FALSE),0) -> 31 | H71: =IFERROR(VLOOKUP($A71,FILTRO!$A$5:$AW$2602,6,FALSE),0) -> 25 | I71: =SUM(J71:K71) -> 1044 | J71: =IFERROR(VLOOKUP($A71,FILTRO!$A$5:$AW$2602,8,FALSE),0) -> 333 | K71: =IFERROR(VLOOKUP($A71,FILTRO!$A$5:$AW$2602,9,FALSE),0) -> 711 | L71: =IFERROR(VLOOKUP($A71,FILTRO!$A$5:$AW$2602,10,FALSE),0) -> 49 | M71: =IFERROR(VLOOKUP($A71,FILTRO!$A$5:$AW$2602,11,FALSE),0) -> 43 | N71: =IFERROR(VLOOKUP($A71,FILTRO!$A$5:$AW$2602,12,FALSE),0) -> 11 | O71: =IFERROR(VLOOKUP($A71,FILTRO!$A$5:$AW$2602,13,FALSE),0) -> 43 | CB71: * Niños, Niñas, Adolescentes y Jóvenes SENAME NO DEBE ser mayor al Total. | CF71: * Pueblos Originarios NO DEBE ser mayor al Total de controles de adolescentes de 10 a 14 años. | CH71: * Migrantes NO DEBE ser mayor al Total de controles de adolescentes de 10 a 14 años. | CJ71: * Pueblos Originarios NO DEBE ser mayor al Total de controles de adolescentes de 15 a 19 años. | CL71: * Migrantes NO DEBE ser mayor al Total de controles de adolescentes de 15 a 19 años. | DB71: 1 | DF71: 1 | DH71: 1 | DJ71: 1 | DL71: 1
A72: 01030600 | B72: EN OTROS ESPACIOS DEL ESTABLECIMIENTO DE SALUD | D72: =SUM(E72:F72) -> 3281 | E72: =IFERROR(VLOOKUP($A72,FILTRO!$A$5:$AW$2602,3,FALSE),0) -> 1451 | F72: =IFERROR(VLOOKUP($A72,FILTRO!$A$5:$AW$2602,4,FALSE),0) -> 1830 | G72: =IFERROR(VLOOKUP($A72,FILTRO!$A$5:$AW$2602,5,FALSE),0) -> 208 | H72: =IFERROR(VLOOKUP($A72,FILTRO!$A$5:$AW$2602,6,FALSE),0) -> 150 | I72: =SUM(J72:K72) -> 1380 | J72: =IFERROR(VLOOKUP($A72,FILTRO!$A$5:$AW$2602,8,FALSE),0) -> 516 | K72: =IFERROR(VLOOKUP($A72,FILTRO!$A$5:$AW$2602,9,FALSE),0) -> 864 | L72: =IFERROR(VLOOKUP($A72,FILTRO!$A$5:$AW$2602,10,FALSE),0) -> 104 | M72: =IFERROR(VLOOKUP($A72,FILTRO!$A$5:$AW$2602,11,FALSE),0) -> 81 | N72: =IFERROR(VLOOKUP($A72,FILTRO!$A$5:$AW$2602,12,FALSE),0) -> 52 | O72: =IFERROR(VLOOKUP($A72,FILTRO!$A$5:$AW$2602,13,FALSE),0) -> 64 | CF72: * Pueblos Originarios NO DEBE ser mayor al Total de controles de adolescentes de 10 a 14 años. | CH72: * Migrantes NO DEBE ser mayor al Total de controles de adolescentes de 10 a 14 años. | CJ72: * Pueblos Originarios NO DEBE ser mayor al Total de controles de adolescentes de 15 a 19 años. | DF72: 1 | DH72: 1 | DJ72: 1
A73: 01030700 | B73: EN ESTABLECIMIENTOS EDUCACIONALES | D73: =SUM(E73:F73) -> 3661 | E73: =IFERROR(VLOOKUP($A73,FILTRO!$A$5:$AW$2602,3,FALSE),0) -> 1740 | F73: =IFERROR(VLOOKUP($A73,FILTRO!$A$5:$AW$2602,4,FALSE),0) -> 1921 | G73: =IFERROR(VLOOKUP($A73,FILTRO!$A$5:$AW$2602,5,FALSE),0) -> 149 | H73: =IFERROR(VLOOKUP($A73,FILTRO!$A$5:$AW$2602,6,FALSE),0) -> 123 | I73: =SUM(J73:K73) -> 1020 | J73: =IFERROR(VLOOKUP($A73,FILTRO!$A$5:$AW$2602,8,FALSE),0) -> 477 | K73: =IFERROR(VLOOKUP($A73,FILTRO!$A$5:$AW$2602,9,FALSE),0) -> 543 | L73: =IFERROR(VLOOKUP($A73,FILTRO!$A$5:$AW$2602,10,FALSE),0) -> 61 | M73: =IFERROR(VLOOKUP($A73,FILTRO!$A$5:$AW$2602,11,FALSE),0) -> 31 | N73: =IFERROR(VLOOKUP($A73,FILTRO!$A$5:$AW$2602,12,FALSE),0) -> 3 | O73: =IFERROR(VLOOKUP($A73,FILTRO!$A$5:$AW$2602,13,FALSE),0) -> 6 | CF73: * Pueblos Originarios NO DEBE ser mayor al Total de controles de adolescentes de 10 a 14 años. | CH73: * Migrantes NO DEBE ser mayor al Total de controles de adolescentes de 10 a 14 años. | CJ73: * Pueblos Originarios NO DEBE ser mayor al Total de controles de adolescentes de 15 a 19 años. | DF73: 1 | DH73: 1 | DJ73: 1
A74: 01030800 | B74: EN OTROS LUGARES FUERA DEL ESTABLECIMIENTO DE SALUD | D74: =SUM(E74:F74) -> 251 | E74: =IFERROR(VLOOKUP($A74,FILTRO!$A$5:$AW$2602,3,FALSE),0) -> 112 | F74: =IFERROR(VLOOKUP($A74,FILTRO!$A$5:$AW$2602,4,FALSE),0) -> 139 | G74: =IFERROR(VLOOKUP($A74,FILTRO!$A$5:$AW$2602,5,FALSE),0) -> 8 | H74: =IFERROR(VLOOKUP($A74,FILTRO!$A$5:$AW$2602,6,FALSE),0) -> 4 | I74: =SUM(J74:K74) -> 74 | J74: =IFERROR(VLOOKUP($A74,FILTRO!$A$5:$AW$2602,8,FALSE),0) -> 43 | K74: =IFERROR(VLOOKUP($A74,FILTRO!$A$5:$AW$2602,9,FALSE),0) -> 31 | L74: =IFERROR(VLOOKUP($A74,FILTRO!$A$5:$AW$2602,10,FALSE),0) -> 6 | M74: =IFERROR(VLOOKUP($A74,FILTRO!$A$5:$AW$2602,11,FALSE),0) -> 0 | N74: =IFERROR(VLOOKUP($A74,FILTRO!$A$5:$AW$2602,12,FALSE),0) -> 40 | O74: =IFERROR(VLOOKUP($A74,FILTRO!$A$5:$AW$2602,13,FALSE),0) -> 99 | CD74: * Niños, Niñas, Adolescentes y Jóvenes Mejor Niñez NO DEBE ser mayor al Total. | CF74: * Pueblos Originarios NO DEBE ser mayor al Total de controles de adolescentes de 10 a 14 años. | CH74: * Migrantes NO DEBE ser mayor al Total de controles de adolescentes de 10 a 14 años. | CJ74: * Pueblos Originarios NO DEBE ser mayor al Total de controles de adolescentes de 15 a 19 años. | CL74: * Migrantes NO DEBE ser mayor al Total de controles de adolescentes de 15 a 19 años. | DD74: 1 | DF74: 1 | DH74: 1 | DJ74: 1 | DL74: 1
B75: TOTAL | D75: =SUM(D71:D74) -> 8125 | E75: 3660 | F75: 4465 | G75: 396 | H75: =SUM(H71:H74) -> 302 | I75: 3518 | J75: 1369 | K75: 2149 | L75: 220 | M75: 155 | N75: =SUM(N71:N74) -> 106 | O75: =SUM(O71:O74) -> 212
B76: SECCIÓN E: CONTROLES DE SALUD EN ESTABLECIMIENTOS EDUCACIONALES
B77: SECCIÓN E1: CONTROLES INDIVIDUALES
B78: CURSO | C78: TOTAL | D78: SEXO | F78: Pueblos Originarios | G78: Migrantes | H78: Niños, Niñas, Adolescentes y Jóvenes SENAME | I78: Niños, Niñas, Adolescentes y Jóvenes Mejor Niñez
D79: Hombres | E79: Mujeres
A80: 01031000 | B80: KÍNDER | C80: =SUM(D80:E80) -> 441 | D80: =IFERROR(VLOOKUP($A80,FILTRO!$A$5:$AW$2602,3,FALSE),0) -> 197 | E80: =IFERROR(VLOOKUP($A80,FILTRO!$A$5:$AW$2602,4,FALSE),0) -> 244 | F80: =IFERROR(VLOOKUP($A80,FILTRO!$A$5:$AW$2602,5,FALSE),0) -> 2 | G80: =IFERROR(VLOOKUP($A80,FILTRO!$A$5:$AW$2602,6,FALSE),0) -> 2 | H80: =IFERROR(VLOOKUP($A80,FILTRO!$A$5:$AW$2602,7,FALSE),0) -> 0 | I80: =IFERROR(VLOOKUP($A80,FILTRO!$A$5:$AW$2602,8,FALSE),0) -> 0
A81: 01031100 | B81: PRIMERO BÁSICO | C81: =SUM(D81:E81) -> 702 | D81: =IFERROR(VLOOKUP($A81,FILTRO!$A$5:$AW$2602,3,FALSE),0) -> 350 | E81: =IFERROR(VLOOKUP($A81,FILTRO!$A$5:$AW$2602,4,FALSE),0) -> 352 | F81: =IFERROR(VLOOKUP($A81,FILTRO!$A$5:$AW$2602,5,FALSE),0) -> 5 | G81: =IFERROR(VLOOKUP($A81,FILTRO!$A$5:$AW$2602,6,FALSE),0) -> 5 | H81: =IFERROR(VLOOKUP($A81,FILTRO!$A$5:$AW$2602,7,FALSE),0) -> 1 | I81: =IFERROR(VLOOKUP($A81,FILTRO!$A$5:$AW$2602,8,FALSE),0) -> 0
A82: 01031200 | B82: SEGUNDO BÁSICO | C82: =SUM(D82:E82) -> 849 | D82: =IFERROR(VLOOKUP($A82,FILTRO!$A$5:$AW$2602,3,FALSE),0) -> 399 | E82: =IFERROR(VLOOKUP($A82,FILTRO!$A$5:$AW$2602,4,FALSE),0) -> 450 | F82: =IFERROR(VLOOKUP($A82,FILTRO!$A$5:$AW$2602,5,FALSE),0) -> 0 | G82: =IFERROR(VLOOKUP($A82,FILTRO!$A$5:$AW$2602,6,FALSE),0) -> 6 | H82: =IFERROR(VLOOKUP($A82,FILTRO!$A$5:$AW$2602,7,FALSE),0) -> 1 | I82: =IFERROR(VLOOKUP($A82,FILTRO!$A$5:$AW$2602,8,FALSE),0) -> 0
A83: 01031300 | B83: TERCERO BÁSICO | C83: =SUM(D83:E83) -> 962 | D83: =IFERROR(VLOOKUP($A83,FILTRO!$A$5:$AW$2602,3,FALSE),0) -> 467 | E83: =IFERROR(VLOOKUP($A83,FILTRO!$A$5:$AW$2602,4,FALSE),0) -> 495 | F83: =IFERROR(VLOOKUP($A83,FILTRO!$A$5:$AW$2602,5,FALSE),0) -> 7 | G83: =IFERROR(VLOOKUP($A83,FILTRO!$A$5:$AW$2602,6,FALSE),0) -> 2 | H83: =IFERROR(VLOOKUP($A83,FILTRO!$A$5:$AW$2602,7,FALSE),0) -> 0 | I83: =IFERROR(VLOOKUP($A83,FILTRO!$A$5:$AW$2602,8,FALSE),0) -> 0
A84: 01031400 | B84: CUARTO BÁSICO | C84: =SUM(D84:E84) -> 885 | D84: =IFERROR(VLOOKUP($A84,FILTRO!$A$5:$AW$2602,3,FALSE),0) -> 425 | E84: =IFERROR(VLOOKUP($A84,FILTRO!$A$5:$AW$2602,4,FALSE),0) -> 460 | F84: =IFERROR(VLOOKUP($A84,FILTRO!$A$5:$AW$2602,5,FALSE),0) -> 5 | G84: =IFERROR(VLOOKUP($A84,FILTRO!$A$5:$AW$2602,6,FALSE),0) -> 0 | H84: =IFERROR(VLOOKUP($A84,FILTRO!$A$5:$AW$2602,7,FALSE),0) -> 1 | I84: =IFERROR(VLOOKUP($A84,FILTRO!$A$5:$AW$2602,8,FALSE),0) -> 0
B85: SECCIÓN E2: CONTROLES GRUPALES
B86: CURSO | C86: TOTAL DE GRUPOS | D86: TOTAL | E86: SEXO | G86: Pueblos Originarios | H86: Migrantes | I86: Niños, Niñas, Adolescentes y Jóvenes SENAME | J86: Niños, Niñas, Adolescentes y Jóvenes Mejor Niñez
E87: Hombres | F87: Mujeres
A88: 01031500 | B88: KÍNDER | C88: =IFERROR(VLOOKUP($A88,FILTRO!$A$5:$AW$2602,2,FALSE),0) -> 0 | D88: =SUM(E88:F88) -> 0 | E88: =IFERROR(VLOOKUP($A88,FILTRO!$A$5:$AW$2602,4,FALSE),0) -> 0 | F88: =IFERROR(VLOOKUP($A88,FILTRO!$A$5:$AW$2602,5,FALSE),0) -> 0 | G88: =IFERROR(VLOOKUP($A88,FILTRO!$A$5:$AW$2602,6,FALSE),0) -> 0 | H88: =IFERROR(VLOOKUP($A88,FILTRO!$A$5:$AW$2602,7,FALSE),0) -> 0 | I88: =IFERROR(VLOOKUP($A88,FILTRO!$A$5:$AW$2602,8,FALSE),0) -> 0 | J88: =IFERROR(VLOOKUP($A88,FILTRO!$A$5:$AW$2602,9,FALSE),0) -> 0
A89: 01031600 | B89: PRIMERO BÁSICO | C89: =IFERROR(VLOOKUP($A89,FILTRO!$A$5:$AW$2602,2,FALSE),0) -> 0 | D89: =SUM(E89:F89) -> 0 | E89: =IFERROR(VLOOKUP($A89,FILTRO!$A$5:$AW$2602,4,FALSE),0) -> 0 | F89: =IFERROR(VLOOKUP($A89,FILTRO!$A$5:$AW$2602,5,FALSE),0) -> 0 | G89: =IFERROR(VLOOKUP($A89,FILTRO!$A$5:$AW$2602,6,FALSE),0) -> 0 | H89: =IFERROR(VLOOKUP($A89,FILTRO!$A$5:$AW$2602,7,FALSE),0) -> 0 | I89: =IFERROR(VLOOKUP($A89,FILTRO!$A$5:$AW$2602,8,FALSE),0) -> 0 | J89: =IFERROR(VLOOKUP($A89,FILTRO!$A$5:$AW$2602,9,FALSE),0) -> 0
A90: 01031700 | B90: SEGUNDO BÁSICO | C90: =IFERROR(VLOOKUP($A90,FILTRO!$A$5:$AW$2602,2,FALSE),0) -> 0 | D90: =SUM(E90:F90) -> 0 | E90: =IFERROR(VLOOKUP($A90,FILTRO!$A$5:$AW$2602,4,FALSE),0) -> 0 | F90: =IFERROR(VLOOKUP($A90,FILTRO!$A$5:$AW$2602,5,FALSE),0) -> 0 | G90: =IFERROR(VLOOKUP($A90,FILTRO!$A$5:$AW$2602,6,FALSE),0) -> 0 | H90: =IFERROR(VLOOKUP($A90,FILTRO!$A$5:$AW$2602,7,FALSE),0) -> 0 | I90: =IFERROR(VLOOKUP($A90,FILTRO!$A$5:$AW$2602,8,FALSE),0) -> 0 | J90: =IFERROR(VLOOKUP($A90,FILTRO!$A$5:$AW$2602,9,FALSE),0) -> 0
A91: 01031800 | B91: TERCERO BÁSICO | C91: =IFERROR(VLOOKUP($A91,FILTRO!$A$5:$AW$2602,2,FALSE),0) -> 0 | D91: =SUM(E91:F91) -> 0 | E91: =IFERROR(VLOOKUP($A91,FILTRO!$A$5:$AW$2602,4,FALSE),0) -> 0 | F91: =IFERROR(VLOOKUP($A91,FILTRO!$A$5:$AW$2602,5,FALSE),0) -> 0 | G91: =IFERROR(VLOOKUP($A91,FILTRO!$A$5:$AW$2602,6,FALSE),0) -> 0 | H91: =IFERROR(VLOOKUP($A91,FILTRO!$A$5:$AW$2602,7,FALSE),0) -> 0 | I91: =IFERROR(VLOOKUP($A91,FILTRO!$A$5:$AW$2602,8,FALSE),0) -> 0 | J91: =IFERROR(VLOOKUP($A91,FILTRO!$A$5:$AW$2602,9,FALSE),0) -> 0
A92: 01031900 | B92: CUARTO BÁSICO | C92: =IFERROR(VLOOKUP($A92,FILTRO!$A$5:$AW$2602,2,FALSE),0) -> 0 | D92: =SUM(E92:F92) -> 0 | E92: =IFERROR(VLOOKUP($A92,FILTRO!$A$5:$AW$2602,4,FALSE),0) -> 0 | F92: =IFERROR(VLOOKUP($A92,FILTRO!$A$5:$AW$2602,5,FALSE),0) -> 0 | G92: =IFERROR(VLOOKUP($A92,FILTRO!$A$5:$AW$2602,6,FALSE),0) -> 0 | H92: =IFERROR(VLOOKUP($A92,FILTRO!$A$5:$AW$2602,7,FALSE),0) -> 1 | I92: =IFERROR(VLOOKUP($A92,FILTRO!$A$5:$AW$2602,8,FALSE),0) -> 0 | J92: =IFERROR(VLOOKUP($A92,FILTRO!$A$5:$AW$2602,9,FALSE),0) -> 0 | CB92: * Niños, Niñas, Adolescentes y Jóvenes SENAME NO DEBE ser mayor al Total. | DB92: 1
B93: SECCIÓN F: CONTROLES INTEGRALES DE PERSONAS CON CONDICIONES CRÓNICAS (incluidos en Secciones B y C)
B94: TIPO DE CONTROL | C94: TOTAL | F94: POR EDAD | AH94: Migrantes | AI94: Pueblos Originarios
F95: 15 - 19 años | H95: 20 - 24 años | J95: 25 - 29 años | L95: 30 - 34 años | N95: 35 - 39 años | P95: 40 - 44 años | R95: 45 - 49 años | T95: 50 - 54 años | V95: 55 - 59 años | X95: 60 - 64 años | Z95: 65 - 69 años | AB95: 70 - 74 años | AD95: 75 - 79 años | AF95: 80 y más años
C96: Ambos Sexos | D96: Hombres | E96: Mujeres | F96: Hombres | G96: Mujeres | H96: Hombres | I96: Mujeres | J96: Hombres | K96: Mujeres | L96: Hombres | M96: Mujeres | N96: Hombres | O96: Mujeres | P96: Hombres | Q96: Mujeres | R96: Hombres | S96: Mujeres | T96: Hombres | U96: Mujeres | V96: Hombres | W96: Mujeres | X96: Hombres | Y96: Mujeres | Z96: Hombres | AA96: Mujeres | AB96: Hombres | AC96: Mujeres | AD96: Hombres | AE96: Mujeres | AF96: Hombres | AG96: Mujeres
A97: 01501010 | B97: CONTROL INTEGRAL CON RIESGO LEVE (G1) | C97: =SUM(D97:E97) -> 386 | D97: =SUM(F97+H97+J97+L97+N97+P97+R97+T97+V97+X97+Z97+AB97+AD97+AF97) -> 127 | E97: =SUM(+G97+I97+K97+M97+O97+Q97+S97+U97+W97+Y97+AA97+AC97+AE97+AG97) -> 259 | F97: =IFERROR(VLOOKUP($A97,FILTRO!$A$5:$AW$2602,5,FALSE),0) -> 2 | G97: =IFERROR(VLOOKUP($A97,FILTRO!$A$5:$AW$2602,6,FALSE),0) -> 0 | H97: =IFERROR(VLOOKUP($A97,FILTRO!$A$5:$AW$2602,7,FALSE),0) -> 2 | I97: =IFERROR(VLOOKUP($A97,FILTRO!$A$5:$AW$2602,8,FALSE),0) -> 1 | J97: =IFERROR(VLOOKUP($A97,FILTRO!$A$5:$AW$2602,9,FALSE),0) -> 4 | K97: =IFERROR(VLOOKUP($A97,FILTRO!$A$5:$AW$2602,10,FALSE),0) -> 1 | L97: =IFERROR(VLOOKUP($A97,FILTRO!$A$5:$AW$2602,11,FALSE),0) -> 5 | M97: =IFERROR(VLOOKUP($A97,FILTRO!$A$5:$AW$2602,12,FALSE),0) -> 6 | N97: =IFERROR(VLOOKUP($A97,FILTRO!$A$5:$AW$2602,13,FALSE),0) -> 1 | O97: =IFERROR(VLOOKUP($A97,FILTRO!$A$5:$AW$2602,14,FALSE),0) -> 13 | P97: =IFERROR(VLOOKUP($A97,FILTRO!$A$5:$AW$2602,15,FALSE),0) -> 5 | Q97: =IFERROR(VLOOKUP($A97,FILTRO!$A$5:$AW$2602,16,FALSE),0) -> 16 | R97: =IFERROR(VLOOKUP($A97,FILTRO!$A$5:$AW$2602,17,FALSE),0) -> 8 | S97: =IFERROR(VLOOKUP($A97,FILTRO!$A$5:$AW$2602,18,FALSE),0) -> 23 | T97: =IFERROR(VLOOKUP($A97,FILTRO!$A$5:$AW$2602,19,FALSE),0) -> 17 | U97: =IFERROR(VLOOKUP($A97,FILTRO!$A$5:$AW$2602,20,FALSE),0) -> 28 | V97: =IFERROR(VLOOKUP($A97,FILTRO!$A$5:$AW$2602,21,FALSE),0) -> 17 | W97: =IFERROR(VLOOKUP($A97,FILTRO!$A$5:$AW$2602,22,FALSE),0) -> 39 | X97: =IFERROR(VLOOKUP($A97,FILTRO!$A$5:$AW$2602,23,FALSE),0) -> 22 | Y97: =IFERROR(VLOOKUP($A97,FILTRO!$A$5:$AW$2602,24,FALSE),0) -> 34 | Z97: =IFERROR(VLOOKUP($A97,FILTRO!$A$5:$AW$2602,25,FALSE),0) -> 14 | AA97: =IFERROR(VLOOKUP($A97,FILTRO!$A$5:$AW$2602,26,FALSE),0) -> 36 | AB97: =IFERROR(VLOOKUP($A97,FILTRO!$A$5:$AW$2602,27,FALSE),0) -> 8 | AC97: =IFERROR(VLOOKUP($A97,FILTRO!$A$5:$AW$2602,28,FALSE),0) -> 15 | AD97: =IFERROR(VLOOKUP($A97,FILTRO!$A$5:$AW$2602,29,FALSE),0) -> 9 | AE97: =IFERROR(VLOOKUP($A97,FILTRO!$A$5:$AW$2602,30,FALSE),0) -> 21 | AF97: =IFERROR(VLOOKUP($A97,FILTRO!$A$5:$AW$2602,31,FALSE),0) -> 13 | AG97: =IFERROR(VLOOKUP($A97,FILTRO!$A$5:$AW$2602,32,FALSE),0) -> 26 | AH97: =IFERROR(VLOOKUP($A97,FILTRO!$A$5:$AW$2602,33,FALSE),0) -> 0 | AI97: =IFERROR(VLOOKUP($A97,FILTRO!$A$5:$AW$2602,34,FALSE),0) -> 0 | DA97: 0 | DB97: 0
A98: 01501020 | B98: CONTROL INTEGRAL CON RIESGO MODERADO (G2) | C98: 333 | D98: 108 | E98: 225 | F98: =IFERROR(VLOOKUP($A98,FILTRO!$A$5:$AW$2602,5,FALSE),0) -> 1 | G98: =IFERROR(VLOOKUP($A98,FILTRO!$A$5:$AW$2602,6,FALSE),0) -> 0 | H98: =IFERROR(VLOOKUP($A98,FILTRO!$A$5:$AW$2602,7,FALSE),0) -> 0 | I98: =IFERROR(VLOOKUP($A98,FILTRO!$A$5:$AW$2602,8,FALSE),0) -> 1 | J98: =IFERROR(VLOOKUP($A98,FILTRO!$A$5:$AW$2602,9,FALSE),0) -> 3 | K98: =IFERROR(VLOOKUP($A98,FILTRO!$A$5:$AW$2602,10,FALSE),0) -> 3 | L98: =IFERROR(VLOOKUP($A98,FILTRO!$A$5:$AW$2602,11,FALSE),0) -> 0 | M98: =IFERROR(VLOOKUP($A98,FILTRO!$A$5:$AW$2602,12,FALSE),0) -> 0 | N98: =IFERROR(VLOOKUP($A98,FILTRO!$A$5:$AW$2602,13,FALSE),0) -> 3 | O98: =IFERROR(VLOOKUP($A98,FILTRO!$A$5:$AW$2602,14,FALSE),0) -> 6 | P98: =IFERROR(VLOOKUP($A98,FILTRO!$A$5:$AW$2602,15,FALSE),0) -> 2 | Q98: =IFERROR(VLOOKUP($A98,FILTRO!$A$5:$AW$2602,16,FALSE),0) -> 9 | R98: =IFERROR(VLOOKUP($A98,FILTRO!$A$5:$AW$2602,17,FALSE),0) -> 9 | S98: =IFERROR(VLOOKUP($A98,FILTRO!$A$5:$AW$2602,18,FALSE),0) -> 13 | T98: =IFERROR(VLOOKUP($A98,FILTRO!$A$5:$AW$2602,19,FALSE),0) -> 7 | U98: =IFERROR(VLOOKUP($A98,FILTRO!$A$5:$AW$2602,20,FALSE),0) -> 10 | V98: =IFERROR(VLOOKUP($A98,FILTRO!$A$5:$AW$2602,21,FALSE),0) -> 13 | W98: =IFERROR(VLOOKUP($A98,FILTRO!$A$5:$AW$2602,22,FALSE),0) -> 49 | X98: =IFERROR(VLOOKUP($A98,FILTRO!$A$5:$AW$2602,23,FALSE),0) -> 17 | Y98: =IFERROR(VLOOKUP($A98,FILTRO!$A$5:$AW$2602,24,FALSE),0) -> 28 | Z98: =IFERROR(VLOOKUP($A98,FILTRO!$A$5:$AW$2602,25,FALSE),0) -> 18 | AA98: =IFERROR(VLOOKUP($A98,FILTRO!$A$5:$AW$2602,26,FALSE),0) -> 23 | AB98: =IFERROR(VLOOKUP($A98,FILTRO!$A$5:$AW$2602,27,FALSE),0) -> 20 | AC98: =IFERROR(VLOOKUP($A98,FILTRO!$A$5:$AW$2602,28,FALSE),0) -> 28 | AD98: =IFERROR(VLOOKUP($A98,FILTRO!$A$5:$AW$2602,29,FALSE),0) -> 7 | AE98: =IFERROR(VLOOKUP($A98,FILTRO!$A$5:$AW$2602,30,FALSE),0) -> 18 | AF98: =IFERROR(VLOOKUP($A98,FILTRO!$A$5:$AW$2602,31,FALSE),0) -> 8 | AG98: =IFERROR(VLOOKUP($A98,FILTRO!$A$5:$AW$2602,32,FALSE),0) -> 37 | AH98: =IFERROR(VLOOKUP($A98,FILTRO!$A$5:$AW$2602,33,FALSE),0) -> 0 | AI98: =IFERROR(VLOOKUP($A98,FILTRO!$A$5:$AW$2602,34,FALSE),0) -> 0 | DA98: 0 | DB98: 0
A99: 01501030 | B99: CONTROL INTEGRAL CON RIESGO ALTO (G3) | C99: 1409 | D99: 456 | E99: 953 | F99: =IFERROR(VLOOKUP($A99,FILTRO!$A$5:$AW$2602,5,FALSE),0) -> 0 | G99: =IFERROR(VLOOKUP($A99,FILTRO!$A$5:$AW$2602,6,FALSE),0) -> 0 | H99: =IFERROR(VLOOKUP($A99,FILTRO!$A$5:$AW$2602,7,FALSE),0) -> 0 | I99: =IFERROR(VLOOKUP($A99,FILTRO!$A$5:$AW$2602,8,FALSE),0) -> 3 | J99: =IFERROR(VLOOKUP($A99,FILTRO!$A$5:$AW$2602,9,FALSE),0) -> 0 | K99: =IFERROR(VLOOKUP($A99,FILTRO!$A$5:$AW$2602,10,FALSE),0) -> 1 | L99: =IFERROR(VLOOKUP($A99,FILTRO!$A$5:$AW$2602,11,FALSE),0) -> 0 | M99: =IFERROR(VLOOKUP($A99,FILTRO!$A$5:$AW$2602,12,FALSE),0) -> 4 | N99: =IFERROR(VLOOKUP($A99,FILTRO!$A$5:$AW$2602,13,FALSE),0) -> 8 | O99: =IFERROR(VLOOKUP($A99,FILTRO!$A$5:$AW$2602,14,FALSE),0) -> 11 | P99: =IFERROR(VLOOKUP($A99,FILTRO!$A$5:$AW$2602,15,FALSE),0) -> 2 | Q99: =IFERROR(VLOOKUP($A99,FILTRO!$A$5:$AW$2602,16,FALSE),0) -> 15 | R99: =IFERROR(VLOOKUP($A99,FILTRO!$A$5:$AW$2602,17,FALSE),0) -> 13 | S99: =IFERROR(VLOOKUP($A99,FILTRO!$A$5:$AW$2602,18,FALSE),0) -> 29 | T99: =IFERROR(VLOOKUP($A99,FILTRO!$A$5:$AW$2602,19,FALSE),0) -> 20 | U99: =IFERROR(VLOOKUP($A99,FILTRO!$A$5:$AW$2602,20,FALSE),0) -> 55 | V99: =IFERROR(VLOOKUP($A99,FILTRO!$A$5:$AW$2602,21,FALSE),0) -> 29 | W99: =IFERROR(VLOOKUP($A99,FILTRO!$A$5:$AW$2602,22,FALSE),0) -> 113 | X99: =IFERROR(VLOOKUP($A99,FILTRO!$A$5:$AW$2602,23,FALSE),0) -> 59 | Y99: =IFERROR(VLOOKUP($A99,FILTRO!$A$5:$AW$2602,24,FALSE),0) -> 130 | Z99: =IFERROR(VLOOKUP($A99,FILTRO!$A$5:$AW$2602,25,FALSE),0) -> 113 | AA99: =IFERROR(VLOOKUP($A99,FILTRO!$A$5:$AW$2602,26,FALSE),0) -> 192 | AB99: =IFERROR(VLOOKUP($A99,FILTRO!$A$5:$AW$2602,27,FALSE),0) -> 77 | AC99: =IFERROR(VLOOKUP($A99,FILTRO!$A$5:$AW$2602,28,FALSE),0) -> 146 | AD99: =IFERROR(VLOOKUP($A99,FILTRO!$A$5:$AW$2602,29,FALSE),0) -> 61 | AE99: =IFERROR(VLOOKUP($A99,FILTRO!$A$5:$AW$2602,30,FALSE),0) -> 121 | AF99: =IFERROR(VLOOKUP($A99,FILTRO!$A$5:$AW$2602,31,FALSE),0) -> 74 | AG99: =IFERROR(VLOOKUP($A99,FILTRO!$A$5:$AW$2602,32,FALSE),0) -> 133 | AH99: =IFERROR(VLOOKUP($A99,FILTRO!$A$5:$AW$2602,33,FALSE),0) -> 3 | AI99: =IFERROR(VLOOKUP($A99,FILTRO!$A$5:$AW$2602,34,FALSE),0) -> 0 | DA99: 0 | DB99: 0
A100: 01502030 | B100: SEGUIMIENTO A DISTANCIA CON RIESGO LEVE (G1) | C100: 0 | D100: 0 | E100: 0 | F100: =IFERROR(VLOOKUP($A100,FILTRO!$A$5:$AW$2602,5,FALSE),0) -> 0 | G100: =IFERROR(VLOOKUP($A100,FILTRO!$A$5:$AW$2602,6,FALSE),0) -> 0 | H100: =IFERROR(VLOOKUP($A100,FILTRO!$A$5:$AW$2602,7,FALSE),0) -> 0 | I100: =IFERROR(VLOOKUP($A100,FILTRO!$A$5:$AW$2602,8,FALSE),0) -> 0 | J100: =IFERROR(VLOOKUP($A100,FILTRO!$A$5:$AW$2602,9,FALSE),0) -> 0 | K100: =IFERROR(VLOOKUP($A100,FILTRO!$A$5:$AW$2602,10,FALSE),0) -> 0 | L100: =IFERROR(VLOOKUP($A100,FILTRO!$A$5:$AW$2602,11,FALSE),0) -> 0 | M100: =IFERROR(VLOOKUP($A100,FILTRO!$A$5:$AW$2602,12,FALSE),0) -> 0 | N100: =IFERROR(VLOOKUP($A100,FILTRO!$A$5:$AW$2602,13,FALSE),0) -> 0 | O100: =IFERROR(VLOOKUP($A100,FILTRO!$A$5:$AW$2602,14,FALSE),0) -> 0 | P100: =IFERROR(VLOOKUP($A100,FILTRO!$A$5:$AW$2602,15,FALSE),0) -> 0 | Q100: =IFERROR(VLOOKUP($A100,FILTRO!$A$5:$AW$2602,16,FALSE),0) -> 0 | R100: =IFERROR(VLOOKUP($A100,FILTRO!$A$5:$AW$2602,17,FALSE),0) -> 0 | S100: =IFERROR(VLOOKUP($A100,FILTRO!$A$5:$AW$2602,18,FALSE),0) -> 0 | T100: =IFERROR(VLOOKUP($A100,FILTRO!$A$5:$AW$2602,19,FALSE),0) -> 0 | U100: =IFERROR(VLOOKUP($A100,FILTRO!$A$5:$AW$2602,20,FALSE),0) -> 0 | V100: =IFERROR(VLOOKUP($A100,FILTRO!$A$5:$AW$2602,21,FALSE),0) -> 0 | W100: =IFERROR(VLOOKUP($A100,FILTRO!$A$5:$AW$2602,22,FALSE),0) -> 0 | X100: =IFERROR(VLOOKUP($A100,FILTRO!$A$5:$AW$2602,23,FALSE),0) -> 0 | Y100: =IFERROR(VLOOKUP($A100,FILTRO!$A$5:$AW$2602,24,FALSE),0) -> 0 | Z100: =IFERROR(VLOOKUP($A100,FILTRO!$A$5:$AW$2602,25,FALSE),0) -> 0 | AA100: =IFERROR(VLOOKUP($A100,FILTRO!$A$5:$AW$2602,26,FALSE),0) -> 0 | AB100: =IFERROR(VLOOKUP($A100,FILTRO!$A$5:$AW$2602,27,FALSE),0) -> 0 | AC100: =IFERROR(VLOOKUP($A100,FILTRO!$A$5:$AW$2602,28,FALSE),0) -> 0 | AD100: =IFERROR(VLOOKUP($A100,FILTRO!$A$5:$AW$2602,29,FALSE),0) -> 0 | AE100: =IFERROR(VLOOKUP($A100,FILTRO!$A$5:$AW$2602,30,FALSE),0) -> 0 | AF100: =IFERROR(VLOOKUP($A100,FILTRO!$A$5:$AW$2602,31,FALSE),0) -> 0 | AG100: =IFERROR(VLOOKUP($A100,FILTRO!$A$5:$AW$2602,32,FALSE),0) -> 0 | AH100: =IFERROR(VLOOKUP($A100,FILTRO!$A$5:$AW$2602,33,FALSE),0) -> 0 | AI100: =IFERROR(VLOOKUP($A100,FILTRO!$A$5:$AW$2602,34,FALSE),0) -> 0 | DA100: 0 | DB100: 0
A101: 01502040 | B101: SEGUIMIENTO A DISTANCIA CON RIESGO MODERADO (G2) | C101: 5 | D101: 0 | E101: 5 | F101: =IFERROR(VLOOKUP($A101,FILTRO!$A$5:$AW$2602,5,FALSE),0) -> 0 | G101: =IFERROR(VLOOKUP($A101,FILTRO!$A$5:$AW$2602,6,FALSE),0) -> 0 | H101: =IFERROR(VLOOKUP($A101,FILTRO!$A$5:$AW$2602,7,FALSE),0) -> 0 | I101: =IFERROR(VLOOKUP($A101,FILTRO!$A$5:$AW$2602,8,FALSE),0) -> 0 | J101: =IFERROR(VLOOKUP($A101,FILTRO!$A$5:$AW$2602,9,FALSE),0) -> 0 | K101: =IFERROR(VLOOKUP($A101,FILTRO!$A$5:$AW$2602,10,FALSE),0) -> 1 | L101: =IFERROR(VLOOKUP($A101,FILTRO!$A$5:$AW$2602,11,FALSE),0) -> 0 | M101: =IFERROR(VLOOKUP($A101,FILTRO!$A$5:$AW$2602,12,FALSE),0) -> 0 | N101: =IFERROR(VLOOKUP($A101,FILTRO!$A$5:$AW$2602,13,FALSE),0) -> 0 | O101: =IFERROR(VLOOKUP($A101,FILTRO!$A$5:$AW$2602,14,FALSE),0) -> 0 | P101: =IFERROR(VLOOKUP($A101,FILTRO!$A$5:$AW$2602,15,FALSE),0) -> 0 | Q101: =IFERROR(VLOOKUP($A101,FILTRO!$A$5:$AW$2602,16,FALSE),0) -> 0 | R101: =IFERROR(VLOOKUP($A101,FILTRO!$A$5:$AW$2602,17,FALSE),0) -> 0 | S101: =IFERROR(VLOOKUP($A101,FILTRO!$A$5:$AW$2602,18,FALSE),0) -> 1 | T101: =IFERROR(VLOOKUP($A101,FILTRO!$A$5:$AW$2602,19,FALSE),0) -> 0 | U101: =IFERROR(VLOOKUP($A101,FILTRO!$A$5:$AW$2602,20,FALSE),0) -> 0 | V101: =IFERROR(VLOOKUP($A101,FILTRO!$A$5:$AW$2602,21,FALSE),0) -> 0 | W101: =IFERROR(VLOOKUP($A101,FILTRO!$A$5:$AW$2602,22,FALSE),0) -> 0 | X101: =IFERROR(VLOOKUP($A101,FILTRO!$A$5:$AW$2602,23,FALSE),0) -> 0 | Y101: =IFERROR(VLOOKUP($A101,FILTRO!$A$5:$AW$2602,24,FALSE),0) -> 0 | Z101: =IFERROR(VLOOKUP($A101,FILTRO!$A$5:$AW$2602,25,FALSE),0) -> 0 | AA101: =IFERROR(VLOOKUP($A101,FILTRO!$A$5:$AW$2602,26,FALSE),0) -> 0 | AB101: =IFERROR(VLOOKUP($A101,FILTRO!$A$5:$AW$2602,27,FALSE),0) -> 0 | AC101: =IFERROR(VLOOKUP($A101,FILTRO!$A$5:$AW$2602,28,FALSE),0) -> 0 | AD101: =IFERROR(VLOOKUP($A101,FILTRO!$A$5:$AW$2602,29,FALSE),0) -> 0 | AE101: =IFERROR(VLOOKUP($A101,FILTRO!$A$5:$AW$2602,30,FALSE),0) -> 3 | AF101: =IFERROR(VLOOKUP($A101,FILTRO!$A$5:$AW$2602,31,FALSE),0) -> 0 | AG101: =IFERROR(VLOOKUP($A101,FILTRO!$A$5:$AW$2602,32,FALSE),0) -> 0 | AH101: =IFERROR(VLOOKUP($A101,FILTRO!$A$5:$AW$2602,33,FALSE),0) -> 0 | AI101: =IFERROR(VLOOKUP($A101,FILTRO!$A$5:$AW$2602,34,FALSE),0) -> 0 | DA101: 0 | DB101: 0
A102: 01501040 | B102: SEGUIMIENTO A DISTANCIA CON RIESGO ALTO (G3) | C102: 1650 | D102: 492 | E102: 1158 | F102: =IFERROR(VLOOKUP($A102,FILTRO!$A$5:$AW$2602,5,FALSE),0) -> 0 | G102: =IFERROR(VLOOKUP($A102,FILTRO!$A$5:$AW$2602,6,FALSE),0) -> 0 | H102: =IFERROR(VLOOKUP($A102,FILTRO!$A$5:$AW$2602,7,FALSE),0) -> 0 | I102: =IFERROR(VLOOKUP($A102,FILTRO!$A$5:$AW$2602,8,FALSE),0) -> 4 | J102: =IFERROR(VLOOKUP($A102,FILTRO!$A$5:$AW$2602,9,FALSE),0) -> 0 | K102: =IFERROR(VLOOKUP($A102,FILTRO!$A$5:$AW$2602,10,FALSE),0) -> 0 | L102: =IFERROR(VLOOKUP($A102,FILTRO!$A$5:$AW$2602,11,FALSE),0) -> 2 | M102: =IFERROR(VLOOKUP($A102,FILTRO!$A$5:$AW$2602,12,FALSE),0) -> 3 | N102: =IFERROR(VLOOKUP($A102,FILTRO!$A$5:$AW$2602,13,FALSE),0) -> 1 | O102: =IFERROR(VLOOKUP($A102,FILTRO!$A$5:$AW$2602,14,FALSE),0) -> 11 | P102: =IFERROR(VLOOKUP($A102,FILTRO!$A$5:$AW$2602,15,FALSE),0) -> 0 | Q102: =IFERROR(VLOOKUP($A102,FILTRO!$A$5:$AW$2602,16,FALSE),0) -> 20 | R102: =IFERROR(VLOOKUP($A102,FILTRO!$A$5:$AW$2602,17,FALSE),0) -> 4 | S102: =IFERROR(VLOOKUP($A102,FILTRO!$A$5:$AW$2602,18,FALSE),0) -> 17 | T102: =IFERROR(VLOOKUP($A102,FILTRO!$A$5:$AW$2602,19,FALSE),0) -> 12 | U102: =IFERROR(VLOOKUP($A102,FILTRO!$A$5:$AW$2602,20,FALSE),0) -> 93 | V102: =IFERROR(VLOOKUP($A102,FILTRO!$A$5:$AW$2602,21,FALSE),0) -> 26 | W102: =IFERROR(VLOOKUP($A102,FILTRO!$A$5:$AW$2602,22,FALSE),0) -> 136 | X102: =IFERROR(VLOOKUP($A102,FILTRO!$A$5:$AW$2602,23,FALSE),0) -> 73 | Y102: =IFERROR(VLOOKUP($A102,FILTRO!$A$5:$AW$2602,24,FALSE),0) -> 190 | Z102: =IFERROR(VLOOKUP($A102,FILTRO!$A$5:$AW$2602,25,FALSE),0) -> 145 | AA102: =IFERROR(VLOOKUP($A102,FILTRO!$A$5:$AW$2602,26,FALSE),0) -> 288 | AB102: =IFERROR(VLOOKUP($A102,FILTRO!$A$5:$AW$2602,27,FALSE),0) -> 102 | AC102: =IFERROR(VLOOKUP($A102,FILTRO!$A$5:$AW$2602,28,FALSE),0) -> 187 | AD102: =IFERROR(VLOOKUP($A102,FILTRO!$A$5:$AW$2602,29,FALSE),0) -> 62 | AE102: =IFERROR(VLOOKUP($A102,FILTRO!$A$5:$AW$2602,30,FALSE),0) -> 98 | AF102: =IFERROR(VLOOKUP($A102,FILTRO!$A$5:$AW$2602,31,FALSE),0) -> 65 | AG102: =IFERROR(VLOOKUP($A102,FILTRO!$A$5:$AW$2602,32,FALSE),0) -> 111 | AH102: =IFERROR(VLOOKUP($A102,FILTRO!$A$5:$AW$2602,33,FALSE),0) -> 2 | AI102: =IFERROR(VLOOKUP($A102,FILTRO!$A$5:$AW$2602,34,FALSE),0) -> 2 | DA102: 0 | DB102: 0
A105: CODIGOS NUEVOS
A106: 09600204
A107: 09600205
A108: 09600206
A109: CODIGOS ELIMINADOS
A110: 01200035
B193: =SUM(D12:D33,V32:W33,Y20:Y23,X14:X15,D37:D40,E37:F40,D45:F67,D71:D75,I71:I75,C80:C84,D88:D92,C97:C99) -> 1022000 | C193: =SUM(DB1:EA99) -> 23

Sheet A02,
B1: SERVICIO DE SALUD
B2: =CONCATENATE("COMUNA: ",NOMBRE!B2," - ","( ",NOMBRE!C2,NOMBRE!D2,NOMBRE!E2,NOMBRE!F2,NOMBRE!G2," )") -> COMUNA: - ( )
B3: =CONCATENATE("ESTABLECIMIENTO/ESTRATEGIA: ",NOMBRE!B3," - ","( ",NOMBRE!C3,NOMBRE!D3,NOMBRE!E3,NOMBRE!F3,NOMBRE!G3,NOMBRE!H3," )") -> ESTABLECIMIENTO/ESTRATEGIA: - ( )
B4: =CONCATENATE("MES: ",NOMBRE!B6," - ","( ",NOMBRE!C6,NOMBRE!D6," )") -> MES: - ( )
B5: =CONCATENATE("AÑO: ",NOMBRE!B7) -> AÑO: 2023
B6: REM-A02. EXAMEN DE MEDICINA PREVENTIVA EN MAYORES DE 15 AÑOS
B8: SECCIÓN A: EMP REALIZADO POR PROFESIONAL
B9: PROFESIONAL | C9: TOTAL | F9: Pueblos Originarios | G9: Migrantes
C10: Ambos Sexos | D10: Hombres | E10: Mujeres
B11: TOTAL | C11: =SUM(C12:C17) -> 83804 | D11: =SUM(D12:D17) -> 29641 | E11: =SUM(E12:E17) -> 54163 | F11: =SUM(F12:F17) -> 268 | G11: =SUM(G12:G17) -> 1024
A12: 03030101 | B12: MÉDICO/A | C12: =SUM(D12:E12) -> 698 | D12: =IFERROR(VLOOKUP($A12,FILTRO!$A$5:$AW$2602,3,FALSE),0) -> 269 | E12: =IFERROR(VLOOKUP($A12,FILTRO!$A$5:$AW$2602,4,FALSE),0) -> 429 | F12: =IFERROR(VLOOKUP($A12,FILTRO!$A$5:$AW$2602,5,FALSE),0) -> 0 | G12: =IFERROR(VLOOKUP($A12,FILTRO!$A$5:$AW$2602,6,FALSE),0) -> 1
A13: 03030102 | B13: ENFERMERA/O | C13: 50769 | D13: =IFERROR(VLOOKUP($A13,FILTRO!$A$5:$AW$2602,3,FALSE),0) -> 19055 | E13: =IFERROR(VLOOKUP($A13,FILTRO!$A$5:$AW$2602,4,FALSE),0) -> 31714 | F13: =IFERROR(VLOOKUP($A13,FILTRO!$A$5:$AW$2602,5,FALSE),0) -> 145 | G13: =IFERROR(VLOOKUP($A13,FILTRO!$A$5:$AW$2602,6,FALSE),0) -> 453
A14: 03030103 | B14: MATRONA/ÓN | C14: 2858 | D14: =IFERROR(VLOOKUP($A14,FILTRO!$A$5:$AW$2602,3,FALSE),0) -> 186 | E14: =IFERROR(VLOOKUP($A14,FILTRO!$A$5:$AW$2602,4,FALSE),0) -> 2672 | F14: =IFERROR(VLOOKUP($A14,FILTRO!$A$5:$AW$2602,5,FALSE),0) -> 8 | G14: =IFERROR(VLOOKUP($A14,FILTRO!$A$5:$AW$2602,6,FALSE),0) -> 41
A15: 03030104 | B15: NUTRICIONISTA | C15: 5473 | D15: =IFERROR(VLOOKUP($A15,FILTRO!$A$5:$AW$2602,3,FALSE),0) -> 1859 | E15: =IFERROR(VLOOKUP($A15,FILTRO!$A$5:$AW$2602,4,FALSE),0) -> 3614 | F15: =IFERROR(VLOOKUP($A15,FILTRO!$A$5:$AW$2602,5,FALSE),0) -> 8 | G15: =IFERROR(VLOOKUP($A15,FILTRO!$A$5:$AW$2602,6,FALSE),0) -> 109
A16: 03030350 | B16: OTRO PROFESIONAL (capacitados en EMP Y EMPAM) | C16: 9274 | D16: =IFERROR(VLOOKUP($A16,FILTRO!$A$5:$AW$2602,3,FALSE),0) -> 3431 | E16: =IFERROR(VLOOKUP($A16,FILTRO!$A$5:$AW$2602,4,FALSE),0) -> 5843 | F16: =IFERROR(VLOOKUP($A16,FILTRO!$A$5:$AW$2602,5,FALSE),0) -> 18 | G16: =IFERROR(VLOOKUP($A16,FILTRO!$A$5:$AW$2602,6,FALSE),0) -> 130
A17: 03030110 | B17: TÉCNICO EN ENFERMERÍA | C17: 14732 | D17: =IFERROR(VLOOKUP($A17,FILTRO!$A$5:$AW$2602,3,FALSE),0) -> 4841 | E17: =IFERROR(VLOOKUP($A17,FILTRO!$A$5:$AW$2602,4,FALSE),0) -> 9891 | F17: =IFERROR(VLOOKUP($A17,FILTRO!$A$5:$AW$2602,5,FALSE),0) -> 89 | G17: =IFERROR(VLOOKUP($A17,FILTRO!$A$5:$AW$2602,6,FALSE),0) -> 290
B18: SECCIÓN B: EMP SEGÚN RESULTADO DEL ESTADO NUTRICIONAL
B19: ESTADO NUTRICIONAL | C19: TOTAL | F19: 15 a 19 años | H19: 20 a 24 años | J19: 25 a 29 años | L19: 30 a 34 años | N19: 35 a 39 años | P19: 40 a 44 años | R19: 45 a 49 años | T19: 50 a 54 años | V19: 55 a 59 años | X19: 60 a 64 años | Z19: 65 a 69 años | AB19: 70 a 74 años | AD19: 75 a 79 años | AF19: 80 y más años | AH19: Pueblos Originarios | AI19: Migrantes
C20: Ambos Sexos | D20: Hombres | E20: Mujeres | F20: Hombres | G20: Mujeres | H20: Hombres | I20: Mujeres | J20: Hombres | K20: Mujeres | L20: Hombres | M20: Mujeres | N20: Hombres | O20: Mujeres | P20: Hombres | Q20: Mujeres | R20: Hombres | S20: Mujeres | T20: Hombres | U20: Mujeres | V20: Hombres | W20: Mujeres | X20: Hombres | Y20: Mujeres | Z20: Hombres | AA20: Mujeres | AB20: Hombres | AC20: Mujeres | AD20: Hombres | AE20: Mujeres | AF20: Hombres | AG20: Mujeres
B21: TOTAL | C21: =SUM(C22:C25) -> 83436 | D21: =SUM(D22:D25) -> 29418 | E21: =SUM(E22:E25) -> 54018 | F21: =SUM(F22:F25) -> 273 | G21: 494 | H21: 1856 | I21: 3877 | J21: 1977 | K21: 4329 | L21: 2094 | M21: 4853 | N21: 1875 | O21: 4432 | P21: 1848 | Q21: 3959 | R21: 1725 | S21: 3667 | T21: 1698 | U21: 3183 | V21: 1595 | W21: 2523 | X21: 1314 | Y21: 1921 | Z21: 3297 | AA21: 5523 | AB21: 3322 | AC21: 5016 | AD21: 2843 | AE21: 4248 | AF21: 3701 | AG21: 5993 | AH21: =SUM(AH22:AH25) -> 255 | AI21: =SUM(AI22:AI25) -> 927 | CA21: * Debe coincidir el total de EMP según Estado Nutricional con EMP realizado según profesional. | DA21: 1
A22: 03030330 | B22: NORMAL | C22: =SUM(D22:E22) -> 25443 | D22: =SUM(F22+H22+J22+L22+N22+P22+R22+T22+V22+X22+Z22+AB22+AD22+AF22) -> 9834 | E22: =SUM(G22+I22+K22+M22+O22+Q22+S22+U22+W22+Y22+AA22+AC22+AE22+AG22) -> 15609 | F22: =IFERROR(VLOOKUP($A22,FILTRO!$A$5:$AW$2602,5,FALSE),0) -> 132 | G22: =IFERROR(VLOOKUP($A22,FILTRO!$A$5:$AW$2602,6,FALSE),0) -> 224 | H22: =IFERROR(VLOOKUP($A22,FILTRO!$A$5:$AW$2602,7,FALSE),0) -> 826 | I22: =IFERROR(VLOOKUP($A22,FILTRO!$A$5:$AW$2602,8,FALSE),0) -> 1419 | J22: =IFERROR(VLOOKUP($A22,FILTRO!$A$5:$AW$2602,9,FALSE),0) -> 647 | K22: =IFERROR(VLOOKUP($A22,FILTRO!$A$5:$AW$2602,10,FALSE),0) -> 1247 | L22: =IFERROR(VLOOKUP($A22,FILTRO!$A$5:$AW$2602,11,FALSE),0) -> 545 | M22: =IFERROR(VLOOKUP($A22,FILTRO!$A$5:$AW$2602,12,FALSE),0) -> 1254 | N22: =IFERROR(VLOOKUP($A22,FILTRO!$A$5:$AW$2602,13,FALSE),0) -> 413 | O22: =IFERROR(VLOOKUP($A22,FILTRO!$A$5:$AW$2602,14,FALSE),0) -> 1010 | P22: =IFERROR(VLOOKUP($A22,FILTRO!$A$5:$AW$2602,15,FALSE),0) -> 370 | Q22: =IFERROR(VLOOKUP($A22,FILTRO!$A$5:$AW$2602,16,FALSE),0) -> 859 | R22: =IFERROR(VLOOKUP($A22,FILTRO!$A$5:$AW$2602,17,FALSE),0) -> 344 | S22: =IFERROR(VLOOKUP($A22,FILTRO!$A$5:$AW$2602,18,FALSE),0) -> 762 | T22: =IFERROR(VLOOKUP($A22,FILTRO!$A$5:$AW$2602,19,FALSE),0) -> 325 | U22: =IFERROR(VLOOKUP($A22,FILTRO!$A$5:$AW$2602,20,FALSE),0) -> 583 | V22: =IFERROR(VLOOKUP($A22,FILTRO!$A$5:$AW$2602,21,FALSE),0) -> 311 | W22: =IFERROR(VLOOKUP($A22,FILTRO!$A$5:$AW$2602,22,FALSE),0) -> 562 | X22: =IFERROR(VLOOKUP($A22,FILTRO!$A$5:$AW$2602,23,FALSE),0) -> 290 | Y22: =IFERROR(VLOOKUP($A22,FILTRO!$A$5:$AW$2602,24,FALSE),0) -> 459 | Z22: =IFERROR(VLOOKUP($A22,FILTRO!$A$5:$AW$2602,25,FALSE),0) -> 1247 | AA22: =IFERROR(VLOOKUP($A22,FILTRO!$A$5:$AW$2602,26,FALSE),0) -> 1707 | AB22: =IFERROR(VLOOKUP($A22,FILTRO!$A$5:$AW$2602,27,FALSE),0) -> 1324 | AC22: =IFERROR(VLOOKUP($A22,FILTRO!$A$5:$AW$2602,28,FALSE),0) -> 1605 | AD22: =IFERROR(VLOOKUP($A22,FILTRO!$A$5:$AW$2602,29,FALSE),0) -> 1252 | AE22: =IFERROR(VLOOKUP($A22,FILTRO!$A$5:$AW$2602,30,FALSE),0) -> 1489 | AF22: =IFERROR(VLOOKUP($A22,FILTRO!$A$5:$AW$2602,31,FALSE),0) -> 1808 | AG22: =IFERROR(VLOOKUP($A22,FILTRO!$A$5:$AW$2602,32,FALSE),0) -> 2429 | AH22: =IFERROR(VLOOKUP($A22,FILTRO!$A$5:$AW$2602,33,FALSE),0) -> 73 | AI22: =IFERROR(VLOOKUP($A22,FILTRO!$A$5:$AW$2602,34,FALSE),0) -> 260
A23: 03030340 | B23: BAJO PESO | C23: =SUM(D23:E23) -> 3864 | D23: =SUM(F23+H23+J23+L23+N23+P23+R23+T23+V23+X23+Z23+AB23+AD23+AF23) -> 1512 | E23: 2352 | F23: =IFERROR(VLOOKUP($A23,FILTRO!$A$5:$AW$2602,5,FALSE),0) -> 35 | G23: =IFERROR(VLOOKUP($A23,FILTRO!$A$5:$AW$2602,6,FALSE),0) -> 12 | H23: =IFERROR(VLOOKUP($A23,FILTRO!$A$5:$AW$2602,7,FALSE),0) -> 46 | I23: =IFERROR(VLOOKUP($A23,FILTRO!$A$5:$AW$2602,8,FALSE),0) -> 103 | J23: =IFERROR(VLOOKUP($A23,FILTRO!$A$5:$AW$2602,9,FALSE),0) -> 29 | K23: =IFERROR(VLOOKUP($A23,FILTRO!$A$5:$AW$2602,10,FALSE),0) -> 49 | L23: =IFERROR(VLOOKUP($A23,FILTRO!$A$5:$AW$2602,11,FALSE),0) -> 20 | M23: =IFERROR(VLOOKUP($A23,FILTRO!$A$5:$AW$2602,12,FALSE),0) -> 41 | N23: =IFERROR(VLOOKUP($A23,FILTRO!$A$5:$AW$2602,13,FALSE),0) -> 9 | O23: =IFERROR(VLOOKUP($A23,FILTRO!$A$5:$AW$2602,14,FALSE),0) -> 29 | P23: =IFERROR(VLOOKUP($A23,FILTRO!$A$5:$AW$2602,15,FALSE),0) -> 10 | Q23: =IFERROR(VLOOKUP($A23,FILTRO!$A$5:$AW$2602,16,FALSE),0) -> 26 | R23: =IFERROR(VLOOKUP($A23,FILTRO!$A$5:$AW$2602,17,FALSE),0) -> 13 | S23: =IFERROR(VLOOKUP($A23,FILTRO!$A$5:$AW$2602,18,FALSE),0) -> 26 | T23: =IFERROR(VLOOKUP($A23,FILTRO!$A$5:$AW$2602,19,FALSE),0) -> 7 | U23: =IFERROR(VLOOKUP($A23,FILTRO!$A$5:$AW$2602,20,FALSE),0) -> 21 | V23: =IFERROR(VLOOKUP($A23,FILTRO!$A$5:$AW$2602,21,FALSE),0) -> 15 | W23: =IFERROR(VLOOKUP($A23,FILTRO!$A$5:$AW$2602,22,FALSE),0) -> 18 | X23: =IFERROR(VLOOKUP($A23,FILTRO!$A$5:$AW$2602,23,FALSE),0) -> 16 | Y23: =IFERROR(VLOOKUP($A23,FILTRO!$A$5:$AW$2602,24,FALSE),0) -> 26 | Z23: =IFERROR(VLOOKUP($A23,FILTRO!$A$5:$AW$2602,25,FALSE),0) -> 187 | AA23: =IFERROR(VLOOKUP($A23,FILTRO!$A$5:$AW$2602,26,FALSE),0) -> 296 | AB23: =IFERROR(VLOOKUP($A23,FILTRO!$A$5:$AW$2602,27,FALSE),0) -> 285 | AC23: =IFERROR(VLOOKUP($A23,FILTRO!$A$5:$AW$2602,28,FALSE),0) -> 344 | AD23: =IFERROR(VLOOKUP($A23,FILTRO!$A$5:$AW$2602,29,FALSE),0) -> 267 | AE23: =IFERROR(VLOOKUP($A23,FILTRO!$A$5:$AW$2602,30,FALSE),0) -> 392 | AF23: =IFERROR(VLOOKUP($A23,FILTRO!$A$5:$AW$2602,31,FALSE),0) -> 573 | AG23: =IFERROR(VLOOKUP($A23,FILTRO!$A$5:$AW$2602,32,FALSE),0) -> 969 | AH23: =IFERROR(VLOOKUP($A23,FILTRO!$A$5:$AW$2602,33,FALSE),0) -> 16 | AI23: =IFERROR(VLOOKUP($A23,FILTRO!$A$5:$AW$2602,34,FALSE),0) -> 55
A24: 03030120 | B24: SOBREPESO | C24: =SUM(D24:E24) -> 29276 | D24: 11006 | E24: 18270 | F24: =IFERROR(VLOOKUP($A24,FILTRO!$A$5:$AW$2602,5,FALSE),0) -> 57 | G24: =IFERROR(VLOOKUP($A24,FILTRO!$A$5:$AW$2602,6,FALSE),0) -> 128 | H24: =IFERROR(VLOOKUP($A24,FILTRO!$A$5:$AW$2602,7,FALSE),0) -> 609 | I24: =IFERROR(VLOOKUP($A24,FILTRO!$A$5:$AW$2602,8,FALSE),0) -> 1204 | J24: =IFERROR(VLOOKUP($A24,FILTRO!$A$5:$AW$2602,9,FALSE),0) -> 773 | K24: =IFERROR(VLOOKUP($A24,FILTRO!$A$5:$AW$2602,10,FALSE),0) -> 1487 | L24: =IFERROR(VLOOKUP($A24,FILTRO!$A$5:$AW$2602,11,FALSE),0) -> 908 | M24: =IFERROR(VLOOKUP($A24,FILTRO!$A$5:$AW$2602,12,FALSE),0) -> 1721 | N24: =IFERROR(VLOOKUP($A24,FILTRO!$A$5:$AW$2602,13,FALSE),0) -> 863 | O24: =IFERROR(VLOOKUP($A24,FILTRO!$A$5:$AW$2602,14,FALSE),0) -> 1683 | P24: =IFERROR(VLOOKUP($A24,FILTRO!$A$5:$AW$2602,15,FALSE),0) -> 854 | Q24: =IFERROR(VLOOKUP($A24,FILTRO!$A$5:$AW$2602,16,FALSE),0) -> 1532 | R24: =IFERROR(VLOOKUP($A24,FILTRO!$A$5:$AW$2602,17,FALSE),0) -> 774 | S24: =IFERROR(VLOOKUP($A24,FILTRO!$A$5:$AW$2602,18,FALSE),0) -> 1512 | T24: =IFERROR(VLOOKUP($A24,FILTRO!$A$5:$AW$2602,19,FALSE),0) -> 800 | U24: =IFERROR(VLOOKUP($A24,FILTRO!$A$5:$AW$2602,20,FALSE),0) -> 1330 | V24: =IFERROR(VLOOKUP($A24,FILTRO!$A$5:$AW$2602,21,FALSE),0) -> 757 | W24: =IFERROR(VLOOKUP($A24,FILTRO!$A$5:$AW$2602,22,FALSE),0) -> 1027 | X24: =IFERROR(VLOOKUP($A24,FILTRO!$A$5:$AW$2602,23,FALSE),0) -> 644 | Y24: =IFERROR(VLOOKUP($A24,FILTRO!$A$5:$AW$2602,24,FALSE),0) -> 747 | Z24: =IFERROR(VLOOKUP($A24,FILTRO!$A$5:$AW$2602,25,FALSE),0) -> 1116 | AA24: =IFERROR(VLOOKUP($A24,FILTRO!$A$5:$AW$2602,26,FALSE),0) -> 1658 | AB24: =IFERROR(VLOOKUP($A24,FILTRO!$A$5:$AW$2602,27,FALSE),0) -> 1085 | AC24: =IFERROR(VLOOKUP($A24,FILTRO!$A$5:$AW$2602,28,FALSE),0) -> 1523 | AD24: =IFERROR(VLOOKUP($A24,FILTRO!$A$5:$AW$2602,29,FALSE),0) -> 871 | AE24: =IFERROR(VLOOKUP($A24,FILTRO!$A$5:$AW$2602,30,FALSE),0) -> 1286 | AF24: =IFERROR(VLOOKUP($A24,FILTRO!$A$5:$AW$2602,31,FALSE),0) -> 895 | AG24: =IFERROR(VLOOKUP($A24,FILTRO!$A$5:$AW$2602,32,FALSE),0) -> 1432 | AH24: =IFERROR(VLOOKUP($A24,FILTRO!$A$5:$AW$2602,33,FALSE),0) -> 79 | AI24: =IFERROR(VLOOKUP($A24,FILTRO!$A$5:$AW$2602,34,FALSE),0) -> 335
A25: 03030130 | B25: OBESOS | C25: =SUM(D25:E25) -> 24853 | D25: 7066 | E25: 17787 | F25: =IFERROR(VLOOKUP($A25,FILTRO!$A$5:$AW$2602,5,FALSE),0) -> 49 | G25: =IFERROR(VLOOKUP($A25,FILTRO!$A$5:$AW$2602,6,FALSE),0) -> 130 | H25: =IFERROR(VLOOKUP($A25,FILTRO!$A$5:$AW$2602,7,FALSE),0) -> 375 | I25: =IFERROR(VLOOKUP($A25,FILTRO!$A$5:$AW$2602,8,FALSE),0) -> 1151 | J25: =IFERROR(VLOOKUP($A25,FILTRO!$A$5:$AW$2602,9,FALSE),0) -> 528 | K25: =IFERROR(VLOOKUP($A25,FILTRO!$A$5:$AW$2602,10,FALSE),0) -> 1546 | L25: =IFERROR(VLOOKUP($A25,FILTRO!$A$5:$AW$2602,11,FALSE),0) -> 621 | M25: =IFERROR(VLOOKUP($A25,FILTRO!$A$5:$AW$2602,12,FALSE),0) -> 1837 | N25: =IFERROR(VLOOKUP($A25,FILTRO!$A$5:$AW$2602,13,FALSE),0) -> 590 | O25: =IFERROR(VLOOKUP($A25,FILTRO!$A$5:$AW$2602,14,FALSE),0) -> 1710 | P25: =IFERROR(VLOOKUP($A25,FILTRO!$A$5:$AW$2602,15,FALSE),0) -> 614 | Q25: =IFERROR(VLOOKUP($A25,FILTRO!$A$5:$AW$2602,16,FALSE),0) -> 1542 | R25: =IFERROR(VLOOKUP($A25,FILTRO!$A$5:$AW$2602,17,FALSE),0) -> 594 | S25: =IFERROR(VLOOKUP($A25,FILTRO!$A$5:$AW$2602,18,FALSE),0) -> 1367 | T25: =IFERROR(VLOOKUP($A25,FILTRO!$A$5:$AW$2602,19,FALSE),0) -> 566 | U25: =IFERROR(VLOOKUP($A25,FILTRO!$A$5:$AW$2602,20,FALSE),0) -> 1249 | V25: =IFERROR(VLOOKUP($A25,FILTRO!$A$5:$AW$2602,21,FALSE),0) -> 512 | W25: =IFERROR(VLOOKUP($A25,FILTRO!$A$5:$AW$2602,22,FALSE),0) -> 916 | X25: =IFERROR(VLOOKUP($A25,FILTRO!$A$5:$AW$2602,23,FALSE),0) -> 364 | Y25: =IFERROR(VLOOKUP($A25,FILTRO!$A$5:$AW$2602,24,FALSE),0) -> 689 | Z25: =IFERROR(VLOOKUP($A25,FILTRO!$A$5:$AW$2602,25,FALSE),0) -> 747 | AA25: =IFERROR(VLOOKUP($A25,FILTRO!$A$5:$AW$2602,26,FALSE),0) -> 1862 | AB25: =IFERROR(VLOOKUP($A25,FILTRO!$A$5:$AW$2602,27,FALSE),0) -> 628 | AC25: =IFERROR(VLOOKUP($A25,FILTRO!$A$5:$AW$2602,28,FALSE),0) -> 1544 | AD25: =IFERROR(VLOOKUP($A25,FILTRO!$A$5:$AW$2602,29,FALSE),0) -> 453 | AE25: =IFERROR(VLOOKUP($A25,FILTRO!$A$5:$AW$2602,30,FALSE),0) -> 1081 | AF25: =IFERROR(VLOOKUP($A25,FILTRO!$A$5:$AW$2602,31,FALSE),0) -> 425 | AG25: =IFERROR(VLOOKUP($A25,FILTRO!$A$5:$AW$2602,32,FALSE),0) -> 1163 | AH25: =IFERROR(VLOOKUP($A25,FILTRO!$A$5:$AW$2602,33,FALSE),0) -> 87 | AI25: =IFERROR(VLOOKUP($A25,FILTRO!$A$5:$AW$2602,34,FALSE),0) -> 277
B26: SECCIÓN C: RESULTADOS DE EMP SEGÚN ESTADO DE SALUD
B27: ESTADO DE SALUD | C27: TOTAL | F27: 15 a 19 años | H27: 20 a 24 años | J27: 25 a 29 años | L27: 30 a 34 años | N27: 35 a 39 años | P27: 40 a 44 años | R27: 45 a 49 años | T27: 50 a 54 años | V27: 55 a 59 años | X27: 60 a 64 años | Z27: 65 a 69 años | AB27: 70 a 74 años | AD27: 75 a 79 años | AF27: 80 y más años | AH27: Pueblos Originarios | AI27: Migrantes
C28: Ambos Sexos | D28: Hombres | E28: Mujeres | F28: Hombres | G28: Mujeres | H28: Hombres | I28: Mujeres | J28: Hombres | K28: Mujeres | L28: Hombres | M28: Mujeres | N28: Hombres | O28: Mujeres | P28: Hombres | Q28: Mujeres | R28: Hombres | S28: Mujeres | T28: Hombres | U28: Mujeres | V28: Hombres | W28: Mujeres | X28: Hombres | Y28: Mujeres | Z28: Hombres | AA28: Mujeres | AB28: Hombres | AC28: Mujeres | AD28: Hombres | AE28: Mujeres | AF28: Hombres | AG28: Mujeres
A29: 02200010 | B29: TABAQUISMO | C29: =SUM(D29:E29) -> 13983 | D29: =SUM(F29+H29+J29+L29+N29+P29+R29+T29+V29+X29+Z29+AB29+AD29+AF29) -> 5282 | E29: =SUM(G29+I29+K29+M29+O29+Q29+S29+U29+W29+Y29+AA29+AC29+AE29+AG29) -> 8701 | F29: =IFERROR(VLOOKUP($A29,FILTRO!$A$5:$AW$2602,5,FALSE),0) -> 20 | G29: =IFERROR(VLOOKUP($A29,FILTRO!$A$5:$AW$2602,6,FALSE),0) -> 38 | H29: =IFERROR(VLOOKUP($A29,FILTRO!$A$5:$AW$2602,7,FALSE),0) -> 496 | I29: =IFERROR(VLOOKUP($A29,FILTRO!$A$5:$AW$2602,8,FALSE),0) -> 868 | J29: =IFERROR(VLOOKUP($A29,FILTRO!$A$5:$AW$2602,9,FALSE),0) -> 623 | K29: =IFERROR(VLOOKUP($A29,FILTRO!$A$5:$AW$2602,10,FALSE),0) -> 1005 | L29: =IFERROR(VLOOKUP($A29,FILTRO!$A$5:$AW$2602,11,FALSE),0) -> 600 | M29: =IFERROR(VLOOKUP($A29,FILTRO!$A$5:$AW$2602,12,FALSE),0) -> 1195 | N29: =IFERROR(VLOOKUP($A29,FILTRO!$A$5:$AW$2602,13,FALSE),0) -> 575 | O29: =IFERROR(VLOOKUP($A29,FILTRO!$A$5:$AW$2602,14,FALSE),0) -> 1136 | P29: =IFERROR(VLOOKUP($A29,FILTRO!$A$5:$AW$2602,15,FALSE),0) -> 600 | Q29: =IFERROR(VLOOKUP($A29,FILTRO!$A$5:$AW$2602,16,FALSE),0) -> 1050 | R29: =IFERROR(VLOOKUP($A29,FILTRO!$A$5:$AW$2602,17,FALSE),0) -> 498 | S29: =IFERROR(VLOOKUP($A29,FILTRO!$A$5:$AW$2602,18,FALSE),0) -> 931 | T29: =IFERROR(VLOOKUP($A29,FILTRO!$A$5:$AW$2602,19,FALSE),0) -> 489 | U29: =IFERROR(VLOOKUP($A29,FILTRO!$A$5:$AW$2602,20,FALSE),0) -> 763 | V29: =IFERROR(VLOOKUP($A29,FILTRO!$A$5:$AW$2602,21,FALSE),0) -> 426 | W29: =IFERROR(VLOOKUP($A29,FILTRO!$A$5:$AW$2602,22,FALSE),0) -> 500 | X29: =IFERROR(VLOOKUP($A29,FILTRO!$A$5:$AW$2602,23,FALSE),0) -> 266 | Y29: =IFERROR(VLOOKUP($A29,FILTRO!$A$5:$AW$2602,24,FALSE),0) -> 360 | Z29: =IFERROR(VLOOKUP($A29,FILTRO!$A$5:$AW$2602,25,FALSE),0) -> 254 | AA29: =IFERROR(VLOOKUP($A29,FILTRO!$A$5:$AW$2602,26,FALSE),0) -> 374 | AB29: =IFERROR(VLOOKUP($A29,FILTRO!$A$5:$AW$2602,27,FALSE),0) -> 210 | AC29: =IFERROR(VLOOKUP($A29,FILTRO!$A$5:$AW$2602,28,FALSE),0) -> 244 | AD29: =IFERROR(VLOOKUP($A29,FILTRO!$A$5:$AW$2602,29,FALSE),0) -> 134 | AE29: =IFERROR(VLOOKUP($A29,FILTRO!$A$5:$AW$2602,30,FALSE),0) -> 131 | AF29: =IFERROR(VLOOKUP($A29,FILTRO!$A$5:$AW$2602,31,FALSE),0) -> 91 | AG29: =IFERROR(VLOOKUP($A29,FILTRO!$A$5:$AW$2602,32,FALSE),0) -> 106 | AH29: =IFERROR(VLOOKUP($A29,FILTRO!$A$5:$AW$2602,33,FALSE),0) -> 42 | AI29: =IFERROR(VLOOKUP($A29,FILTRO!$A$5:$AW$2602,34,FALSE),0) -> 80
A30: 02200020 | B30: PRESIÓN ARTERIAL ELEVADA (= >140/90 mmHg) | C30: =SUM(D30:E30) -> 13233 | D30: =SUM(F30+H30+J30+L30+N30+P30+R30+T30+V30+X30+Z30+AB30+AD30+AF30) -> 5717 | E30: =SUM(G30+I30+K30+M30+O30+Q30+S30+U30+W30+Y30+AA30+AC30+AE30+AG30) -> 7516 | F30: =IFERROR(VLOOKUP($A30,FILTRO!$A$5:$AW$2602,5,FALSE),0) -> 23 | G30: =IFERROR(VLOOKUP($A30,FILTRO!$A$5:$AW$2602,6,FALSE),0) -> 27 | H30: =IFERROR(VLOOKUP($A30,FILTRO!$A$5:$AW$2602,7,FALSE),0) -> 165 | I30: =IFERROR(VLOOKUP($A30,FILTRO!$A$5:$AW$2602,8,FALSE),0) -> 162 | J30: =IFERROR(VLOOKUP($A30,FILTRO!$A$5:$AW$2602,9,FALSE),0) -> 205 | K30: =IFERROR(VLOOKUP($A30,FILTRO!$A$5:$AW$2602,10,FALSE),0) -> 185 | L30: =IFERROR(VLOOKUP($A30,FILTRO!$A$5:$AW$2602,11,FALSE),0) -> 229 | M30: =IFERROR(VLOOKUP($A30,FILTRO!$A$5:$AW$2602,12,FALSE),0) -> 275 | N30: =IFERROR(VLOOKUP($A30,FILTRO!$A$5:$AW$2602,13,FALSE),0) -> 257 | O30: =IFERROR(VLOOKUP($A30,FILTRO!$A$5:$AW$2602,14,FALSE),0) -> 356 | P30: =IFERROR(VLOOKUP($A30,FILTRO!$A$5:$AW$2602,15,FALSE),0) -> 310 | Q30: =IFERROR(VLOOKUP($A30,FILTRO!$A$5:$AW$2602,16,FALSE),0) -> 421 | R30: =IFERROR(VLOOKUP($A30,FILTRO!$A$5:$AW$2602,17,FALSE),0) -> 373 | S30: =IFERROR(VLOOKUP($A30,FILTRO!$A$5:$AW$2602,18,FALSE),0) -> 495 | T30: =IFERROR(VLOOKUP($A30,FILTRO!$A$5:$AW$2602,19,FALSE),0) -> 436 | U30: =IFERROR(VLOOKUP($A30,FILTRO!$A$5:$AW$2602,20,FALSE),0) -> 551 | V30: =IFERROR(VLOOKUP($A30,FILTRO!$A$5:$AW$2602,21,FALSE),0) -> 455 | W30: =IFERROR(VLOOKUP($A30,FILTRO!$A$5:$AW$2602,22,FALSE),0) -> 416 | X30: =IFERROR(VLOOKUP($A30,FILTRO!$A$5:$AW$2602,23,FALSE),0) -> 369 | Y30: =IFERROR(VLOOKUP($A30,FILTRO!$A$5:$AW$2602,24,FALSE),0) -> 391 | Z30: =IFERROR(VLOOKUP($A30,FILTRO!$A$5:$AW$2602,25,FALSE),0) -> 760 | AA30: =IFERROR(VLOOKUP($A30,FILTRO!$A$5:$AW$2602,26,FALSE),0) -> 1055 | AB30: =IFERROR(VLOOKUP($A30,FILTRO!$A$5:$AW$2602,27,FALSE),0) -> 759 | AC30: =IFERROR(VLOOKUP($A30,FILTRO!$A$5:$AW$2602,28,FALSE),0) -> 1023 | AD30: =IFERROR(VLOOKUP($A30,FILTRO!$A$5:$AW$2602,29,FALSE),0) -> 667 | AE30: =IFERROR(VLOOKUP($A30,FILTRO!$A$5:$AW$2602,30,FALSE),0) -> 913 | AF30: =IFERROR(VLOOKUP($A30,FILTRO!$A$5:$AW$2602,31,FALSE),0) -> 709 | AG30: =IFERROR(VLOOKUP($A30,FILTRO!$A$5:$AW$2602,32,FALSE),0) -> 1246 | AH30: =IFERROR(VLOOKUP($A30,FILTRO!$A$5:$AW$2602,33,FALSE),0) -> 44 | AI30: =IFERROR(VLOOKUP($A30,FILTRO!$A$5:$AW$2602,34,FALSE),0) -> 90
B31: SECCIÓN D: RESULTADOS DE EMP SEGÚN ESTADO DE SALUD (EXÁMENES DE LABORATORIO)
B32: ESTADO DE SALUD | C32: TOTAL | F32: 15 a 19 años | H32: 20 a 24 años | J32: 25 a 29 años | L32: 30 a 34 años | N32: 35 a 39 años | P32: 40 a 44 años | R32: 45 a 49 años | T32: 50 a 54 años | V32: 55 a 59 años | X32: 60 a 64 años | Z32: 65 a 69 años | AB32: 70 a 74 años | AD32: 75 a 79 años | AF32: 80 y más años | AH32: Pueblos Originarios | AI32: Migrantes
C33: Ambos Sexos | D33: Hombres | E33: Mujeres | F33: Hombres | G33: Mujeres | H33: Hombres | I33: Mujeres | J33: Hombres | K33: Mujeres | L33: Hombres | M33: Mujeres | N33: Hombres | O33: Mujeres | P33: Hombres | Q33: Mujeres | R33: Hombres | S33: Mujeres | T33: Hombres | U33: Mujeres | V33: Hombres | W33: Mujeres | X33: Hombres | Y33: Mujeres | Z33: Hombres | AA33: Mujeres | AB33: Hombres | AC33: Mujeres | AD33: Hombres | AE33: Mujeres | AF33: Hombres | AG33: Mujeres
A34: 02200030 | B34: GLICEMIA ALTERADA (= > a 100 mg/dl) | C34: =SUM(D34:E34) -> 10930 | D34: =SUM(F34+H34+J34+L34+N34+P34+R34+T34+V34+X34+Z34+AB34+AD34+AF34) -> 3754 | E34: =SUM(G34+I34+K34+M34+O34+Q34+S34+U34+W34+Y34+AA34+AC34+AE34+AG34) -> 7176 | F34: =IFERROR(VLOOKUP($A34,FILTRO!$A$5:$AW$2602,5,FALSE),0) -> 11 | G34: =IFERROR(VLOOKUP($A34,FILTRO!$A$5:$AW$2602,6,FALSE),0) -> 15 | H34: =IFERROR(VLOOKUP($A34,FILTRO!$A$5:$AW$2602,7,FALSE),0) -> 185 | I34: =IFERROR(VLOOKUP($A34,FILTRO!$A$5:$AW$2602,8,FALSE),0) -> 481 | J34: =IFERROR(VLOOKUP($A34,FILTRO!$A$5:$AW$2602,9,FALSE),0) -> 212 | K34: =IFERROR(VLOOKUP($A34,FILTRO!$A$5:$AW$2602,10,FALSE),0) -> 550 | L34: =IFERROR(VLOOKUP($A34,FILTRO!$A$5:$AW$2602,11,FALSE),0) -> 268 | M34: =IFERROR(VLOOKUP($A34,FILTRO!$A$5:$AW$2602,12,FALSE),0) -> 671 | N34: =IFERROR(VLOOKUP($A34,FILTRO!$A$5:$AW$2602,13,FALSE),0) -> 296 | O34: =IFERROR(VLOOKUP($A34,FILTRO!$A$5:$AW$2602,14,FALSE),0) -> 723 | P34: =IFERROR(VLOOKUP($A34,FILTRO!$A$5:$AW$2602,15,FALSE),0) -> 297 | Q34: =IFERROR(VLOOKUP($A34,FILTRO!$A$5:$AW$2602,16,FALSE),0) -> 633 | R34: =IFERROR(VLOOKUP($A34,FILTRO!$A$5:$AW$2602,17,FALSE),0) -> 298 | S34: =IFERROR(VLOOKUP($A34,FILTRO!$A$5:$AW$2602,18,FALSE),0) -> 643 | T34: =IFERROR(VLOOKUP($A34,FILTRO!$A$5:$AW$2602,19,FALSE),0) -> 336 | U34: =IFERROR(VLOOKUP($A34,FILTRO!$A$5:$AW$2602,20,FALSE),0) -> 581 | V34: =IFERROR(VLOOKUP($A34,FILTRO!$A$5:$AW$2602,21,FALSE),0) -> 324 | W34: =IFERROR(VLOOKUP($A34,FILTRO!$A$5:$AW$2602,22,FALSE),0) -> 501 | X34: =IFERROR(VLOOKUP($A34,FILTRO!$A$5:$AW$2602,23,FALSE),0) -> 252 | Y34: =IFERROR(VLOOKUP($A34,FILTRO!$A$5:$AW$2602,24,FALSE),0) -> 391 | Z34: =IFERROR(VLOOKUP($A34,FILTRO!$A$5:$AW$2602,25,FALSE),0) -> 373 | AA34: =IFERROR(VLOOKUP($A34,FILTRO!$A$5:$AW$2602,26,FALSE),0) -> 612 | AB34: =IFERROR(VLOOKUP($A34,FILTRO!$A$5:$AW$2602,27,FALSE),0) -> 340 | AC34: =IFERROR(VLOOKUP($A34,FILTRO!$A$5:$AW$2602,28,FALSE),0) -> 494 | AD34: =IFERROR(VLOOKUP($A34,FILTRO!$A$5:$AW$2602,29,FALSE),0) -> 262 | AE34: =IFERROR(VLOOKUP($A34,FILTRO!$A$5:$AW$2602,30,FALSE),0) -> 415 | AF34: =IFERROR(VLOOKUP($A34,FILTRO!$A$5:$AW$2602,31,FALSE),0) -> 300 | AG34: =IFERROR(VLOOKUP($A34,FILTRO!$A$5:$AW$2602,32,FALSE),0) -> 466 | AH34: =IFERROR(VLOOKUP($A34,FILTRO!$A$5:$AW$2602,33,FALSE),0) -> 50 | AI34: =IFERROR(VLOOKUP($A34,FILTRO!$A$5:$AW$2602,34,FALSE),0) -> 168
A35: 02200040 | B35: COLESTEROL ELEVADO (= > 200 mg/dl) | C35: =SUM(D35:E35) -> 4282 | D35: =SUM(F35+H35+J35+L35+N35+P35+R35+T35+V35+X35+Z35+AB35+AD35+AF35) -> 1395 | E35: =SUM(G35+I35+K35+M35+O35+Q35+S35+U35+W35+Y35+AA35+AC35+AE35+AG35) -> 2887 | F35: =IFERROR(VLOOKUP($A35,FILTRO!$A$5:$AW$2602,5,FALSE),0) -> 3 | G35: =IFERROR(VLOOKUP($A35,FILTRO!$A$5:$AW$2602,6,FALSE),0) -> 4 | H35: =IFERROR(VLOOKUP($A35,FILTRO!$A$5:$AW$2602,7,FALSE),0) -> 22 | I35: =IFERROR(VLOOKUP($A35,FILTRO!$A$5:$AW$2602,8,FALSE),0) -> 51 | J35: =IFERROR(VLOOKUP($A35,FILTRO!$A$5:$AW$2602,9,FALSE),0) -> 44 | K35: =IFERROR(VLOOKUP($A35,FILTRO!$A$5:$AW$2602,10,FALSE),0) -> 93 | L35: =IFERROR(VLOOKUP($A35,FILTRO!$A$5:$AW$2602,11,FALSE),0) -> 64 | M35: =IFERROR(VLOOKUP($A35,FILTRO!$A$5:$AW$2602,12,FALSE),0) -> 132 | N35: =IFERROR(VLOOKUP($A35,FILTRO!$A$5:$AW$2602,13,FALSE),0) -> 62 | O35: =IFERROR(VLOOKUP($A35,FILTRO!$A$5:$AW$2602,14,FALSE),0) -> 146 | P35: =IFERROR(VLOOKUP($A35,FILTRO!$A$5:$AW$2602,15,FALSE),0) -> 107 | Q35: =IFERROR(VLOOKUP($A35,FILTRO!$A$5:$AW$2602,16,FALSE),0) -> 198 | R35: =IFERROR(VLOOKUP($A35,FILTRO!$A$5:$AW$2602,17,FALSE),0) -> 118 | S35: =IFERROR(VLOOKUP($A35,FILTRO!$A$5:$AW$2602,18,FALSE),0) -> 249 | T35: =IFERROR(VLOOKUP($A35,FILTRO!$A$5:$AW$2602,19,FALSE),0) -> 101 | U35: =IFERROR(VLOOKUP($A35,FILTRO!$A$5:$AW$2602,20,FALSE),0) -> 242 | V35: =IFERROR(VLOOKUP($A35,FILTRO!$A$5:$AW$2602,21,FALSE),0) -> 119 | W35: =IFERROR(VLOOKUP($A35,FILTRO!$A$5:$AW$2602,22,FALSE),0) -> 216 | X35: =IFERROR(VLOOKUP($A35,FILTRO!$A$5:$AW$2602,23,FALSE),0) -> 90 | Y35: =IFERROR(VLOOKUP($A35,FILTRO!$A$5:$AW$2602,24,FALSE),0) -> 178 | Z35: =IFERROR(VLOOKUP($A35,FILTRO!$A$5:$AW$2602,25,FALSE),0) -> 194 | AA35: =IFERROR(VLOOKUP($A35,FILTRO!$A$5:$AW$2602,26,FALSE),0) -> 440 | AB35: =IFERROR(VLOOKUP($A35,FILTRO!$A$5:$AW$2602,27,FALSE),0) -> 186 | AC35: =IFERROR(VLOOKUP($A35,FILTRO!$A$5:$AW$2602,28,FALSE),0) -> 365 | AD35: =IFERROR(VLOOKUP($A35,FILTRO!$A$5:$AW$2602,29,FALSE),0) -> 156 | AE35: =IFERROR(VLOOKUP($A35,FILTRO!$A$5:$AW$2602,30,FALSE),0) -> 263 | AF35: =IFERROR(VLOOKUP($A35,FILTRO!$A$5:$AW$2602,31,FALSE),0) -> 129 | AG35: =IFERROR(VLOOKUP($A35,FILTRO!$A$5:$AW$2602,32,FALSE),0) -> 310 | AH35: =IFERROR(VLOOKUP($A35,FILTRO!$A$5:$AW$2602,33,FALSE),0) -> 21 | AI35: =IFERROR(VLOOKUP($A35,FILTRO!$A$5:$AW$2602,34,FALSE),0) -> 22
B195: =SUM(C12:C17,C21:C25,C29:C30,C34:C35) -> 293104 | C195: =SUM(DB7:EA52) -> 0

Sheet A03
B1: SERVICIO DE SALUD
B2: =CONCATENATE("COMUNA: ",NOMBRE!B2," - ","( ",NOMBRE!C2,NOMBRE!D2,NOMBRE!E2,NOMBRE!F2,NOMBRE!G2," )") -> COMUNA: - ( )
B3: =CONCATENATE("ESTABLECIMIENTO/ESTRATEGIA: ",NOMBRE!B3," - ","( ",NOMBRE!C3,NOMBRE!D3,NOMBRE!E3,NOMBRE!F3,NOMBRE!G3,NOMBRE!H3," )") -> ESTABLECIMIENTO/ESTRATEGIA: - ( )
B4: =CONCATENATE("MES: ",NOMBRE!B6," - ","( ",NOMBRE!C6,NOMBRE!D6," )") -> MES: - ( )
B5: =CONCATENATE("AÑO: ",NOMBRE!B7) -> AÑO: 2023
B6: REM-A03. APLICACIÓN Y RESULTADOS DE ESCALAS DE EVALUACIÓN
B7: SECCIÓN A: APLICACIÓN DE INSTRUMENTO Y RESULTADO EN EL NIÑO (A)
B8: SECCIÓN A.1: APLICACIÓN Y RESULTADOS DE PAUTA BREVE
B9: EVALUACIONES POR EDAD DEL NIÑO | D9: TOTAL | G9: GRUPO DE EDAD
G10: Menor de 1 mes | I10: 1 mes | K10: 2 meses | M10: 3 meses | O10: 4 meses | Q10: 5 meses | S10: 6 meses | U10: 7 - 11 meses | W10: 12 - 17 meses | Y10: 18 - 24 meses
D11: Ambos Sexos | E11: Hombres | F11: Mujeres | G11: Hombres | H11: Mujeres | I11: Hombres | J11: Mujeres | K11: Hombres | L11: Mujeres | M11: Hombres | N11: Mujeres | O11: Hombres | P11: Mujeres | Q11: Hombres | R11: Mujeres | S11: Hombres | T11: Mujeres | U11: Hombres | V11: Mujeres | W11: Hombres | X11: Mujeres | Y11: Hombres | Z11: Mujeres
A12: 02021730 | B12: APLICACIÓN PAUTA BREVE | D12: =SUM(E12+F12) -> 12308 | E12: =SUM(G12+I12+K12+M12+O12+Q12+S12+U12+W12+Y12) -> 6115 | F12: =SUM(H12+J12+L12+N12+P12+R12+T12+V12+X12+Z12) -> 6193 | G12: =IFERROR(VLOOKUP($A12,[1]FILTRO_10!$A$5:$AW$2602,5,FALSE),0) -> 0 | H12: =IFERROR(VLOOKUP($A12,[1]FILTRO_10!$A$5:$AW$2602,6,FALSE),0) -> 0 | I12: =IFERROR(VLOOKUP($A12,FILTRO!$A$5:$AW$2602,7,FALSE),0) -> 73 | J12: =IFERROR(VLOOKUP($A12,FILTRO!$A$5:$AW$2602,8,FALSE),0) -> 66 | K12: =IFERROR(VLOOKUP($A12,FILTRO!$A$5:$AW$2602,9,FALSE),0) -> 4 | L12: =IFERROR(VLOOKUP($A12,FILTRO!$A$5:$AW$2602,10,FALSE),0) -> 10 | M12: =IFERROR(VLOOKUP($A12,FILTRO!$A$5:$AW$2602,11,FALSE),0) -> 84 | N12: =IFERROR(VLOOKUP($A12,FILTRO!$A$5:$AW$2602,12,FALSE),0) -> 108 | O12: =IFERROR(VLOOKUP($A12,FILTRO!$A$5:$AW$2602,13,FALSE),0) -> 2060 | P12: =IFERROR(VLOOKUP($A12,FILTRO!$A$5:$AW$2602,14,FALSE),0) -> 2125 | Q12: =IFERROR(VLOOKUP($A12,FILTRO!$A$5:$AW$2602,15,FALSE),0) -> 82 | R12: =IFERROR(VLOOKUP($A12,FILTRO!$A$5:$AW$2602,16,FALSE),0) -> 89 | S12: =IFERROR(VLOOKUP($A12,FILTRO!$A$5:$AW$2602,17,FALSE),0) -> 14 | T12: =IFERROR(VLOOKUP($A12,FILTRO!$A$5:$AW$2602,18,FALSE),0) -> 19 | U12: =IFERROR(VLOOKUP($A12,FILTRO!$A$5:$AW$2602,19,FALSE),0) -> 69 | V12: =IFERROR(VLOOKUP($A12,FILTRO!$A$5:$AW$2602,20,FALSE),0) -> 64 | W12: =IFERROR(VLOOKUP($A12,FILTRO!$A$5:$AW$2602,21,FALSE),0) -> 2062 | X12: =IFERROR(VLOOKUP($A12,FILTRO!$A$5:$AW$2602,22,FALSE),0) -> 1967 | Y12: =IFERROR(VLOOKUP($A12,FILTRO!$A$5:$AW$2602,23,FALSE),0) -> 1667 | Z12: =IFERROR(VLOOKUP($A12,FILTRO!$A$5:$AW$2602,24,FALSE),0) -> 1745
A13: 03500020 | B13: RESULTADOS | C13: NORMAL | D13: =SUM(E13+F13) -> 10956 | E13: 5305 | F13: =SUM(H13+J13+L13+N13+P13+R13+T13+V13+X13+Z13) -> 5651 | G13: =IFERROR(VLOOKUP($A13,FILTRO!$A$5:$AW$2602,5,FALSE),0) -> 3 | H13: =IFERROR(VLOOKUP($A13,FILTRO!$A$5:$AW$2602,6,FALSE),0) -> 13 | I13: =IFERROR(VLOOKUP($A13,FILTRO!$A$5:$AW$2602,7,FALSE),0) -> 73 | J13: =IFERROR(VLOOKUP($A13,FILTRO!$A$5:$AW$2602,8,FALSE),0) -> 66 | K13: =IFERROR(VLOOKUP($A13,FILTRO!$A$5:$AW$2602,9,FALSE),0) -> 4 | L13: =IFERROR(VLOOKUP($A13,FILTRO!$A$5:$AW$2602,10,FALSE),0) -> 10 | M13: =IFERROR(VLOOKUP($A13,FILTRO!$A$5:$AW$2602,11,FALSE),0) -> 82 | N13: =IFERROR(VLOOKUP($A13,FILTRO!$A$5:$AW$2602,12,FALSE),0) -> 107 | O13: =IFERROR(VLOOKUP($A13,FILTRO!$A$5:$AW$2602,13,FALSE),0) -> 1965 | P13: =IFERROR(VLOOKUP($A13,FILTRO!$A$5:$AW$2602,14,FALSE),0) -> 2049 | Q13: =IFERROR(VLOOKUP($A13,FILTRO!$A$5:$AW$2602,15,FALSE),0) -> 76 | R13: =IFERROR(VLOOKUP($A13,FILTRO!$A$5:$AW$2602,16,FALSE),0) -> 85 | S13: =IFERROR(VLOOKUP($A13,FILTRO!$A$5:$AW$2602,17,FALSE),0) -> 13 | T13: =IFERROR(VLOOKUP($A13,FILTRO!$A$5:$AW$2602,18,FALSE),0) -> 15 | U13: =IFERROR(VLOOKUP($A13,FILTRO!$A$5:$AW$2602,19,FALSE),0) -> 62 | V13: =IFERROR(VLOOKUP($A13,FILTRO!$A$5:$AW$2602,20,FALSE),0) -> 58 | W13: =IFERROR(VLOOKUP($A13,FILTRO!$A$5:$AW$2602,21,FALSE),0) -> 1806 | X13: =IFERROR(VLOOKUP($A13,FILTRO!$A$5:$AW$2602,22,FALSE),0) -> 1798 | Y13: =IFERROR(VLOOKUP($A13,FILTRO!$A$5:$AW$2602,23,FALSE),0) -> 1221 | Z13: =IFERROR(VLOOKUP($A13,FILTRO!$A$5:$AW$2602,24,FALSE),0) -> 1450 | CF13: * Aplicacion de Pauta Breve en Hombres Menor de 1 mes debe ser igual a la suma de resultados. | CO13: * Aplicacion de Pauta Breve en Mujeres de 4 meses debe ser igual a la suma de resultados. | CP13: * Aplicacion de Pauta Breve en Hombres de 5 meses debe ser igual a la suma de resultados. | CT13: * Aplicacion de Pauta Breve en Hombres de 7 - 11 meses debe ser igual a la suma de resultados. | CW13: * Aplicacion de Pauta Breve en Mujeres de 12 - 17 meses debe ser igual a la suma de resultados. | CX13: * Aplicacion de Pauta Breve en Hombres de 18 - 24 meses debe ser igual a la suma de resultados. | CY13: * Aplicacion de Pauta Breve en Mujeres de 18 - 24 meses debe ser igual a la suma de resultados. | DE13: 0 | DF13: 1 | DG13: 0 | DH13: 0 | DI13: 0 | DJ13: 0 | DK13: 0 | DL13: 0 | DM13: 0 | DN13: 0 | DO13: 1 | DP13: 1 | DQ13: 0 | DR13: 0 | DS13: 0 | DT13: 1 | DU13: 0 | DV13: 0 | DW13: 1 | DX13: 1 | DY13: 1 | DZ13: 0
A14: 03500030 | C14: ALTERADO | D14: =SUM(E14+F14) -> 1357 | E14: 809 | F14: 548 | G14: =IFERROR(VLOOKUP($A14,FILTRO!$A$5:$AW$2602,5,FALSE),0) -> 0 | H14: =IFERROR(VLOOKUP($A14,FILTRO!$A$5:$AW$2602,6,FALSE),0) -> 1 | I14: =IFERROR(VLOOKUP($A14,FILTRO!$A$5:$AW$2602,7,FALSE),0) -> 0 | J14: =IFERROR(VLOOKUP($A14,FILTRO!$A$5:$AW$2602,8,FALSE),0) -> 0 | K14: =IFERROR(VLOOKUP($A14,FILTRO!$A$5:$AW$2602,9,FALSE),0) -> 0 | L14: =IFERROR(VLOOKUP($A14,FILTRO!$A$5:$AW$2602,10,FALSE),0) -> 0 | M14: =IFERROR(VLOOKUP($A14,FILTRO!$A$5:$AW$2602,11,FALSE),0) -> 2 | N14: =IFERROR(VLOOKUP($A14,FILTRO!$A$5:$AW$2602,12,FALSE),0) -> 1 | O14: =IFERROR(VLOOKUP($A14,FILTRO!$A$5:$AW$2602,13,FALSE),0) -> 93 | P14: =IFERROR(VLOOKUP($A14,FILTRO!$A$5:$AW$2602,14,FALSE),0) -> 75 | Q14: =IFERROR(VLOOKUP($A14,FILTRO!$A$5:$AW$2602,15,FALSE),0) -> 6 | R14: =IFERROR(VLOOKUP($A14,FILTRO!$A$5:$AW$2602,16,FALSE),0) -> 4 | S14: =IFERROR(VLOOKUP($A14,FILTRO!$A$5:$AW$2602,17,FALSE),0) -> 1 | T14: =IFERROR(VLOOKUP($A14,FILTRO!$A$5:$AW$2602,18,FALSE),0) -> 3 | U14: =IFERROR(VLOOKUP($A14,FILTRO!$A$5:$AW$2602,19,FALSE),0) -> 7 | V14: =IFERROR(VLOOKUP($A14,FILTRO!$A$5:$AW$2602,20,FALSE),0) -> 6 | W14: =IFERROR(VLOOKUP($A14,FILTRO!$A$5:$AW$2602,21,FALSE),0) -> 257 | X14: =IFERROR(VLOOKUP($A14,FILTRO!$A$5:$AW$2602,22,FALSE),0) -> 166 | Y14: =IFERROR(VLOOKUP($A14,FILTRO!$A$5:$AW$2602,23,FALSE),0) -> 443 | Z14: =IFERROR(VLOOKUP($A14,FILTRO!$A$5:$AW$2602,24,FALSE),0) -> 292
B15: SECCIÓN A.2: RESULTADOS DE LA APLICACIÓN DE ESCALA DE EVALUACIÓN DEL DESARROLLO PSICOMOTOR
B16: ACTIVIDAD | C16: RESULTADO | D16: TOTAL | G16: POR EDAD | S16: Pueblos Originarios | T16: Migrantes
G17: Menor 7 meses | I17: 7 - 11 meses | K17: 12 - 17 meses | M17: 18 - 23 meses | O17: 24 - 47 meses | Q17: 48 - 59 meses
D18: Ambos Sexos | E18: Hombres | F18: Mujeres | G18: Hombres | H18: Mujeres | I18: Hombres | J18: Mujeres | K18: Hombres | L18: Mujeres | M18: Hombres | N18: Mujeres | O18: Hombres | P18: Mujeres | Q18: Hombres | R18: Mujeres
A19: 02021740 | B19: APLICACIÓN TEST DE DESARROLLO PSICOMOTOR | D19: =SUM(E19+F19) -> 15453 | E19: =SUM(G19+I19+K19+M19+O19+Q19) -> 7974 | F19: =SUM(H19+J19+L19+N19+P19+R19) -> 7479 | G19: =IFERROR(VLOOKUP($A19,FILTRO!$A$5:$AW$2602,5,FALSE),0) -> 83 | H19: =IFERROR(VLOOKUP($A19,FILTRO!$A$5:$AW$2602,6,FALSE),0) -> 76 | I19: =IFERROR(VLOOKUP($A19,FILTRO!$A$5:$AW$2602,7,FALSE),0) -> 2393 | J19: =IFERROR(VLOOKUP($A19,FILTRO!$A$5:$AW$2602,8,FALSE),0) -> 2383 | K19: =IFERROR(VLOOKUP($A19,FILTRO!$A$5:$AW$2602,9,FALSE),0) -> 601 | L19: =IFERROR(VLOOKUP($A19,FILTRO!$A$5:$AW$2602,10,FALSE),0) -> 534 | M19: =IFERROR(VLOOKUP($A19,FILTRO!$A$5:$AW$2602,11,FALSE),0) -> 2598 | N19: =IFERROR(VLOOKUP($A19,FILTRO!$A$5:$AW$2602,12,FALSE),0) -> 2349 | O19: =IFERROR(VLOOKUP($A19,FILTRO!$A$5:$AW$2602,13,FALSE),0) -> 2112 | P19: =IFERROR(VLOOKUP($A19,FILTRO!$A$5:$AW$2602,14,FALSE),0) -> 1993 | Q19: =IFERROR(VLOOKUP($A19,FILTRO!$A$5:$AW$2602,15,FALSE),0) -> 187 | R19: =IFERROR(VLOOKUP($A19,FILTRO!$A$5:$AW$2602,16,FALSE),0) -> 144 | S19: =IFERROR(VLOOKUP($A19,FILTRO!$A$5:$AW$2602,17,FALSE),0) -> 60 | T19: =IFERROR(VLOOKUP($A19,FILTRO!$A$5:$AW$2602,18,FALSE),0) -> 84 | CH19: * El total de aplicaciones de Pueblos Originarios debe ser IGUAL a los resultados de la totalidad de las aplicaciones de la primera evaluación y la reevaluación. | CJ19: * El total de aplicaciones de Migrantes debe ser IGUAL a los resultados de la totalidad de las aplicaciones de la primera evaluación y la reevaluación. | CL19: 0 | CM19: 0 | CN19: 0 | CO19: 0 | DB19: 0 | DC19: 0 | DD19: 0 | DE19: 0 | DF19: 0 | DG19: 0 | DI19: 0 | DK19: 0
A20: 02010320 | B20: PRIMERA EVALUACIÓN | C20: NORMAL | D20: =SUM(E20+F20) -> 11644 | E20: =SUM(G20+I20+K20+M20+O20+Q20) -> 5633 | F20: 6011 | G20: =IFERROR(VLOOKUP($A20,FILTRO!$A$5:$AW$2602,5,FALSE),0) -> 61 | H20: =IFERROR(VLOOKUP($A20,FILTRO!$A$5:$AW$2602,6,FALSE),0) -> 63 | I20: =IFERROR(VLOOKUP($A20,FILTRO!$A$5:$AW$2602,7,FALSE),0) -> 2098 | J20: =IFERROR(VLOOKUP($A20,FILTRO!$A$5:$AW$2602,8,FALSE),0) -> 2133 | K20: =IFERROR(VLOOKUP($A20,FILTRO!$A$5:$AW$2602,9,FALSE),0) -> 418 | L20: =IFERROR(VLOOKUP($A20,FILTRO!$A$5:$AW$2602,10,FALSE),0) -> 431 | M20: =IFERROR(VLOOKUP($A20,FILTRO!$A$5:$AW$2602,11,FALSE),0) -> 1718 | N20: =IFERROR(VLOOKUP($A20,FILTRO!$A$5:$AW$2602,12,FALSE),0) -> 1828 | O20: =IFERROR(VLOOKUP($A20,FILTRO!$A$5:$AW$2602,13,FALSE),0) -> 1239 | P20: =IFERROR(VLOOKUP($A20,FILTRO!$A$5:$AW$2602,14,FALSE),0) -> 1451 | Q20: =IFERROR(VLOOKUP($A20,FILTRO!$A$5:$AW$2602,15,FALSE),0) -> 99 | R20: =IFERROR(VLOOKUP($A20,FILTRO!$A$5:$AW$2602,16,FALSE),0) -> 105 | S20: =IFERROR(VLOOKUP($A20,FILTRO!$A$5:$AW$2602,17,FALSE),0) -> 42 | T20: =IFERROR(VLOOKUP($A20,FILTRO!$A$5:$AW$2602,18,FALSE),0) -> 66
A21: 05225303 | C21: NORMAL CON REZAGO | D21: =SUM(E21+F21) -> 863 | E21: 503 | F21: 360 | G21: =IFERROR(VLOOKUP($A21,FILTRO!$A$5:$AW$2602,5,FALSE),0) -> 6 | H21: =IFERROR(VLOOKUP($A21,FILTRO!$A$5:$AW$2602,6,FALSE),0) -> 1 | I21: =IFERROR(VLOOKUP($A21,FILTRO!$A$5:$AW$2602,7,FALSE),0) -> 86 | J21: =IFERROR(VLOOKUP($A21,FILTRO!$A$5:$AW$2602,8,FALSE),0) -> 78 | K21: =IFERROR(VLOOKUP($A21,FILTRO!$A$5:$AW$2602,9,FALSE),0) -> 46 | L21: =IFERROR(VLOOKUP($A21,FILTRO!$A$5:$AW$2602,10,FALSE),0) -> 28 | M21: =IFERROR(VLOOKUP($A21,FILTRO!$A$5:$AW$2602,11,FALSE),0) -> 143 | N21: =IFERROR(VLOOKUP($A21,FILTRO!$A$5:$AW$2602,12,FALSE),0) -> 81 | O21: =IFERROR(VLOOKUP($A21,FILTRO!$A$5:$AW$2602,13,FALSE),0) -> 214 | P21: =IFERROR(VLOOKUP($A21,FILTRO!$A$5:$AW$2602,14,FALSE),0) -> 169 | Q21: =IFERROR(VLOOKUP($A21,FILTRO!$A$5:$AW$2602,15,FALSE),0) -> 8 | R21: =IFERROR(VLOOKUP($A21,FILTRO!$A$5:$AW$2602,16,FALSE),0) -> 3 | S21: =IFERROR(VLOOKUP($A21,FILTRO!$A$5:$AW$2602,17,FALSE),0) -> 9 | T21: =IFERROR(VLOOKUP($A21,FILTRO!$A$5:$AW$2602,18,FALSE),0) -> 7
A22: 02010321 | C22: RIESGO | D22: 1142 | E22: 701 | F22: 441 | G22: =IFERROR(VLOOKUP($A22,FILTRO!$A$5:$AW$2602,5,FALSE),0) -> 11 | H22: =IFERROR(VLOOKUP($A22,FILTRO!$A$5:$AW$2602,6,FALSE),0) -> 7 | I22: =IFERROR(VLOOKUP($A22,FILTRO!$A$5:$AW$2602,7,FALSE),0) -> 102 | J22: =IFERROR(VLOOKUP($A22,FILTRO!$A$5:$AW$2602,8,FALSE),0) -> 87 | K22: =IFERROR(VLOOKUP($A22,FILTRO!$A$5:$AW$2602,9,FALSE),0) -> 51 | L22: =IFERROR(VLOOKUP($A22,FILTRO!$A$5:$AW$2602,10,FALSE),0) -> 17 | M22: =IFERROR(VLOOKUP($A22,FILTRO!$A$5:$AW$2602,11,FALSE),0) -> 271 | N22: =IFERROR(VLOOKUP($A22,FILTRO!$A$5:$AW$2602,12,FALSE),0) -> 182 | O22: =IFERROR(VLOOKUP($A22,FILTRO!$A$5:$AW$2602,13,FALSE),0) -> 259 | P22: =IFERROR(VLOOKUP($A22,FILTRO!$A$5:$AW$2602,14,FALSE),0) -> 144 | Q22: =IFERROR(VLOOKUP($A22,FILTRO!$A$5:$AW$2602,15,FALSE),0) -> 7 | R22: =IFERROR(VLOOKUP($A22,FILTRO!$A$5:$AW$2602,16,FALSE),0) -> 4 | S22: =IFERROR(VLOOKUP($A22,FILTRO!$A$5:$AW$2602,17,FALSE),0) -> 1 | T22: =IFERROR(VLOOKUP($A22,FILTRO!$A$5:$AW$2602,18,FALSE),0) -> 9
A23: 02010322 | C23: RETRASO | D23: 375 | E23: 259 | F23: 116 | G23: =IFERROR(VLOOKUP($A23,FILTRO!$A$5:$AW$2602,5,FALSE),0) -> 1 | H23: =IFERROR(VLOOKUP($A23,FILTRO!$A$5:$AW$2602,6,FALSE),0) -> 1 | I23: =IFERROR(VLOOKUP($A23,FILTRO!$A$5:$AW$2602,7,FALSE),0) -> 18 | J23: =IFERROR(VLOOKUP($A23,FILTRO!$A$5:$AW$2602,8,FALSE),0) -> 15 | K23: =IFERROR(VLOOKUP($A23,FILTRO!$A$5:$AW$2602,9,FALSE),0) -> 11 | L23: =IFERROR(VLOOKUP($A23,FILTRO!$A$5:$AW$2602,10,FALSE),0) -> 3 | M23: =IFERROR(VLOOKUP($A23,FILTRO!$A$5:$AW$2602,11,FALSE),0) -> 125 | N23: =IFERROR(VLOOKUP($A23,FILTRO!$A$5:$AW$2602,12,FALSE),0) -> 59 | O23: =IFERROR(VLOOKUP($A23,FILTRO!$A$5:$AW$2602,13,FALSE),0) -> 96 | P23: =IFERROR(VLOOKUP($A23,FILTRO!$A$5:$AW$2602,14,FALSE),0) -> 33 | Q23: =IFERROR(VLOOKUP($A23,FILTRO!$A$5:$AW$2602,15,FALSE),0) -> 8 | R23: =IFERROR(VLOOKUP($A23,FILTRO!$A$5:$AW$2602,16,FALSE),0) -> 5 | S23: =IFERROR(VLOOKUP($A23,FILTRO!$A$5:$AW$2602,17,FALSE),0) -> 0 | T23: =IFERROR(VLOOKUP($A23,FILTRO!$A$5:$AW$2602,18,FALSE),0) -> 2
A24: 05225304 | B24: REEVALUACIÓN | C24: NORMAL (desde normal con rezago) | D24: 381 | E24: 208 | F24: 173 | G24: =IFERROR(VLOOKUP($A24,FILTRO!$A$5:$AW$2602,5,FALSE),0) -> 2 | H24: =IFERROR(VLOOKUP($A24,FILTRO!$A$5:$AW$2602,6,FALSE),0) -> 2 | I24: =IFERROR(VLOOKUP($A24,FILTRO!$A$5:$AW$2602,7,FALSE),0) -> 35 | J24: =IFERROR(VLOOKUP($A24,FILTRO!$A$5:$AW$2602,8,FALSE),0) -> 29 | K24: =IFERROR(VLOOKUP($A24,FILTRO!$A$5:$AW$2602,9,FALSE),0) -> 18 | L24: =IFERROR(VLOOKUP($A24,FILTRO!$A$5:$AW$2602,10,FALSE),0) -> 23 | M24: =IFERROR(VLOOKUP($A24,FILTRO!$A$5:$AW$2602,11,FALSE),0) -> 55 | N24: =IFERROR(VLOOKUP($A24,FILTRO!$A$5:$AW$2602,12,FALSE),0) -> 39 | O24: =IFERROR(VLOOKUP($A24,FILTRO!$A$5:$AW$2602,13,FALSE),0) -> 84 | P24: =IFERROR(VLOOKUP($A24,FILTRO!$A$5:$AW$2602,14,FALSE),0) -> 68 | Q24: =IFERROR(VLOOKUP($A24,FILTRO!$A$5:$AW$2602,15,FALSE),0) -> 14 | R24: =IFERROR(VLOOKUP($A24,FILTRO!$A$5:$AW$2602,16,FALSE),0) -> 12 | S24: =IFERROR(VLOOKUP($A24,FILTRO!$A$5:$AW$2602,17,FALSE),0) -> 4 | T24: =IFERROR(VLOOKUP($A24,FILTRO!$A$5:$AW$2602,18,FALSE),0) -> 0
A25: 02010420 | C25: NORMAL (desde riesgo) | D25: 451 | E25: 265 | F25: 186 | G25: =IFERROR(VLOOKUP($A25,FILTRO!$A$5:$AW$2602,5,FALSE),0) -> 2 | H25: =IFERROR(VLOOKUP($A25,FILTRO!$A$5:$AW$2602,6,FALSE),0) -> 1 | I25: =IFERROR(VLOOKUP($A25,FILTRO!$A$5:$AW$2602,7,FALSE),0) -> 27 | J25: =IFERROR(VLOOKUP($A25,FILTRO!$A$5:$AW$2602,8,FALSE),0) -> 21 | K25: =IFERROR(VLOOKUP($A25,FILTRO!$A$5:$AW$2602,9,FALSE),0) -> 22 | L25: =IFERROR(VLOOKUP($A25,FILTRO!$A$5:$AW$2602,10,FALSE),0) -> 12 | M25: =IFERROR(VLOOKUP($A25,FILTRO!$A$5:$AW$2602,11,FALSE),0) -> 129 | N25: =IFERROR(VLOOKUP($A25,FILTRO!$A$5:$AW$2602,12,FALSE),0) -> 82 | O25: =IFERROR(VLOOKUP($A25,FILTRO!$A$5:$AW$2602,13,FALSE),0) -> 71 | P25: =IFERROR(VLOOKUP($A25,FILTRO!$A$5:$AW$2602,14,FALSE),0) -> 60 | Q25: =IFERROR(VLOOKUP($A25,FILTRO!$A$5:$AW$2602,15,FALSE),0) -> 14 | R25: =IFERROR(VLOOKUP($A25,FILTRO!$A$5:$AW$2602,16,FALSE),0) -> 10 | S25: =IFERROR(VLOOKUP($A25,FILTRO!$A$5:$AW$2602,17,FALSE),0) -> 0 | T25: =IFERROR(VLOOKUP($A25,FILTRO!$A$5:$AW$2602,18,FALSE),0) -> 1
A26: 05225305 | C26: NORMAL (desde retraso) | D26: 59 | E26: 36 | F26: 23 | G26: =IFERROR(VLOOKUP($A26,FILTRO!$A$5:$AW$2602,5,FALSE),0) -> 0 | H26: =IFERROR(VLOOKUP($A26,FILTRO!$A$5:$AW$2602,6,FALSE),0) -> 0 | I26: =IFERROR(VLOOKUP($A26,FILTRO!$A$5:$AW$2602,7,FALSE),0) -> 1 | J26: =IFERROR(VLOOKUP($A26,FILTRO!$A$5:$AW$2602,8,FALSE),0) -> 2 | K26: =IFERROR(VLOOKUP($A26,FILTRO!$A$5:$AW$2602,9,FALSE),0) -> 0 | L26: =IFERROR(VLOOKUP($A26,FILTRO!$A$5:$AW$2602,10,FALSE),0) -> 2 | M26: =IFERROR(VLOOKUP($A26,FILTRO!$A$5:$AW$2602,11,FALSE),0) -> 14 | N26: =IFERROR(VLOOKUP($A26,FILTRO!$A$5:$AW$2602,12,FALSE),0) -> 9 | O26: =IFERROR(VLOOKUP($A26,FILTRO!$A$5:$AW$2602,13,FALSE),0) -> 11 | P26: =IFERROR(VLOOKUP($A26,FILTRO!$A$5:$AW$2602,14,FALSE),0) -> 9 | Q26: =IFERROR(VLOOKUP($A26,FILTRO!$A$5:$AW$2602,15,FALSE),0) -> 10 | R26: =IFERROR(VLOOKUP($A26,FILTRO!$A$5:$AW$2602,16,FALSE),0) -> 1 | S26: =IFERROR(VLOOKUP($A26,FILTRO!$A$5:$AW$2602,17,FALSE),0) -> 4 | T26: =IFERROR(VLOOKUP($A26,FILTRO!$A$5:$AW$2602,18,FALSE),0) -> 0
A27: 03500366 | C27: NORMAL CON REZAGO (desde riesgo) | D27: 139 | E27: 89 | F27: 50 | G27: =IFERROR(VLOOKUP($A27,FILTRO!$A$5:$AW$2602,5,FALSE),0) -> 0 | H27: =IFERROR(VLOOKUP($A27,FILTRO!$A$5:$AW$2602,6,FALSE),0) -> 0 | I27: =IFERROR(VLOOKUP($A27,FILTRO!$A$5:$AW$2602,7,FALSE),0) -> 6 | J27: =IFERROR(VLOOKUP($A27,FILTRO!$A$5:$AW$2602,8,FALSE),0) -> 7 | K27: =IFERROR(VLOOKUP($A27,FILTRO!$A$5:$AW$2602,9,FALSE),0) -> 7 | L27: =IFERROR(VLOOKUP($A27,FILTRO!$A$5:$AW$2602,10,FALSE),0) -> 4 | M27: =IFERROR(VLOOKUP($A27,FILTRO!$A$5:$AW$2602,11,FALSE),0) -> 53 | N27: =IFERROR(VLOOKUP($A27,FILTRO!$A$5:$AW$2602,12,FALSE),0) -> 25 | O27: =IFERROR(VLOOKUP($A27,FILTRO!$A$5:$AW$2602,13,FALSE),0) -> 20 | P27: =IFERROR(VLOOKUP($A27,FILTRO!$A$5:$AW$2602,14,FALSE),0) -> 13 | Q27: =IFERROR(VLOOKUP($A27,FILTRO!$A$5:$AW$2602,15,FALSE),0) -> 3 | R27: =IFERROR(VLOOKUP($A27,FILTRO!$A$5:$AW$2602,16,FALSE),0) -> 1 | S27: =IFERROR(VLOOKUP($A27,FILTRO!$A$5:$AW$2602,17,FALSE),0) -> 0 | T27: =IFERROR(VLOOKUP($A27,FILTRO!$A$5:$AW$2602,18,FALSE),0) -> 0
A28: 03500400 | C28: NORMAL CON REZAGO (desde retraso) | D28: 27 | E28: 14 | F28: 13 | G28: =IFERROR(VLOOKUP($A28,FILTRO!$A$5:$AW$2602,5,FALSE),0) -> 0 | H28: =IFERROR(VLOOKUP($A28,FILTRO!$A$5:$AW$2602,6,FALSE),0) -> 0 | I28: =IFERROR(VLOOKUP($A28,FILTRO!$A$5:$AW$2602,7,FALSE),0) -> 1 | J28: =IFERROR(VLOOKUP($A28,FILTRO!$A$5:$AW$2602,8,FALSE),0) -> 0 | K28: =IFERROR(VLOOKUP($A28,FILTRO!$A$5:$AW$2602,9,FALSE),0) -> 1 | L28: =IFERROR(VLOOKUP($A28,FILTRO!$A$5:$AW$2602,10,FALSE),0) -> 1 | M28: =IFERROR(VLOOKUP($A28,FILTRO!$A$5:$AW$2602,11,FALSE),0) -> 4 | N28: =IFERROR(VLOOKUP($A28,FILTRO!$A$5:$AW$2602,12,FALSE),0) -> 7 | O28: =IFERROR(VLOOKUP($A28,FILTRO!$A$5:$AW$2602,13,FALSE),0) -> 6 | P28: =IFERROR(VLOOKUP($A28,FILTRO!$A$5:$AW$2602,14,FALSE),0) -> 4 | Q28: =IFERROR(VLOOKUP($A28,FILTRO!$A$5:$AW$2602,15,FALSE),0) -> 2 | R28: =IFERROR(VLOOKUP($A28,FILTRO!$A$5:$AW$2602,16,FALSE),0) -> 1 | S28: =IFERROR(VLOOKUP($A28,FILTRO!$A$5:$AW$2602,17,FALSE),0) -> 0 | T28: =IFERROR(VLOOKUP($A28,FILTRO!$A$5:$AW$2602,18,FALSE),0) -> 0
A29: 03500401 | C29: RIESGO (desde retraso) | D29: =SUM(E29:F29) -> 36 | E29: 25 | F29: 11 | G29: =IFERROR(VLOOKUP($A29,FILTRO!$A$5:$AW$2602,5,FALSE),0) -> 0 | H29: =IFERROR(VLOOKUP($A29,FILTRO!$A$5:$AW$2602,6,FALSE),0) -> 0 | I29: =IFERROR(VLOOKUP($A29,FILTRO!$A$5:$AW$2602,7,FALSE),0) -> 0 | J29: =IFERROR(VLOOKUP($A29,FILTRO!$A$5:$AW$2602,8,FALSE),0) -> 0 | K29: =IFERROR(VLOOKUP($A29,FILTRO!$A$5:$AW$2602,9,FALSE),0) -> 3 | L29: =IFERROR(VLOOKUP($A29,FILTRO!$A$5:$AW$2602,10,FALSE),0) -> 1 | M29: =IFERROR(VLOOKUP($A29,FILTRO!$A$5:$AW$2602,11,FALSE),0) -> 10 | N29: =IFERROR(VLOOKUP($A29,FILTRO!$A$5:$AW$2602,12,FALSE),0) -> 3 | O29: =IFERROR(VLOOKUP($A29,FILTRO!$A$5:$AW$2602,13,FALSE),0) -> 11 | P29: =IFERROR(VLOOKUP($A29,FILTRO!$A$5:$AW$2602,14,FALSE),0) -> 6 | Q29: =IFERROR(VLOOKUP($A29,FILTRO!$A$5:$AW$2602,15,FALSE),0) -> 1 | R29: =IFERROR(VLOOKUP($A29,FILTRO!$A$5:$AW$2602,16,FALSE),0) -> 1 | S29: =IFERROR(VLOOKUP($A29,FILTRO!$A$5:$AW$2602,17,FALSE),0) -> 0 | T29: =IFERROR(VLOOKUP($A29,FILTRO!$A$5:$AW$2602,18,FALSE),0) -> 0
A30: 05225306 | C30: NORMAL CON REZAGO (desde normal con rezago) | D30: =SUM(E30:F30) -> 94 | E30: 74 | F30: 20 | G30: =IFERROR(VLOOKUP($A30,FILTRO!$A$5:$AW$2602,5,FALSE),0) -> 0 | H30: =IFERROR(VLOOKUP($A30,FILTRO!$A$5:$AW$2602,6,FALSE),0) -> 0 | I30: =IFERROR(VLOOKUP($A30,FILTRO!$A$5:$AW$2602,7,FALSE),0) -> 5 | J30: =IFERROR(VLOOKUP($A30,FILTRO!$A$5:$AW$2602,8,FALSE),0) -> 1 | K30: =IFERROR(VLOOKUP($A30,FILTRO!$A$5:$AW$2602,9,FALSE),0) -> 6 | L30: =IFERROR(VLOOKUP($A30,FILTRO!$A$5:$AW$2602,10,FALSE),0) -> 2 | M30: =IFERROR(VLOOKUP($A30,FILTRO!$A$5:$AW$2602,11,FALSE),0) -> 19 | N30: =IFERROR(VLOOKUP($A30,FILTRO!$A$5:$AW$2602,12,FALSE),0) -> 5 | O30: =IFERROR(VLOOKUP($A30,FILTRO!$A$5:$AW$2602,13,FALSE),0) -> 35 | P30: =IFERROR(VLOOKUP($A30,FILTRO!$A$5:$AW$2602,14,FALSE),0) -> 11 | Q30: =IFERROR(VLOOKUP($A30,FILTRO!$A$5:$AW$2602,15,FALSE),0) -> 9 | R30: =IFERROR(VLOOKUP($A30,FILTRO!$A$5:$AW$2602,16,FALSE),0) -> 1 | S30: =IFERROR(VLOOKUP($A30,FILTRO!$A$5:$AW$2602,17,FALSE),0) -> 1 | T30: =IFERROR(VLOOKUP($A30,FILTRO!$A$5:$AW$2602,18,FALSE),0) -> 0
A31: 02010421 | C31: RIESGO (desde riesgo) | D31: =SUM(E31+F31) -> 105 | E31: 73 | F31: 32 | G31: =IFERROR(VLOOKUP($A31,FILTRO!$A$5:$AW$2602,5,FALSE),0) -> 0 | H31: =IFERROR(VLOOKUP($A31,FILTRO!$A$5:$AW$2602,6,FALSE),0) -> 0 | I31: =IFERROR(VLOOKUP($A31,FILTRO!$A$5:$AW$2602,7,FALSE),0) -> 7 | J31: =IFERROR(VLOOKUP($A31,FILTRO!$A$5:$AW$2602,8,FALSE),0) -> 1 | K31: =IFERROR(VLOOKUP($A31,FILTRO!$A$5:$AW$2602,9,FALSE),0) -> 13 | L31: =IFERROR(VLOOKUP($A31,FILTRO!$A$5:$AW$2602,10,FALSE),0) -> 4 | M31: =IFERROR(VLOOKUP($A31,FILTRO!$A$5:$AW$2602,11,FALSE),0) -> 30 | N31: =IFERROR(VLOOKUP($A31,FILTRO!$A$5:$AW$2602,12,FALSE),0) -> 15 | O31: =IFERROR(VLOOKUP($A31,FILTRO!$A$5:$AW$2602,13,FALSE),0) -> 19 | P31: =IFERROR(VLOOKUP($A31,FILTRO!$A$5:$AW$2602,14,FALSE),0) -> 11 | Q31: =IFERROR(VLOOKUP($A31,FILTRO!$A$5:$AW$2602,15,FALSE),0) -> 4 | R31: =IFERROR(VLOOKUP($A31,FILTRO!$A$5:$AW$2602,16,FALSE),0) -> 1 | S31: =IFERROR(VLOOKUP($A31,FILTRO!$A$5:$AW$2602,17,FALSE),0) -> 0 | T31: =IFERROR(VLOOKUP($A31,FILTRO!$A$5:$AW$2602,18,FALSE),0) -> 0
A32: 03600110 | C32: RIESGO (desde normal con rezago) | D32: =SUM(E32+F32) -> 28 | E32: 21 | F32: 7 | G32: =IFERROR(VLOOKUP($A32,FILTRO!$A$5:$AW$2602,5,FALSE),0) -> 0 | H32: =IFERROR(VLOOKUP($A32,FILTRO!$A$5:$AW$2602,6,FALSE),0) -> 0 | I32: =IFERROR(VLOOKUP($A32,FILTRO!$A$5:$AW$2602,7,FALSE),0) -> 4 | J32: =IFERROR(VLOOKUP($A32,FILTRO!$A$5:$AW$2602,8,FALSE),0) -> 1 | K32: =IFERROR(VLOOKUP($A32,FILTRO!$A$5:$AW$2602,9,FALSE),0) -> 4 | L32: =IFERROR(VLOOKUP($A32,FILTRO!$A$5:$AW$2602,10,FALSE),0) -> 3 | M32: =IFERROR(VLOOKUP($A32,FILTRO!$A$5:$AW$2602,11,FALSE),0) -> 2 | N32: =IFERROR(VLOOKUP($A32,FILTRO!$A$5:$AW$2602,12,FALSE),0) -> 1 | O32: =IFERROR(VLOOKUP($A32,FILTRO!$A$5:$AW$2602,13,FALSE),0) -> 11 | P32: =IFERROR(VLOOKUP($A32,FILTRO!$A$5:$AW$2602,14,FALSE),0) -> 2 | Q32: =IFERROR(VLOOKUP($A32,FILTRO!$A$5:$AW$2602,15,FALSE),0) -> 0 | R32: =IFERROR(VLOOKUP($A32,FILTRO!$A$5:$AW$2602,16,FALSE),0) -> 0 | S32: =IFERROR(VLOOKUP($A32,FILTRO!$A$5:$AW$2602,17,FALSE),0) -> 0 | T32: =IFERROR(VLOOKUP($A32,FILTRO!$A$5:$AW$2602,18,FALSE),0) -> 0
A33: 02010422 | C33: RETRASO (desde retraso) | D33: =SUM(E33+F33) -> 36 | E33: 29 | F33: 7 | G33: =IFERROR(VLOOKUP($A33,FILTRO!$A$5:$AW$2602,5,FALSE),0) -> 0 | H33: =IFERROR(VLOOKUP($A33,FILTRO!$A$5:$AW$2602,6,FALSE),0) -> 0 | I33: =IFERROR(VLOOKUP($A33,FILTRO!$A$5:$AW$2602,7,FALSE),0) -> 1 | J33: =IFERROR(VLOOKUP($A33,FILTRO!$A$5:$AW$2602,8,FALSE),0) -> 0 | K33: =IFERROR(VLOOKUP($A33,FILTRO!$A$5:$AW$2602,9,FALSE),0) -> 0 | L33: =IFERROR(VLOOKUP($A33,FILTRO!$A$5:$AW$2602,10,FALSE),0) -> 0 | M33: =IFERROR(VLOOKUP($A33,FILTRO!$A$5:$AW$2602,11,FALSE),0) -> 11 | N33: =IFERROR(VLOOKUP($A33,FILTRO!$A$5:$AW$2602,12,FALSE),0) -> 4 | O33: =IFERROR(VLOOKUP($A33,FILTRO!$A$5:$AW$2602,13,FALSE),0) -> 12 | P33: =IFERROR(VLOOKUP($A33,FILTRO!$A$5:$AW$2602,14,FALSE),0) -> 3 | Q33: =IFERROR(VLOOKUP($A33,FILTRO!$A$5:$AW$2602,15,FALSE),0) -> 5 | R33: =IFERROR(VLOOKUP($A33,FILTRO!$A$5:$AW$2602,16,FALSE),0) -> 0 | S33: =IFERROR(VLOOKUP($A33,FILTRO!$A$5:$AW$2602,17,FALSE),0) -> 0 | T33: =IFERROR(VLOOKUP($A33,FILTRO!$A$5:$AW$2602,18,FALSE),0) -> 0
A34: 03600120 | C34: RETRASO (desde riesgo) | D34: =SUM(E34+F34) -> 43 | E34: 35 | F34: 8 | G34: =IFERROR(VLOOKUP($A34,FILTRO!$A$5:$AW$2602,5,FALSE),0) -> 0 | H34: =IFERROR(VLOOKUP($A34,FILTRO!$A$5:$AW$2602,6,FALSE),0) -> 0 | I34: =IFERROR(VLOOKUP($A34,FILTRO!$A$5:$AW$2602,7,FALSE),0) -> 0 | J34: =IFERROR(VLOOKUP($A34,FILTRO!$A$5:$AW$2602,8,FALSE),0) -> 0 | K34: =IFERROR(VLOOKUP($A34,FILTRO!$A$5:$AW$2602,9,FALSE),0) -> 5 | L34: =IFERROR(VLOOKUP($A34,FILTRO!$A$5:$AW$2602,10,FALSE),0) -> 1 | M34: =IFERROR(VLOOKUP($A34,FILTRO!$A$5:$AW$2602,11,FALSE),0) -> 9 | N34: =IFERROR(VLOOKUP($A34,FILTRO!$A$5:$AW$2602,12,FALSE),0) -> 4 | O34: =IFERROR(VLOOKUP($A34,FILTRO!$A$5:$AW$2602,13,FALSE),0) -> 17 | P34: =IFERROR(VLOOKUP($A34,FILTRO!$A$5:$AW$2602,14,FALSE),0) -> 3 | Q34: =IFERROR(VLOOKUP($A34,FILTRO!$A$5:$AW$2602,15,FALSE),0) -> 4 | R34: =IFERROR(VLOOKUP($A34,FILTRO!$A$5:$AW$2602,16,FALSE),0) -> 0 | S34: =IFERROR(VLOOKUP($A34,FILTRO!$A$5:$AW$2602,17,FALSE),0) -> 0 | T34: =IFERROR(VLOOKUP($A34,FILTRO!$A$5:$AW$2602,18,FALSE),0) -> 0
A35: 03600130 | C35: RETRASO (desde normal con rezago) | D35: =SUM(E35+F35) -> 9 | E35: 6 | F35: 3 | G35: =IFERROR(VLOOKUP($A35,FILTRO!$A$5:$AW$2602,5,FALSE),0) -> 0 | H35: =IFERROR(VLOOKUP($A35,FILTRO!$A$5:$AW$2602,6,FALSE),0) -> 0 | I35: =IFERROR(VLOOKUP($A35,FILTRO!$A$5:$AW$2602,7,FALSE),0) -> 0 | J35: =IFERROR(VLOOKUP($A35,FILTRO!$A$5:$AW$2602,8,FALSE),0) -> 0 | K35: =IFERROR(VLOOKUP($A35,FILTRO!$A$5:$AW$2602,9,FALSE),0) -> 2 | L35: =IFERROR(VLOOKUP($A35,FILTRO!$A$5:$AW$2602,10,FALSE),0) -> 1 | M35: =IFERROR(VLOOKUP($A35,FILTRO!$A$5:$AW$2602,11,FALSE),0) -> 0 | N35: =IFERROR(VLOOKUP($A35,FILTRO!$A$5:$AW$2602,12,FALSE),0) -> 0 | O35: =IFERROR(VLOOKUP($A35,FILTRO!$A$5:$AW$2602,13,FALSE),0) -> 4 | P35: =IFERROR(VLOOKUP($A35,FILTRO!$A$5:$AW$2602,14,FALSE),0) -> 2 | Q35: =IFERROR(VLOOKUP($A35,FILTRO!$A$5:$AW$2602,15,FALSE),0) -> 0 | R35: =IFERROR(VLOOKUP($A35,FILTRO!$A$5:$AW$2602,16,FALSE),0) -> 0 | S35: =IFERROR(VLOOKUP($A35,FILTRO!$A$5:$AW$2602,17,FALSE),0) -> 0 | T35: =IFERROR(VLOOKUP($A35,FILTRO!$A$5:$AW$2602,18,FALSE),0) -> 0
A36: 03500331 | B36: DERIVADOS A ESPECIALIDAD | C36: RIESGO | D36: 134 | E36: =SUM(G36+I36+K36+M36+O36+Q36) -> 91 | F36: 43 | G36: =IFERROR(VLOOKUP($A36,FILTRO!$A$5:$AW$2602,5,FALSE),0) -> 0 | H36: =IFERROR(VLOOKUP($A36,FILTRO!$A$5:$AW$2602,6,FALSE),0) -> 0 | I36: =IFERROR(VLOOKUP($A36,FILTRO!$A$5:$AW$2602,7,FALSE),0) -> 11 | J36: =IFERROR(VLOOKUP($A36,FILTRO!$A$5:$AW$2602,8,FALSE),0) -> 8 | K36: =IFERROR(VLOOKUP($A36,FILTRO!$A$5:$AW$2602,9,FALSE),0) -> 11 | L36: =IFERROR(VLOOKUP($A36,FILTRO!$A$5:$AW$2602,10,FALSE),0) -> 6 | M36: =IFERROR(VLOOKUP($A36,FILTRO!$A$5:$AW$2602,11,FALSE),0) -> 31 | N36: =IFERROR(VLOOKUP($A36,FILTRO!$A$5:$AW$2602,12,FALSE),0) -> 15 | O36: =IFERROR(VLOOKUP($A36,FILTRO!$A$5:$AW$2602,13,FALSE),0) -> 35 | P36: =IFERROR(VLOOKUP($A36,FILTRO!$A$5:$AW$2602,14,FALSE),0) -> 12 | Q36: =IFERROR(VLOOKUP($A36,FILTRO!$A$5:$AW$2602,15,FALSE),0) -> 3 | R36: =IFERROR(VLOOKUP($A36,FILTRO!$A$5:$AW$2602,16,FALSE),0) -> 2 | S36: =IFERROR(VLOOKUP($A36,FILTRO!$A$5:$AW$2602,17,FALSE),0) -> 0 | T36: =IFERROR(VLOOKUP($A36,FILTRO!$A$5:$AW$2602,18,FALSE),0) -> 0
A37: 03500332 | C37: RETRASO | D37: 130 | E37: 101 | F37: 29 | G37: =IFERROR(VLOOKUP($A37,FILTRO!$A$5:$AW$2602,5,FALSE),0) -> 0 | H37: =IFERROR(VLOOKUP($A37,FILTRO!$A$5:$AW$2602,6,FALSE),0) -> 2 | I37: =IFERROR(VLOOKUP($A37,FILTRO!$A$5:$AW$2602,7,FALSE),0) -> 2 | J37: =IFERROR(VLOOKUP($A37,FILTRO!$A$5:$AW$2602,8,FALSE),0) -> 2 | K37: =IFERROR(VLOOKUP($A37,FILTRO!$A$5:$AW$2602,9,FALSE),0) -> 9 | L37: =IFERROR(VLOOKUP($A37,FILTRO!$A$5:$AW$2602,10,FALSE),0) -> 1 | M37: =IFERROR(VLOOKUP($A37,FILTRO!$A$5:$AW$2602,11,FALSE),0) -> 51 | N37: =IFERROR(VLOOKUP($A37,FILTRO!$A$5:$AW$2602,12,FALSE),0) -> 16 | O37: =IFERROR(VLOOKUP($A37,FILTRO!$A$5:$AW$2602,13,FALSE),0) -> 31 | P37: =IFERROR(VLOOKUP($A37,FILTRO!$A$5:$AW$2602,14,FALSE),0) -> 6 | Q37: =IFERROR(VLOOKUP($A37,FILTRO!$A$5:$AW$2602,15,FALSE),0) -> 8 | R37: =IFERROR(VLOOKUP($A37,FILTRO!$A$5:$AW$2602,16,FALSE),0) -> 2 | S37: =IFERROR(VLOOKUP($A37,FILTRO!$A$5:$AW$2602,17,FALSE),0) -> 0 | T37: =IFERROR(VLOOKUP($A37,FILTRO!$A$5:$AW$2602,18,FALSE),0) -> 1
A38: 03500333 | B38: TRASLADO DE ESTABLECIMIENTO | C38: NORMAL CON REZAGO | D38: 3 | E38: 1 | F38: 2 | G38: =IFERROR(VLOOKUP($A38,FILTRO!$A$5:$AW$2602,5,FALSE),0) -> 0 | H38: =IFERROR(VLOOKUP($A38,FILTRO!$A$5:$AW$2602,6,FALSE),0) -> 0 | I38: =IFERROR(VLOOKUP($A38,FILTRO!$A$5:$AW$2602,7,FALSE),0) -> 0 | J38: =IFERROR(VLOOKUP($A38,FILTRO!$A$5:$AW$2602,8,FALSE),0) -> 1 | K38: =IFERROR(VLOOKUP($A38,FILTRO!$A$5:$AW$2602,9,FALSE),0) -> 0 | L38: =IFERROR(VLOOKUP($A38,FILTRO!$A$5:$AW$2602,10,FALSE),0) -> 0 | M38: =IFERROR(VLOOKUP($A38,FILTRO!$A$5:$AW$2602,11,FALSE),0) -> 1 | N38: =IFERROR(VLOOKUP($A38,FILTRO!$A$5:$AW$2602,12,FALSE),0) -> 1 | O38: =IFERROR(VLOOKUP($A38,FILTRO!$A$5:$AW$2602,13,FALSE),0) -> 0 | P38: =IFERROR(VLOOKUP($A38,FILTRO!$A$5:$AW$2602,14,FALSE),0) -> 0 | Q38: =IFERROR(VLOOKUP($A38,FILTRO!$A$5:$AW$2602,15,FALSE),0) -> 0 | R38: =IFERROR(VLOOKUP($A38,FILTRO!$A$5:$AW$2602,16,FALSE),0) -> 0 | S38: =IFERROR(VLOOKUP($A38,FILTRO!$A$5:$AW$2602,17,FALSE),0) -> 0 | T38: =IFERROR(VLOOKUP($A38,FILTRO!$A$5:$AW$2602,18,FALSE),0) -> 0
A39: 03500334 | C39: RIESGO | D39: 13 | E39: 10 | F39: 3 | G39: =IFERROR(VLOOKUP($A39,FILTRO!$A$5:$AW$2602,5,FALSE),0) -> 0 | H39: =IFERROR(VLOOKUP($A39,FILTRO!$A$5:$AW$2602,6,FALSE),0) -> 0 | I39: =IFERROR(VLOOKUP($A39,FILTRO!$A$5:$AW$2602,7,FALSE),0) -> 0 | J39: =IFERROR(VLOOKUP($A39,FILTRO!$A$5:$AW$2602,8,FALSE),0) -> 0 | K39: =IFERROR(VLOOKUP($A39,FILTRO!$A$5:$AW$2602,9,FALSE),0) -> 3 | L39: =IFERROR(VLOOKUP($A39,FILTRO!$A$5:$AW$2602,10,FALSE),0) -> 0 | M39: =IFERROR(VLOOKUP($A39,FILTRO!$A$5:$AW$2602,11,FALSE),0) -> 6 | N39: =IFERROR(VLOOKUP($A39,FILTRO!$A$5:$AW$2602,12,FALSE),0) -> 1 | O39: =IFERROR(VLOOKUP($A39,FILTRO!$A$5:$AW$2602,13,FALSE),0) -> 1 | P39: =IFERROR(VLOOKUP($A39,FILTRO!$A$5:$AW$2602,14,FALSE),0) -> 1 | Q39: =IFERROR(VLOOKUP($A39,FILTRO!$A$5:$AW$2602,15,FALSE),0) -> 0 | R39: =IFERROR(VLOOKUP($A39,FILTRO!$A$5:$AW$2602,16,FALSE),0) -> 1 | S39: =IFERROR(VLOOKUP($A39,FILTRO!$A$5:$AW$2602,17,FALSE),0) -> 0 | T39: =IFERROR(VLOOKUP($A39,FILTRO!$A$5:$AW$2602,18,FALSE),0) -> 0
A40: 03500335 | C40: RETRASO | D40: 1 | E40: 1 | F40: 0 | G40: =IFERROR(VLOOKUP($A40,FILTRO!$A$5:$AW$2602,5,FALSE),0) -> 0 | H40: =IFERROR(VLOOKUP($A40,FILTRO!$A$5:$AW$2602,6,FALSE),0) -> 0 | I40: =IFERROR(VLOOKUP($A40,FILTRO!$A$5:$AW$2602,7,FALSE),0) -> 1 | J40: =IFERROR(VLOOKUP($A40,FILTRO!$A$5:$AW$2602,8,FALSE),0) -> 0 | K40: =IFERROR(VLOOKUP($A40,FILTRO!$A$5:$AW$2602,9,FALSE),0) -> 0 | L40: =IFERROR(VLOOKUP($A40,FILTRO!$A$5:$AW$2602,10,FALSE),0) -> 0 | M40: =IFERROR(VLOOKUP($A40,FILTRO!$A$5:$AW$2602,11,FALSE),0) -> 0 | N40: =IFERROR(VLOOKUP($A40,FILTRO!$A$5:$AW$2602,12,FALSE),0) -> 0 | O40: =IFERROR(VLOOKUP($A40,FILTRO!$A$5:$AW$2602,13,FALSE),0) -> 0 | P40: =IFERROR(VLOOKUP($A40,FILTRO!$A$5:$AW$2602,14,FALSE),0) -> 0 | Q40: =IFERROR(VLOOKUP($A40,FILTRO!$A$5:$AW$2602,15,FALSE),0) -> 0 | R40: =IFERROR(VLOOKUP($A40,FILTRO!$A$5:$AW$2602,16,FALSE),0) -> 0 | S40: =IFERROR(VLOOKUP($A40,FILTRO!$A$5:$AW$2602,17,FALSE),0) -> 0 | T40: =IFERROR(VLOOKUP($A40,FILTRO!$A$5:$AW$2602,18,FALSE),0) -> 0
B41: SECCIÓN A.3: NIÑOS Y NIÑAS CON REZAGO, DÉFICIT U OTRA VULNERABILIDAD DERIVADOS A ALGUNA MODALIDAD DE ESTIMULACIÓN EN LA PRIMERA EVALUACIÓN
B42: NIÑO / A | C42: TOTAL | F42: POR EDAD
F43: Menor 7 meses | H43: 7 - 11 meses | J43: 12 - 17 meses | L43: 18 - 23 meses | N43: 24 - 47 meses | P43: 48 - 59 meses
C44: Ambos Sexos | D44: Hombres | E44: Mujeres | F44: Hombres | G44: Mujeres | H44: Hombres | I44: Mujeres | J44: Hombres | K44: Mujeres | L44: Hombres | M44: Mujeres | N44: Hombres | O44: Mujeres | P44: Hombres | Q44: Mujeres
A45: 02021790 | B45: NORMAL CON REZAGO | C45: =SUM(D45+E45) -> 1036 | D45: =SUM(F45+H45+J45+L45+N45+P45) -> 587 | E45: =SUM(G45+I45+K45+M45+O45+Q45) -> 449 | F45: =IFERROR(VLOOKUP($A45,FILTRO!$A$5:$AW$2602,5,FALSE),0) -> 20 | G45: =IFERROR(VLOOKUP($A45,FILTRO!$A$5:$AW$2602,6,FALSE),0) -> 19 | H45: =IFERROR(VLOOKUP($A45,FILTRO!$A$5:$AW$2602,7,FALSE),0) -> 85 | I45: =IFERROR(VLOOKUP($A45,FILTRO!$A$5:$AW$2602,8,FALSE),0) -> 89 | J45: =IFERROR(VLOOKUP($A45,FILTRO!$A$5:$AW$2602,9,FALSE),0) -> 70 | K45: =IFERROR(VLOOKUP($A45,FILTRO!$A$5:$AW$2602,10,FALSE),0) -> 36 | L45: =IFERROR(VLOOKUP($A45,FILTRO!$A$5:$AW$2602,11,FALSE),0) -> 157 | M45: =IFERROR(VLOOKUP($A45,FILTRO!$A$5:$AW$2602,12,FALSE),0) -> 109 | N45: =IFERROR(VLOOKUP($A45,FILTRO!$A$5:$AW$2602,13,FALSE),0) -> 242 | O45: =IFERROR(VLOOKUP($A45,FILTRO!$A$5:$AW$2602,14,FALSE),0) -> 192 | P45: =IFERROR(VLOOKUP($A45,FILTRO!$A$5:$AW$2602,15,FALSE),0) -> 13 | Q45: =IFERROR(VLOOKUP($A45,FILTRO!$A$5:$AW$2602,16,FALSE),0) -> 4 | R45: =CB45 ->  | CB45: =IF(C45<#REF!,"* Niños derivados deben ser mayores o iguales al ingreso de niños(as) Normal con Rezago a salas de estimulación REM A05 sección F. ","") ->  | DB45: =IF(C45<#REF!,1,0) -> 
A46: 02021810 | B46: RIESGO | C46: =SUM(D46+E46) -> 1084 | D46: =SUM(F46+H46+J46+L46+N46+P46) -> 681 | E46: 403 | F46: =IFERROR(VLOOKUP($A46,FILTRO!$A$5:$AW$2602,5,FALSE),0) -> 9 | G46: =IFERROR(VLOOKUP($A46,FILTRO!$A$5:$AW$2602,6,FALSE),0) -> 7 | H46: =IFERROR(VLOOKUP($A46,FILTRO!$A$5:$AW$2602,7,FALSE),0) -> 90 | I46: =IFERROR(VLOOKUP($A46,FILTRO!$A$5:$AW$2602,8,FALSE),0) -> 78 | J46: =IFERROR(VLOOKUP($A46,FILTRO!$A$5:$AW$2602,9,FALSE),0) -> 61 | K46: =IFERROR(VLOOKUP($A46,FILTRO!$A$5:$AW$2602,10,FALSE),0) -> 27 | L46: =IFERROR(VLOOKUP($A46,FILTRO!$A$5:$AW$2602,11,FALSE),0) -> 253 | M46: =IFERROR(VLOOKUP($A46,FILTRO!$A$5:$AW$2602,12,FALSE),0) -> 150 | N46: =IFERROR(VLOOKUP($A46,FILTRO!$A$5:$AW$2602,13,FALSE),0) -> 254 | O46: =IFERROR(VLOOKUP($A46,FILTRO!$A$5:$AW$2602,14,FALSE),0) -> 136 | P46: =IFERROR(VLOOKUP($A46,FILTRO!$A$5:$AW$2602,15,FALSE),0) -> 14 | Q46: =IFERROR(VLOOKUP($A46,FILTRO!$A$5:$AW$2602,16,FALSE),0) -> 5 | CB46: =IF(C46<#REF!,"* Niños derivados deben ser mayores o iguales al ingreso de niños(as) Normal con Rezago a salas de estimulación REM A05 sección F. ","") ->  | DB46: =IF(C46<#REF!,1,0) -> 
A47: 02021820 | B47: RETRASO | C47: =SUM(D47+E47) -> 350 | D47: 255 | E47: 95 | F47: =IFERROR(VLOOKUP($A47,FILTRO!$A$5:$AW$2602,5,FALSE),0) -> 1 | G47: =IFERROR(VLOOKUP($A47,FILTRO!$A$5:$AW$2602,6,FALSE),0) -> 1 | H47: =IFERROR(VLOOKUP($A47,FILTRO!$A$5:$AW$2602,7,FALSE),0) -> 13 | I47: =IFERROR(VLOOKUP($A47,FILTRO!$A$5:$AW$2602,8,FALSE),0) -> 10 | J47: =IFERROR(VLOOKUP($A47,FILTRO!$A$5:$AW$2602,9,FALSE),0) -> 15 | K47: =IFERROR(VLOOKUP($A47,FILTRO!$A$5:$AW$2602,10,FALSE),0) -> 4 | L47: =IFERROR(VLOOKUP($A47,FILTRO!$A$5:$AW$2602,11,FALSE),0) -> 110 | M47: =IFERROR(VLOOKUP($A47,FILTRO!$A$5:$AW$2602,12,FALSE),0) -> 49 | N47: =IFERROR(VLOOKUP($A47,FILTRO!$A$5:$AW$2602,13,FALSE),0) -> 100 | O47: =IFERROR(VLOOKUP($A47,FILTRO!$A$5:$AW$2602,14,FALSE),0) -> 28 | P47: =IFERROR(VLOOKUP($A47,FILTRO!$A$5:$AW$2602,15,FALSE),0) -> 16 | Q47: =IFERROR(VLOOKUP($A47,FILTRO!$A$5:$AW$2602,16,FALSE),0) -> 3 | CB47: =IF(C47<#REF!,"* Niños derivados deben ser mayores o iguales al ingreso de niños(as) Normal con Rezago a salas de estimulación REM A05 sección F. ","") ->  | DB47: =IF(C47<#REF!,1,0) -> 
A48: 05225307 | B48: OTRA VULNERABILIDAD | C48: =SUM(D48:E48) -> 1812 | D48: 1004 | E48: 808 | F48: =IFERROR(VLOOKUP($A48,FILTRO!$A$5:$AW$2602,5,FALSE),0) -> 261 | G48: =IFERROR(VLOOKUP($A48,FILTRO!$A$5:$AW$2602,6,FALSE),0) -> 276 | H48: =IFERROR(VLOOKUP($A48,FILTRO!$A$5:$AW$2602,7,FALSE),0) -> 81 | I48: =IFERROR(VLOOKUP($A48,FILTRO!$A$5:$AW$2602,8,FALSE),0) -> 92 | J48: =IFERROR(VLOOKUP($A48,FILTRO!$A$5:$AW$2602,9,FALSE),0) -> 113 | K48: =IFERROR(VLOOKUP($A48,FILTRO!$A$5:$AW$2602,10,FALSE),0) -> 78 | L48: =IFERROR(VLOOKUP($A48,FILTRO!$A$5:$AW$2602,11,FALSE),0) -> 138 | M48: =IFERROR(VLOOKUP($A48,FILTRO!$A$5:$AW$2602,12,FALSE),0) -> 113 | N48: =IFERROR(VLOOKUP($A48,FILTRO!$A$5:$AW$2602,13,FALSE),0) -> 319 | O48: =IFERROR(VLOOKUP($A48,FILTRO!$A$5:$AW$2602,14,FALSE),0) -> 168 | P48: =IFERROR(VLOOKUP($A48,FILTRO!$A$5:$AW$2602,15,FALSE),0) -> 92 | Q48: =IFERROR(VLOOKUP($A48,FILTRO!$A$5:$AW$2602,16,FALSE),0) -> 81 | CB48: =IF(C48<#REF!,"* Niños derivados deben ser mayores o iguales al ingreso de niños(as) Normal con Rezago a salas de estimulación REM A05 sección F. ","") ->  | DB48: =IF(C48<#REF!,1,0) -> 
B49: SECCIÓN A.4: RESULTADOS DE LA APLICACIÓN DE PROTOCOLO NEUROSENSORIAL
B50: RESULTADOS | C50: TOTAL | F50: POR EDAD
F51: 1 mes | H51: 2 meses
C52: Ambos Sexos | D52: Hombres | E52: Mujeres | F52: Hombres | G52: Mujeres | H52: Hombres | I52: Mujeres
A53: 02021760 | B53: APLICACIÓN DE PROTOCOLO NEUROSENSORIAL (1-2 MESES) | C53: =SUM(D53+E53) -> 4072 | D53: =SUM(F53+H53) -> 2038 | E53: =SUM(G53+I53) -> 2034 | F53: =IFERROR(VLOOKUP($A53,FILTRO!$A$5:$AW$2602,5,FALSE),0) -> 1701 | G53: =IFERROR(VLOOKUP($A53,FILTRO!$A$5:$AW$2602,6,FALSE),0) -> 1673 | H53: =IFERROR(VLOOKUP($A53,FILTRO!$A$5:$AW$2602,7,FALSE),0) -> 337 | I53: =IFERROR(VLOOKUP($A53,FILTRO!$A$5:$AW$2602,8,FALSE),0) -> 361
A54: 03500040 | B54: NORMAL | C54: =SUM(D54+E54) -> 3411 | D54: =SUM(F54+H54) -> 1693 | E54: 1718 | F54: =IFERROR(VLOOKUP($A54,FILTRO!$A$5:$AW$2602,5,FALSE),0) -> 1435 | G54: =IFERROR(VLOOKUP($A54,FILTRO!$A$5:$AW$2602,6,FALSE),0) -> 1437 | H54: =IFERROR(VLOOKUP($A54,FILTRO!$A$5:$AW$2602,7,FALSE),0) -> 258 | I54: =IFERROR(VLOOKUP($A54,FILTRO!$A$5:$AW$2602,8,FALSE),0) -> 281
A55: 03500050 | B55: ANORMAL | C55: =SUM(D55+E55) -> 618 | D55: =SUM(F55+H55) -> 322 | E55: =SUM(G55+I55) -> 296 | F55: =IFERROR(VLOOKUP($A55,FILTRO!$A$5:$AW$2602,5,FALSE),0) -> 248 | G55: =IFERROR(VLOOKUP($A55,FILTRO!$A$5:$AW$2602,6,FALSE),0) -> 223 | H55: =IFERROR(VLOOKUP($A55,FILTRO!$A$5:$AW$2602,7,FALSE),0) -> 74 | I55: =IFERROR(VLOOKUP($A55,FILTRO!$A$5:$AW$2602,8,FALSE),0) -> 73
A56: 03500060 | B56: MUY ANORMAL | C56: =SUM(D56+E56) -> 55 | D56: 31 | E56: 24 | F56: =IFERROR(VLOOKUP($A56,FILTRO!$A$5:$AW$2602,5,FALSE),0) -> 26 | G56: =IFERROR(VLOOKUP($A56,FILTRO!$A$5:$AW$2602,6,FALSE),0) -> 17 | H56: =IFERROR(VLOOKUP($A56,FILTRO!$A$5:$AW$2602,7,FALSE),0) -> 5 | I56: =IFERROR(VLOOKUP($A56,FILTRO!$A$5:$AW$2602,8,FALSE),0) -> 7
B57: SECCIÓN A.5: LACTANCIA EN NIÑOS Y NIÑAS CONTROLADOS
B58: TIPO DE ALIMENTACIÓN | D58: TOTAL | E58: SEGÚN CONTROL PROGRAMÁTICO | K58: Pueblos Originarios | L58: Migrantes
E59: Diada | F59: Del 1° mes | G59: Del 3° mes | H59: Del 6° mes | I59: Del 12° mes | J59: Del 24° mes | CB59: 0 | CC59: 0 | CD59: 0 | CE59: 0 | CF59: 0
A60: A0200002 | B60: LACTANCIA MATERNA EXCLUSIVA | D60: =SUM(E60:H60) -> 10618 | E60: =IFERROR(VLOOKUP($A60,FILTRO!$A$5:$AW$2602,3,FALSE),0) -> 2880 | F60: =IFERROR(VLOOKUP($A60,FILTRO!$A$5:$AW$2602,4,FALSE),0) -> 2681 | G60: =IFERROR(VLOOKUP($A60,FILTRO!$A$5:$AW$2602,5,FALSE),0) -> 2626 | H60: =IFERROR(VLOOKUP($A60,FILTRO!$A$5:$AW$2602,6,FALSE),0) -> 2431 | I60: =IFERROR(VLOOKUP($A60,FILTRO!$A$5:$AW$2602,7,FALSE),0) -> 0 | J60: =IFERROR(VLOOKUP($A60,FILTRO!$A$5:$AW$2602,8,FALSE),0) -> 0 | K60: =IFERROR(VLOOKUP($A60,FILTRO!$A$5:$AW$2602,9,FALSE),0) -> 37 | L60: =IFERROR(VLOOKUP($A60,FILTRO!$A$5:$AW$2602,10,FALSE),0) -> 71 | CD60: * * El campo Migrantes NO PUEDE ser mayor al Total. | CF60: 0 | CG60: 0 | CH60: 0 | DA60: 0 | DB60: 0 | DC60: 0 | DD60: 1 | DE60: 0
A61: 03500359 | B61: LACTANCIA MATERNA / FORMULA LÁCTEA | D61: =SUM(E61:H61) -> 3227 | E61: =IFERROR(VLOOKUP($A61,FILTRO!$A$5:$AW$2602,3,FALSE),0) -> 704 | F61: =IFERROR(VLOOKUP($A61,FILTRO!$A$5:$AW$2602,4,FALSE),0) -> 1025 | G61: =IFERROR(VLOOKUP($A61,FILTRO!$A$5:$AW$2602,5,FALSE),0) -> 910 | H61: =IFERROR(VLOOKUP($A61,FILTRO!$A$5:$AW$2602,6,FALSE),0) -> 588 | I61: =IFERROR(VLOOKUP($A61,FILTRO!$A$5:$AW$2602,7,FALSE),0) -> 0 | J61: =IFERROR(VLOOKUP($A61,FILTRO!$A$5:$AW$2602,8,FALSE),0) -> 0 | K61: =IFERROR(VLOOKUP($A61,FILTRO!$A$5:$AW$2602,9,FALSE),0) -> 8 | L61: =IFERROR(VLOOKUP($A61,FILTRO!$A$5:$AW$2602,10,FALSE),0) -> 20 | DB61: 0 | DC61: 0 | DD61: 0 | DE61: 0
A62: 03500360 | B62: FORMULA LÁCTEA | D62: =SUM(E62:H62) -> 1215 | E62: =IFERROR(VLOOKUP($A62,FILTRO!$A$5:$AW$2602,3,FALSE),0) -> 58 | F62: =IFERROR(VLOOKUP($A62,FILTRO!$A$5:$AW$2602,4,FALSE),0) -> 254 | G62: =IFERROR(VLOOKUP($A62,FILTRO!$A$5:$AW$2602,5,FALSE),0) -> 451 | H62: =IFERROR(VLOOKUP($A62,FILTRO!$A$5:$AW$2602,6,FALSE),0) -> 452 | I62: =IFERROR(VLOOKUP($A62,FILTRO!$A$5:$AW$2602,7,FALSE),0) -> 0 | J62: =IFERROR(VLOOKUP($A62,FILTRO!$A$5:$AW$2602,8,FALSE),0) -> 0 | K62: =IFERROR(VLOOKUP($A62,FILTRO!$A$5:$AW$2602,9,FALSE),0) -> 3 | L62: =IFERROR(VLOOKUP($A62,FILTRO!$A$5:$AW$2602,10,FALSE),0) -> 7 | DB62: 0 | DC62: 0 | DD62: 0 | DE62: 0
A63: A0200003 | B63: LACTANCIA MATERNA MAS ALIMENTACIÓN COMPLEMENTARIA | D63: =SUM(E63:J63) -> 1916 | E63: =IFERROR(VLOOKUP($A63,FILTRO!$A$5:$AW$2602,3,FALSE),0) -> 4 | F63: =IFERROR(VLOOKUP($A63,FILTRO!$A$5:$AW$2602,4,FALSE),0) -> 6 | G63: =IFERROR(VLOOKUP($A63,FILTRO!$A$5:$AW$2602,5,FALSE),0) -> 16 | H63: =IFERROR(VLOOKUP($A63,FILTRO!$A$5:$AW$2602,6,FALSE),0) -> 309 | I63: =IFERROR(VLOOKUP($A63,FILTRO!$A$5:$AW$2602,7,FALSE),0) -> 1174 | J63: =IFERROR(VLOOKUP($A63,FILTRO!$A$5:$AW$2602,8,FALSE),0) -> 407 | K63: =IFERROR(VLOOKUP($A63,FILTRO!$A$5:$AW$2602,9,FALSE),0) -> 18 | L63: =IFERROR(VLOOKUP($A63,FILTRO!$A$5:$AW$2602,10,FALSE),0) -> 14 | DB63: 0 | DC63: 0 | DD63: 0 | DE63: 0
A64: 03600140 | B64: LACTANCIA MATERNA/ FÓRMULA LÁCTEA/ ALIMENTACIÓN COMPLEMENTARIA | D64: =SUM(H64:J64)+E64 -> 2258 | E64: =IFERROR(VLOOKUP($A64,FILTRO!$A$5:$AW$2602,3,FALSE),0) -> 9 | F64: =IFERROR(VLOOKUP($A64,FILTRO!$A$5:$AW$2602,4,FALSE),0) -> 0 | G64: =IFERROR(VLOOKUP($A64,FILTRO!$A$5:$AW$2602,5,FALSE),0) -> 0 | H64: =IFERROR(VLOOKUP($A64,FILTRO!$A$5:$AW$2602,6,FALSE),0) -> 308 | I64: =IFERROR(VLOOKUP($A64,FILTRO!$A$5:$AW$2602,7,FALSE),0) -> 1161 | J64: =IFERROR(VLOOKUP($A64,FILTRO!$A$5:$AW$2602,8,FALSE),0) -> 780 | K64: =IFERROR(VLOOKUP($A64,FILTRO!$A$5:$AW$2602,9,FALSE),0) -> 13 | L64: =IFERROR(VLOOKUP($A64,FILTRO!$A$5:$AW$2602,10,FALSE),0) -> 9 | DA64: 0 | DB64: 0 | DC64: 0 | DD64: 0 | DE64: 0
A65: 03600150 | B65: FORMULA LÁCTEA ALIMENTACIÓN COMPLEMENTARIA | D65: =SUM(H65:J65)+E65 -> 3463 | E65: =IFERROR(VLOOKUP($A65,FILTRO!$A$5:$AW$2602,3,FALSE),0) -> 9 | F65: =IFERROR(VLOOKUP($A65,FILTRO!$A$5:$AW$2602,4,FALSE),0) -> 0 | G65: =IFERROR(VLOOKUP($A65,FILTRO!$A$5:$AW$2602,5,FALSE),0) -> 0 | H65: =IFERROR(VLOOKUP($A65,FILTRO!$A$5:$AW$2602,6,FALSE),0) -> 296 | I65: =IFERROR(VLOOKUP($A65,FILTRO!$A$5:$AW$2602,7,FALSE),0) -> 1326 | J65: =IFERROR(VLOOKUP($A65,FILTRO!$A$5:$AW$2602,8,FALSE),0) -> 1832 | K65: =IFERROR(VLOOKUP($A65,FILTRO!$A$5:$AW$2602,9,FALSE),0) -> 21 | L65: =IFERROR(VLOOKUP($A65,FILTRO!$A$5:$AW$2602,10,FALSE),0) -> 28 | DA65: 0 | DB65: 0 | DC65: 0 | DD65: 0 | DE65: 0
A66: A0200001 | B66: NÚMERO DE NIÑOS Y NIÑAS CONTROLADOS | D66: =SUM(E66:J66) -> 21636 | E66: =IFERROR(VLOOKUP($A66,FILTRO!$A$5:$AW$2602,3,FALSE),0) -> 3025 | F66: =IFERROR(VLOOKUP($A66,FILTRO!$A$5:$AW$2602,4,FALSE),0) -> 3687 | G66: =IFERROR(VLOOKUP($A66,FILTRO!$A$5:$AW$2602,5,FALSE),0) -> 3795 | H66: =IFERROR(VLOOKUP($A66,FILTRO!$A$5:$AW$2602,6,FALSE),0) -> 4379 | I66: =IFERROR(VLOOKUP($A66,FILTRO!$A$5:$AW$2602,7,FALSE),0) -> 3642 | J66: =IFERROR(VLOOKUP($A66,FILTRO!$A$5:$AW$2602,8,FALSE),0) -> 3108 | K66: =IFERROR(VLOOKUP($A66,FILTRO!$A$5:$AW$2602,9,FALSE),0) -> 65 | L66: =IFERROR(VLOOKUP($A66,FILTRO!$A$5:$AW$2602,10,FALSE),0) -> 80 | CE66: * El número de menores con lactancia materna Exclusiva o Artificial al control del 6er mes NO debe ser MAYOR al número de menores controlados. | CG66: * El número de menores con lactancia Materna o Artificial mas Solidos al control del 24 meses NO debe ser MAYOR al número de menores controlados. | DA66: 0 | DB66: 0 | DC66: 0 | DD66: 0 | DE66: 1 | DF66: 0 | DG66: 1 | DH66: 0
B67: SECCIÓN A.6: RESULTADOS RADIOGRAFÍA DE PELVIS (CADERA)
B68: RESULTADO | C68: TOTAL | F68: POR EDAD | J68: 3 MESES | L68: 4 MESES
F69: 3 MESES | H69: 4 MESES | J69: Pueblos Originarios | K69: Migrantes | L69: Pueblos Originarios | M69: Migrantes
C70: Ambos Sexos | D70: Hombres | E70: Mujeres | F70: Hombres | G70: Mujeres | H70: Hombres | I70: Mujeres
A71: 09600207 | B71: NORMAL | C71: =SUM(D71:E71) -> 2943 | D71: =+F71+H71 -> 1561 | E71: 1382 | F71: =IFERROR(VLOOKUP($A71,FILTRO!$A$5:$AW$2602,5,FALSE),0) -> 1134 | G71: =IFERROR(VLOOKUP($A71,FILTRO!$A$5:$AW$2602,6,FALSE),0) -> 1020 | H71: =IFERROR(VLOOKUP($A71,FILTRO!$A$5:$AW$2602,7,FALSE),0) -> 427 | I71: =IFERROR(VLOOKUP($A71,FILTRO!$A$5:$AW$2602,8,FALSE),0) -> 362 | J71: =IFERROR(VLOOKUP($A71,FILTRO!$A$5:$AW$2602,9,FALSE),0) -> 9 | K71: =IFERROR(VLOOKUP($A71,FILTRO!$A$5:$AW$2602,10,FALSE),0) -> 7 | L71: =IFERROR(VLOOKUP($A71,FILTRO!$A$5:$AW$2602,11,FALSE),0) -> 3 | M71: =IFERROR(VLOOKUP($A71,FILTRO!$A$5:$AW$2602,12,FALSE),0) -> 10 | DA71: 0 | DB71: 0 | DC71: 0 | DD71: 0 | DE71: 0 | DF71: 0 | DG71: 0 | DH71: 0 | DI71: 0
A72: 09600208 | B72: ANORMAL | C72: =SUM(D72:E72) -> 522 | D72: 194 | E72: 328 | F72: =IFERROR(VLOOKUP($A72,FILTRO!$A$5:$AW$2602,5,FALSE),0) -> 122 | G72: =IFERROR(VLOOKUP($A72,FILTRO!$A$5:$AW$2602,6,FALSE),0) -> 204 | H72: =IFERROR(VLOOKUP($A72,FILTRO!$A$5:$AW$2602,7,FALSE),0) -> 72 | I72: =IFERROR(VLOOKUP($A72,FILTRO!$A$5:$AW$2602,8,FALSE),0) -> 124 | J72: =IFERROR(VLOOKUP($A72,FILTRO!$A$5:$AW$2602,9,FALSE),0) -> 1 | K72: =IFERROR(VLOOKUP($A72,FILTRO!$A$5:$AW$2602,10,FALSE),0) -> 1 | L72: =IFERROR(VLOOKUP($A72,FILTRO!$A$5:$AW$2602,11,FALSE),0) -> 0 | M72: =IFERROR(VLOOKUP($A72,FILTRO!$A$5:$AW$2602,12,FALSE),0) -> 1 | CF72: * * No olvide digitar el campo Pueblos Originarios (4 MESES) (Digite CEROS si no tiene). | CG72: * * No olvide digitar el campo Migrantes (4 MESES) (Digite CEROS si no tiene). | DB72: 0 | DC72: 0 | DD72: 0 | DE72: 0 | DF72: 0 | DG72: 0 | DH72: 0 | DI72: 0
A73: 09600209 | B73: INMADURA | C73: =SUM(D73:E73) -> 596 | D73: 221 | E73: 375 | F73: =IFERROR(VLOOKUP($A73,FILTRO!$A$5:$AW$2602,5,FALSE),0) -> 172 | G73: =IFERROR(VLOOKUP($A73,FILTRO!$A$5:$AW$2602,6,FALSE),0) -> 290 | H73: =IFERROR(VLOOKUP($A73,FILTRO!$A$5:$AW$2602,7,FALSE),0) -> 49 | I73: =IFERROR(VLOOKUP($A73,FILTRO!$A$5:$AW$2602,8,FALSE),0) -> 85 | J73: =IFERROR(VLOOKUP($A73,FILTRO!$A$5:$AW$2602,9,FALSE),0) -> 3 | K73: =IFERROR(VLOOKUP($A73,FILTRO!$A$5:$AW$2602,10,FALSE),0) -> 5 | L73: =IFERROR(VLOOKUP($A73,FILTRO!$A$5:$AW$2602,11,FALSE),0) -> 0 | M73: =IFERROR(VLOOKUP($A73,FILTRO!$A$5:$AW$2602,12,FALSE),0) -> 4 | CF73: * * No olvide digitar el campo Pueblos Originarios (4 MESES) (Digite CEROS si no tiene). | CG73: * * No olvide digitar el campo Migrantes (4 MESES) (Digite CEROS si no tiene). | DB73: 0 | DC73: 0 | DD73: 0 | DE73: 0 | DF73: 0 | DG73: 0 | DH73: 0 | DI73: 0
B74: SECCION B: EVALUACIÓN, APLICACIÓN Y RESULTADOS DE ESCALAS EN LA MUJER
B75: SECCIÓN B.1: EVALUACIÓN DEL ESTADO NUTRICIONAL A MUJERES CONTROLADAS AL OCTAVO MES POST PARTO
B76: ESTADO NUTRICIONAL | C76: TOTAL
B78: TOTAL | C78: =SUM(C79:C82) -> 746
A79: 03500120 | B79: OBESA | C79: =IFERROR(VLOOKUP($A79,FILTRO!$A$5:$AW$2602,2,FALSE),0) -> 281
A80: 03500130 | B80: SOBREPESO | C80: =IFERROR(VLOOKUP($A80,FILTRO!$A$5:$AW$2602,2,FALSE),0) -> 288
A81: 03500140 | B81: NORMAL | C81: =IFERROR(VLOOKUP($A81,FILTRO!$A$5:$AW$2602,2,FALSE),0) -> 163
A82: 03500150 | B82: BAJO PESO | C82: =IFERROR(VLOOKUP($A82,FILTRO!$A$5:$AW$2602,2,FALSE),0) -> 14
B83: SECCIÓN B.2: APLICACIÓN DE ESCALA SEGÚN EVALUACIÓN DE RIESGO PSICOSOCIAL ABREVIADA A GESTANTES
B84: TIPO | C84: Total de Aplicaciones | D84: Riesgo | E84: Derivadas a equipo de cabecera | F84: Violencia Intrafamiliar | CG84: 0
A85: 02021830 | B85: EVALUACIÓN AL INGRESO | C85: =IFERROR(VLOOKUP($A85,FILTRO!$A$5:$AW$2602,2,FALSE),0) -> 5211 | D85: =IFERROR(VLOOKUP($A85,FILTRO!$A$5:$AW$2602,3,FALSE),0) -> 1432 | E85: =IFERROR(VLOOKUP($A85,FILTRO!$A$5:$AW$2602,4,FALSE),0) -> 1168 | F85: =IFERROR(VLOOKUP($A85,FILTRO!$A$5:$AW$2602,5,FALSE),0) -> 112 | G85: =CA85&CB85&CC85 ->  | BU85: =IF(CA85=1,"* Las Aplicaciones de EPSA con resultado de Riesgo NO DEBE ser MAYOR que el Total de las aplicaciones. ","") ->  | CA85: =IF(CG85=1,"* Las Aplicaciones de EPSA con resultado de Riesgo NO DEBE ser MAYOR que el Total de las aplicaciones. ","") ->  | CB85: =IF(CH85=1,"* Las Aplicaciones de EPSA con resultado de Riesgo NO DEBE ser MENOR que las Derivaciones a equipo de cabecera. ","") ->  | CC85: =IF(CI85=1,"* Las Aplicaciones de EPSA asociadas a Violencia Intrafamiliar NO DEBEN ser MAYOR al Total de las aplicaciones. ","") ->  | CG85: =IF(C85<D85,1,0) -> 0 | CH85: =IF(D85<E85,1,0) -> 0 | CI85: =IF(F85>C85,1,0) -> 0
A86: 03600160 | B86: EVALUACIÓN AL TERCER TRIMESTRE | C86: =IFERROR(VLOOKUP($A86,FILTRO!$A$5:$AW$2602,2,FALSE),0) -> 328 | D86: =IFERROR(VLOOKUP($A86,FILTRO!$A$5:$AW$2602,3,FALSE),0) -> 55 | E86: =IFERROR(VLOOKUP($A86,FILTRO!$A$5:$AW$2602,4,FALSE),0) -> 42 | F86: =IFERROR(VLOOKUP($A86,FILTRO!$A$5:$AW$2602,5,FALSE),0) -> 2 | G86: =CA86&CB86&CC86 ->  | CA86: =IF(CG86=1,"* Las Aplicaciones de EPSA con resultado de Riesgo NO DEBE ser MAYOR que el Total de las aplicaciones. ","") ->  | CB86: =IF(CH86=1,"* Las Aplicaciones de EPSA con resultado de Riesgo NO DEBE ser MENOR que las Derivaciones a equipo de cabecera. ","") ->  | CC86: =IF(CI86=1,"* Las Aplicaciones de EPSA asociadas a Violencia Intrafamiliar NO DEBEN ser MAYOR al Total de las aplicaciones. ","") ->  | CG86: =IF(C86<D86,1,0) -> 0 | CH86: =IF(D86<E86,1,0) -> 0 | CI86: =IF(F86>C86,1,0) -> 0
B87: SECCIÓN B.3: APLICACIÓN DE ESCALA DE EDIMBURGO A GESTANTES Y MUJERES POST PARTO | CH87: 0
B88: CONCEPTO | D88: TOTAL DE APLICACIONES | E88: RESULTADOS 10 O MÁS PTOS. O RESULTADO DISTINTO DE 0 EN PREG 10 . (PUERPERAS) | F88: RESULTADOS 13 O MÁS PTOS O RESULTADO DISTINTO DE 0 EN PREG 10. (GESTANTES) | G88: TOTAL DE CASOS ALTERADOS DERIVADOS A SALUD MENTAL | CH88: 0
A89: 03500160 | B89: EVALUACIÓN A GESTANTES | C89: PRIMERA EVALUACIÓN (2º control prenatal) | D89: =IFERROR(VLOOKUP($A89,FILTRO!$A$5:$AW$2602,2,FALSE),0) -> 5162 | E89: =IFERROR(VLOOKUP($A89,FILTRO!$A$5:$AW$2602,3,FALSE),0) -> 0 | F89: =IFERROR(VLOOKUP($A89,FILTRO!$A$5:$AW$2602,4,FALSE),0) -> 499 | G89: =IFERROR(VLOOKUP($A89,FILTRO!$A$5:$AW$2602,5,FALSE),0) -> 476 | CH89: 0 | DA89: 0 | DC89: 0
A90: 03500170 | C90: REEVALUACIÓN (con puntaje elevado en la primera evaluación) | D90: =IFERROR(VLOOKUP($A90,FILTRO!$A$5:$AW$2602,2,FALSE),0) -> 71 | E90: =IFERROR(VLOOKUP($A90,FILTRO!$A$5:$AW$2602,3,FALSE),0) -> 0 | F90: =IFERROR(VLOOKUP($A90,FILTRO!$A$5:$AW$2602,4,FALSE),0) -> 25 | G90: =IFERROR(VLOOKUP($A90,FILTRO!$A$5:$AW$2602,5,FALSE),0) -> 12 | CH90: 0 | DC90: 0
A91: 03500200 | B91: EVALUACIÓN A MUJERES POST PARTO O SÍNTOMAS DE DEPRESIÓN | C91: A los 2 meses | D91: =IFERROR(VLOOKUP($A91,FILTRO!$A$5:$AW$2602,2,FALSE),0) -> 3839 | E91: =IFERROR(VLOOKUP($A91,FILTRO!$A$5:$AW$2602,3,FALSE),0) -> 580 | F91: =IFERROR(VLOOKUP($A91,FILTRO!$A$5:$AW$2602,4,FALSE),0) -> 0 | G91: =IFERROR(VLOOKUP($A91,FILTRO!$A$5:$AW$2602,5,FALSE),0) -> 444 | CH91: 0 | DB91: 0
A92: 03500210 | C92: A los 6 meses | D92: =IFERROR(VLOOKUP($A92,FILTRO!$A$5:$AW$2602,2,FALSE),0) -> 3632 | E92: =IFERROR(VLOOKUP($A92,FILTRO!$A$5:$AW$2602,3,FALSE),0) -> 556 | F92: =IFERROR(VLOOKUP($A92,FILTRO!$A$5:$AW$2602,4,FALSE),0) -> 0 | G92: =IFERROR(VLOOKUP($A92,FILTRO!$A$5:$AW$2602,5,FALSE),0) -> 403 | CH92: 0 | DB92: 0
B93: SECCIÓN C: RESULTADOS DE LA EVALUACIÓN DEL ESTADO NUTRICIONAL DEL ADOLESCENTE CON CONTROL SALUD INTEGRAL
B94: ESTADO NUTRICIONAL | D94: TOTAL | G94: 10 A 14 años | I94: 15 A 19 años
D95: Ambos Sexos | E95: Hombres | F95: Mujeres | G95: Hombres | H95: Mujeres | I95: Hombres | J95: Mujeres
B96: TOTAL | D96: =SUM(D97:D101) -> 10874 | E96: =SUM(E97:E101) -> 4661 | F96: 6213 | G96: =SUM(G97:G101) -> 3319 | H96: =SUM(H97:H101) -> 4066 | I96: 1342 | J96: 2147
A97: 03050400 | B97: NORMAL | D97: =SUM(E97+F97) -> 4801 | E97: =SUM(G97+I97) -> 2032 | F97: =SUM(H97+J97) -> 2769 | G97: =IFERROR(VLOOKUP($A97,FILTRO!$A$5:$AW$2602,5,FALSE),0) -> 1380 | H97: =IFERROR(VLOOKUP($A97,FILTRO!$A$5:$AW$2602,6,FALSE),0) -> 1844 | I97: =IFERROR(VLOOKUP($A97,FILTRO!$A$5:$AW$2602,7,FALSE),0) -> 652 | J97: =IFERROR(VLOOKUP($A97,FILTRO!$A$5:$AW$2602,8,FALSE),0) -> 925
A98: 03050500 | B98: BAJO PESO | D98: =SUM(E98+F98) -> 687 | E98: 371 | F98: 316 | G98: =IFERROR(VLOOKUP($A98,FILTRO!$A$5:$AW$2602,5,FALSE),0) -> 237 | H98: =IFERROR(VLOOKUP($A98,FILTRO!$A$5:$AW$2602,6,FALSE),0) -> 205 | I98: =IFERROR(VLOOKUP($A98,FILTRO!$A$5:$AW$2602,7,FALSE),0) -> 134 | J98: =IFERROR(VLOOKUP($A98,FILTRO!$A$5:$AW$2602,8,FALSE),0) -> 111
A99: 03050600 | B99: SOBREPESO | D99: =SUM(E99+F99) -> 2776 | E99: 1067 | F99: 1709 | G99: =IFERROR(VLOOKUP($A99,FILTRO!$A$5:$AW$2602,5,FALSE),0) -> 793 | H99: =IFERROR(VLOOKUP($A99,FILTRO!$A$5:$AW$2602,6,FALSE),0) -> 1107 | I99: =IFERROR(VLOOKUP($A99,FILTRO!$A$5:$AW$2602,7,FALSE),0) -> 274 | J99: =IFERROR(VLOOKUP($A99,FILTRO!$A$5:$AW$2602,8,FALSE),0) -> 602
A100: 03050700 | B100: OBESOS | D100: =SUM(E100+F100) -> 2198 | E100: 982 | F100: 1216 | G100: =IFERROR(VLOOKUP($A100,FILTRO!$A$5:$AW$2602,5,FALSE),0) -> 756 | H100: =IFERROR(VLOOKUP($A100,FILTRO!$A$5:$AW$2602,6,FALSE),0) -> 789 | I100: =IFERROR(VLOOKUP($A100,FILTRO!$A$5:$AW$2602,7,FALSE),0) -> 226 | J100: =IFERROR(VLOOKUP($A100,FILTRO!$A$5:$AW$2602,8,FALSE),0) -> 427
A101: 03050710 | B101: OBESOS SEVEROS | D101: =SUM(E101+F101) -> 412 | E101: 209 | F101: 203 | G101: =IFERROR(VLOOKUP($A101,FILTRO!$A$5:$AW$2602,5,FALSE),0) -> 153 | H101: =IFERROR(VLOOKUP($A101,FILTRO!$A$5:$AW$2602,6,FALSE),0) -> 121 | I101: =IFERROR(VLOOKUP($A101,FILTRO!$A$5:$AW$2602,7,FALSE),0) -> 56 | J101: =IFERROR(VLOOKUP($A101,FILTRO!$A$5:$AW$2602,8,FALSE),0) -> 82
B102: SECCIÓN D: OTRAS EVALUACIONES, APLICACIONES Y RESULTADOS DE ESCALAS EN TODAS LAS EDADES
B103: SECCIÓN D.1: APLICACIÓN DE TAMIZAJE PARA EVALUAR EL NIVEL DE RIESGO DE CONSUMO DE ALCOHOL, TABACO Y OTRAS DROGAS
B104: COMPONENTE | D104: TOTAL | G104: POR EDAD
G105: 10-14 años | I105: 15-19 años | K105: 20-24 años | M105: 25-44 años | O105: 45-64 años | Q105: 65-69 años | S105: 70-79 años | U105: 80 y más años
D106: Ambos Sexos | E106: Hombres | F106: Mujeres | G106: Hombres | H106: Mujeres | I106: Hombres | J106: Mujeres | K106: Hombres | L106: Mujeres | M106: Hombres | N106: Mujeres | O106: Hombres | P106: Mujeres | Q106: Hombres | R106: Mujeres | S106: Hombres | T106: Mujeres | U106: Hombres | V106: Mujeres
A107: 03500346 | B107: Nº DE AUDIT (EMP/EMPAM) | D107: =SUM(E107+F107) -> 32659 | E107: =+I107+K107+M107+O107+Q107+S107+U107 -> 10979 | F107: =+J107+L107+N107+P107+R107+T107+V107 -> 21680 | G107: =IFERROR(VLOOKUP($A107,FILTRO!$A$5:$AW$2602,5,FALSE),0) -> 0 | H107: =IFERROR(VLOOKUP($A107,FILTRO!$A$5:$AW$2602,6,FALSE),0) -> 0 | I107: =IFERROR(VLOOKUP($A107,FILTRO!$A$5:$AW$2602,7,FALSE),0) -> 161 | J107: =IFERROR(VLOOKUP($A107,FILTRO!$A$5:$AW$2602,8,FALSE),0) -> 286 | K107: =IFERROR(VLOOKUP($A107,FILTRO!$A$5:$AW$2602,9,FALSE),0) -> 650 | L107: =IFERROR(VLOOKUP($A107,FILTRO!$A$5:$AW$2602,10,FALSE),0) -> 1679 | M107: =IFERROR(VLOOKUP($A107,FILTRO!$A$5:$AW$2602,11,FALSE),0) -> 3108 | N107: =IFERROR(VLOOKUP($A107,FILTRO!$A$5:$AW$2602,12,FALSE),0) -> 7511 | O107: =IFERROR(VLOOKUP($A107,FILTRO!$A$5:$AW$2602,13,FALSE),0) -> 2667 | P107: =IFERROR(VLOOKUP($A107,FILTRO!$A$5:$AW$2602,14,FALSE),0) -> 5127 | Q107: =IFERROR(VLOOKUP($A107,FILTRO!$A$5:$AW$2602,15,FALSE),0) -> 1219 | R107: =IFERROR(VLOOKUP($A107,FILTRO!$A$5:$AW$2602,16,FALSE),0) -> 2082 | S107: =IFERROR(VLOOKUP($A107,FILTRO!$A$5:$AW$2602,17,FALSE),0) -> 2052 | T107: =IFERROR(VLOOKUP($A107,FILTRO!$A$5:$AW$2602,18,FALSE),0) -> 3132 | U107: =IFERROR(VLOOKUP($A107,FILTRO!$A$5:$AW$2602,19,FALSE),0) -> 1122 | V107: =IFERROR(VLOOKUP($A107,FILTRO!$A$5:$AW$2602,20,FALSE),0) -> 1863
A108: 03500347 | B108: Nº DE AUDIT APLICADO | D108: =SUM(E108+F108) -> 23837 | E108: =SUM(K108+M108+O108+Q108+S108+U108) -> 8629 | F108: 15208 | G108: =IFERROR(VLOOKUP($A108,FILTRO!$A$5:$AW$2602,5,FALSE),0) -> 0 | H108: =IFERROR(VLOOKUP($A108,FILTRO!$A$5:$AW$2602,6,FALSE),0) -> 0 | I108: =IFERROR(VLOOKUP($A108,FILTRO!$A$5:$AW$2602,7,FALSE),0) -> 0 | J108: =IFERROR(VLOOKUP($A108,FILTRO!$A$5:$AW$2602,8,FALSE),0) -> 0 | K108: =IFERROR(VLOOKUP($A108,FILTRO!$A$5:$AW$2602,9,FALSE),0) -> 1104 | L108: =IFERROR(VLOOKUP($A108,FILTRO!$A$5:$AW$2602,10,FALSE),0) -> 1781 | M108: =IFERROR(VLOOKUP($A108,FILTRO!$A$5:$AW$2602,11,FALSE),0) -> 2566 | N108: =IFERROR(VLOOKUP($A108,FILTRO!$A$5:$AW$2602,12,FALSE),0) -> 5527 | O108: =IFERROR(VLOOKUP($A108,FILTRO!$A$5:$AW$2602,13,FALSE),0) -> 2421 | P108: =IFERROR(VLOOKUP($A108,FILTRO!$A$5:$AW$2602,14,FALSE),0) -> 4481 | Q108: =IFERROR(VLOOKUP($A108,FILTRO!$A$5:$AW$2602,15,FALSE),0) -> 988 | R108: =IFERROR(VLOOKUP($A108,FILTRO!$A$5:$AW$2602,16,FALSE),0) -> 1409 | S108: =IFERROR(VLOOKUP($A108,FILTRO!$A$5:$AW$2602,17,FALSE),0) -> 1054 | T108: =IFERROR(VLOOKUP($A108,FILTRO!$A$5:$AW$2602,18,FALSE),0) -> 1413 | U108: =IFERROR(VLOOKUP($A108,FILTRO!$A$5:$AW$2602,19,FALSE),0) -> 496 | V108: =IFERROR(VLOOKUP($A108,FILTRO!$A$5:$AW$2602,20,FALSE),0) -> 597
A109: 03500402 | B109: Nº DE ASSIST (EMP/EMPAM) | D109: 1898 | E109: 676 | F109: 1222 | G109: =IFERROR(VLOOKUP($A109,FILTRO!$A$5:$AW$2602,5,FALSE),0) -> 0 | H109: =IFERROR(VLOOKUP($A109,FILTRO!$A$5:$AW$2602,6,FALSE),0) -> 0 | I109: =IFERROR(VLOOKUP($A109,FILTRO!$A$5:$AW$2602,7,FALSE),0) -> 0 | J109: =IFERROR(VLOOKUP($A109,FILTRO!$A$5:$AW$2602,8,FALSE),0) -> 0 | K109: =IFERROR(VLOOKUP($A109,FILTRO!$A$5:$AW$2602,9,FALSE),0) -> 45 | L109: =IFERROR(VLOOKUP($A109,FILTRO!$A$5:$AW$2602,10,FALSE),0) -> 94 | M109: =IFERROR(VLOOKUP($A109,FILTRO!$A$5:$AW$2602,11,FALSE),0) -> 185 | N109: =IFERROR(VLOOKUP($A109,FILTRO!$A$5:$AW$2602,12,FALSE),0) -> 436 | O109: =IFERROR(VLOOKUP($A109,FILTRO!$A$5:$AW$2602,13,FALSE),0) -> 138 | P109: =IFERROR(VLOOKUP($A109,FILTRO!$A$5:$AW$2602,14,FALSE),0) -> 296 | Q109: =IFERROR(VLOOKUP($A109,FILTRO!$A$5:$AW$2602,15,FALSE),0) -> 119 | R109: =IFERROR(VLOOKUP($A109,FILTRO!$A$5:$AW$2602,16,FALSE),0) -> 132 | S109: =IFERROR(VLOOKUP($A109,FILTRO!$A$5:$AW$2602,17,FALSE),0) -> 128 | T109: =IFERROR(VLOOKUP($A109,FILTRO!$A$5:$AW$2602,18,FALSE),0) -> 182 | U109: =IFERROR(VLOOKUP($A109,FILTRO!$A$5:$AW$2602,19,FALSE),0) -> 61 | V109: =IFERROR(VLOOKUP($A109,FILTRO!$A$5:$AW$2602,20,FALSE),0) -> 82
A110: 03500348 | B110: N° DE ASSIST APLICADO | D110: 2295 | E110: 584 | F110: 1711 | G110: =IFERROR(VLOOKUP($A110,FILTRO!$A$5:$AW$2602,5,FALSE),0) -> 0 | H110: =IFERROR(VLOOKUP($A110,FILTRO!$A$5:$AW$2602,6,FALSE),0) -> 0 | I110: =IFERROR(VLOOKUP($A110,FILTRO!$A$5:$AW$2602,7,FALSE),0) -> 0 | J110: =IFERROR(VLOOKUP($A110,FILTRO!$A$5:$AW$2602,8,FALSE),0) -> 0 | K110: =IFERROR(VLOOKUP($A110,FILTRO!$A$5:$AW$2602,9,FALSE),0) -> 51 | L110: =IFERROR(VLOOKUP($A110,FILTRO!$A$5:$AW$2602,10,FALSE),0) -> 137 | M110: =IFERROR(VLOOKUP($A110,FILTRO!$A$5:$AW$2602,11,FALSE),0) -> 230 | N110: =IFERROR(VLOOKUP($A110,FILTRO!$A$5:$AW$2602,12,FALSE),0) -> 691 | O110: =IFERROR(VLOOKUP($A110,FILTRO!$A$5:$AW$2602,13,FALSE),0) -> 198 | P110: =IFERROR(VLOOKUP($A110,FILTRO!$A$5:$AW$2602,14,FALSE),0) -> 667 | Q110: =IFERROR(VLOOKUP($A110,FILTRO!$A$5:$AW$2602,15,FALSE),0) -> 48 | R110: =IFERROR(VLOOKUP($A110,FILTRO!$A$5:$AW$2602,16,FALSE),0) -> 96 | S110: =IFERROR(VLOOKUP($A110,FILTRO!$A$5:$AW$2602,17,FALSE),0) -> 44 | T110: =IFERROR(VLOOKUP($A110,FILTRO!$A$5:$AW$2602,18,FALSE),0) -> 94 | U110: =IFERROR(VLOOKUP($A110,FILTRO!$A$5:$AW$2602,19,FALSE),0) -> 13 | V110: =IFERROR(VLOOKUP($A110,FILTRO!$A$5:$AW$2602,20,FALSE),0) -> 26
A111: 03600100 | B111: N° DE CRAFFT EN CONTROL DE SALUD INTEGRAL DEL ADOLESCENTE | D111: 4415 | E111: =+G111+I111 -> 1981 | F111: =+H111+J111 -> 2434 | G111: =IFERROR(VLOOKUP($A111,FILTRO!$A$5:$AW$2602,5,FALSE),0) -> 1206 | H111: =IFERROR(VLOOKUP($A111,FILTRO!$A$5:$AW$2602,6,FALSE),0) -> 1459 | I111: =IFERROR(VLOOKUP($A111,FILTRO!$A$5:$AW$2602,7,FALSE),0) -> 775 | J111: =IFERROR(VLOOKUP($A111,FILTRO!$A$5:$AW$2602,8,FALSE),0) -> 975 | K111: =IFERROR(VLOOKUP($A111,FILTRO!$A$5:$AW$2602,9,FALSE),0) -> 0 | L111: =IFERROR(VLOOKUP($A111,FILTRO!$A$5:$AW$2602,10,FALSE),0) -> 0 | M111: =IFERROR(VLOOKUP($A111,FILTRO!$A$5:$AW$2602,11,FALSE),0) -> 0 | N111: =IFERROR(VLOOKUP($A111,FILTRO!$A$5:$AW$2602,12,FALSE),0) -> 0 | O111: =IFERROR(VLOOKUP($A111,FILTRO!$A$5:$AW$2602,13,FALSE),0) -> 0 | P111: =IFERROR(VLOOKUP($A111,FILTRO!$A$5:$AW$2602,14,FALSE),0) -> 0 | Q111: =IFERROR(VLOOKUP($A111,FILTRO!$A$5:$AW$2602,15,FALSE),0) -> 0 | R111: =IFERROR(VLOOKUP($A111,FILTRO!$A$5:$AW$2602,16,FALSE),0) -> 0 | S111: =IFERROR(VLOOKUP($A111,FILTRO!$A$5:$AW$2602,17,FALSE),0) -> 0 | T111: =IFERROR(VLOOKUP($A111,FILTRO!$A$5:$AW$2602,18,FALSE),0) -> 0 | U111: =IFERROR(VLOOKUP($A111,FILTRO!$A$5:$AW$2602,19,FALSE),0) -> 0 | V111: =IFERROR(VLOOKUP($A111,FILTRO!$A$5:$AW$2602,20,FALSE),0) -> 0
A112: 03500367 | B112: N° DE CRAFFT APLICADO | D112: 4739 | E112: =+G112+I112 -> 2073 | F112: =+H112+J112 -> 2666 | G112: =IFERROR(VLOOKUP($A112,FILTRO!$A$5:$AW$2602,5,FALSE),0) -> 1126 | H112: =IFERROR(VLOOKUP($A112,FILTRO!$A$5:$AW$2602,6,FALSE),0) -> 1361 | I112: =IFERROR(VLOOKUP($A112,FILTRO!$A$5:$AW$2602,7,FALSE),0) -> 947 | J112: =IFERROR(VLOOKUP($A112,FILTRO!$A$5:$AW$2602,8,FALSE),0) -> 1305 | K112: =IFERROR(VLOOKUP($A112,FILTRO!$A$5:$AW$2602,9,FALSE),0) -> 0 | L112: =IFERROR(VLOOKUP($A112,FILTRO!$A$5:$AW$2602,10,FALSE),0) -> 0 | M112: =IFERROR(VLOOKUP($A112,FILTRO!$A$5:$AW$2602,11,FALSE),0) -> 0 | N112: =IFERROR(VLOOKUP($A112,FILTRO!$A$5:$AW$2602,12,FALSE),0) -> 0 | O112: =IFERROR(VLOOKUP($A112,FILTRO!$A$5:$AW$2602,13,FALSE),0) -> 0 | P112: =IFERROR(VLOOKUP($A112,FILTRO!$A$5:$AW$2602,14,FALSE),0) -> 0 | Q112: =IFERROR(VLOOKUP($A112,FILTRO!$A$5:$AW$2602,15,FALSE),0) -> 0 | R112: =IFERROR(VLOOKUP($A112,FILTRO!$A$5:$AW$2602,16,FALSE),0) -> 0 | S112: =IFERROR(VLOOKUP($A112,FILTRO!$A$5:$AW$2602,17,FALSE),0) -> 0 | T112: =IFERROR(VLOOKUP($A112,FILTRO!$A$5:$AW$2602,18,FALSE),0) -> 0 | U112: =IFERROR(VLOOKUP($A112,FILTRO!$A$5:$AW$2602,19,FALSE),0) -> 0 | V112: =IFERROR(VLOOKUP($A112,FILTRO!$A$5:$AW$2602,20,FALSE),0) -> 0
A113: 03500349 | B113: RESULTADOS DE EVALUACIÓN | C113: BAJO RIESGO | D113: 62481 | E113: =SUM(G113+I113+K113+M113+O113+Q113+S113+U113) -> 21926 | F113: 40555 | G113: =IFERROR(VLOOKUP($A113,FILTRO!$A$5:$AW$2602,5,FALSE),0) -> 2046 | H113: =IFERROR(VLOOKUP($A113,FILTRO!$A$5:$AW$2602,6,FALSE),0) -> 2445 | I113: =IFERROR(VLOOKUP($A113,FILTRO!$A$5:$AW$2602,7,FALSE),0) -> 1460 | J113: =IFERROR(VLOOKUP($A113,FILTRO!$A$5:$AW$2602,8,FALSE),0) -> 2117 | K113: =IFERROR(VLOOKUP($A113,FILTRO!$A$5:$AW$2602,9,FALSE),0) -> 1642 | L113: =IFERROR(VLOOKUP($A113,FILTRO!$A$5:$AW$2602,10,FALSE),0) -> 3348 | M113: =IFERROR(VLOOKUP($A113,FILTRO!$A$5:$AW$2602,11,FALSE),0) -> 5291 | N113: =IFERROR(VLOOKUP($A113,FILTRO!$A$5:$AW$2602,12,FALSE),0) -> 12647 | O113: =IFERROR(VLOOKUP($A113,FILTRO!$A$5:$AW$2602,13,FALSE),0) -> 4722 | P113: =IFERROR(VLOOKUP($A113,FILTRO!$A$5:$AW$2602,14,FALSE),0) -> 9522 | Q113: =IFERROR(VLOOKUP($A113,FILTRO!$A$5:$AW$2602,15,FALSE),0) -> 2172 | R113: =IFERROR(VLOOKUP($A113,FILTRO!$A$5:$AW$2602,16,FALSE),0) -> 3493 | S113: =IFERROR(VLOOKUP($A113,FILTRO!$A$5:$AW$2602,17,FALSE),0) -> 2998 | T113: =IFERROR(VLOOKUP($A113,FILTRO!$A$5:$AW$2602,18,FALSE),0) -> 4543 | U113: =IFERROR(VLOOKUP($A113,FILTRO!$A$5:$AW$2602,19,FALSE),0) -> 1595 | V113: =IFERROR(VLOOKUP($A113,FILTRO!$A$5:$AW$2602,20,FALSE),0) -> 2440
A114: 03500290 | C114: CONSUMO RIESGOSO / INTERMEDIO | D114: 3199 | E114: 1347 | F114: 1852 | G114: =IFERROR(VLOOKUP($A114,FILTRO!$A$5:$AW$2602,5,FALSE),0) -> 28 | H114: =IFERROR(VLOOKUP($A114,FILTRO!$A$5:$AW$2602,6,FALSE),0) -> 37 | I114: =IFERROR(VLOOKUP($A114,FILTRO!$A$5:$AW$2602,7,FALSE),0) -> 144 | J114: =IFERROR(VLOOKUP($A114,FILTRO!$A$5:$AW$2602,8,FALSE),0) -> 148 | K114: =IFERROR(VLOOKUP($A114,FILTRO!$A$5:$AW$2602,9,FALSE),0) -> 135 | L114: =IFERROR(VLOOKUP($A114,FILTRO!$A$5:$AW$2602,10,FALSE),0) -> 230 | M114: =IFERROR(VLOOKUP($A114,FILTRO!$A$5:$AW$2602,11,FALSE),0) -> 470 | N114: =IFERROR(VLOOKUP($A114,FILTRO!$A$5:$AW$2602,12,FALSE),0) -> 751 | O114: =IFERROR(VLOOKUP($A114,FILTRO!$A$5:$AW$2602,13,FALSE),0) -> 341 | P114: =IFERROR(VLOOKUP($A114,FILTRO!$A$5:$AW$2602,14,FALSE),0) -> 455 | Q114: =IFERROR(VLOOKUP($A114,FILTRO!$A$5:$AW$2602,15,FALSE),0) -> 111 | R114: =IFERROR(VLOOKUP($A114,FILTRO!$A$5:$AW$2602,16,FALSE),0) -> 98 | S114: =IFERROR(VLOOKUP($A114,FILTRO!$A$5:$AW$2602,17,FALSE),0) -> 99 | T114: =IFERROR(VLOOKUP($A114,FILTRO!$A$5:$AW$2602,18,FALSE),0) -> 111 | U114: =IFERROR(VLOOKUP($A114,FILTRO!$A$5:$AW$2602,19,FALSE),0) -> 19 | V114: =IFERROR(VLOOKUP($A114,FILTRO!$A$5:$AW$2602,20,FALSE),0) -> 22
A115: 03500300 | C115: POSIBLE CONSUMO PERJUDICIAL O DEPENDENCIA | D115: 642 | E115: 368 | F115: 274 | G115: =IFERROR(VLOOKUP($A115,FILTRO!$A$5:$AW$2602,5,FALSE),0) -> 23 | H115: =IFERROR(VLOOKUP($A115,FILTRO!$A$5:$AW$2602,6,FALSE),0) -> 25 | I115: =IFERROR(VLOOKUP($A115,FILTRO!$A$5:$AW$2602,7,FALSE),0) -> 83 | J115: =IFERROR(VLOOKUP($A115,FILTRO!$A$5:$AW$2602,8,FALSE),0) -> 64 | K115: =IFERROR(VLOOKUP($A115,FILTRO!$A$5:$AW$2602,9,FALSE),0) -> 21 | L115: =IFERROR(VLOOKUP($A115,FILTRO!$A$5:$AW$2602,10,FALSE),0) -> 17 | M115: =IFERROR(VLOOKUP($A115,FILTRO!$A$5:$AW$2602,11,FALSE),0) -> 91 | N115: =IFERROR(VLOOKUP($A115,FILTRO!$A$5:$AW$2602,12,FALSE),0) -> 68 | O115: =IFERROR(VLOOKUP($A115,FILTRO!$A$5:$AW$2602,13,FALSE),0) -> 99 | P115: =IFERROR(VLOOKUP($A115,FILTRO!$A$5:$AW$2602,14,FALSE),0) -> 61 | Q115: =IFERROR(VLOOKUP($A115,FILTRO!$A$5:$AW$2602,15,FALSE),0) -> 22 | R115: =IFERROR(VLOOKUP($A115,FILTRO!$A$5:$AW$2602,16,FALSE),0) -> 31 | S115: =IFERROR(VLOOKUP($A115,FILTRO!$A$5:$AW$2602,17,FALSE),0) -> 27 | T115: =IFERROR(VLOOKUP($A115,FILTRO!$A$5:$AW$2602,18,FALSE),0) -> 5 | U115: =IFERROR(VLOOKUP($A115,FILTRO!$A$5:$AW$2602,19,FALSE),0) -> 2 | V115: =IFERROR(VLOOKUP($A115,FILTRO!$A$5:$AW$2602,20,FALSE),0) -> 3
B116: SECCIÓN D.2: RESULTADOS DE LA APLICACIÓN DE INSTRUMENTO DE VALORACIÓN DE DESEMPEÑO EN COMUNIDAD (IVADEC-CIF)
B117: ACTIVIDAD | C117: RESULTADO | D117: TOTAL | G117: POR EDAD
G118: 6 -11 meses | I118: 12 - 23 meses | K118: 2 - 4 años | M118: 5 - 9 años | O118: 10 a 14 años | Q118: 15 a 19 años | S118: 20 a 24 años | U118: 25 a 64 años | W118: 65 a 69 años | Y118: 70 a 79 años | AA118: 80 y más años
D119: Ambos Sexos | E119: Hombres | F119: Mujeres | G119: Hombres | H119: Mujeres | I119: Hombres | J119: Mujeres | K119: Hombres | L119: Mujeres | M119: Hombres | N119: Mujeres | O119: Hombres | P119: Mujeres | Q119: Hombres | R119: Mujeres | S119: Hombres | T119: Mujeres | U119: Hombres | V119: Mujeres | W119: Hombres | X119: Mujeres | Y119: Hombres | Z119: Mujeres | AA119: Hombres | AB119: Mujeres
A120: 03051000A | B120: ORIGEN FÍSICO | C120: SIN DISCAPACIDAD | D120: =SUM(E120+F120) -> 9 | E120: =SUM(G120+I120+K120+M120+O120+Q120+S120+U120+W120+Y120+AA120) -> 7 | F120: =SUM(H120+J120+L120+N120+P120+R120+T120+V120+X120+Z120+AB120) -> 2 | G120: =IFERROR(VLOOKUP($A120,FILTRO!$A$5:$AW$2602,5,FALSE),0) -> 0 | H120: =IFERROR(VLOOKUP($A120,FILTRO!$A$5:$AW$2602,6,FALSE),0) -> 0 | I120: =IFERROR(VLOOKUP($A120,FILTRO!$A$5:$AW$2602,7,FALSE),0) -> 0 | J120: =IFERROR(VLOOKUP($A120,FILTRO!$A$5:$AW$2602,8,FALSE),0) -> 0 | K120: =IFERROR(VLOOKUP($A120,FILTRO!$A$5:$AW$2602,9,FALSE),0) -> 1 | L120: =IFERROR(VLOOKUP($A120,FILTRO!$A$5:$AW$2602,10,FALSE),0) -> 0 | M120: =IFERROR(VLOOKUP($A120,FILTRO!$A$5:$AW$2602,11,FALSE),0) -> 0 | N120: =IFERROR(VLOOKUP($A120,FILTRO!$A$5:$AW$2602,12,FALSE),0) -> 0 | O120: =IFERROR(VLOOKUP($A120,FILTRO!$A$5:$AW$2602,13,FALSE),0) -> 0 | P120: =IFERROR(VLOOKUP($A120,FILTRO!$A$5:$AW$2602,14,FALSE),0) -> 0 | Q120: =IFERROR(VLOOKUP($A120,FILTRO!$A$5:$AW$2602,15,FALSE),0) -> 0 | R120: =IFERROR(VLOOKUP($A120,FILTRO!$A$5:$AW$2602,16,FALSE),0) -> 0 | S120: =IFERROR(VLOOKUP($A120,FILTRO!$A$5:$AW$2602,17,FALSE),0) -> 0 | T120: =IFERROR(VLOOKUP($A120,FILTRO!$A$5:$AW$2602,18,FALSE),0) -> 0 | U120: =IFERROR(VLOOKUP($A120,FILTRO!$A$5:$AW$2602,19,FALSE),0) -> 4 | V120: =IFERROR(VLOOKUP($A120,FILTRO!$A$5:$AW$2602,20,FALSE),0) -> 1 | W120: =IFERROR(VLOOKUP($A120,FILTRO!$A$5:$AW$2602,21,FALSE),0) -> 1 | X120: =IFERROR(VLOOKUP($A120,FILTRO!$A$5:$AW$2602,22,FALSE),0) -> 0 | Y120: =IFERROR(VLOOKUP($A120,FILTRO!$A$5:$AW$2602,23,FALSE),0) -> 1 | Z120: =IFERROR(VLOOKUP($A120,FILTRO!$A$5:$AW$2602,24,FALSE),0) -> 1 | AA120: =IFERROR(VLOOKUP($A120,FILTRO!$A$5:$AW$2602,25,FALSE),0) -> 0 | AB120: =IFERROR(VLOOKUP($A120,FILTRO!$A$5:$AW$2602,26,FALSE),0) -> 0
A121: 03051100 | C121: DISCAPACIDAD LEVE | D121: 276 | E121: =SUM(G121+I121+K121+M121+O121+Q121+S121+U121+W121+Y121+AA121) -> 147 | F121: 129 | G121: =IFERROR(VLOOKUP($A121,FILTRO!$A$5:$AW$2602,5,FALSE),0) -> 2 | H121: =IFERROR(VLOOKUP($A121,FILTRO!$A$5:$AW$2602,6,FALSE),0) -> 1 | I121: =IFERROR(VLOOKUP($A121,FILTRO!$A$5:$AW$2602,7,FALSE),0) -> 0 | J121: =IFERROR(VLOOKUP($A121,FILTRO!$A$5:$AW$2602,8,FALSE),0) -> 0 | K121: =IFERROR(VLOOKUP($A121,FILTRO!$A$5:$AW$2602,9,FALSE),0) -> 2 | L121: =IFERROR(VLOOKUP($A121,FILTRO!$A$5:$AW$2602,10,FALSE),0) -> 1 | M121: =IFERROR(VLOOKUP($A121,FILTRO!$A$5:$AW$2602,11,FALSE),0) -> 6 | N121: =IFERROR(VLOOKUP($A121,FILTRO!$A$5:$AW$2602,12,FALSE),0) -> 1 | O121: =IFERROR(VLOOKUP($A121,FILTRO!$A$5:$AW$2602,13,FALSE),0) -> 5 | P121: =IFERROR(VLOOKUP($A121,FILTRO!$A$5:$AW$2602,14,FALSE),0) -> 2 | Q121: =IFERROR(VLOOKUP($A121,FILTRO!$A$5:$AW$2602,15,FALSE),0) -> 1 | R121: =IFERROR(VLOOKUP($A121,FILTRO!$A$5:$AW$2602,16,FALSE),0) -> 2 | S121: =IFERROR(VLOOKUP($A121,FILTRO!$A$5:$AW$2602,17,FALSE),0) -> 1 | T121: =IFERROR(VLOOKUP($A121,FILTRO!$A$5:$AW$2602,18,FALSE),0) -> 5 | U121: =IFERROR(VLOOKUP($A121,FILTRO!$A$5:$AW$2602,19,FALSE),0) -> 89 | V121: =IFERROR(VLOOKUP($A121,FILTRO!$A$5:$AW$2602,20,FALSE),0) -> 94 | W121: =IFERROR(VLOOKUP($A121,FILTRO!$A$5:$AW$2602,21,FALSE),0) -> 19 | X121: =IFERROR(VLOOKUP($A121,FILTRO!$A$5:$AW$2602,22,FALSE),0) -> 13 | Y121: =IFERROR(VLOOKUP($A121,FILTRO!$A$5:$AW$2602,23,FALSE),0) -> 16 | Z121: =IFERROR(VLOOKUP($A121,FILTRO!$A$5:$AW$2602,24,FALSE),0) -> 8 | AA121: =IFERROR(VLOOKUP($A121,FILTRO!$A$5:$AW$2602,25,FALSE),0) -> 6 | AB121: =IFERROR(VLOOKUP($A121,FILTRO!$A$5:$AW$2602,26,FALSE),0) -> 2
A122: 03051200 | C122: DISCAPACIDAD MODERADA | D122: 326 | E122: 141 | F122: 185 | G122: =IFERROR(VLOOKUP($A122,FILTRO!$A$5:$AW$2602,5,FALSE),0) -> 0 | H122: =IFERROR(VLOOKUP($A122,FILTRO!$A$5:$AW$2602,6,FALSE),0) -> 1 | I122: =IFERROR(VLOOKUP($A122,FILTRO!$A$5:$AW$2602,7,FALSE),0) -> 0 | J122: =IFERROR(VLOOKUP($A122,FILTRO!$A$5:$AW$2602,8,FALSE),0) -> 2 | K122: =IFERROR(VLOOKUP($A122,FILTRO!$A$5:$AW$2602,9,FALSE),0) -> 0 | L122: =IFERROR(VLOOKUP($A122,FILTRO!$A$5:$AW$2602,10,FALSE),0) -> 2 | M122: =IFERROR(VLOOKUP($A122,FILTRO!$A$5:$AW$2602,11,FALSE),0) -> 3 | N122: =IFERROR(VLOOKUP($A122,FILTRO!$A$5:$AW$2602,12,FALSE),0) -> 1 | O122: =IFERROR(VLOOKUP($A122,FILTRO!$A$5:$AW$2602,13,FALSE),0) -> 1 | P122: =IFERROR(VLOOKUP($A122,FILTRO!$A$5:$AW$2602,14,FALSE),0) -> 0 | Q122: =IFERROR(VLOOKUP($A122,FILTRO!$A$5:$AW$2602,15,FALSE),0) -> 2 | R122: =IFERROR(VLOOKUP($A122,FILTRO!$A$5:$AW$2602,16,FALSE),0) -> 2 | S122: =IFERROR(VLOOKUP($A122,FILTRO!$A$5:$AW$2602,17,FALSE),0) -> 6 | T122: =IFERROR(VLOOKUP($A122,FILTRO!$A$5:$AW$2602,18,FALSE),0) -> 3 | U122: =IFERROR(VLOOKUP($A122,FILTRO!$A$5:$AW$2602,19,FALSE),0) -> 94 | V122: =IFERROR(VLOOKUP($A122,FILTRO!$A$5:$AW$2602,20,FALSE),0) -> 112 | W122: =IFERROR(VLOOKUP($A122,FILTRO!$A$5:$AW$2602,21,FALSE),0) -> 15 | X122: =IFERROR(VLOOKUP($A122,FILTRO!$A$5:$AW$2602,22,FALSE),0) -> 31 | Y122: =IFERROR(VLOOKUP($A122,FILTRO!$A$5:$AW$2602,23,FALSE),0) -> 13 | Z122: =IFERROR(VLOOKUP($A122,FILTRO!$A$5:$AW$2602,24,FALSE),0) -> 21 | AA122: =IFERROR(VLOOKUP($A122,FILTRO!$A$5:$AW$2602,25,FALSE),0) -> 7 | AB122: =IFERROR(VLOOKUP($A122,FILTRO!$A$5:$AW$2602,26,FALSE),0) -> 10
A123: 03051300 | C123: DISCAPACIDAD SEVERA | D123: 245 | E123: 116 | F123: 129 | G123: =IFERROR(VLOOKUP($A123,FILTRO!$A$5:$AW$2602,5,FALSE),0) -> 0 | H123: =IFERROR(VLOOKUP($A123,FILTRO!$A$5:$AW$2602,6,FALSE),0) -> 0 | I123: =IFERROR(VLOOKUP($A123,FILTRO!$A$5:$AW$2602,7,FALSE),0) -> 2 | J123: =IFERROR(VLOOKUP($A123,FILTRO!$A$5:$AW$2602,8,FALSE),0) -> 1 | K123: =IFERROR(VLOOKUP($A123,FILTRO!$A$5:$AW$2602,9,FALSE),0) -> 4 | L123: =IFERROR(VLOOKUP($A123,FILTRO!$A$5:$AW$2602,10,FALSE),0) -> 1 | M123: =IFERROR(VLOOKUP($A123,FILTRO!$A$5:$AW$2602,11,FALSE),0) -> 10 | N123: =IFERROR(VLOOKUP($A123,FILTRO!$A$5:$AW$2602,12,FALSE),0) -> 4 | O123: =IFERROR(VLOOKUP($A123,FILTRO!$A$5:$AW$2602,13,FALSE),0) -> 6 | P123: =IFERROR(VLOOKUP($A123,FILTRO!$A$5:$AW$2602,14,FALSE),0) -> 1 | Q123: =IFERROR(VLOOKUP($A123,FILTRO!$A$5:$AW$2602,15,FALSE),0) -> 1 | R123: =IFERROR(VLOOKUP($A123,FILTRO!$A$5:$AW$2602,16,FALSE),0) -> 0 | S123: =IFERROR(VLOOKUP($A123,FILTRO!$A$5:$AW$2602,17,FALSE),0) -> 1 | T123: =IFERROR(VLOOKUP($A123,FILTRO!$A$5:$AW$2602,18,FALSE),0) -> 3 | U123: =IFERROR(VLOOKUP($A123,FILTRO!$A$5:$AW$2602,19,FALSE),0) -> 49 | V123: =IFERROR(VLOOKUP($A123,FILTRO!$A$5:$AW$2602,20,FALSE),0) -> 65 | W123: =IFERROR(VLOOKUP($A123,FILTRO!$A$5:$AW$2602,21,FALSE),0) -> 7 | X123: =IFERROR(VLOOKUP($A123,FILTRO!$A$5:$AW$2602,22,FALSE),0) -> 9 | Y123: =IFERROR(VLOOKUP($A123,FILTRO!$A$5:$AW$2602,23,FALSE),0) -> 24 | Z123: =IFERROR(VLOOKUP($A123,FILTRO!$A$5:$AW$2602,24,FALSE),0) -> 19 | AA123: =IFERROR(VLOOKUP($A123,FILTRO!$A$5:$AW$2602,25,FALSE),0) -> 12 | AB123: =IFERROR(VLOOKUP($A123,FILTRO!$A$5:$AW$2602,26,FALSE),0) -> 26
A124: 03051400 | C124: DISCAPACIDAD PROFUNDA | D124: 18 | E124: 8 | F124: 10 | G124: =IFERROR(VLOOKUP($A124,FILTRO!$A$5:$AW$2602,5,FALSE),0) -> 0 | H124: =IFERROR(VLOOKUP($A124,FILTRO!$A$5:$AW$2602,6,FALSE),0) -> 0 | I124: =IFERROR(VLOOKUP($A124,FILTRO!$A$5:$AW$2602,7,FALSE),0) -> 0 | J124: =IFERROR(VLOOKUP($A124,FILTRO!$A$5:$AW$2602,8,FALSE),0) -> 0 | K124: =IFERROR(VLOOKUP($A124,FILTRO!$A$5:$AW$2602,9,FALSE),0) -> 1 | L124: =IFERROR(VLOOKUP($A124,FILTRO!$A$5:$AW$2602,10,FALSE),0) -> 1 | M124: =IFERROR(VLOOKUP($A124,FILTRO!$A$5:$AW$2602,11,FALSE),0) -> 0 | N124: =IFERROR(VLOOKUP($A124,FILTRO!$A$5:$AW$2602,12,FALSE),0) -> 0 | O124: =IFERROR(VLOOKUP($A124,FILTRO!$A$5:$AW$2602,13,FALSE),0) -> 0 | P124: =IFERROR(VLOOKUP($A124,FILTRO!$A$5:$AW$2602,14,FALSE),0) -> 0 | Q124: =IFERROR(VLOOKUP($A124,FILTRO!$A$5:$AW$2602,15,FALSE),0) -> 0 | R124: =IFERROR(VLOOKUP($A124,FILTRO!$A$5:$AW$2602,16,FALSE),0) -> 0 | S124: =IFERROR(VLOOKUP($A124,FILTRO!$A$5:$AW$2602,17,FALSE),0) -> 0 | T124: =IFERROR(VLOOKUP($A124,FILTRO!$A$5:$AW$2602,18,FALSE),0) -> 0 | U124: =IFERROR(VLOOKUP($A124,FILTRO!$A$5:$AW$2602,19,FALSE),0) -> 1 | V124: =IFERROR(VLOOKUP($A124,FILTRO!$A$5:$AW$2602,20,FALSE),0) -> 1 | W124: =IFERROR(VLOOKUP($A124,FILTRO!$A$5:$AW$2602,21,FALSE),0) -> 0 | X124: =IFERROR(VLOOKUP($A124,FILTRO!$A$5:$AW$2602,22,FALSE),0) -> 1 | Y124: =IFERROR(VLOOKUP($A124,FILTRO!$A$5:$AW$2602,23,FALSE),0) -> 1 | Z124: =IFERROR(VLOOKUP($A124,FILTRO!$A$5:$AW$2602,24,FALSE),0) -> 3 | AA124: =IFERROR(VLOOKUP($A124,FILTRO!$A$5:$AW$2602,25,FALSE),0) -> 5 | AB124: =IFERROR(VLOOKUP($A124,FILTRO!$A$5:$AW$2602,26,FALSE),0) -> 4
A125: 03051500 | B125: ORIGEN SENSORIAL VISUAL | C125: SIN DISCAPACIDAD | D125: 1 | E125: 0 | F125: 1 | G125: =IFERROR(VLOOKUP($A125,FILTRO!$A$5:$AW$2602,5,FALSE),0) -> 0 | H125: =IFERROR(VLOOKUP($A125,FILTRO!$A$5:$AW$2602,6,FALSE),0) -> 0 | I125: =IFERROR(VLOOKUP($A125,FILTRO!$A$5:$AW$2602,7,FALSE),0) -> 0 | J125: =IFERROR(VLOOKUP($A125,FILTRO!$A$5:$AW$2602,8,FALSE),0) -> 0 | K125: =IFERROR(VLOOKUP($A125,FILTRO!$A$5:$AW$2602,9,FALSE),0) -> 0 | L125: =IFERROR(VLOOKUP($A125,FILTRO!$A$5:$AW$2602,10,FALSE),0) -> 0 | M125: =IFERROR(VLOOKUP($A125,FILTRO!$A$5:$AW$2602,11,FALSE),0) -> 0 | N125: =IFERROR(VLOOKUP($A125,FILTRO!$A$5:$AW$2602,12,FALSE),0) -> 0 | O125: =IFERROR(VLOOKUP($A125,FILTRO!$A$5:$AW$2602,13,FALSE),0) -> 0 | P125: =IFERROR(VLOOKUP($A125,FILTRO!$A$5:$AW$2602,14,FALSE),0) -> 0 | Q125: =IFERROR(VLOOKUP($A125,FILTRO!$A$5:$AW$2602,15,FALSE),0) -> 0 | R125: =IFERROR(VLOOKUP($A125,FILTRO!$A$5:$AW$2602,16,FALSE),0) -> 0 | S125: =IFERROR(VLOOKUP($A125,FILTRO!$A$5:$AW$2602,17,FALSE),0) -> 0 | T125: =IFERROR(VLOOKUP($A125,FILTRO!$A$5:$AW$2602,18,FALSE),0) -> 0 | U125: =IFERROR(VLOOKUP($A125,FILTRO!$A$5:$AW$2602,19,FALSE),0) -> 0 | V125: =IFERROR(VLOOKUP($A125,FILTRO!$A$5:$AW$2602,20,FALSE),0) -> 1 | W125: =IFERROR(VLOOKUP($A125,FILTRO!$A$5:$AW$2602,21,FALSE),0) -> 0 | X125: =IFERROR(VLOOKUP($A125,FILTRO!$A$5:$AW$2602,22,FALSE),0) -> 0 | Y125: =IFERROR(VLOOKUP($A125,FILTRO!$A$5:$AW$2602,23,FALSE),0) -> 0 | Z125: =IFERROR(VLOOKUP($A125,FILTRO!$A$5:$AW$2602,24,FALSE),0) -> 0 | AA125: =IFERROR(VLOOKUP($A125,FILTRO!$A$5:$AW$2602,25,FALSE),0) -> 0 | AB125: =IFERROR(VLOOKUP($A125,FILTRO!$A$5:$AW$2602,26,FALSE),0) -> 0
A126: 03051600 | C126: DISCAPACIDAD LEVE | D126: 37 | E126: 25 | F126: 12 | G126: =IFERROR(VLOOKUP($A126,FILTRO!$A$5:$AW$2602,5,FALSE),0) -> 0 | H126: =IFERROR(VLOOKUP($A126,FILTRO!$A$5:$AW$2602,6,FALSE),0) -> 0 | I126: =IFERROR(VLOOKUP($A126,FILTRO!$A$5:$AW$2602,7,FALSE),0) -> 0 | J126: =IFERROR(VLOOKUP($A126,FILTRO!$A$5:$AW$2602,8,FALSE),0) -> 0 | K126: =IFERROR(VLOOKUP($A126,FILTRO!$A$5:$AW$2602,9,FALSE),0) -> 0 | L126: =IFERROR(VLOOKUP($A126,FILTRO!$A$5:$AW$2602,10,FALSE),0) -> 0 | M126: =IFERROR(VLOOKUP($A126,FILTRO!$A$5:$AW$2602,11,FALSE),0) -> 1 | N126: =IFERROR(VLOOKUP($A126,FILTRO!$A$5:$AW$2602,12,FALSE),0) -> 0 | O126: =IFERROR(VLOOKUP($A126,FILTRO!$A$5:$AW$2602,13,FALSE),0) -> 0 | P126: =IFERROR(VLOOKUP($A126,FILTRO!$A$5:$AW$2602,14,FALSE),0) -> 0 | Q126: =IFERROR(VLOOKUP($A126,FILTRO!$A$5:$AW$2602,15,FALSE),0) -> 2 | R126: =IFERROR(VLOOKUP($A126,FILTRO!$A$5:$AW$2602,16,FALSE),0) -> 1 | S126: =IFERROR(VLOOKUP($A126,FILTRO!$A$5:$AW$2602,17,FALSE),0) -> 0 | T126: =IFERROR(VLOOKUP($A126,FILTRO!$A$5:$AW$2602,18,FALSE),0) -> 0 | U126: =IFERROR(VLOOKUP($A126,FILTRO!$A$5:$AW$2602,19,FALSE),0) -> 17 | V126: =IFERROR(VLOOKUP($A126,FILTRO!$A$5:$AW$2602,20,FALSE),0) -> 10 | W126: =IFERROR(VLOOKUP($A126,FILTRO!$A$5:$AW$2602,21,FALSE),0) -> 5 | X126: =IFERROR(VLOOKUP($A126,FILTRO!$A$5:$AW$2602,22,FALSE),0) -> 1 | Y126: =IFERROR(VLOOKUP($A126,FILTRO!$A$5:$AW$2602,23,FALSE),0) -> 0 | Z126: =IFERROR(VLOOKUP($A126,FILTRO!$A$5:$AW$2602,24,FALSE),0) -> 0 | AA126: =IFERROR(VLOOKUP($A126,FILTRO!$A$5:$AW$2602,25,FALSE),0) -> 0 | AB126: =IFERROR(VLOOKUP($A126,FILTRO!$A$5:$AW$2602,26,FALSE),0) -> 0
